Workbook

Sheet Cover Page
B2: United States Environmental Protection Agency
B3: Office of Chemical Safety and Pollution Prevention
B5: Risk Evaluation for Perchloroethylene Supplemental File: Companion Consumer Exposure Assessment Model Output Spreadsheets CASRN: 127-18-4
B8: December 2020

Sheet Table of Contents
A1: Table of Contents
A3: Worksheet | B3: Description
A4: Aerosol Degreaser Inh | B4: This tab provides the estimated concentration outputs for consumer inhalation exposure from use of aerosol degreasing products containing PCE.
A5: Aerosol Degreaser Derm AF | B5: This tab provides the estimated dose outputs for consumer dermal exposure from use of aerosol degreasing products containing PCE using the Absorption Fraction method.
A6: Aerosol Degreaser Derm P | B6: This tab provides the estimated dose outputs for consumer dermal exposure from use of aerosol degreasing products containing PCE using the Permeability method.
A7: Aerosol Brake Cleaner Inh | B7: This tab provides the estimated concentration outputs for consumer inhalation exposure from use of aerosol break cleaning products containing PCE.
A8: Aerosol Brake Cleaner Derm AF | B8: This tab provides the estimated dose outputs for consumer dermal exposure from use of aerosol break cleaning products containing PCE using the Absorption Fraction method.
A9: Aerosol Brake Cleaner Derm P | B9: This tab provides the estimated dose outputs for consumer dermal exposure from use of aerosol break cleaning products containing PCE using the Permeability method.
A10: Parts Cleaner Inh | B10: This tab provides the estimated concentration outputs for consumer inhalation exposure from use of parts cleaning products containing PCE.
A11: Parts Cleaner Derm AF | B11: This tab provides the estimated dose outputs for consumer dermal exposure from use of parts cleaning products containing PCE using the Absorption Fraction method.
A12: Parts Cleaner Derm P | B12: This tab provides the estimated dose outputs for consumer dermal exposure from use of parts cleaning products containing PCE using the Permeability method.
A13: Mold Cleaner Inh | B13: This tab provides the estimated concentration outputs for consumer inhalation exposure from use of mold cleaner, weld splatter protectant products containing PCE.
A14: Mold Cleaner Derm AF | B14: This tab provides the estimated dose outputs for consumer dermal exposure from use of mold cleaner, weld splatter protectant products containing PCE using the Absorption Fraction method.
A15: Mold Cleaner Derm P | B15: This tab provides the estimated dose outputs for consumer dermal exposure from use of mold cleaner, weld splatter protectant products containing PCE using the Permeability method.
A16: Vandalism Remover Inh | B16: This tab provides the estimated concentration outputs for consumer inhalation exposure from use of a vandalism mark remover product containing PCE.
A17: Vandalism Remover Derm AF | B17: This tab provides the estimated dose outputs for consumer dermal exposure from use of a vandalism mark remover product containing PCE using the Absorption Fraction method.
A18: Vandalism Remover Derm P | B18: This tab provides the estimated dose outputs for consumer dermal exposure from use of a vandalism mark remover product products containing PCE using the Permeability method.
A19: Liquid Marble Polish Inh | B19: This tab provides the estimated concentration outputs for consumer inhalation exposure from use of marble polish liquid product containing PCE.
A20: Liquid Marble Polish Derm AF | B20: This tab provides the estimated dose outputs for consumer dermal exposure from use of liquid marble polish liquid products containing PCE using the Absorption Fraction method.
A21: Liquid Marble Polish Derm P | B21: This tab provides the estimated dose outputs for consumer dermal exposure from use of liquid marble polish liquid products containing PCE using the Permeability method.
A22: Liquid Marble Polish Derm FE | B22: This tab provides the estimated dose outputs for consumer dermal exposure from use of a marble polish or stone cleaning liquid product containing PERC using the Frasch Equation.
A23: Cutting Fluid Inh | B23: This tab provides the estimated concentration outputs for consumer inhalation exposure from use of cutting fluid products containing PCE.
A24: Cutting Fluid Derm AF | B24: This tab provides the estimated dose outputs for consumer dermal exposure from use of cutting fluid products containing PCE using the Absorption Fraction method.
A25: Cutting Fluid Derm P | B25: This tab provides the estimated dose outputs for consumer dermal exposure from use of cutting fluid products containing PCE using the Permeability method.
A26: Aerosol Lubricant Inh | B26: This tab provides the estimated concentration outputs for consumer inhalation exposure from use of aerosol lubricant products containing PCE.
A27: Aerosol Lubricant Derm AF | B27: This tab provides the estimated dose outputs for consumer dermal exposure from use of aerosol lubricant products containing PCE using the Absorption Fraction method.
A28: Aerosol Lubricant Derm P | B28: This tab provides the estimated dose outputs for consumer dermal exposure from use of aerosol lubricant products containing PCE using the Permeability method.
A29: Adhesives Inh | B29: This tab provides the estimated concentration outputs for consumer inhalation exposure from use of industrial and craft adhesive products containing PCE.
A30: Adhesives Derm AF | B30: This tab provides the estimated dose outputs for consumer dermal exposure from use of industrial and craft adhesive products containing PCE using the Absorption Fraction method.
A31: Adhesives Derm P | B31: This tab provides the estimated dose outputs for consumer dermal exposure from use of industrial and craft adhesive products containing PCE using the Permeability method.
A32: Livestock Groom Adh Inh | B32: This tab provides the estimated concentration outputs for consumer inhalation exposure from use of livestock grooming products containing PCE.
A33: Livestock Groom Adh Derm AF | B33: This tab provides the estimated dose outputs for consumer dermal exposure from use of livestock grooming products containing PCE using the Absorption Fraction method.
A34: Livestock Groom Adh Derm P | B34: This tab provides the estimated dose outputs for consumer dermal exposure from use of livestock grooming products containing PCE using the Permeability method.
A35: Caulk Sealant Inh | B35: This tab provides the estimated concentration outputs for consumer inhalation exposure from use of caulk and sealant products containing PCE.
A36: Caulk Sealant Derm A | B36: This tab provides the estimated dose outputs for consumer dermal exposure from use of caulk and sealant products containing PCE using the Absorption Fraction method.
A37: Caulk Sealant Derm P | B37: This tab provides the estimated dose outputs for consumer dermal exposure from use of caulk and sealant products containing PCE using the Permeability method.
A38: Outdoor Water Shield Inh | B38: This tab provides the estimated concentration outputs for consumer inhalation exposure from use of an outdoor water shield sealant product containing PCE.
A39: Outdoor Water Shield Derm AF | B39: This tab provides the estimated dose outputs for consumer dermal exposure from use of an outdoor water shield sealant product containing PCE using the Absorption Fraction method.
A40: Outdoor Water Shield Derm P | B40: This tab provides the estimated dose outputs for consumer dermal exposure from use of an outdoor water shield sealant product containing PCE using the Permeability method.
A41: Coatings and Primers Inh | B41: This tab provides the estimated concentration outputs for consumer inhalation exposure from use of aerosol coating and primer products containing PCE.
A42: Coatings and Primers Derm AF | B42: This tab provides the estimated dose outputs for consumer dermal exposure from use of aerosol coating and primer products containing PCE using the Absorption Fraction method.
A43: Coatings and Primers Derm P | B43: This tab provides the estimated dose outputs for consumer dermal exposure from use of aerosol coating and primer products containing PCE using the Permeability method.
A44: Rust Primer Inh | B44: This tab provides the estimated concentration outputs for consumer inhalation exposure from use of liquid rust primer and sealant products containing PCE.
A45: Rust Primer Derm AF | B45: This tab provides the estimated dose outputs for consumer dermal exposure from use of liquid rust primer and sealant products containing PCE using the Absorption Fraction method.
A46: Rust Primer Derm P | B46: This tab provides the estimated dose outputs for consumer dermal exposure from use of liquid rust primer and sealant products containing PCE using the Permeability method.
A47: Metallic Overglaze Inh | B47: This tab provides the estimated concentration outputs for consumer inhalation exposure from use of a metallic overglaze product containing PCE.
A48: Metallic Overglaze Derm AF | B48: This tab provides the estimated dose outputs for consumer dermal exposure from use of a metallic overglaze product containing PCE using the Absorption Fraction method.
A49: Metallic Overglaze Derm P | B49: This tab provides the estimated dose outputs for consumer dermal exposure from use of a metallic overglaze product containing PCE using the Permeability method.
A50: Wax Marble Polish Inh | B50: This tab provides the estimated concentration outputs for consumer inhalation exposure from use of a wax stone and marble polish product containing PCE.
A51: Wax Marble Polish Derm AF | B51: This tab provides the estimated dose outputs for consumer dermal exposure from use of a wax stone and marble polish product containing PCE using the Absorption Fraction method.
A52: Wax Marble Polish Derm P | B52: This tab provides the estimated dose outputs for consumer dermal exposure from use of a wax stone and marble polish product containing PCE using the Permeability method.
A53: Wax Marble Polish Derm FE | B53: This tab provides the estimated dose outputs for consumer dermal exposure from use of a marble polish or stone cleaning wax product containing PERC using the Frasch Equation.
A54: Dry Clean Articles Inh | B54: This tab provides the estimated concentration outputs for consumer inhalation exposure from use of dry cleaned clothing articles containing PCE.
A55: Dry Clean Articles House Air | B55: This tab provides the estimated concentration outputs for consumer indoor residential air concentrations from use of dry cleaned clothing articles containing PCE.
A56: Dry Clean Articles Derm | B56: This tab provides the estimated dose outputs for consumer dermal exposure from use of dry cleaned clothing articles containing PCE.

Sheet Aerosol Degreaser Inh
A1: Scenario:
A2: Solvent; Cleaner; Marine cleaner; Degreaser; Coil cleaner; Electric motor cleaner ; Parts cleaner; Cable cleaner; Stainless Steel Polish; Electrical/Energized Cleaner; Wire and ignition demoisturants; Electric motor cleaner
A3: Data Type:
A4: Estimated Inhalation Concentrations Outputs
A6: Scenario | B6: Case # | C6: Case Descriptors (Parameters Varied) | F6: Receptor | G6: Concentration (mg/m3) | K6: Concentration (ppm)
C7: Duration | D7: Weight Fraction | E7: Mass Used | G7: 1-hr TWA | H7: 3-hr TWA | I7: 8-hr TWA | J7: 24-hr TWA | K7: 1-hr TWA | L7: 3-hr TWA | M7: 8-hr TWA | N7: 24-hr TWA
A8: Solvent - Cleaner | B8: Case 1 | C8: High | D8: Low | E8: Low | F8: User | G8: 1.69E+01 | H8: 1.09E+01 | I8: 4.52E+00 | J8: 1.52E+00 | K8: =(G8*24.45)/165.833 -> 2.49E+00 | L8: =(H8*24.45)/165.833 -> 1.61E+00 | M8: 6.66E-01 | N8: 2.24E-01
F9: Bystander | G9: 2.98E+00 | H9: 2.39E+00 | I9: 1.09E+00 | J9: 3.78E-01 | K9: =(G9*24.45)/165.833 -> 4.39E-01 | L9: 3.52E-01 | M9: 1.61E-01 | N9: 5.58E-02
B10: Case 2 | C10: High | D10: Low | E10: Medium | F10: User | G10: 9.82E+01 | H10: 6.33E+01 | I10: 2.62E+01 | J10: 8.82E+00 | K10: 1.45E+01 | L10: 9.34E+00 | M10: 3.87E+00 | N10: 1.30E+00
F11: Bystander | G11: 1.73E+01 | H11: 1.39E+01 | I11: 6.33E+00 | J11: 2.19E+00 | K11: 2.55E+00 | L11: 2.04E+00 | M11: 9.33E-01 | N11: 3.24E-01
B12: Case 3 | C12: High | D12: Low | E12: High | F12: User | G12: 9.66E+02 | H12: 6.24E+02 | I12: 2.58E+02 | J12: 8.69E+01 | K12: 1.42E+02 | L12: 9.20E+01 | M12: 3.81E+01 | N12: 1.28E+01
F13: Bystander | G13: 1.70E+02 | H13: 1.37E+02 | I13: 6.23E+01 | J13: 2.16E+01 | K13: 2.51E+01 | L13: 2.01E+01 | M13: 9.19E+00 | N13: 3.19E+00
B14: Case 4 | C14: High | D14: Medium | E14: Low | F14: User | G14: 1.35E+02 | H14: 8.73E+01 | I14: 3.61E+01 | J14: 1.22E+01 | K14: 2.00E+01 | L14: 1.29E+01 | M14: 5.33E+00 | N14: 1.79E+00
F15: Bystander | G15: 2.38E+01 | H15: 1.91E+01 | I15: 8.73E+00 | J15: 3.03E+00 | K15: 3.52E+00 | L15: 2.82E+00 | M15: 1.29E+00 | N15: 4.46E-01
B16: Case 5 | C16: High | D16: Medium | E16: Medium | F16: User | G16: 7.85E+02 | H16: 5.07E+02 | I16: 2.10E+02 | J16: 7.06E+01 | K16: 1.16E+02 | L16: 7.47E+01 | M16: 3.09E+01 | N16: 1.04E+01
F17: Bystander | G17: 1.38E+02 | H17: 1.11E+02 | I17: 5.06E+01 | J17: 1.76E+01 | K17: 2.04E+01 | L17: 1.64E+01 | M17: 7.47E+00 | N17: 2.59E+00
B18: Case 6 | C18: High | D18: Medium | E18: High | F18: User | G18: 7.73E+03 | H18: 4.99E+03 | I18: 2.07E+03 | J18: 6.95E+02 | K18: 1.14E+03 | L18: 7.36E+02 | M18: 3.04E+02 | N18: 1.02E+02
F19: Bystander | G19: 1.36E+03 | H19: 1.09E+03 | I19: 4.99E+02 | J19: 1.73E+02 | K19: 2.01E+02 | L19: 1.61E+02 | M19: 7.35E+01 | N19: 2.55E+01
B20: Case 7 | C20: High | D20: High | E20: Low | F20: User | G20: 1.69E+02 | H20: 1.09E+02 | I20: 4.52E+01 | J20: 1.52E+01 | K20: 2.49E+01 | L20: 1.61E+01 | M20: 6.66E+00 | N20: 2.24E+00
F21: Bystander | G21: 2.98E+01 | H21: 2.39E+01 | I21: 1.09E+01 | J21: 3.78E+00 | K21: 4.39E+00 | L21: 3.52E+00 | M21: 1.61E+00 | N21: 5.58E-01
B22: Case 8 | C22: High | D22: High | E22: Medium | F22: User | G22: 9.82E+02 | H22: 6.33E+02 | I22: 2.62E+02 | J22: 8.82E+01 | K22: 1.45E+02 | L22: 9.34E+01 | M22: 3.87E+01 | N22: 1.30E+01
F23: Bystander | G23: 1.73E+02 | H23: 1.39E+02 | I23: 6.33E+01 | J23: 2.19E+01 | K23: 2.55E+01 | L23: 2.04E+01 | M23: 9.33E+00 | N23: 3.24E+00
B24: Case 9 | C24: High | D24: High | E24: High | F24: User | G24: 9.66E+03 | H24: 6.24E+03 | I24: 2.58E+03 | J24: 8.69E+02 | K24: 1.42E+03 | L24: =(H24*24.45)/165.833 -> 9.20E+02 | M24: =(I24*24.45)/165.833 -> 3.81E+02 | N24: =(J24*24.45)/165.833 -> 1.28E+02
F25: Bystander | G25: 1.70E+03 | H25: 1.37E+03 | I25: 6.23E+02 | J25: 2.16E+02 | K25: 2.51E+02 | L25: 2.01E+02 | M25: 9.19E+01 | N25: 3.19E+01
B26: Case 1 | C26: Medium | D26: Low | E26: Low | F26: User | G26: 3.09E+01 | H26: 1.19E+01 | I26: 4.75E+00 | J26: 1.59E+00 | K26: 4.55E+00 | L26: 1.76E+00 | M26: 7.00E-01 | N26: 2.35E-01
F27: Bystander | G27: 3.00E+00 | H27: 2.05E+00 | I27: 8.96E-01 | J27: 3.08E-01 | K27: 4.43E-01 | L27: 3.02E-01 | M27: 1.32E-01 | N27: 4.54E-02
B28: Case 2 | C28: Medium | D28: Low | E28: Medium | F28: User | G28: 1.79E+02 | H28: 6.92E+01 | I28: 2.76E+01 | J28: 9.24E+00 | K28: 2.64E+01 | L28: 1.02E+01 | M28: 4.06E+00 | N28: 1.36E+00
F29: Bystander | G29: 1.74E+01 | H29: 1.19E+01 | I29: 5.20E+00 | J29: 1.79E+00 | K29: 2.57E+00 | L29: 1.75E+00 | M29: 7.66E-01 | N29: 2.63E-01
B30: Case 3 | C30: Medium | D30: Low | E30: High | F30: User | G30: 1.76E+03 | H30: 6.81E+02 | I30: 2.71E+02 | J30: 9.10E+01 | K30: 2.60E+02 | L30: 1.00E+02 | M30: 4.00E+01 | N30: 1.34E+01
F31: Bystander | G31: 1.72E+02 | H31: 1.17E+02 | I31: 5.12E+01 | J31: 1.76E+01 | K31: 2.53E+01 | L31: 1.73E+01 | M31: 7.54E+00 | N31: 2.59E+00
B32: Case 4 | C32: Medium | D32: Medium | E32: Low | F32: User | G32: 2.47E+02 | H32: 9.53E+01 | I32: 3.80E+01 | J32: 1.27E+01 | K32: 3.64E+01 | L32: 1.41E+01 | M32: 5.60E+00 | N32: 1.88E+00
F33: Bystander | G33: 2.40E+01 | H33: 1.64E+01 | I33: 7.16E+00 | J33: 2.46E+00 | K33: 3.54E+00 | L33: 2.42E+00 | M33: 1.06E+00 | N33: 3.63E-01
B34: Case 5 | C34: Medium | D34: Medium | E34: Medium | F34: User | G34: 1.43E+03 | H34: 5.53E+02 | I34: 2.20E+02 | J34: 7.39E+01 | K34: 2.11E+02 | L34: 8.16E+01 | M34: 3.25E+01 | N34: 1.09E+01
F35: Bystander | G35: 1.39E+02 | H35: 9.51E+01 | I35: 4.16E+01 | J35: 1.43E+01 | K35: 2.06E+01 | L35: 1.40E+01 | M35: 6.13E+00 | N35: 2.11E+00
B36: Case 6 | C36: Medium | D36: Medium | E36: High | F36: User | G36: 1.41E+04 | H36: 5.45E+03 | I36: 2.17E+03 | J36: 7.28E+02 | K36: 2.08E+03 | L36: 8.03E+02 | M36: 3.20E+02 | N36: 1.07E+02
F37: Bystander | G37: 1.37E+03 | H37: 9.37E+02 | I37: 4.09E+02 | J37: 1.41E+02 | K37: 2.02E+02 | L37: 1.38E+02 | M37: 6.03E+01 | N37: 2.08E+01
B38: Case 7 | C38: Medium | D38: High | E38: Low | F38: User | G38: 3.09E+02 | H38: 1.19E+02 | I38: 4.75E+01 | J38: 1.59E+01 | K38: 4.55E+01 | L38: 1.76E+01 | M38: 7.00E+00 | N38: 2.35E+00
F39: Bystander | G39: 3.00E+01 | H39: 2.05E+01 | I39: 8.96E+00 | J39: 3.08E+00 | K39: 4.43E+00 | L39: 3.02E+00 | M39: 1.32E+00 | N39: 4.54E-01
B40: Case 8 | C40: Medium | D40: High | E40: Medium | F40: User | G40: 1.79E+03 | H40: 6.92E+02 | I40: 2.76E+02 | J40: 9.24E+01 | K40: 2.64E+02 | L40: 1.02E+02 | M40: 4.06E+01 | N40: 1.36E+01
F41: Bystander | G41: 1.74E+02 | H41: 1.19E+02 | I41: 5.20E+01 | J41: 1.79E+01 | K41: 2.57E+01 | L41: 1.75E+01 | M41: 7.66E+00 | N41: 2.63E+00
B42: Case 9 | C42: Medium | D42: High | E42: High | F42: User | G42: 1.76E+04 | H42: 6.81E+03 | I42: 2.71E+03 | J42: 9.10E+02 | K42: 2.60E+03 | L42: 1.00E+03 | M42: 4.00E+02 | N42: 1.34E+02
F43: Bystander | G43: 1.72E+03 | H43: 1.17E+03 | I43: 5.12E+02 | J43: 1.76E+02 | K43: 2.53E+02 | L43: 1.73E+02 | M43: 7.54E+01 | N43: 2.59E+01
B44: Case 1 | C44: Low | D44: Low | E44: Low | F44: User | G44: 2.85E+01 | H44: 1.11E+01 | I44: 4.41E+00 | J44: 1.48E+00 | K44: 4.20E+00 | L44: 1.63E+00 | M44: 6.51E-01 | N44: 2.18E-01
F45: Bystander | G45: 2.86E+00 | H45: 1.95E+00 | I45: 8.53E-01 | J45: 2.93E-01 | K45: 4.22E-01 | L45: 2.88E-01 | M45: 1.26E-01 | N45: 4.32E-02
B46: Case 2 | C46: Low | D46: Low | E46: Medium | F46: User | G46: 1.65E+02 | H46: 6.42E+01 | I46: 2.56E+01 | J46: 8.59E+00 | K46: 2.44E+01 | L46: 9.46E+00 | M46: 3.78E+00 | N46: 1.27E+00
F47: Bystander | G47: 1.66E+01 | H47: 1.13E+01 | I47: 4.95E+00 | J47: 1.70E+00 | K47: 2.45E+00 | L47: 1.67E+00 | M47: 7.30E-01 | N47: 2.51E-01
B48: Case 3 | C48: Low | D48: Low | E48: High | F48: User | G48: 1.63E+03 | H48: 6.32E+02 | I48: 2.52E+02 | J48: 8.46E+01 | K48: 2.40E+02 | L48: 9.32E+01 | M48: 3.72E+01 | N48: 1.25E+01
F49: Bystander | G49: 1.64E+02 | H49: 1.11E+02 | I49: 4.87E+01 | J49: 1.68E+01 | K49: 2.41E+01 | L49: 1.64E+01 | M49: 7.18E+00 | N49: 2.47E+00
B50: Case 4 | C50: Low | D50: Medium | E50: Low | F50: Bystander | G50: 2.28E+02 | H50: 8.85E+01 | I50: 3.53E+01 | J50: 1.18E+01 | K50: 3.36E+01 | L50: 1.30E+01 | M50: 5.21E+00 | N50: 1.75E+00
F51: User | G51: 2.29E+01 | H51: 1.56E+01 | I51: 6.82E+00 | J51: 2.35E+00 | K51: 3.38E+00 | L51: 2.30E+00 | M51: 1.01E+00 | N51: 3.46E-01
B52: Case 5 | C52: Low | D52: Medium | E52: Medium | F52: Bystander | G52: 1.32E+03 | H52: 5.13E+02 | I52: 2.05E+02 | J52: 6.87E+01 | K52: 1.95E+02 | L52: 7.57E+01 | M52: 3.02E+01 | N52: 1.01E+01
F53: User | G53: 1.33E+02 | H53: 9.06E+01 | I53: 3.96E+01 | J53: 1.36E+01 | K53: 1.96E+01 | L53: 1.34E+01 | M53: 5.84E+00 | N53: 2.01E+00
B54: Case 6 | C54: Low | D54: Medium | E54: High | F54: Bystander | G54: 1.30E+04 | H54: 5.06E+03 | I54: 2.02E+03 | J54: 6.76E+02 | K54: 1.92E+03 | L54: 7.45E+02 | M54: 2.97E+02 | N54: 9.97E+01
F55: User | G55: 1.31E+03 | H55: 8.92E+02 | I55: 3.90E+02 | J55: 1.34E+02 | K55: 1.93E+02 | L55: 1.32E+02 | M55: 5.75E+01 | N55: 1.98E+01
B56: Case 7 | C56: Low | D56: High | E56: Low | F56: User | G56: 2.85E+02 | H56: 1.11E+02 | I56: 4.41E+01 | J56: 1.48E+01 | K56: 4.20E+01 | L56: 1.63E+01 | M56: 6.51E+00 | N56: 2.18E+00
F57: Bystander | G57: 2.86E+01 | H57: 1.95E+01 | I57: 8.53E+00 | J57: 2.93E+00 | K57: 4.22E+00 | L57: 2.88E+00 | M57: 1.26E+00 | N57: 4.32E-01
B58: Case 8 | C58: Low | D58: High | E58: Medium | F58: User | G58: 1.65E+03 | H58: 6.42E+02 | I58: 2.56E+02 | J58: 8.59E+01 | K58: 2.44E+02 | L58: 9.46E+01 | M58: 3.78E+01 | N58: 1.27E+01
F59: Bystander | G59: 1.66E+02 | H59: 1.13E+02 | I59: 4.95E+01 | J59: 1.70E+01 | K59: 2.45E+01 | L59: 1.67E+01 | M59: 7.30E+00 | N59: 2.51E+00
B60: Case 9 | C60: Low | D60: High | E60: High | F60: User | G60: 1.63E+04 | H60: 6.32E+03 | I60: 2.52E+03 | J60: 8.46E+02 | K60: 2.40E+03 | L60: 9.32E+02 | M60: 3.72E+02 | N60: 1.25E+02
F61: Bystander | G61: 1.64E+03 | H61: 1.11E+03 | I61: 4.87E+02 | J61: 1.68E+02 | K61: 2.41E+02 | L61: 1.64E+02 | M61: 7.18E+01 | N61: 2.47E+01

Sheet Aerosol Degreaser Derm AF
A1: Scenario:
A2: Solvent; Cleaner; Marine cleaner; Degreaser; Coil cleaner; Electric motor cleaner ; Parts cleaner; Cable cleaner; Stainless Steel Polish; Electrical/Energized Cleaner; Wire and ignition demoisturants; Electric motor cleaner
A4: Data Type:
A5: Estimated Dermal Doses Outputs - Absorption Fraction Method
A7: Scenario | B7: Case # | C7: Case Descriptors (Parameters Varied) | F7: Receptor | G7: Acute Dose Rate (mg/kg/day)
C8: Duration | D8: Weight Fraction | E8: Mass Used
A9: Solvent - Cleaner | B9: Case 1 | C9: High | D9: Low | E9: Low | F9: Adult (≥21 years) | G9: 1.65E+00
F10: Youth (16-20 years) | G10: 1.54E+00
F11: Youth (11-15 years) | G11: 1.69E+00
B12: Case 2 | C12: High | D12: Low | E12: Medium | F12: Adult (≥21 years) | G12: 1.65E+00
F13: Youth (16-20 years) | G13: 1.54E+00
F14: Youth (11-15 years) | G14: 1.69E+00
B15: Case 3 | C15: High | D15: Low | E15: High | F15: Adult (≥21 years) | G15: 1.65E+00
F16: Youth (16-20 years) | G16: 1.54E+00
F17: Youth (11-15 years) | G17: 1.69E+00
B18: Case 4 | C18: High | D18: Medium | E18: Low | F18: Adult (≥21 years) | G18: 1.32E+01
F19: Youth (16-20 years) | G19: 1.24E+01
F20: Youth (11-15 years) | G20: 1.35E+01
B21: Case 5 | C21: High | D21: Medium | E21: Medium | F21: Adult (≥21 years) | G21: 1.32E+01
F22: Youth (16-20 years) | G22: 1.24E+01
F23: Youth (11-15 years) | G23: 1.35E+01
B24: Case 6 | C24: High | D24: Medium | E24: High | F24: Adult (≥21 years) | G24: 1.32E+01
F25: Youth (16-20 years) | G25: 1.24E+01
F26: Youth (11-15 years) | G26: 1.35E+01
B27: Case 7 | C27: High | D27: High | E27: Low | F27: Adult (≥21 years) | G27: 1.65E+01
F28: Youth (16-20 years) | G28: 1.54E+01
F29: Youth (11-15 years) | G29: 1.69E+01
B30: Case 8 | C30: High | D30: High | E30: Medium | F30: Adult (≥21 years) | G30: 1.65E+01
F31: Youth (16-20 years) | G31: 1.54E+01
F32: Youth (11-15 years) | G32: 1.69E+01
B33: Case 9 | C33: High | D33: High | E33: High | F33: Adult (≥21 years) | G33: 1.65E+01
F34: Youth (16-20 years) | G34: 1.54E+01
F35: Youth (11-15 years) | G35: 1.69E+01
B36: Case 1 | C36: Medium | D36: Low | E36: Low | F36: Adult (≥21 years) | G36: 7.01E-01
F37: Youth (16-20 years) | G37: 6.56E-01
F38: Youth (11-15 years) | G38: 7.17E-01
B39: Case 2 | C39: Medium | D39: Low | E39: Medium | F39: Adult (≥21 years) | G39: 7.01E-01
F40: Youth (16-20 years) | G40: 6.56E-01
F41: Youth (11-15 years) | G41: 7.17E-01
B42: Case 3 | C42: Medium | D42: Low | E42: High | F42: Adult (≥21 years) | G42: 7.01E-01
F43: Youth (16-20 years) | G43: 6.56E-01
F44: Youth (11-15 years) | G44: 7.17E-01
B45: Case 4 | C45: Medium | D45: Medium | E45: Low | F45: Adult (≥21 years) | G45: 5.60E+00
F46: Youth (16-20 years) | G46: 5.24E+00
F47: Youth (11-15 years) | G47: 5.73E+00
B48: Case 5 | C48: Medium | D48: Medium | E48: Medium | F48: Adult (≥21 years) | G48: 5.60E+00
F49: Youth (16-20 years) | G49: 5.24E+00
F50: Youth (11-15 years) | G50: 5.73E+00
B51: Case 6 | C51: Medium | D51: Medium | E51: High | F51: Adult (≥21 years) | G51: 5.60E+00
F52: Youth (16-20 years) | G52: 5.24E+00
F53: Youth (11-15 years) | G53: 5.73E+00
B54: Case 7 | C54: Medium | D54: High | E54: Low | F54: Adult (≥21 years) | G54: 7.01E+00
F55: Youth (16-20 years) | G55: 6.56E+00
F56: Youth (11-15 years) | G56: 7.17E+00
B57: Case 8 | C57: Medium | D57: High | E57: Medium | F57: Adult (≥21 years) | G57: 7.01E+00
F58: Youth (16-20 years) | G58: 6.56E+00
F59: Youth (11-15 years) | G59: 7.17E+00
B60: Case 9 | C60: Medium | D60: High | E60: High | F60: Adult (≥21 years) | G60: 7.01E+00
F61: Youth (16-20 years) | G61: 6.56E+00
F62: Youth (11-15 years) | G62: 7.17E+00
B63: Case 1 | C63: Low | D63: Low | E63: Low | F63: Adult (≥21 years) | G63: 1.17E-01
F64: Youth (16-20 years) | G64: 1.09E-01
F65: Youth (11-15 years) | G65: 1.19E-01
B66: Case 2 | C66: Low | D66: Low | E66: Medium | F66: Adult (≥21 years) | G66: 1.17E-01
F67: Youth (16-20 years) | G67: 1.09E-01
F68: Youth (11-15 years) | G68: 1.19E-01
B69: Case 3 | C69: Low | D69: Low | E69: High | F69: Adult (≥21 years) | G69: 1.17E-01
F70: Youth (16-20 years) | G70: 1.09E-01
F71: Youth (11-15 years) | G71: 1.19E-01
B72: Case 4 | C72: Low | D72: Medium | E72: Low | F72: Adult (≥21 years) | G72: 9.34E-01
F73: Youth (16-20 years) | G73: 8.74E-01
F74: Youth (11-15 years) | G74: 9.56E-01
B75: Case 5 | C75: Low | D75: Medium | E75: Medium | F75: Adult (≥21 years) | G75: 9.34E-01
F76: Youth (16-20 years) | G76: 8.74E-01
F77: Youth (11-15 years) | G77: 9.56E-01
B78: Case 6 | C78: Low | D78: Medium | E78: High | F78: Adult (≥21 years) | G78: 9.34E-01
F79: Youth (16-20 years) | G79: 8.74E-01
F80: Youth (11-15 years) | G80: 9.56E-01
B81: Case 7 | C81: Low | D81: High | E81: Low | F81: Adult (≥21 years) | G81: 1.17E+00
F82: Youth (16-20 years) | G82: 1.09E+00
F83: Youth (11-15 years) | G83: 1.19E+00
B84: Case 8 | C84: Low | D84: High | E84: Medium | F84: Adult (≥21 years) | G84: 1.17E+00
F85: Youth (16-20 years) | G85: 1.09E+00
F86: Youth (11-15 years) | G86: 1.19E+00
B87: Case 9 | C87: Low | D87: High | E87: High | F87: Adult (≥21 years) | G87: 1.17E+00
F88: Youth (16-20 years) | G88: 1.09E+00
F89: Youth (11-15 years) | G89: 1.19E+00

Sheet Aerosol Degreaser Derm P
A1: Scenario:
A2: Solvent; Cleaner; Marine cleaner; Degreaser; Coil cleaner; Electric motor cleaner ; Parts cleaner; Cable cleaner; Stainless Steel Polish; Electrical/Energized Cleaner; Wire and ignition demoisturants; Electric motor cleaner
A4: Data Type:
A5: Estimated Dermal Doses Outputs - Permeability Method
A7: Scenario | B7: Case # | C7: Case Descriptors (Parameters Varied) | F7: Receptor | G7: Acute Dose Rate (mg/kg/day)
C8: Duration | D8: Weight Fraction | E8: Mass Used
A9: Solvent - Cleaner | B9: Case 1 | C9: High | D9: Low | E9: Low | F9: Adult (≥21 years) | G9: 4.24E-01
F10: Youth (16-20 years) | G10: 3.97E-01
F11: Youth (11-15 years) | G11: 4.34E-01
B12: Case 2 | C12: High | D12: Low | E12: Medium | F12: Adult (≥21 years) | G12: 4.24E-01
F13: Youth (16-20 years) | G13: 3.97E-01
F14: Youth (11-15 years) | G14: 4.34E-01
B15: Case 3 | C15: High | D15: Low | E15: High | F15: Adult (≥21 years) | G15: 4.24E-01
F16: Youth (16-20 years) | G16: 3.97E-01
F17: Youth (11-15 years) | G17: 4.34E-01
B18: Case 4 | C18: High | D18: Medium | E18: Low | F18: Adult (≥21 years) | G18: 3.40E+00
F19: Youth (16-20 years) | G19: 3.18E+00
F20: Youth (11-15 years) | G20: 3.47E+00
B21: Case 5 | C21: High | D21: Medium | E21: Medium | F21: Adult (≥21 years) | G21: 3.40E+00
F22: Youth (16-20 years) | G22: 3.18E+00
F23: Youth (11-15 years) | G23: 3.47E+00
B24: Case 6 | C24: High | D24: Medium | E24: High | F24: Adult (≥21 years) | G24: 3.40E+00
F25: Youth (16-20 years) | G25: 3.18E+00
F26: Youth (11-15 years) | G26: 3.47E+00
B27: Case 7 | C27: High | D27: High | E27: Low | F27: Adult (≥21 years) | G27: 4.24E+00
F28: Youth (16-20 years) | G28: 3.97E+00
F29: Youth (11-15 years) | G29: 4.34E+00
B30: Case 8 | C30: High | D30: High | E30: Medium | F30: Adult (≥21 years) | G30: 4.24E+00
F31: Youth (16-20 years) | G31: 3.97E+00
F32: Youth (11-15 years) | G32: 4.34E+00
B33: Case 9 | C33: High | D33: High | E33: High | F33: Adult (≥21 years) | G33: 4.24E+00
F34: Youth (16-20 years) | G34: 3.97E+00
F35: Youth (11-15 years) | G35: 4.34E+00
B36: Case 1 | C36: Medium | D36: Low | E36: Low | F36: Adult (≥21 years) | G36: 5.31E-02
F37: Youth (16-20 years) | G37: 4.96E-02
F38: Youth (11-15 years) | G38: 5.43E-02
B39: Case 2 | C39: Medium | D39: Low | E39: Medium | F39: Adult (≥21 years) | G39: 5.31E-02
F40: Youth (16-20 years) | G40: 4.96E-02
F41: Youth (11-15 years) | G41: 5.43E-02
B42: Case 3 | C42: Medium | D42: Low | E42: High | F42: Adult (≥21 years) | G42: 5.31E-02
F43: Youth (16-20 years) | G43: 4.96E-02
F44: Youth (11-15 years) | G44: 5.43E-02
B45: Case 4 | C45: Medium | D45: Medium | E45: Low | F45: Adult (≥21 years) | G45: 4.24E-01
F46: Youth (16-20 years) | G46: 3.97E-01
F47: Youth (11-15 years) | G47: 4.34E-01
B48: Case 5 | C48: Medium | D48: Medium | E48: Medium | F48: Adult (≥21 years) | G48: 4.24E-01
F49: Youth (16-20 years) | G49: 3.97E-01
F50: Youth (11-15 years) | G50: 4.34E-01
B51: Case 6 | C51: Medium | D51: Medium | E51: High | F51: Adult (≥21 years) | G51: 4.24E-01
F52: Youth (16-20 years) | G52: 3.97E-01
F53: Youth (11-15 years) | G53: 4.34E-01
B54: Case 7 | C54: Medium | D54: High | E54: Low | F54: Adult (≥21 years) | G54: 5.31E-01
F55: Youth (16-20 years) | G55: 4.96E-01
F56: Youth (11-15 years) | G56: 5.43E-01
B57: Case 8 | C57: Medium | D57: High | E57: Medium | F57: Adult (≥21 years) | G57: 5.31E-01
F58: Youth (16-20 years) | G58: 4.96E-01
F59: Youth (11-15 years) | G59: 5.43E-01
B60: Case 9 | C60: Medium | D60: High | E60: High | F60: Adult (≥21 years) | G60: 5.31E-01
F61: Youth (16-20 years) | G61: 4.96E-01
F62: Youth (11-15 years) | G62: 5.43E-01
B63: Case 1 | C63: Low | D63: Low | E63: Low | F63: Adult (≥21 years) | G63: 7.07E-03
F64: Youth (16-20 years) | G64: 6.62E-03
F65: Youth (11-15 years) | G65: 7.24E-03
B66: Case 2 | C66: Low | D66: Low | E66: Medium | F66: Adult (≥21 years) | G66: 7.07E-03
F67: Youth (16-20 years) | G67: 6.62E-03
F68: Youth (11-15 years) | G68: 7.24E-03
B69: Case 3 | C69: Low | D69: Low | E69: High | F69: Adult (≥21 years) | G69: 7.07E-03
F70: Youth (16-20 years) | G70: 6.62E-03
F71: Youth (11-15 years) | G71: 7.24E-03
B72: Case 4 | C72: Low | D72: Medium | E72: Low | F72: Adult (≥21 years) | G72: 5.66E-02
F73: Youth (16-20 years) | G73: 5.30E-02
F74: Youth (11-15 years) | G74: 5.79E-02
B75: Case 5 | C75: Low | D75: Medium | E75: Medium | F75: Adult (≥21 years) | G75: 5.66E-02
F76: Youth (16-20 years) | G76: 5.30E-02
F77: Youth (11-15 years) | G77: 5.79E-02
B78: Case 6 | C78: Low | D78: Medium | E78: High | F78: Adult (≥21 years) | G78: 5.66E-02
F79: Youth (16-20 years) | G79: 5.30E-02
F80: Youth (11-15 years) | G80: 5.79E-02
B81: Case 7 | C81: Low | D81: High | E81: Low | F81: Adult (≥21 years) | G81: 7.07E-02
F82: Youth (16-20 years) | G82: 6.62E-02
F83: Youth (11-15 years) | G83: 7.24E-02
B84: Case 8 | C84: Low | D84: High | E84: Medium | F84: Adult (≥21 years) | G84: 7.07E-02
F85: Youth (16-20 years) | G85: 6.62E-02
F86: Youth (11-15 years) | G86: 7.24E-02
B87: Case 9 | C87: Low | D87: High | E87: High | F87: Adult (≥21 years) | G87: 7.07E-02
F88: Youth (16-20 years) | G88: 6.62E-02
F89: Youth (11-15 years) | G89: 7.24E-02

Sheet Aerosol Brake Cleaner Inh
A1: Scenario:
A2: Brake Cleaner
A3: Data Type:
A4: Estimated Inhalation Concentrations Outputs
A6: Scenario | B6: Case # | C6: Case Descriptors (Parameters Varied) | F6: Receptor | G6: Concentration (mg/m3) | K6: Concentration (ppm)
C7: Duration | D7: Weight Fraction | E7: Mass Used | G7: 1-hr TWA | H7: 3-hr TWA | I7: 8-hr TWA | J7: 24-hr TWA | K7: 1-hr TWA | L7: 3-hr TWA | M7: 8-hr TWA | N7: 24-hr TWA
A8: Brake Cleaner | B8: Case 1 | C8: High | D8: Low | E8: Low | F8: User | G8: 7.05E+01 | H8: 4.30E+01 | I8: 1.85E+01 | J8: 6.26E+00 | K8: =(G8*24.45)/165.833 -> 1.04E+01 | L8: =(H8*24.45)/165.833 -> 6.34E+00 | M8: 2.73E+00 | N8: 9.22E-01
F9: Bystander | G9: 1.33E+01 | H9: 1.10E+01 | I9: 5.24E+00 | J9: 1.83E+00 | K9: =(G9*24.45)/165.833 -> 1.96E+00 | L9: =(H9*24.45)/165.833 -> 1.62E+00 | M9: =(I9*24.45)/165.833 -> 7.73E-01 | N9: =(J9*24.45)/165.833 -> 2.70E-01
B10: Case 2 | C10: High | D10: Low | E10: Medium | F10: User | G10: 2.82E+02 | H10: 1.72E+02 | I10: 7.41E+01 | J10: 2.50E+01 | K10: 4.16E+01 | L10: 2.53E+01 | M10: 1.09E+01 | N10: 3.69E+00
F11: Bystander | G11: 5.32E+01 | H11: 4.38E+01 | I11: 2.10E+01 | J11: 7.33E+00 | K11: 7.85E+00 | L11: 6.47E+00 | M11: 3.09E+00 | N11: 1.08E+00
B12: Case 3 | C12: High | D12: Low | E12: High | F12: User | G12: 1.13E+03 | H12: 6.88E+02 | I12: 2.96E+02 | J12: 1.00E+02 | K12: 1.66E+02 | L12: 1.01E+02 | M12: 4.37E+01 | N12: 1.48E+01
F13: Bystander | G13: 2.13E+02 | H13: 1.75E+02 | I13: 8.39E+01 | J13: 2.93E+01 | K13: 3.14E+01 | L13: 2.59E+01 | M13: 1.24E+01 | N13: 4.32E+00
B14: Case 4 | C14: High | D14: Medium | E14: Low | F14: User | G14: 1.60E+02 | H14: 9.78E+01 | I14: 4.21E+01 | J14: 1.42E+01 | K14: 2.37E+01 | L14: 1.44E+01 | M14: 6.21E+00 | N14: 2.10E+00
F15: Bystander | G15: 3.03E+01 | H15: 2.49E+01 | I15: 1.19E+01 | J15: 4.17E+00 | K15: 4.46E+00 | L15: 3.68E+00 | M15: 1.76E+00 | N15: 6.14E-01
B16: Case 5 | C16: High | D16: Medium | E16: Medium | F16: User | G16: 6.42E+02 | H16: 3.91E+02 | I16: 1.68E+02 | J16: 5.69E+01 | K16: 9.46E+01 | L16: 5.77E+01 | M16: 2.48E+01 | N16: 8.39E+00
F17: Bystander | G17: 1.21E+02 | H17: 9.98E+01 | I17: 4.77E+01 | J17: 1.67E+01 | K17: 1.79E+01 | L17: 1.47E+01 | M17: 7.03E+00 | N17: 2.46E+00
B18: Case 6 | C18: High | D18: Medium | E18: High | F18: User | G18: 2.57E+03 | H18: 1.56E+03 | I18: 6.74E+02 | J18: 2.28E+02 | K18: 3.79E+02 | L18: 2.31E+02 | M18: 9.94E+01 | N18: 3.36E+01
F19: Bystander | G19: 4.85E+02 | H19: 3.99E+02 | I19: 1.91E+02 | J19: 6.67E+01 | K19: 7.14E+01 | L19: 5.88E+01 | M19: 2.81E+01 | N19: 9.83E+00
B20: Case 7 | C20: High | D20: High | E20: Low | F20: User | G20: 1.76E+02 | H20: 1.07E+02 | I20: 4.63E+01 | J20: 1.56E+01 | K20: 2.60E+01 | L20: 1.58E+01 | M20: 6.82E+00 | N20: 2.31E+00
F21: Bystander | G21: 3.33E+01 | H21: 2.74E+01 | I21: 1.31E+01 | J21: 4.58E+00 | K21: 4.91E+00 | L21: 4.04E+00 | M21: 1.93E+00 | N21: 6.75E-01
B22: Case 8 | C22: High | D22: High | E22: Medium | F22: User | G22: 7.05E+02 | H22: 4.30E+02 | I22: 1.85E+02 | J22: 6.26E+01 | K22: 1.04E+02 | L22: 6.34E+01 | M22: 2.73E+01 | N22: 9.22E+00
F23: Bystander | G23: 1.33E+02 | H23: 1.10E+02 | I23: 5.24E+01 | J23: 1.83E+01 | K23: 1.96E+01 | L23: 1.62E+01 | M23: 7.73E+00 | N23: 2.70E+00
B24: Case 9 | C24: High | D24: High | E24: High | F24: User | G24: 2.82E+03 | H24: 1.72E+03 | I24: 7.41E+02 | J24: 2.50E+02 | K24: 4.16E+02 | L24: 2.53E+02 | M24: 1.09E+02 | N24: 3.69E+01
F25: Bystander | G25: 5.32E+02 | H25: 4.38E+02 | I25: 2.10E+02 | J25: 7.33E+01 | K25: 7.85E+01 | L25: 6.47E+01 | M25: 3.09E+01 | N25: 1.08E+01
B26: Case 1 | C26: Medium | D26: Low | E26: Low | F26: User | G26: 1.15E+02 | H26: 4.70E+01 | I26: 1.92E+01 | J26: 6.46E+00 | K26: 1.70E+01 | L26: 6.92E+00 | M26: 2.83E+00 | N26: 9.53E-01
F27: Bystander | G27: 1.47E+01 | H27: 1.08E+01 | I27: 4.81E+00 | J27: 1.66E+00 | K27: 2.17E+00 | L27: 1.60E+00 | M27: 7.09E-01 | N27: 2.44E-01
B28: Case 2 | C28: Medium | D28: Low | E28: Medium | F28: User | G28: 4.62E+02 | H28: 1.88E+02 | I28: 7.69E+01 | J28: 2.59E+01 | K28: 6.81E+01 | L28: 2.77E+01 | M28: 1.13E+01 | N28: 3.81E+00
F29: Bystander | G29: 5.89E+01 | H29: 4.34E+01 | I29: 1.92E+01 | J29: 6.63E+00 | K29: 8.68E+00 | L29: 6.40E+00 | M29: 2.84E+00 | N29: 9.77E-01
B30: Case 3 | C30: Medium | D30: Low | E30: High | F30: User | G30: 1.85E+03 | H30: 7.52E+02 | I30: 3.08E+02 | J30: 1.03E+02 | K30: 2.72E+02 | L30: 1.11E+02 | M30: 4.54E+01 | N30: 1.52E+01
F31: Bystander | G31: 2.35E+02 | H31: 1.74E+02 | I31: 7.69E+01 | J31: 2.65E+01 | K31: 3.47E+01 | L31: 2.56E+01 | M31: 1.13E+01 | N31: 3.91E+00
B32: Case 4 | C32: Medium | D32: Medium | E32: Low | F32: User | G32: 2.63E+02 | H32: 1.07E+02 | I32: 4.37E+01 | J32: 1.47E+01 | K32: 3.87E+01 | L32: 1.58E+01 | M32: 6.45E+00 | N32: 2.17E+00
F33: Bystander | G33: 3.35E+01 | H33: 2.47E+01 | I33: 1.09E+01 | J33: 3.77E+00 | K33: 4.94E+00 | L33: 3.64E+00 | M33: 1.61E+00 | N33: 5.56E-01
B34: Case 5 | C34: Medium | D34: Medium | E34: Medium | F34: User | G34: 1.05E+03 | H34: 4.27E+02 | I34: 1.75E+02 | J34: 5.88E+01 | K34: 1.55E+02 | L34: 6.30E+01 | M34: 2.58E+01 | N34: 8.67E+00
F35: Bystander | G35: 1.34E+02 | H35: 9.87E+01 | I35: 4.37E+01 | J35: 1.51E+01 | K35: 1.97E+01 | L35: 1.46E+01 | M35: 6.45E+00 | N35: 2.22E+00
B36: Case 6 | C36: Medium | D36: Medium | E36: High | F36: User | G36: 4.20E+03 | H36: 1.71E+03 | I36: 7.00E+02 | J36: 2.35E+02 | K36: 6.20E+02 | L36: 2.52E+02 | M36: 1.03E+02 | N36: 3.47E+01
F37: Bystander | G37: 5.36E+02 | H37: 3.95E+02 | I37: 1.75E+02 | J37: 6.03E+01 | K37: 7.90E+01 | L37: 5.82E+01 | M37: 2.58E+01 | N37: 8.90E+00
B38: Case 7 | C38: Medium | D38: High | E38: Low | F38: User | G38: 2.89E+02 | H38: 1.17E+02 | I38: 4.81E+01 | J38: 1.62E+01 | K38: 4.26E+01 | L38: 1.73E+01 | M38: 7.09E+00 | N38: 2.38E+00
F39: Bystander | G39: 3.68E+01 | H39: 2.71E+01 | I39: 1.20E+01 | J39: 4.14E+00 | K39: 5.42E+00 | L39: 4.00E+00 | M39: 1.77E+00 | N39: 6.11E-01
B40: Case 8 | C40: Medium | D40: High | E40: Medium | F40: User | G40: 1.15E+03 | H40: 4.70E+02 | I40: 1.92E+02 | J40: 6.46E+01 | K40: 1.70E+02 | L40: 6.93E+01 | M40: 2.83E+01 | N40: 9.53E+00
F41: Bystander | G41: 1.47E+02 | H41: 1.08E+02 | I41: 4.81E+01 | J41: 1.66E+01 | K41: 2.17E+01 | L41: 1.60E+01 | M41: 7.09E+00 | N41: 2.44E+00
B42: Case 9 | C42: Medium | D42: High | E42: High | F42: User | G42: 4.62E+03 | H42: 1.88E+03 | I42: 7.69E+02 | J42: 2.59E+02 | K42: 6.81E+02 | L42: 2.77E+02 | M42: 1.13E+02 | N42: 3.81E+01
F43: Bystander | G43: 5.89E+02 | H43: 4.34E+02 | I43: 1.92E+02 | J43: 6.63E+01 | K43: 8.68E+01 | L43: 6.40E+01 | M43: 2.84E+01 | N43: 9.77E+00
B44: Case 1 | C44: Low | D44: Low | E44: Low | F44: User | G44: 9.90E+01 | H44: 4.12E+01 | I44: 1.70E+01 | J44: 5.71E+00 | K44: 1.46E+01 | L44: 6.07E+00 | M44: 2.50E+00 | N44: 8.42E-01
F45: Bystander | G45: 1.44E+01 | H45: 1.05E+01 | I45: 4.62E+00 | J45: 1.59E+00 | K45: 2.12E+00 | L45: 1.54E+00 | M45: 6.82E-01 | N45: 2.35E-01
B46: Case 2 | C46: Low | D46: Low | E46: Medium | F46: User | G46: 3.96E+02 | H46: 1.65E+02 | I46: 6.79E+01 | J46: 2.28E+01 | K46: 5.84E+01 | L46: 2.43E+01 | M46: 1.00E+01 | N46: 3.37E+00
F47: Bystander | G47: 5.76E+01 | H47: 4.18E+01 | I47: 1.85E+01 | J47: 6.37E+00 | K47: 8.49E+00 | L47: 6.17E+00 | M47: 2.73E+00 | N47: 9.40E-01
B48: Case 3 | C48: Low | D48: Low | E48: High | F48: User | G48: 1.58E+03 | H48: 6.59E+02 | I48: 2.72E+02 | J48: 9.14E+01 | K48: 2.33E+02 | L48: 9.72E+01 | M48: 4.01E+01 | N48: 1.35E+01
F49: Bystander | G49: 2.30E+02 | H49: 1.67E+02 | I49: 7.40E+01 | J49: 2.55E+01 | K49: 3.40E+01 | L49: 2.47E+01 | M49: 1.09E+01 | N49: 3.76E+00
B50: Case 4 | C50: Low | D50: Medium | E50: Low | F50: User | G50: 2.25E+02 | H50: 9.37E+01 | I50: 3.86E+01 | J50: 1.30E+01 | K50: 3.32E+01 | L50: 1.38E+01 | M50: 5.70E+00 | N50: 1.92E+00
F51: Bystander | G51: 3.28E+01 | H51: 2.38E+01 | I51: 1.05E+01 | J51: 3.62E+00 | K51: 4.83E+00 | L51: 3.51E+00 | M51: 1.55E+00 | N51: 5.34E-01
B52: Case 5 | C52: Low | D52: Medium | E52: Medium | F52: User | G52: 9.01E+02 | H52: 3.75E+02 | I52: 1.55E+02 | J52: 5.20E+01 | K52: 1.33E+02 | L52: 5.53E+01 | M52: 2.28E+01 | N52: 7.66E+00
F53: Bystander | G53: 1.31E+02 | H53: 9.52E+01 | I53: 4.21E+01 | J53: 1.45E+01 | K53: 1.93E+01 | L53: 1.40E+01 | M53: 6.20E+00 | N53: 2.14E+00
B54: Case 6 | C54: Low | D54: Medium | E54: High | F54: User | G54: 3.60E+03 | H54: 1.50E+03 | I54: 6.18E+02 | J54: 2.08E+02 | K54: 5.31E+02 | L54: 2.21E+02 | M54: 9.11E+01 | N54: 3.07E+01
F55: Bystander | G55: 5.24E+02 | H55: 3.81E+02 | I55: 1.68E+02 | J55: 5.80E+01 | K55: 7.73E+01 | L55: 5.61E+01 | M55: 2.48E+01 | N55: 8.55E+00
B56: Case 7 | C56: Low | D56: High | E56: Low | F56: User | G56: 2.47E+02 | H56: 1.03E+02 | I56: 4.24E+01 | J56: 1.43E+01 | K56: 3.65E+01 | L56: 1.52E+01 | M56: 6.26E+00 | N56: 2.11E+00
F57: Bystander | G57: 3.60E+01 | H57: 2.61E+01 | I57: 1.16E+01 | J57: 3.98E+00 | K57: 5.31E+00 | L57: 3.85E+00 | M57: 1.70E+00 | N57: 5.87E-01
B58: Case 8 | C58: Low | D58: High | E58: Medium | F58: User | G58: 9.90E+02 | H58: 4.12E+02 | I58: 1.70E+02 | J58: 5.71E+01 | K58: 1.46E+02 | L58: 6.07E+01 | M58: 2.50E+01 | N58: 8.42E+00
F59: Bystander | G59: 1.44E+02 | H59: 1.05E+02 | I59: 4.62E+01 | J59: 1.59E+01 | K59: 2.12E+01 | L59: 1.54E+01 | M59: 6.82E+00 | N59: 2.35E+00
B60: Case 9 | C60: Low | D60: High | E60: High | F60: User | G60: 3.96E+03 | H60: 1.65E+03 | I60: 6.79E+02 | J60: 2.28E+02 | K60: 5.84E+02 | L60: 2.43E+02 | M60: 1.00E+02 | N60: 3.37E+01
F61: Bystander | G61: 5.76E+02 | H61: 4.18E+02 | I61: 1.85E+02 | J61: 6.37E+01 | K61: 8.49E+01 | L61: 6.17E+01 | M61: 2.73E+01 | N61: 9.40E+00

Sheet Aerosol Brake Cleaner Derm AF
A1: Scenario:
A2: Brake Cleaner
A3: Data Type:
A4: Estimated Dermal Doses Outputs - Absorption Fraction Method
A6: Scenario | B6: Case # | C6: Case Descriptors (Parameters Varied) | F6: Receptor | G6: Acute Dose Rate (mg/kg/day)
C7: Duration | D7: Weight Fraction | E7: Mass Used
A8: Brake Cleaner | B8: Case 1 | C8: High | D8: Low | E8: Low | F8: Adult (≥21 years) | G8: 5.38E+00
F9: Youth (16-20 years) | G9: 5.03E+00
F10: Youth (11-15 years) | G10: 5.50E+00
B11: Case 2 | C11: High | D11: Low | E11: Medium | F11: Adult (≥21 years) | G11: 5.38E+00
F12: Youth (16-20 years) | G12: 5.03E+00
F13: Youth (11-15 years) | G13: 5.50E+00
B14: Case 3 | C14: High | D14: Low | E14: High | F14: Adult (≥21 years) | G14: 5.38E+00
F15: Youth (16-20 years) | G15: 5.03E+00
F16: Youth (11-15 years) | G16: 5.50E+00
B17: Case 4 | C17: High | D17: Medium | E17: Low | F17: Adult (≥21 years) | G17: 1.22E+01
F18: Youth (16-20 years) | G18: 1.15E+01
F19: Youth (11-15 years) | G19: 1.25E+01
B20: Case 5 | C20: High | D20: Medium | E20: Medium | F20: Adult (≥21 years) | G20: 1.22E+01
F21: Youth (16-20 years) | G21: 1.15E+01
F22: Youth (11-15 years) | G22: 1.25E+01
B23: Case 6 | C23: High | D23: Medium | E23: High | F23: Adult (≥21 years) | G23: 1.22E+01
F24: Youth (16-20 years) | G24: 1.15E+01
F25: Youth (11-15 years) | G25: 1.25E+01
B26: Case 7 | C26: High | D26: High | E26: Low | F26: Adult (≥21 years) | G26: 1.34E+01
F27: Youth (16-20 years) | G27: 1.26E+01
F28: Youth (11-15 years) | G28: 1.38E+01
B29: Case 8 | C29: High | D29: High | E29: Medium | F29: Adult (≥21 years) | G29: 1.34E+01
F30: Youth (16-20 years) | G30: 1.26E+01
F31: Youth (11-15 years) | G31: 1.38E+01
B32: Case 9 | C32: High | D32: High | E32: High | F32: Adult (≥21 years) | G32: 1.34E+01
F33: Youth (16-20 years) | G33: 1.26E+01
F34: Youth (11-15 years) | G34: 1.38E+01
B35: Case 1 | C35: Medium | D35: Low | E35: Low | F35: Adult (≥21 years) | G35: 2.28E+00
F36: Youth (16-20 years) | G36: 2.14E+00
F37: Youth (11-15 years) | G37: 2.34E+00
B38: Case 2 | C38: Medium | D38: Low | E38: Medium | F38: Adult (≥21 years) | G38: 2.28E+00
F39: Youth (16-20 years) | G39: 2.14E+00
F40: Youth (11-15 years) | G40: 2.34E+00
B41: Case 3 | C41: Medium | D41: Low | E41: High | F41: Adult (≥21 years) | G41: 2.28E+00
F42: Youth (16-20 years) | G42: 2.14E+00
F43: Youth (11-15 years) | G43: 2.34E+00
B44: Case 4 | C44: Medium | D44: Medium | E44: Low | F44: Adult (≥21 years) | G44: 5.19E+00
F45: Youth (16-20 years) | G45: 4.86E+00
F46: Youth (11-15 years) | G46: 5.32E+00
B47: Case 5 | C47: Medium | D47: Medium | E47: Medium | F47: Adult (≥21 years) | G47: 5.19E+00
F48: Youth (16-20 years) | G48: 4.86E+00
F49: Youth (11-15 years) | G49: 5.32E+00
B50: Case 6 | C50: Medium | D50: Medium | E50: High | F50: Adult (≥21 years) | G50: 5.19E+00
F51: Youth (16-20 years) | G51: 4.86E+00
F52: Youth (11-15 years) | G52: 5.32E+00
B53: Case 7 | C53: Medium | D53: High | E53: Low | F53: Adult (≥21 years) | G53: 5.71E+00
F54: Youth (16-20 years) | G54: 5.34E+00
F55: Youth (11-15 years) | G55: 5.84E+00
B56: Case 8 | C56: Medium | D56: High | E56: Medium | F56: Adult (≥21 years) | G56: 5.71E+00
F57: Youth (16-20 years) | G57: 5.34E+00
F58: Youth (11-15 years) | G58: 5.84E+00
B59: Case 9 | C59: Medium | D59: High | E59: High | F59: Adult (≥21 years) | G59: 5.71E+00
F60: Youth (16-20 years) | G60: 5.34E+00
F61: Youth (11-15 years) | G61: 5.84E+00
B62: Case 1 | C62: Low | D62: Low | E62: Low | F62: Adult (≥21 years) | G62: 1.94E-01
F63: Youth (16-20 years) | G63: 1.81E-01
F64: Youth (11-15 years) | G64: 1.98E-01
B65: Case 2 | C65: Low | D65: Low | E65: Medium | F65: Adult (≥21 years) | G65: 1.94E-01
F66: Youth (16-20 years) | G66: 1.81E-01
F67: Youth (11-15 years) | G67: 1.98E-01
B68: Case 3 | C68: Low | D68: Low | E68: High | F68: Adult (≥21 years) | G68: 1.94E-01
F69: Youth (16-20 years) | G69: 1.81E-01
F70: Youth (11-15 years) | G70: 1.98E-01
B71: Case 4 | C71: Low | D71: Medium | E71: Low | F71: Adult (≥21 years) | G71: 4.41E-01
F72: Youth (16-20 years) | G72: 4.12E-01
F73: Youth (11-15 years) | G73: 4.51E-01
B74: Case 5 | C74: Low | D74: Medium | E74: Medium | F74: Adult (≥21 years) | G74: 4.41E-01
F75: Youth (16-20 years) | G75: 4.12E-01
F76: Youth (11-15 years) | G76: 4.51E-01
B77: Case 6 | C77: Low | D77: Medium | E77: High | F77: Adult (≥21 years) | G77: 4.41E-01
F78: Youth (16-20 years) | G78: 4.12E-01
F79: Youth (11-15 years) | G79: 4.51E-01
B80: Case 7 | C80: Low | D80: High | E80: Low | F80: Adult (≥21 years) | G80: 4.84E-01
F81: Youth (16-20 years) | G81: 4.53E-01
F82: Youth (11-15 years) | G82: 4.96E-01
B83: Case 8 | C83: Low | D83: High | E83: Medium | F83: Adult (≥21 years) | G83: 4.84E-01
F84: Youth (16-20 years) | G84: 4.53E-01
F85: Youth (11-15 years) | G85: 4.96E-01
B86: Case 9 | C86: Low | D86: High | E86: High | F86: Adult (≥21 years) | G86: 4.84E-01
F87: Youth (16-20 years) | G87: 4.53E-01
F88: Youth (11-15 years) | G88: 4.96E-01

Sheet Aerosol Brake Cleaner Derm P
A1: Scenario:
A2: Brake Cleaner
A3: Data Type:
A4: Estimated Dermal Doses Outputs - Permeability Method
A6: Scenario | B6: Case # | C6: Case Descriptors (Parameters Varied) | F6: Receptor | G6: Acute Dose Rate (mg/kg/day)
C7: Duration | D7: Weight Fraction | E7: Mass Used
A8: Brake Cleaner | B8: Case 1 | C8: High | D8: Low | E8: Low | F8: Adult (≥21 years) | G8: 1.38E+00
F9: Youth (16-20 years) | G9: 1.29E+00
F10: Youth (11-15 years) | G10: 1.42E+00
B11: Case 2 | C11: High | D11: Low | E11: Medium | F11: Adult (≥21 years) | G11: 1.38E+00
F12: Youth (16-20 years) | G12: 1.29E+00
F13: Youth (11-15 years) | G13: 1.42E+00
B14: Case 3 | C14: High | D14: Low | E14: High | F14: Adult (≥21 years) | G14: 1.38E+00
F15: Youth (16-20 years) | G15: 1.29E+00
F16: Youth (11-15 years) | G16: 1.42E+00
B17: Case 4 | C17: High | D17: Medium | E17: Low | F17: Adult (≥21 years) | G17: 3.15E+00
F18: Youth (16-20 years) | G18: 2.95E+00
F19: Youth (11-15 years) | G19: 3.22E+00
B20: Case 5 | C20: High | D20: Medium | E20: Medium | F20: Adult (≥21 years) | G20: 3.15E+00
F21: Youth (16-20 years) | G21: 2.95E+00
F22: Youth (11-15 years) | G22: 3.22E+00
B23: Case 6 | C23: High | D23: Medium | E23: High | F23: Adult (≥21 years) | G23: 3.15E+00
F24: Youth (16-20 years) | G24: 2.95E+00
F25: Youth (11-15 years) | G25: 3.22E+00
B26: Case 7 | C26: High | D26: High | E26: Low | F26: Adult (≥21 years) | G26: 3.46E+00
F27: Youth (16-20 years) | G27: 3.24E+00
F28: Youth (11-15 years) | G28: 3.54E+00
B29: Case 8 | C29: High | D29: High | E29: Medium | F29: Adult (≥21 years) | G29: 3.46E+00
F30: Youth (16-20 years) | G30: 3.24E+00
F31: Youth (11-15 years) | G31: 3.54E+00
B32: Case 9 | C32: High | D32: High | E32: High | F32: Adult (≥21 years) | G32: 3.46E+00
F33: Youth (16-20 years) | G33: 3.24E+00
F34: Youth (11-15 years) | G34: 3.54E+00
B35: Case 1 | C35: Medium | D35: Low | E35: Low | F35: Adult (≥21 years) | G35: 1.73E-01
F36: Youth (16-20 years) | G36: 1.62E-01
F37: Youth (11-15 years) | G37: 1.77E-01
B38: Case 2 | C38: Medium | D38: Low | E38: Medium | F38: Adult (≥21 years) | G38: 1.73E-01
F39: Youth (16-20 years) | G39: 1.62E-01
F40: Youth (11-15 years) | G40: 1.77E-01
B41: Case 3 | C41: Medium | D41: Low | E41: High | F41: Adult (≥21 years) | G41: 1.73E-01
F42: Youth (16-20 years) | G42: 1.62E-01
F43: Youth (11-15 years) | G43: 1.77E-01
B44: Case 4 | C44: Medium | D44: Medium | E44: Low | F44: Adult (≥21 years) | G44: 3.93E-01
F45: Youth (16-20 years) | G45: 3.68E-01
F46: Youth (11-15 years) | G46: 4.03E-01
B47: Case 5 | C47: Medium | D47: Medium | E47: Medium | F47: Adult (≥21 years) | G47: 3.93E-01
F48: Youth (16-20 years) | G48: 3.68E-01
F49: Youth (11-15 years) | G49: 4.03E-01
B50: Case 6 | C50: Medium | D50: Medium | E50: High | F50: Adult (≥21 years) | G50: 3.93E-01
F51: Youth (16-20 years) | G51: 3.68E-01
F52: Youth (11-15 years) | G52: 4.03E-01
B53: Case 7 | C53: Medium | D53: High | E53: Low | F53: Adult (≥21 years) | G53: 4.32E-01
F54: Youth (16-20 years) | G54: 4.05E-01
F55: Youth (11-15 years) | G55: 4.42E-01
B56: Case 8 | C56: Medium | D56: High | E56: Medium | F56: Adult (≥21 years) | G56: 4.32E-01
F57: Youth (16-20 years) | G57: 4.05E-01
F58: Youth (11-15 years) | G58: 4.42E-01
B59: Case 9 | C59: Medium | D59: High | E59: High | F59: Adult (≥21 years) | G59: 4.32E-01
F60: Youth (16-20 years) | G60: 4.05E-01
F61: Youth (11-15 years) | G61: 4.42E-01
B62: Case 1 | C62: Low | D62: Low | E62: Low | F62: Adult (≥21 years) | G62: 1.15E-02
F63: Youth (16-20 years) | G63: 1.08E-02
F64: Youth (11-15 years) | G64: 1.18E-02
B65: Case 2 | C65: Low | D65: Low | E65: Medium | F65: Adult (≥21 years) | G65: 1.15E-02
F66: Youth (16-20 years) | G66: 1.08E-02
F67: Youth (11-15 years) | G67: 1.18E-02
B68: Case 3 | C68: Low | D68: Low | E68: High | F68: Adult (≥21 years) | G68: 1.15E-02
F69: Youth (16-20 years) | G69: 1.08E-02
F70: Youth (11-15 years) | G70: 1.18E-02
B71: Case 4 | C71: Low | D71: Medium | E71: Low | F71: Adult (≥21 years) | G71: 2.62E-02
F72: Youth (16-20 years) | G72: 2.45E-02
F73: Youth (11-15 years) | G73: 2.68E-02
B74: Case 5 | C74: Low | D74: Medium | E74: Medium | F74: Adult (≥21 years) | G74: 2.62E-02
F75: Youth (16-20 years) | G75: 2.45E-02
F76: Youth (11-15 years) | G76: 2.68E-02
B77: Case 6 | C77: Low | D77: Medium | E77: High | F77: Adult (≥21 years) | G77: 2.62E-02
F78: Youth (16-20 years) | G78: 2.45E-02
F79: Youth (11-15 years) | G79: 2.68E-02
B80: Case 7 | C80: Low | D80: High | E80: Low | F80: Adult (≥21 years) | G80: 2.88E-02
F81: Youth (16-20 years) | G81: 2.70E-02
F82: Youth (11-15 years) | G82: 2.95E-02
B83: Case 8 | C83: Low | D83: High | E83: Medium | F83: Adult (≥21 years) | G83: 2.88E-02
F84: Youth (16-20 years) | G84: 2.70E-02
F85: Youth (11-15 years) | G85: 2.95E-02
B86: Case 9 | C86: Low | D86: High | E86: High | F86: Adult (≥21 years) | G86: 2.88E-02
F87: Youth (16-20 years) | G87: 2.70E-02
F88: Youth (11-15 years) | G88: 2.95E-02

Sheet Parts Cleaner Inh
A1: Scenario:
A2: Parts Cleaner
A3: Data Type:
A4: Estimated Inhalation Concentrations Outputs
A6: Scenario | B6: Case # | C6: Case Descriptors (Parameters Varied) | F6: Receptor | G6: Concentration (mg/m3) | K6: Concentration (ppm)
C7: Duration | D7: Weight Fraction | E7: Mass Used | G7: 1-hr TWA | H7: 3-hr TWA | I7: 8-hr TWA | J7: 24-hr TWA | K7: 1-hr TWA | L7: 3-hr TWA | M7: 8-hr TWA | N7: 24-hr TWA
A8: Parts Cleaner | B8: Case 1 | C8: High | D8: Low | E8: Low | F8: User | G8: 4.47E+01 | H8: 1.49E+01 | I8: 5.63E+00 | J8: 1.88E+00 | K8: =(G8*24.45)/165.833 -> 6.59E+00 | L8: =(H8*24.45)/165.833 -> 2.20E+00 | M8: 8.31E-01 | N8: 2.77E-01
F9: Bystander | G9: 3.54E-01 | H9: 1.18E-01 | I9: 4.42E-02 | J9: 1.47E-02 | K9: =(G9*24.45)/165.833 -> 5.21E-02 | L9: =(H9*24.45)/165.833 -> 1.74E-02 | M9: =(I9*24.45)/165.833 -> 6.52E-03 | N9: =(J9*24.45)/165.833 -> 2.17E-03
B10: Case 2 | C10: High | D10: Low | E10: Medium | F10: User | G10: 2.38E+02 | H10: 7.93E+01 | I10: 3.00E+01 | J10: 9.99E+00 | K10: 3.51E+01 | L10: 1.17E+01 | M10: 4.42E+00 | N10: 1.47E+00
F11: Bystander | G11: 1.88E+00 | H11: 6.27E-01 | I11: 2.35E-01 | J11: 7.83E-02 | K11: 2.77E-01 | L11: 9.24E-02 | M11: 3.47E-02 | N11: 1.16E-02
B12: Case 3 | C12: High | D12: Low | E12: High | F12: User | G12: 1.99E+03 | H12: 6.63E+02 | I12: 2.51E+02 | J12: 8.36E+01 | K12: 2.93E+02 | L12: 9.78E+01 | M12: 3.70E+01 | N12: 1.23E+01
F13: Bystander | G13: 1.57E+01 | H13: 5.24E+00 | I13: 1.97E+00 | J13: 6.56E-01 | K13: 2.32E+00 | L13: 7.73E-01 | M13: 2.90E-01 | N13: 9.67E-02
B14: Case 4 | C14: High | D14: Medium | E14: Low | F14: User | G14: 5.37E+01 | H14: 1.79E+01 | I14: 6.76E+00 | J14: 2.25E+00 | K14: 7.91E+00 | L14: 2.64E+00 | M14: 9.97E-01 | N14: 3.32E-01
F15: Bystander | G15: 4.24E-01 | H15: 1.41E-01 | I15: 5.30E-02 | J15: 1.77E-02 | K15: 6.26E-02 | L15: 2.09E-02 | M15: 7.82E-03 | N15: 2.61E-03
B16: Case 5 | C16: High | D16: Medium | E16: Medium | F16: User | G16: 2.85E+02 | H16: 9.51E+01 | I16: 3.60E+01 | J16: 1.20E+01 | K16: 4.21E+01 | L16: 1.40E+01 | M16: 5.30E+00 | N16: 1.77E+00
F17: Bystander | G17: 2.26E+00 | H17: 7.52E-01 | I17: 2.82E-01 | J17: 9.40E-02 | K17: 3.33E-01 | L17: 1.11E-01 | M17: 4.16E-02 | N17: 1.39E-02
B18: Case 6 | C18: High | D18: Medium | E18: High | F18: User | G18: 2.39E+03 | H18: 7.96E+02 | I18: 3.01E+02 | J18: 1.00E+02 | K18: 3.52E+02 | L18: 1.17E+02 | M18: 4.44E+01 | N18: 1.48E+01
F19: Bystander | G19: 1.89E+01 | H19: 6.29E+00 | I19: 2.36E+00 | J19: 7.87E-01 | K19: 2.78E+00 | L19: 9.28E-01 | M19: 3.48E-01 | N19: 1.16E-01
B20: Case 1 | C20: Medium | D20: Low | E20: Low | F20: User | G20: 1.58E+01 | H20: 5.25E+00 | I20: 2.01E+00 | J20: 6.71E-01 | K20: 2.32E+00 | L20: 7.74E-01 | M20: 2.97E-01 | N20: 9.90E-02
F21: Bystander | G21: 3.54E-01 | H21: 1.18E-01 | I21: 4.42E-02 | J21: 1.47E-02 | K21: 5.21E-02 | L21: 1.74E-02 | M21: 6.52E-03 | N21: 2.17E-03
B22: Case 2 | C22: Medium | D22: Low | E22: Medium | F22: User | G22: 8.38E+01 | H22: 2.79E+01 | I22: 1.07E+01 | J22: 3.57E+00 | K22: 1.24E+01 | L22: 4.12E+00 | M22: 1.58E+00 | N22: 5.26E-01
F23: Bystander | G23: 1.88E+00 | H23: 6.27E-01 | I23: 2.35E-01 | J23: 7.83E-02 | K23: 2.77E-01 | L23: 9.24E-02 | M23: 3.47E-02 | N23: 1.16E-02
B24: Case 3 | C24: Medium | D24: Low | E24: High | F24: User | G24: 7.01E+02 | H24: 2.34E+02 | I24: 8.96E+01 | J24: 2.99E+01 | K24: 1.03E+02 | L24: 3.45E+01 | M24: 1.32E+01 | N24: 4.40E+00
F25: Bystander | G25: 1.57E+01 | H25: 5.24E+00 | I25: 1.97E+00 | J25: 6.56E-01 | K25: 2.32E+00 | L25: 7.73E-01 | M25: 2.90E-01 | N25: 9.67E-02
B26: Case 4 | C26: Medium | D26: Medium | E26: Low | F26: User | G26: 1.89E+01 | H26: 6.30E+00 | I26: 2.42E+00 | J26: 8.05E-01 | K26: 2.79E+00 | L26: 9.29E-01 | M26: 3.56E-01 | N26: 1.19E-01
F27: Bystander | G27: 4.24E-01 | H27: 1.41E-01 | I27: 5.30E-02 | J27: 1.77E-02 | K27: 6.26E-02 | L27: 2.09E-02 | M27: 7.82E-03 | N27: 2.61E-03
B28: Case 5 | C28: Medium | D28: Medium | E28: Medium | F28: User | G28: 1.01E+02 | H28: 3.35E+01 | I28: 1.28E+01 | J28: 4.28E+00 | K28: 1.48E+01 | L28: 4.94E+00 | M28: 1.89E+00 | N28: 6.31E-01
F29: Bystander | G29: 2.26E+00 | H29: 7.52E-01 | I29: 2.82E-01 | J29: 9.40E-02 | K29: 3.33E-01 | L29: 1.11E-01 | M29: 4.16E-02 | N29: 1.39E-02
B30: Case 6 | C30: Medium | D30: Medium | E30: High | F30: User | G30: 8.41E+02 | H30: 2.80E+02 | I30: 1.08E+02 | J30: 3.58E+01 | K30: 1.24E+02 | L30: 4.13E+01 | M30: 1.59E+01 | N30: 5.28E+00
F31: Bystander | G31: 1.89E+01 | H31: 6.29E+00 | I31: 2.36E+00 | J31: 7.87E-01 | K31: 2.78E+00 | L31: 9.28E-01 | M31: 3.48E-01 | N31: 1.16E-01
B32: Case 1 | C32: Low | D32: Low | E32: Low | F32: User | G32: 7.82E-01 | H32: 2.61E-01 | I32: 1.03E-01 | J32: 3.44E-02 | K32: 1.15E-01 | L32: 3.85E-02 | M32: 1.52E-02 | N32: 5.07E-03
F33: Bystander | G33: 4.27E-02 | H33: 1.42E-02 | I33: 5.34E-03 | J33: 1.78E-03 | K33: 6.30E-03 | L33: 2.10E-03 | M33: 7.87E-04 | N33: 2.62E-04
B34: Case 2 | C34: Low | D34: Low | E34: Medium | F34: User | G34: 4.16E+00 | H34: 1.39E+00 | I34: 5.49E-01 | J34: 1.83E-01 | K34: 6.13E-01 | L34: 2.04E-01 | M34: 8.09E-02 | N34: 2.70E-02
F35: Bystander | G35: 2.27E-01 | H35: 7.57E-02 | I35: 2.84E-02 | J35: 9.47E-03 | K35: 3.35E-02 | L35: 1.12E-02 | M35: 4.19E-03 | N35: 1.40E-03
B36: Case 3 | C36: Low | D36: Low | E36: High | F36: User | G36: 3.48E+01 | H36: 1.16E+01 | I36: 4.59E+00 | J36: 1.53E+00 | K36: 5.13E+00 | L36: 1.71E+00 | M36: 6.77E-01 | N36: 2.26E-01
F37: Bystander | G37: 1.90E+00 | H37: 6.34E-01 | I37: 2.38E-01 | J37: 7.92E-02 | K37: 2.80E-01 | L37: 9.34E-02 | M37: 3.50E-02 | N37: 1.17E-02
B38: Case 4 | C38: Low | D38: Medium | E38: Low | F38: Bystander | G38: 9.39E-01 | H38: 3.13E-01 | I38: 1.24E-01 | J38: 4.13E-02 | K38: 1.38E-01 | L38: 4.61E-02 | M38: 1.82E-02 | N38: 6.08E-03
F39: User | G39: 5.13E-02 | H39: 1.71E-02 | I39: 6.41E-03 | J39: 2.14E-03 | K39: 7.56E-03 | L39: 2.52E-03 | M39: 9.45E-04 | N39: 3.15E-04
B40: Case 5 | C40: Low | D40: Medium | E40: Medium | F40: Bystander | G40: 4.99E+00 | H40: 1.66E+00 | I40: 6.58E-01 | J40: 2.19E-01 | K40: 7.36E-01 | L40: 2.45E-01 | M40: 9.70E-02 | N40: 3.23E-02
F41: User | G41: 2.73E-01 | H41: 9.09E-02 | I41: 3.41E-02 | J41: 1.14E-02 | K41: 4.02E-02 | L41: 1.34E-02 | M41: 5.02E-03 | N41: 1.67E-03
B42: Case 6 | C42: Low | D42: Medium | E42: High | F42: Bystander | G42: 4.18E+01 | H42: 1.39E+01 | I42: 5.51E+00 | J42: 1.84E+00 | K42: 6.16E+00 | L42: 2.05E+00 | M42: 8.12E-01 | N42: 2.71E-01
F43: User | G43: 2.28E+00 | H43: 7.60E-01 | I43: 2.85E-01 | J43: 9.51E-02 | K43: 3.36E-01 | L43: 1.12E-01 | M43: 4.20E-02 | N43: 1.40E-02

Sheet Parts Cleaner Derm AF
A1: Scenario:
A2: Parts Cleaner
A3: Data Type:
A4: Estimated Dermal Doses Outputs - Absorption Fraction Method
A6: Scenario | B6: Case # | C6: Case Descriptors (Parameters Varied) | F6: Receptor | G6: Acute Dose Rate (mg/kg/day)
C7: Duration | D7: Weight Fraction | E7: Mass Used
A8: Parts Cleaner | B8: Case 1 | C8: High | D8: Low | E8: Low | F8: Adult (≥21 years) | G8: 1.83E+01
F9: Youth (16-20 years) | G9: 1.71E+01
F10: Youth (11-15 years) | G10: 1.88E+01
B11: Case 2 | C11: High | D11: Low | E11: Medium | F11: Adult (≥21 years) | G11: 1.83E+01
F12: Youth (16-20 years) | G12: 1.71E+01
F13: Youth (11-15 years) | G13: 1.88E+01
B14: Case 3 | C14: High | D14: Low | E14: High | F14: Adult (≥21 years) | G14: 1.83E+01
F15: Youth (16-20 years) | G15: 1.71E+01
F16: Youth (11-15 years) | G16: 1.88E+01
B17: Case 4 | C17: High | D17: Medium | E17: Low | F17: Adult (≥21 years) | G17: 2.20E+01
F18: Youth (16-20 years) | G18: 2.06E+01
F19: Youth (11-15 years) | G19: 2.25E+01
B20: Case 5 | C20: High | D20: Medium | E20: Medium | F20: Adult (≥21 years) | G20: 2.20E+01
F21: Youth (16-20 years) | G21: 2.06E+01
F22: Youth (11-15 years) | G22: 2.25E+01
B23: Case 6 | C23: High | D23: Medium | E23: High | F23: Adult (≥21 years) | G23: 2.20E+01
F24: Youth (16-20 years) | G24: 2.06E+01
F25: Youth (11-15 years) | G25: 2.25E+01
B26: Case 1 | C26: Medium | D26: Low | E26: Low | F26: Adult (≥21 years) | G26: 4.58E+00
F27: Youth (16-20 years) | G27: 4.28E+00
F28: Youth (11-15 years) | G28: 4.69E+00
B29: Case 2 | C29: Medium | D29: Low | E29: Medium | F29: Adult (≥21 years) | G29: 4.58E+00
F30: Youth (16-20 years) | G30: 4.28E+00
F31: Youth (11-15 years) | G31: 4.69E+00
B32: Case 3 | C32: Medium | D32: Low | E32: High | F32: Adult (≥21 years) | G32: 4.58E+00
F33: Youth (16-20 years) | G33: 4.28E+00
F34: Youth (11-15 years) | G34: 4.69E+00
B35: Case 4 | C35: Medium | D35: Medium | E35: Low | F35: Adult (≥21 years) | G35: 5.50E+00
F36: Youth (16-20 years) | G36: 5.14E+00
F37: Youth (11-15 years) | G37: 5.62E+00
B38: Case 5 | C38: Medium | D38: Medium | E38: Medium | F38: Adult (≥21 years) | G38: 5.50E+00
F39: Youth (16-20 years) | G39: 5.14E+00
F40: Youth (11-15 years) | G40: 5.62E+00
B41: Case 6 | C41: Medium | D41: Medium | E41: High | F41: Adult (≥21 years) | G41: 5.50E+00
F42: Youth (16-20 years) | G42: 5.14E+00
F43: Youth (11-15 years) | G43: 5.62E+00
B44: Case 1 | C44: Low | D44: Low | E44: Low | F44: Adult (≥21 years) | G44: 4.96E-01
F45: Youth (16-20 years) | G45: 4.64E-01
F46: Youth (11-15 years) | G46: 5.08E-01
B47: Case 2 | C47: Low | D47: Low | E47: Medium | F47: Adult (≥21 years) | G47: 4.96E-01
F48: Youth (16-20 years) | G48: 4.64E-01
F49: Youth (11-15 years) | G49: 5.08E-01
B50: Case 3 | C50: Low | D50: Low | E50: High | F50: Adult (≥21 years) | G50: 4.96E-01
F51: Youth (16-20 years) | G51: 4.64E-01
F52: Youth (11-15 years) | G52: 5.08E-01
B53: Case 4 | C53: Low | D53: Medium | E53: Low | F53: Adult (≥21 years) | G53: 5.96E-01
F54: Youth (16-20 years) | G54: 5.57E-01
F55: Youth (11-15 years) | G55: 6.10E-01
B56: Case 5 | C56: Low | D56: Medium | E56: Medium | F56: Adult (≥21 years) | G56: 5.96E-01
F57: Youth (16-20 years) | G57: 5.57E-01
F58: Youth (11-15 years) | G58: 6.10E-01
B59: Case 6 | C59: Low | D59: Medium | E59: High | F59: Adult (≥21 years) | G59: 5.96E-01
F60: Youth (16-20 years) | G60: 5.57E-01
F61: Youth (11-15 years) | G61: 6.10E-01

Sheet Parts Cleaner Derm P
A1: Scenario:
A2: Parts Cleaner
A3: Data Type:
A4: Estimated Dermal Doses Outputs - Permeability Method
A6: Scenario | B6: Case # | C6: Case Descriptors (Parameters Varied) | F6: Receptor | G6: Acute Dose Rate (mg/kg/day)
C7: Duration | D7: Weight Fraction | E7: Mass Used
A8: Parts Cleaner | B8: Case 1 | C8: High | D8: Low | E8: Low | F8: Adult (≥21 years) | G8: 1.76E+00
F9: Youth (16-20 years) | G9: 1.64E+00
F10: Youth (11-15 years) | G10: 1.80E+00
B11: Case 2 | C11: High | D11: Low | E11: Medium | F11: Adult (≥21 years) | G11: 1.76E+00
F12: Youth (16-20 years) | G12: 1.64E+00
F13: Youth (11-15 years) | G13: 1.80E+00
B14: Case 3 | C14: High | D14: Low | E14: High | F14: Adult (≥21 years) | G14: 1.76E+00
F15: Youth (16-20 years) | G15: 1.64E+00
F16: Youth (11-15 years) | G16: 1.80E+00
B17: Case 4 | C17: High | D17: Medium | E17: Low | F17: Adult (≥21 years) | G17: 2.11E+00
F18: Youth (16-20 years) | G18: 1.97E+00
F19: Youth (11-15 years) | G19: 2.16E+00
B20: Case 5 | C20: High | D20: Medium | E20: Medium | F20: Adult (≥21 years) | G20: 2.11E+00
F21: Youth (16-20 years) | G21: 1.97E+00
F22: Youth (11-15 years) | G22: 2.16E+00
B23: Case 6 | C23: High | D23: Medium | E23: High | F23: Adult (≥21 years) | G23: 2.11E+00
F24: Youth (16-20 years) | G24: 1.97E+00
F25: Youth (11-15 years) | G25: 2.16E+00
B26: Case 1 | C26: Medium | D26: Low | E26: Low | F26: Adult (≥21 years) | G26: 2.93E-01
F27: Youth (16-20 years) | G27: 2.74E-01
F28: Youth (11-15 years) | G28: 2.99E-01
B29: Case 2 | C29: Medium | D29: Low | E29: Medium | F29: Adult (≥21 years) | G29: 2.93E-01
F30: Youth (16-20 years) | G30: 2.74E-01
F31: Youth (11-15 years) | G31: 2.99E-01
B32: Case 3 | C32: Medium | D32: Low | E32: High | F32: Adult (≥21 years) | G32: 2.93E-01
F33: Youth (16-20 years) | G33: 2.74E-01
F34: Youth (11-15 years) | G34: 2.99E-01
B35: Case 4 | C35: Medium | D35: Medium | E35: Low | F35: Adult (≥21 years) | G35: 3.51E-01
F36: Youth (16-20 years) | G36: 3.28E-01
F37: Youth (11-15 years) | G37: 3.59E-01
B38: Case 5 | C38: Medium | D38: Medium | E38: Medium | F38: Adult (≥21 years) | G38: 3.51E-01
F39: Youth (16-20 years) | G39: 3.28E-01
F40: Youth (11-15 years) | G40: 3.59E-01
B41: Case 6 | C41: Medium | D41: Medium | E41: High | F41: Adult (≥21 years) | G41: 3.51E-01
F42: Youth (16-20 years) | G42: 3.28E-01
F43: Youth (11-15 years) | G43: 3.59E-01
B44: Case 1 | C44: Low | D44: Low | E44: Low | F44: Adult (≥21 years) | G44: 2.93E-02
F45: Youth (16-20 years) | G45: 2.74E-02
F46: Youth (11-15 years) | G46: 2.99E-02
B47: Case 2 | C47: Low | D47: Low | E47: Medium | F47: Adult (≥21 years) | G47: 2.93E-02
F48: Youth (16-20 years) | G48: 2.74E-02
F49: Youth (11-15 years) | G49: 2.99E-02
B50: Case 3 | C50: Low | D50: Low | E50: High | F50: Adult (≥21 years) | G50: 2.93E-02
F51: Youth (16-20 years) | G51: 2.74E-02
F52: Youth (11-15 years) | G52: 2.99E-02
B53: Case 4 | C53: Low | D53: Medium | E53: Low | F53: Adult (≥21 years) | G53: 3.51E-02
F54: Youth (16-20 years) | G54: 3.28E-02
F55: Youth (11-15 years) | G55: 3.59E-02
B56: Case 5 | C56: Low | D56: Medium | E56: Medium | F56: Adult (≥21 years) | G56: 3.51E-02
F57: Youth (16-20 years) | G57: 3.28E-02
F58: Youth (11-15 years) | G58: 3.59E-02
B59: Case 6 | C59: Low | D59: Medium | E59: High | F59: Adult (≥21 years) | G59: 3.51E-02
F60: Youth (16-20 years) | G60: 3.28E-02
F61: Youth (11-15 years) | G61: 3.59E-02

Sheet Mold Cleaner Inh
A1: Scenario:
A2: Mold Cleaner and Weld Spatter Protectant
A3: Data Type:
A4: Estimated Inhalation Concentrations Outputs
A6: Scenario | B6: Case # | C6: Case Descriptors (Parameters Varied) | F6: Receptor | G6: Concentration (mg/m3) | K6: Concentration (ppm)
C7: Duration | D7: Weight Fraction | E7: Mass Used | G7: 1-hr TWA | H7: 3-hr TWA | I7: 8-hr TWA | J7: 24-hr TWA | K7: 1-hr TWA | L7: 3-hr TWA | M7: 8-hr TWA | N7: 24-hr TWA
A8: Mold Cleaner and Weld Spatter Protectant | B8: Case 1 | C8: High | D8: Low | E8: Low | F8: User | G8: 8.46E+00 | H8: 5.46E+00 | I8: 2.26E+00 | J8: 7.60E-01 | K8: =(G8*24.45)/165.833 -> 1.25E+00 | L8: =(H8*24.45)/165.833 -> 8.05E-01 | M8: 3.33E-01 | N8: 1.12E-01
F9: Bystander | G9: 1.49E+00 | H9: 1.19E+00 | I9: 5.46E-01 | J9: 1.89E-01 | K9: =(G9*24.45)/165.833 -> 2.20E-01 | L9: 1.76E-01 | M9: 8.04E-02 | N9: 2.79E-02
B10: Case 2 | C10: High | D10: Low | E10: Medium | F10: User | G10: 4.91E+01 | H10: 3.17E+01 | I10: 1.31E+01 | J10: 4.41E+00 | K10: 7.24E+00 | L10: 4.67E+00 | M10: 1.93E+00 | N10: 6.50E-01
F11: Bystander | G11: 8.65E+00 | H11: 6.93E+00 | I11: 3.17E+00 | J11: 1.10E+00 | K11: 1.28E+00 | L11: 1.02E+00 | M11: 4.67E-01 | N11: 1.62E-01
B12: Case 3 | C12: High | D12: Low | E12: High | F12: User | G12: 4.83E+02 | H12: 3.12E+02 | I12: 1.29E+02 | J12: 4.34E+01 | K12: 7.12E+01 | L12: 4.60E+01 | M12: 1.90E+01 | N12: 6.40E+00
F13: Bystander | G13: 8.52E+01 | H13: 6.83E+01 | I13: 3.12E+01 | J13: 1.08E+01 | K13: 1.26E+01 | L13: 1.01E+01 | M13: 4.60E+00 | N13: 1.59E+00
B14: Case 4 | C14: High | D14: Medium | E14: Low | F14: User | G14: 6.77E+01 | H14: 4.37E+01 | I14: 1.81E+01 | J14: 6.08E+00 | K14: 9.98E+00 | L14: 6.44E+00 | M14: 2.66E+00 | N14: 8.97E-01
F15: Bystander | G15: 1.19E+01 | H15: 9.56E+00 | I15: 4.36E+00 | J15: 1.51E+00 | K15: 1.76E+00 | L15: 1.41E+00 | M15: 6.43E-01 | N15: 2.23E-01
B16: Case 5 | C16: High | D16: Medium | E16: Medium | F16: User | G16: 3.93E+02 | H16: 2.53E+02 | I16: 1.05E+02 | J16: 3.53E+01 | K16: 5.79E+01 | L16: 3.74E+01 | M16: 1.55E+01 | N16: 5.20E+00
F17: Bystander | G17: 6.92E+01 | H17: 5.55E+01 | I17: 2.53E+01 | J17: 8.78E+00 | K17: 1.02E+01 | L17: 8.18E+00 | M17: 3.73E+00 | N17: 1.29E+00
B18: Case 6 | C18: High | D18: Medium | E18: High | F18: User | G18: 3.87E+03 | H18: 2.49E+03 | I18: 1.03E+03 | J18: 3.47E+02 | K18: 5.70E+02 | L18: 3.68E+02 | M18: 1.52E+02 | N18: 5.12E+01
F19: Bystander | G19: 6.81E+02 | H19: 5.46E+02 | I19: 2.49E+02 | J19: 8.64E+01 | K19: 1.00E+02 | L19: 8.05E+01 | M19: 3.68E+01 | N19: 1.27E+01
B20: Case 7 | C20: High | D20: High | E20: Low | F20: User | G20: 1.69E+02 | H20: 1.09E+02 | I20: 4.52E+01 | J20: 1.52E+01 | K20: 2.49E+01 | L20: 1.61E+01 | M20: 6.66E+00 | N20: 2.24E+00
F21: Bystander | G21: 2.98E+01 | H21: 2.39E+01 | I21: 1.09E+01 | J21: 3.78E+00 | K21: 4.39E+00 | L21: 3.52E+00 | M21: 1.61E+00 | N21: 5.58E-01
B22: Case 8 | C22: High | D22: High | E22: Medium | F22: User | G22: 9.82E+02 | H22: 6.33E+02 | I22: 2.62E+02 | J22: 8.82E+01 | K22: 1.45E+02 | L22: 9.34E+01 | M22: 3.87E+01 | N22: 1.30E+01
F23: Bystander | G23: 1.73E+02 | H23: 1.39E+02 | I23: 6.33E+01 | J23: 2.19E+01 | K23: 2.55E+01 | L23: 2.04E+01 | M23: 9.33E+00 | N23: 3.24E+00
B24: Case 9 | C24: High | D24: High | E24: High | F24: User | G24: 9.66E+03 | H24: 6.24E+03 | I24: 2.58E+03 | J24: 8.69E+02 | K24: 1.42E+03 | L24: =(H24*24.45)/165.833 -> 9.20E+02 | M24: =(I24*24.45)/165.833 -> 3.81E+02 | N24: =(J24*24.45)/165.833 -> 1.28E+02
F25: Bystander | G25: 1.70E+03 | H25: 1.37E+03 | I25: 6.23E+02 | J25: 2.16E+02 | K25: 2.51E+02 | L25: 2.01E+02 | M25: 9.19E+01 | N25: 3.19E+01
B26: Case 1 | C26: Medium | D26: Low | E26: Low | F26: User | G26: 1.54E+01 | H26: 5.96E+00 | I26: 2.37E+00 | J26: 7.96E-01 | K26: 2.27E+00 | L26: 8.79E-01 | M26: 3.50E-01 | N26: 1.17E-01
F27: Bystander | G27: 1.50E+00 | H27: 1.02E+00 | I27: 4.48E-01 | J27: 1.54E-01 | K27: 2.21E-01 | L27: 1.51E-01 | M27: 6.60E-02 | N27: 2.27E-02
B28: Case 2 | C28: Medium | D28: Low | E28: Medium | F28: User | G28: 8.95E+01 | H28: 3.46E+01 | I28: 1.38E+01 | J28: 4.62E+00 | K28: 1.32E+01 | L28: 5.10E+00 | M28: 2.03E+00 | N28: 6.81E-01
F29: Bystander | G29: 8.72E+00 | H29: 5.95E+00 | I29: 2.60E+00 | J29: 8.93E-01 | K29: 1.28E+00 | L29: 8.77E-01 | M29: 3.83E-01 | N29: 1.32E-01
B30: Case 3 | C30: Medium | D30: Low | E30: High | F30: User | G30: 8.81E+02 | H30: 3.40E+02 | I30: 1.36E+02 | J30: 4.55E+01 | K30: 1.30E+02 | L30: 5.02E+01 | M30: 2.00E+01 | N30: 6.71E+00
F31: Bystander | G31: 8.58E+01 | H31: 5.85E+01 | I31: 2.56E+01 | J31: 8.80E+00 | K31: 1.27E+01 | L31: 8.63E+00 | M31: 3.77E+00 | N31: 1.30E+00
B32: Case 4 | C32: Medium | D32: Medium | E32: Low | F32: User | G32: 1.23E+02 | H32: 4.77E+01 | I32: 1.90E+01 | J32: 6.37E+00 | K32: 1.82E+01 | L32: 7.03E+00 | M32: 2.80E+00 | N32: 9.39E-01
F33: Bystander | G33: 1.20E+01 | H33: 8.20E+00 | I33: 3.58E+00 | J33: 1.23E+00 | K33: 1.77E+00 | L33: 1.21E+00 | M33: 5.28E-01 | N33: 1.82E-01
B34: Case 5 | C34: Medium | D34: Medium | E34: Medium | F34: User | G34: 7.16E+02 | H34: 2.77E+02 | I34: 1.10E+02 | J34: 3.70E+01 | K34: 1.06E+02 | L34: 4.08E+01 | M34: 1.62E+01 | N34: 5.45E+00
F35: Bystander | G35: 6.97E+01 | H35: 4.76E+01 | I35: 2.08E+01 | J35: 7.15E+00 | K35: 1.03E+01 | L35: 7.01E+00 | M35: 3.06E+00 | N35: 1.05E+00
B36: Case 6 | C36: Medium | D36: Medium | E36: High | F36: User | G36: 7.05E+03 | H36: 2.72E+03 | I36: 1.09E+03 | J36: 3.64E+02 | K36: 1.04E+03 | L36: 4.02E+02 | M36: 1.60E+02 | N36: 5.36E+01
F37: Bystander | G37: 6.86E+02 | H37: 4.68E+02 | I37: 2.05E+02 | J37: 7.04E+01 | K37: 1.01E+02 | L37: 6.90E+01 | M37: 3.02E+01 | N37: 1.04E+01
B38: Case 7 | C38: Medium | D38: High | E38: Low | F38: User | G38: 3.09E+02 | H38: 1.19E+02 | I38: 4.75E+01 | J38: 1.59E+01 | K38: 4.55E+01 | L38: 1.76E+01 | M38: 7.00E+00 | N38: 2.35E+00
F39: Bystander | G39: 3.00E+01 | H39: 2.05E+01 | I39: 8.96E+00 | J39: 3.08E+00 | K39: 4.43E+00 | L39: 3.02E+00 | M39: 1.32E+00 | N39: 4.54E-01
B40: Case 8 | C40: Medium | D40: High | E40: Medium | F40: User | G40: 1.79E+03 | H40: 6.92E+02 | I40: 2.76E+02 | J40: 9.24E+01 | K40: 2.64E+02 | L40: 1.02E+02 | M40: 4.06E+01 | N40: 1.36E+01
F41: Bystander | G41: 1.74E+02 | H41: 1.19E+02 | I41: 5.20E+01 | J41: 1.79E+01 | K41: 2.57E+01 | L41: 1.75E+01 | M41: 7.66E+00 | N41: 2.63E+00
B42: Case 9 | C42: Medium | D42: High | E42: High | F42: User | G42: 1.76E+04 | H42: 6.81E+03 | I42: 2.71E+03 | J42: 9.10E+02 | K42: 2.60E+03 | L42: 1.00E+03 | M42: 4.00E+02 | N42: 1.34E+02
F43: Bystander | G43: 1.72E+03 | H43: 1.17E+03 | I43: 5.12E+02 | J43: 1.76E+02 | K43: 2.53E+02 | L43: 1.73E+02 | M43: 7.54E+01 | N43: 2.59E+01
B44: Case 1 | C44: Low | D44: Low | E44: Low | F44: User | G44: 1.43E+01 | H44: 5.53E+00 | I44: 2.21E+00 | J44: 7.40E-01 | K44: 2.10E+00 | L44: 8.15E-01 | M44: 3.25E-01 | N44: 1.09E-01
F45: Bystander | G45: 1.43E+00 | H45: 9.76E-01 | I45: 4.26E-01 | J45: 1.47E-01 | K45: 2.11E-01 | L45: 1.44E-01 | M45: 6.29E-02 | N45: 2.16E-02
B46: Case 2 | C46: Low | D46: Low | E46: Medium | F46: User | G46: 8.27E+01 | H46: 3.21E+01 | I46: 1.28E+01 | J46: 4.29E+00 | K46: 1.22E+01 | L46: 4.73E+00 | M46: 1.89E+00 | N46: 6.33E-01
F47: Bystander | G47: 8.31E+00 | H47: 5.66E+00 | I47: 2.47E+00 | J47: 8.51E-01 | K47: 1.22E+00 | L47: 8.35E-01 | M47: 3.65E-01 | N47: 1.25E-01
B48: Case 3 | C48: Low | D48: Low | E48: High | F48: User | G48: 8.14E+02 | H48: 3.16E+02 | I48: 1.26E+02 | J48: 4.23E+01 | K48: 1.20E+02 | L48: 4.66E+01 | M48: 1.86E+01 | N48: 6.23E+00
F49: Bystander | G49: 8.18E+01 | H49: 5.57E+01 | I49: 2.44E+01 | J49: 8.38E+00 | K49: 1.21E+01 | L49: 8.22E+00 | M49: 3.59E+00 | N49: 1.24E+00
B50: Case 4 | C50: Low | D50: Medium | E50: Low | F50: Bystander | G50: 1.14E+02 | H50: 4.42E+01 | I50: 1.77E+01 | J50: 5.92E+00 | K50: 1.68E+01 | L50: 6.52E+00 | M50: 2.60E+00 | N50: 8.73E-01
F51: User | G51: 1.14E+01 | H51: 7.81E+00 | I51: 3.41E+00 | J51: 1.17E+00 | K51: 1.69E+00 | L51: 1.15E+00 | M51: 5.03E-01 | N51: 1.73E-01
B52: Case 5 | C52: Low | D52: Medium | E52: Medium | F52: Bystander | G52: 6.62E+02 | H52: 2.57E+02 | I52: 1.02E+02 | J52: 3.44E+01 | K52: 9.76E+01 | L52: 3.79E+01 | M52: 1.51E+01 | N52: 5.06E+00
F53: User | G53: 6.64E+01 | H53: 4.53E+01 | I53: 1.98E+01 | J53: 6.81E+00 | K53: 9.80E+00 | L53: 6.68E+00 | M53: 2.92E+00 | N53: 1.00E+00
B54: Case 6 | C54: Low | D54: Medium | E54: High | F54: Bystander | G54: 6.52E+03 | H54: 2.53E+03 | I54: 1.01E+03 | J54: 3.38E+02 | K54: 9.61E+02 | L54: 3.73E+02 | M54: 1.49E+02 | N54: 4.99E+01
F55: User | G55: 6.54E+02 | H55: 4.46E+02 | I55: 1.95E+02 | J55: 6.70E+01 | K55: 9.64E+01 | L55: 6.58E+01 | M55: 2.87E+01 | N55: 9.88E+00
B56: Case 7 | C56: Low | D56: High | E56: Low | F56: User | G56: 2.85E+02 | H56: 1.11E+02 | I56: 4.41E+01 | J56: 1.48E+01 | K56: 4.20E+01 | L56: 1.63E+01 | M56: 6.51E+00 | N56: 2.18E+00
F57: Bystander | G57: 2.86E+01 | H57: 1.95E+01 | I57: 8.53E+00 | J57: 2.93E+00 | K57: 4.22E+00 | L57: 2.88E+00 | M57: 1.26E+00 | N57: 4.32E-01
B58: Case 8 | C58: Low | D58: High | E58: Medium | F58: User | G58: 1.65E+03 | H58: 6.42E+02 | I58: 2.56E+02 | J58: 8.59E+01 | K58: 2.44E+02 | L58: 9.46E+01 | M58: 3.78E+01 | N58: 1.27E+01
F59: Bystander | G59: 1.66E+02 | H59: 1.13E+02 | I59: 4.95E+01 | J59: 1.70E+01 | K59: 2.45E+01 | L59: 1.67E+01 | M59: 7.30E+00 | N59: 2.51E+00
B60: Case 9 | C60: Low | D60: High | E60: High | F60: User | G60: 1.63E+04 | H60: 6.32E+03 | I60: 2.52E+03 | J60: 8.46E+02 | K60: 2.40E+03 | L60: 9.32E+02 | M60: 3.72E+02 | N60: 1.25E+02
F61: Bystander | G61: 1.64E+03 | H61: 1.11E+03 | I61: 4.87E+02 | J61: 1.68E+02 | K61: 2.41E+02 | L61: 1.64E+02 | M61: 7.18E+01 | N61: 2.47E+01

Sheet Mold Cleaner Derm AF
A1: Scenario:
A2: Mold Cleaner and Weld Spatter Protectant
A3: Data Type:
A4: Estimated Dermal Doses Outputs - Absorption Fraction Method
A6: Scenario | B6: Case # | C6: Case Descriptors (Parameters Varied) | F6: Receptor | G6: Acute Dose Rate (mg/kg/day)
C7: Duration | D7: Weight Fraction | E7: Mass Used
A8: Mold Cleaner and Weld Spatter Protectant | B8: Case 1 | C8: High | D8: Low | E8: Low | F8: Adult (≥21 years) | G8: 3.30E-01
F9: Youth (16-20 years) | G9: 3.09E-01
F10: Youth (11-15 years) | G10: 3.38E-01
B11: Case 2 | C11: High | D11: Low | E11: Medium | F11: Adult (≥21 years) | G11: 3.30E-01
F12: Youth (16-20 years) | G12: 3.09E-01
F13: Youth (11-15 years) | G13: 3.38E-01
B14: Case 3 | C14: High | D14: Low | E14: High | F14: Adult (≥21 years) | G14: 3.30E-01
F15: Youth (16-20 years) | G15: 3.09E-01
F16: Youth (11-15 years) | G16: 3.38E-01
B17: Case 4 | C17: High | D17: Medium | E17: Low | F17: Adult (≥21 years) | G17: 2.64E+00
F18: Youth (16-20 years) | G18: 2.47E+00
F19: Youth (11-15 years) | G19: 2.70E+00
B20: Case 5 | C20: High | D20: Medium | E20: Medium | F20: Adult (≥21 years) | G20: 2.64E+00
F21: Youth (16-20 years) | G21: 2.47E+00
F22: Youth (11-15 years) | G22: 2.70E+00
B23: Case 6 | C23: High | D23: Medium | E23: High | F23: Adult (≥21 years) | G23: 2.64E+00
F24: Youth (16-20 years) | G24: 2.47E+00
F25: Youth (11-15 years) | G25: 2.70E+00
B26: Case 7 | C26: High | D26: High | E26: Low | F26: Adult (≥21 years) | G26: 6.60E+00
F27: Youth (16-20 years) | G27: 6.18E+00
F28: Youth (11-15 years) | G28: 6.76E+00
B29: Case 8 | C29: High | D29: High | E29: Medium | F29: Adult (≥21 years) | G29: 6.60E+00
F30: Youth (16-20 years) | G30: 6.18E+00
F31: Youth (11-15 years) | G31: 6.76E+00
B32: Case 9 | C32: High | D32: High | E32: High | F32: Adult (≥21 years) | G32: 6.60E+00
F33: Youth (16-20 years) | G33: 6.18E+00
F34: Youth (11-15 years) | G34: 6.76E+00
B35: Case 1 | C35: Medium | D35: Low | E35: Low | F35: Adult (≥21 years) | G35: 1.40E-01
F36: Youth (16-20 years) | G36: 1.31E-01
F37: Youth (11-15 years) | G37: 1.43E-01
B38: Case 2 | C38: Medium | D38: Low | E38: Medium | F38: Adult (≥21 years) | G38: 1.40E-01
F39: Youth (16-20 years) | G39: 1.31E-01
F40: Youth (11-15 years) | G40: 1.43E-01
B41: Case 3 | C41: Medium | D41: Low | E41: High | F41: Adult (≥21 years) | G41: 1.40E-01
F42: Youth (16-20 years) | G42: 1.31E-01
F43: Youth (11-15 years) | G43: 1.43E-01
B44: Case 4 | C44: Medium | D44: Medium | E44: Low | F44: Adult (≥21 years) | G44: 1.12E+00
F45: Youth (16-20 years) | G45: 1.05E+00
F46: Youth (11-15 years) | G46: 1.15E+00
B47: Case 5 | C47: Medium | D47: Medium | E47: Medium | F47: Adult (≥21 years) | G47: 1.12E+00
F48: Youth (16-20 years) | G48: 1.05E+00
F49: Youth (11-15 years) | G49: 1.15E+00
B50: Case 6 | C50: Medium | D50: Medium | E50: High | F50: Adult (≥21 years) | G50: 1.12E+00
F51: Youth (16-20 years) | G51: 1.05E+00
F52: Youth (11-15 years) | G52: 1.15E+00
B53: Case 7 | C53: Medium | D53: High | E53: Low | F53: Adult (≥21 years) | G53: 2.80E+00
F54: Youth (16-20 years) | G54: 2.62E+00
F55: Youth (11-15 years) | G55: 2.87E+00
B56: Case 8 | C56: Medium | D56: High | E56: Medium | F56: Adult (≥21 years) | G56: 2.80E+00
F57: Youth (16-20 years) | G57: 2.62E+00
F58: Youth (11-15 years) | G58: 2.87E+00
B59: Case 9 | C59: Medium | D59: High | E59: High | F59: Adult (≥21 years) | G59: 2.80E+00
F60: Youth (16-20 years) | G60: 2.62E+00
F61: Youth (11-15 years) | G61: 2.87E+00
B62: Case 1 | C62: Low | D62: Low | E62: Low | F62: Adult (≥21 years) | G62: 2.34E-02
F63: Youth (16-20 years) | G63: 2.19E-02
F64: Youth (11-15 years) | G64: 2.39E-02
B65: Case 2 | C65: Low | D65: Low | E65: Medium | F65: Adult (≥21 years) | G65: 2.34E-02
F66: Youth (16-20 years) | G66: 2.19E-02
F67: Youth (11-15 years) | G67: 2.39E-02
B68: Case 3 | C68: Low | D68: Low | E68: High | F68: Adult (≥21 years) | G68: 2.34E-02
F69: Youth (16-20 years) | G69: 2.19E-02
F70: Youth (11-15 years) | G70: 2.39E-02
B71: Case 4 | C71: Low | D71: Medium | E71: Low | F71: Adult (≥21 years) | G71: 1.87E-01
F72: Youth (16-20 years) | G72: 1.75E-01
F73: Youth (11-15 years) | G73: 1.91E-01
B74: Case 5 | C74: Low | D74: Medium | E74: Medium | F74: Adult (≥21 years) | G74: 1.87E-01
F75: Youth (16-20 years) | G75: 1.75E-01
F76: Youth (11-15 years) | G76: 1.91E-01
B77: Case 6 | C77: Low | D77: Medium | E77: High | F77: Adult (≥21 years) | G77: 1.87E-01
F78: Youth (16-20 years) | G78: 1.75E-01
F79: Youth (11-15 years) | G79: 1.91E-01
B80: Case 7 | C80: Low | D80: High | E80: Low | F80: Adult (≥21 years) | G80: 4.67E-01
F81: Youth (16-20 years) | G81: 4.37E-01
F82: Youth (11-15 years) | G82: 4.78E-01
B83: Case 8 | C83: Low | D83: High | E83: Medium | F83: Adult (≥21 years) | G83: 4.67E-01
F84: Youth (16-20 years) | G84: 4.37E-01
F85: Youth (11-15 years) | G85: 4.78E-01
B86: Case 9 | C86: Low | D86: High | E86: High | F86: Adult (≥21 years) | G86: 4.67E-01
F87: Youth (16-20 years) | G87: 4.37E-01
F88: Youth (11-15 years) | G88: 4.78E-01

Sheet Mold Cleaner Derm P
A1: Scenario:
A2: Mold Cleaner and Weld Spatter Protectant
A3: Data Type:
A4: Estimated Dermal Doses Outputs - Permeability Method
A6: Scenario | B6: Case # | C6: Case Descriptors (Parameters Varied) | F6: Receptor | G6: Acute Dose Rate (mg/kg/day)
C7: Duration | D7: Weight Fraction | E7: Mass Used
A8: Mold Cleaner and Weld Spatter Protectant | B8: Case 1 | C8: High | D8: Low | E8: Low | F8: Adult (≥21 years) | G8: 8.49E-02
F9: Youth (16-20 years) | G9: 7.94E-02
F10: Youth (11-15 years) | G10: 8.69E-02
B11: Case 2 | C11: High | D11: Low | E11: Medium | F11: Adult (≥21 years) | G11: 8.49E-02
F12: Youth (16-20 years) | G12: 7.94E-02
F13: Youth (11-15 years) | G13: 8.69E-02
B14: Case 3 | C14: High | D14: Low | E14: High | F14: Adult (≥21 years) | G14: 8.49E-02
F15: Youth (16-20 years) | G15: 7.94E-02
F16: Youth (11-15 years) | G16: 8.69E-02
B17: Case 4 | C17: High | D17: Medium | E17: Low | F17: Adult (≥21 years) | G17: 6.79E-01
F18: Youth (16-20 years) | G18: 6.35E-01
F19: Youth (11-15 years) | G19: 6.95E-01
B20: Case 5 | C20: High | D20: Medium | E20: Medium | F20: Adult (≥21 years) | G20: 6.79E-01
F21: Youth (16-20 years) | G21: 6.35E-01
F22: Youth (11-15 years) | G22: 6.95E-01
B23: Case 6 | C23: High | D23: Medium | E23: High | F23: Adult (≥21 years) | G23: 6.79E-01
F24: Youth (16-20 years) | G24: 6.35E-01
F25: Youth (11-15 years) | G25: 6.95E-01
B26: Case 7 | C26: High | D26: High | E26: Low | F26: Adult (≥21 years) | G26: 1.70E+00
F27: Youth (16-20 years) | G27: 1.59E+00
F28: Youth (11-15 years) | G28: 1.74E+00
B29: Case 8 | C29: High | D29: High | E29: Medium | F29: Adult (≥21 years) | G29: 1.70E+00
F30: Youth (16-20 years) | G30: 1.59E+00
F31: Youth (11-15 years) | G31: 1.74E+00
B32: Case 9 | C32: High | D32: High | E32: High | F32: Adult (≥21 years) | G32: 1.70E+00
F33: Youth (16-20 years) | G33: 1.59E+00
F34: Youth (11-15 years) | G34: 1.74E+00
B35: Case 1 | C35: Medium | D35: Low | E35: Low | F35: Adult (≥21 years) | G35: 1.06E-02
F36: Youth (16-20 years) | G36: 9.93E-03
F37: Youth (11-15 years) | G37: 1.09E-02
B38: Case 2 | C38: Medium | D38: Low | E38: Medium | F38: Adult (≥21 years) | G38: 1.06E-02
F39: Youth (16-20 years) | G39: 9.93E-03
F40: Youth (11-15 years) | G40: 1.09E-02
B41: Case 3 | C41: Medium | D41: Low | E41: High | F41: Adult (≥21 years) | G41: 1.06E-02
F42: Youth (16-20 years) | G42: 9.93E-03
F43: Youth (11-15 years) | G43: 1.09E-02
B44: Case 4 | C44: Medium | D44: Medium | E44: Low | F44: Adult (≥21 years) | G44: 8.49E-02
F45: Youth (16-20 years) | G45: 7.94E-02
F46: Youth (11-15 years) | G46: 8.69E-02
B47: Case 5 | C47: Medium | D47: Medium | E47: Medium | F47: Adult (≥21 years) | G47: 8.49E-02
F48: Youth (16-20 years) | G48: 7.94E-02
F49: Youth (11-15 years) | G49: 8.69E-02
B50: Case 6 | C50: Medium | D50: Medium | E50: High | F50: Adult (≥21 years) | G50: 8.49E-02
F51: Youth (16-20 years) | G51: 7.94E-02
F52: Youth (11-15 years) | G52: 8.69E-02
B53: Case 7 | C53: Medium | D53: High | E53: Low | F53: Adult (≥21 years) | G53: 2.12E-01
F54: Youth (16-20 years) | G54: 1.99E-01
F55: Youth (11-15 years) | G55: 2.17E-01
B56: Case 8 | C56: Medium | D56: High | E56: Medium | F56: Adult (≥21 years) | G56: 2.12E-01
F57: Youth (16-20 years) | G57: 1.99E-01
F58: Youth (11-15 years) | G58: 2.17E-01
B59: Case 9 | C59: Medium | D59: High | E59: High | F59: Adult (≥21 years) | G59: 2.12E-01
F60: Youth (16-20 years) | G60: 1.99E-01
F61: Youth (11-15 years) | G61: 2.17E-01
B62: Case 1 | C62: Low | D62: Low | E62: Low | F62: Adult (≥21 years) | G62: 1.41E-03
F63: Youth (16-20 years) | G63: 1.32E-03
F64: Youth (11-15 years) | G64: 1.45E-03
B65: Case 2 | C65: Low | D65: Low | E65: Medium | F65: Adult (≥21 years) | G65: 1.41E-03
F66: Youth (16-20 years) | G66: 1.32E-03
F67: Youth (11-15 years) | G67: 1.45E-03
B68: Case 3 | C68: Low | D68: Low | E68: High | F68: Adult (≥21 years) | G68: 1.41E-03
F69: Youth (16-20 years) | G69: 1.32E-03
F70: Youth (11-15 years) | G70: 1.45E-03
B71: Case 4 | C71: Low | D71: Medium | E71: Low | F71: Adult (≥21 years) | G71: 1.13E-02
F72: Youth (16-20 years) | G72: 1.06E-02
F73: Youth (11-15 years) | G73: 1.16E-02
B74: Case 5 | C74: Low | D74: Medium | E74: Medium | F74: Adult (≥21 years) | G74: 1.13E-02
F75: Youth (16-20 years) | G75: 1.06E-02
F76: Youth (11-15 years) | G76: 1.16E-02
B77: Case 6 | C77: Low | D77: Medium | E77: High | F77: Adult (≥21 years) | G77: 1.13E-02
F78: Youth (16-20 years) | G78: 1.06E-02
F79: Youth (11-15 years) | G79: 1.16E-02
B80: Case 7 | C80: Low | D80: High | E80: Low | F80: Adult (≥21 years) | G80: 2.83E-02
F81: Youth (16-20 years) | G81: 2.65E-02
F82: Youth (11-15 years) | G82: 2.90E-02
B83: Case 8 | C83: Low | D83: High | E83: Medium | F83: Adult (≥21 years) | G83: 2.83E-02
F84: Youth (16-20 years) | G84: 2.65E-02
F85: Youth (11-15 years) | G85: 2.90E-02
B86: Case 9 | C86: Low | D86: High | E86: High | F86: Adult (≥21 years) | G86: 2.83E-02
F87: Youth (16-20 years) | G87: 2.65E-02
F88: Youth (11-15 years) | G88: 2.90E-02

Sheet Vandalism Remover Inh
A1: Scenario:
A2: Vandalism Mark & Stain Remover
A3: Data Type:
A4: Estimated Inhalation Concentrations Outputs
A6: Scenario | B6: Case # | C6: Case Descriptors (Parameters Varied) | F6: Receptor | G6: Concentration (mg/m3) | K6: Concentration (ppm)
C7: Duration | D7: Weight Fraction | E7: Mass Used | G7: 1-hr TWA | H7: 3-hr TWA | I7: 8-hr TWA | J7: 24-hr TWA | K7: 1-hr TWA | L7: 3-hr TWA | M7: 8-hr TWA | N7: 24-hr TWA
A8: Vandalism Mark & Stain Remover | B8: Case 1 | C8: High | D8: Low | E8: Low | F8: User | G8: 1.69E+01 | H8: 1.09E+01 | I8: 4.52E+00 | J8: 1.52E+00 | K8: =(G8*24.45)/165.833 -> 2.49E+00 | L8: =(H8*24.45)/165.833 -> 1.61E+00 | M8: 6.66E-01 | N8: 2.24E-01
F9: Bystander | G9: 2.98E+00 | H9: 2.39E+00 | I9: 1.09E+00 | J9: 3.78E-01 | K9: =(G9*24.45)/165.833 -> 4.39E-01 | L9: 3.52E-01 | M9: 1.61E-01 | N9: 5.58E-02
B10: Case 2 | C10: High | D10: Low | E10: Medium | F10: User | G10: 9.82E+01 | H10: 6.33E+01 | I10: 2.62E+01 | J10: 8.82E+00 | K10: 1.45E+01 | L10: 9.34E+00 | M10: 3.87E+00 | N10: 1.30E+00
F11: Bystander | G11: 1.73E+01 | H11: 1.39E+01 | I11: 6.33E+00 | J11: 2.19E+00 | K11: 2.55E+00 | L11: 2.04E+00 | M11: 9.33E-01 | N11: 3.24E-01
B12: Case 3 | C12: High | D12: Low | E12: High | F12: User | G12: 9.66E+02 | H12: 6.24E+02 | I12: 2.58E+02 | J12: 8.69E+01 | K12: 1.42E+02 | L12: 9.20E+01 | M12: 3.81E+01 | N12: 1.28E+01
F13: Bystander | G13: 1.70E+02 | H13: 1.37E+02 | I13: 6.23E+01 | J13: 2.16E+01 | K13: 2.51E+01 | L13: 2.01E+01 | M13: 9.19E+00 | N13: 3.19E+00
B14: Case 4 | C14: High | D14: Medium | E14: Low | F14: User | G14: 3.38E+01 | H14: 2.18E+01 | I14: 9.04E+00 | J14: 3.04E+00 | K14: 4.99E+00 | L14: 3.22E+00 | M14: 1.33E+00 | N14: 4.48E-01
F15: Bystander | G15: 5.96E+00 | H15: 4.78E+00 | I15: 2.18E+00 | J15: 7.56E-01 | K15: 8.79E-01 | L15: 7.05E-01 | M15: 3.22E-01 | N15: 1.12E-01
B16: Case 5 | C16: High | D16: Medium | E16: Medium | F16: User | G16: 1.96E+02 | H16: 1.27E+02 | I16: 5.24E+01 | J16: 1.76E+01 | K16: 2.89E+01 | L16: 1.87E+01 | M16: 7.73E+00 | N16: 2.60E+00
F17: Bystander | G17: 3.46E+01 | H17: 2.77E+01 | I17: 1.27E+01 | J17: 4.39E+00 | K17: 5.10E+00 | L17: 4.09E+00 | M17: 1.87E+00 | N17: 6.47E-01
B18: Case 6 | C18: High | D18: Medium | E18: High | F18: User | G18: 1.93E+03 | H18: 1.25E+03 | I18: 5.16E+02 | J18: 1.74E+02 | K18: 2.85E+02 | L18: 1.84E+02 | M18: 7.61E+01 | N18: 2.56E+01
F19: Bystander | G19: 3.41E+02 | H19: 2.73E+02 | I19: 1.25E+02 | J19: 4.32E+01 | K19: 5.02E+01 | L19: 4.03E+01 | M19: 1.84E+01 | N19: 6.37E+00
B20: Case 1 | C20: Medium | D20: Low | E20: Low | F20: User | G20: 3.09E+01 | H20: 1.19E+01 | I20: 4.75E+00 | J20: 1.59E+00 | K20: 4.55E+00 | L20: 1.76E+00 | M20: 7.00E-01 | N20: 2.35E-01
F21: Bystander | G21: 3.00E+00 | H21: 2.05E+00 | I21: 8.96E-01 | J21: 3.08E-01 | K21: 4.43E-01 | L21: 3.02E-01 | M21: 1.32E-01 | N21: 4.54E-02
B22: Case 2 | C22: Medium | D22: Low | E22: Medium | F22: User | G22: 1.79E+02 | H22: 6.92E+01 | I22: 2.76E+01 | J22: 9.24E+00 | K22: 2.64E+01 | L22: 1.02E+01 | M22: 4.06E+00 | N22: 1.36E+00
F23: Bystander | G23: 1.74E+01 | H23: 1.19E+01 | I23: 5.20E+00 | J23: 1.79E+00 | K23: 2.57E+00 | L23: 1.75E+00 | M23: 7.66E-01 | N23: 2.63E-01
B24: Case 3 | C24: Medium | D24: Low | E24: High | F24: User | G24: 1.76E+03 | H24: 6.81E+02 | I24: 2.71E+02 | J24: 9.10E+01 | K24: 2.60E+02 | L24: 1.00E+02 | M24: 4.00E+01 | N24: 1.34E+01
F25: Bystander | G25: 1.72E+02 | H25: 1.17E+02 | I25: 5.12E+01 | J25: 1.76E+01 | K25: 2.53E+01 | L25: 1.73E+01 | M25: 7.54E+00 | N25: 2.59E+00
B26: Case 4 | C26: Medium | D26: Medium | E26: Low | F26: User | G26: 6.17E+01 | H26: 2.38E+01 | I26: 9.50E+00 | J26: 3.18E+00 | K26: 9.10E+00 | L26: 3.51E+00 | M26: 1.40E+00 | N26: 4.69E-01
F27: Bystander | G27: 6.01E+00 | H27: 4.10E+00 | I27: 1.79E+00 | J27: 6.16E-01 | K27: 8.86E-01 | L27: 6.04E-01 | M27: 2.64E-01 | N27: 9.08E-02
B28: Case 5 | C28: Medium | D28: Medium | E28: Medium | F28: User | G28: 3.58E+02 | H28: 1.38E+02 | I28: 5.51E+01 | J28: 1.85E+01 | K28: 5.28E+01 | L28: 2.04E+01 | M28: 8.12E+00 | N28: 2.72E+00
F29: Bystander | G29: 3.49E+01 | H29: 2.38E+01 | I29: 1.04E+01 | J29: 3.57E+00 | K29: 5.14E+00 | L29: 3.51E+00 | M29: 1.53E+00 | N29: 5.27E-01
B30: Case 6 | C30: Medium | D30: Medium | E30: High | F30: User | G30: 3.53E+03 | H30: 1.36E+03 | I30: 5.43E+02 | J30: 1.82E+02 | K30: 5.20E+02 | L30: 2.01E+02 | M30: 8.00E+01 | N30: 2.68E+01
F31: Bystander | G31: 3.43E+02 | H31: 2.34E+02 | I31: 1.02E+02 | J31: 3.52E+01 | K31: 5.06E+01 | L31: 3.45E+01 | M31: 1.51E+01 | N31: 5.19E+00
B32: Case 1 | C32: Low | D32: Low | E32: Low | F32: User | G32: 2.85E+01 | H32: 1.11E+01 | I32: 4.41E+00 | J32: 1.48E+00 | K32: 4.20E+00 | L32: 1.63E+00 | M32: 6.51E-01 | N32: 2.18E-01
F33: Bystander | G33: 2.86E+00 | H33: 1.95E+00 | I33: 8.53E-01 | J33: 2.93E-01 | K33: 4.22E-01 | L33: 2.88E-01 | M33: 1.26E-01 | N33: 4.32E-02
B34: Case 2 | C34: Low | D34: Low | E34: Medium | F34: User | G34: 1.65E+02 | H34: 6.42E+01 | I34: 2.56E+01 | J34: 8.59E+00 | K34: 2.44E+01 | L34: 9.46E+00 | M34: 3.78E+00 | N34: 1.27E+00
F35: Bystander | G35: 1.66E+01 | H35: 1.13E+01 | I35: 4.95E+00 | J35: 1.70E+00 | K35: 2.45E+00 | L35: 1.67E+00 | M35: 7.30E-01 | N35: 2.51E-01
B36: Case 3 | C36: Low | D36: Low | E36: High | F36: User | G36: 1.63E+03 | H36: 6.32E+02 | I36: 2.52E+02 | J36: 8.46E+01 | K36: 2.40E+02 | L36: 9.32E+01 | M36: 3.72E+01 | N36: 1.25E+01
F37: Bystander | G37: 1.64E+02 | H37: 1.11E+02 | I37: 4.87E+01 | J37: 1.68E+01 | K37: 2.41E+01 | L37: 1.64E+01 | M37: 7.18E+00 | N37: 2.47E+00
B38: Case 4 | C38: Low | D38: Medium | E38: Low | F38: Bystander | G38: 5.70E+01 | H38: 2.21E+01 | I38: 8.83E+00 | J38: 2.96E+00 | K38: 8.41E+00 | L38: 3.26E+00 | M38: 1.30E+00 | N38: 4.36E-01
F39: User | G39: 5.72E+00 | H39: 3.90E+00 | I39: 1.71E+00 | J39: 5.87E-01 | K39: 8.44E-01 | L39: 5.75E-01 | M39: 2.51E-01 | N39: 8.65E-02
B40: Case 5 | C40: Low | D40: Medium | E40: Medium | F40: Bystander | G40: 3.31E+02 | H40: 1.28E+02 | I40: 5.12E+01 | J40: 1.72E+01 | K40: 4.88E+01 | L40: 1.89E+01 | M40: 7.55E+00 | N40: 2.53E+00
F41: User | G41: 3.32E+01 | H41: 2.26E+01 | I41: 9.90E+00 | J41: 3.40E+00 | K41: 4.90E+00 | L41: 3.34E+00 | M41: 1.46E+00 | N41: 5.02E-01
B42: Case 6 | C42: Low | D42: Medium | E42: High | F42: Bystander | G42: 3.26E+03 | H42: 1.26E+03 | I42: 5.04E+02 | J42: 1.69E+02 | K42: 4.80E+02 | L42: 1.86E+02 | M42: 7.43E+01 | N42: 2.49E+01
F43: User | G43: 3.27E+02 | H43: 2.23E+02 | I43: 9.75E+01 | J43: 3.35E+01 | K43: 4.82E+01 | L43: 3.29E+01 | M43: 1.44E+01 | N43: 4.94E+00

Sheet Vandalism Remover Derm AF
A1: Scenario:
A2: Vandalism Mark & Stain Remover
A3: Data Type:
A4: Estimated Dermal Doses Outputs - Absorption Fraction Method
A6: Scenario | B6: Case # | C6: Case Descriptors (Parameters Varied) | F6: Receptor | G6: Acute Dose Rate (mg/kg/day)
C7: Duration | D7: Weight Fraction | E7: Mass Used
A8: Vandalism Mark & Stain Remover | B8: Case 1 | C8: High | D8: Low | E8: Low | F8: Adult (≥21 years) | G8: 1.23E+00
F9: Youth (16-20 years) | G9: 1.15E+00
F10: Youth (11-15 years) | G10: 1.26E+00
B11: Case 2 | C11: High | D11: Low | E11: Medium | F11: Adult (≥21 years) | G11: 1.23E+00
F12: Youth (16-20 years) | G12: 1.15E+00
F13: Youth (11-15 years) | G13: 1.26E+00
B14: Case 3 | C14: High | D14: Low | E14: High | F14: Adult (≥21 years) | G14: 1.23E+00
F15: Youth (16-20 years) | G15: 1.15E+00
F16: Youth (11-15 years) | G16: 1.26E+00
B17: Case 4 | C17: High | D17: Medium | E17: Low | F17: Adult (≥21 years) | G17: 2.46E+00
F18: Youth (16-20 years) | G18: 2.31E+00
F19: Youth (11-15 years) | G19: 2.52E+00
B20: Case 5 | C20: High | D20: Medium | E20: Medium | F20: Adult (≥21 years) | G20: 2.46E+00
F21: Youth (16-20 years) | G21: 2.31E+00
F22: Youth (11-15 years) | G22: 2.52E+00
B23: Case 6 | C23: High | D23: Medium | E23: High | F23: Adult (≥21 years) | G23: 2.46E+00
F24: Youth (16-20 years) | G24: 2.31E+00
F25: Youth (11-15 years) | G25: 2.52E+00
B26: Case 1 | C26: Medium | D26: Low | E26: Low | F26: Adult (≥21 years) | G26: 5.23E-01
F27: Youth (16-20 years) | G27: 4.89E-01
F28: Youth (11-15 years) | G28: 5.35E-01
B29: Case 2 | C29: Medium | D29: Low | E29: Medium | F29: Adult (≥21 years) | G29: 5.23E-01
F30: Youth (16-20 years) | G30: 4.89E-01
F31: Youth (11-15 years) | G31: 5.35E-01
B32: Case 3 | C32: Medium | D32: Low | E32: High | F32: Adult (≥21 years) | G32: 5.23E-01
F33: Youth (16-20 years) | G33: 4.89E-01
F34: Youth (11-15 years) | G34: 5.35E-01
B35: Case 4 | C35: Medium | D35: Medium | E35: Low | F35: Adult (≥21 years) | G35: 1.05E+00
F36: Youth (16-20 years) | G36: 9.78E-01
F37: Youth (11-15 years) | G37: 1.07E+00
B38: Case 5 | C38: Medium | D38: Medium | E38: Medium | F38: Adult (≥21 years) | G38: 1.05E+00
F39: Youth (16-20 years) | G39: 9.78E-01
F40: Youth (11-15 years) | G40: 1.07E+00
B41: Case 6 | C41: Medium | D41: Medium | E41: High | F41: Adult (≥21 years) | G41: 1.05E+00
F42: Youth (16-20 years) | G42: 9.78E-01
F43: Youth (11-15 years) | G43: 1.07E+00
B44: Case 1 | C44: Low | D44: Low | E44: Low | F44: Adult (≥21 years) | G44: 8.71E-02
F45: Youth (16-20 years) | G45: 8.15E-02
F46: Youth (11-15 years) | G46: 8.92E-02
B47: Case 2 | C47: Low | D47: Low | E47: Medium | F47: Adult (≥21 years) | G47: 8.71E-02
F48: Youth (16-20 years) | G48: 8.15E-02
F49: Youth (11-15 years) | G49: 8.92E-02
B50: Case 3 | C50: Low | D50: Low | E50: High | F50: Adult (≥21 years) | G50: 8.71E-02
F51: Youth (16-20 years) | G51: 8.15E-02
F52: Youth (11-15 years) | G52: 8.92E-02
B53: Case 4 | C53: Low | D53: Medium | E53: Low | F53: Adult (≥21 years) | G53: 1.74E-01
F54: Youth (16-20 years) | G54: 1.63E-01
F55: Youth (11-15 years) | G55: 1.78E-01
B56: Case 5 | C56: Low | D56: Medium | E56: Medium | F56: Adult (≥21 years) | G56: 1.74E-01
F57: Youth (16-20 years) | G57: 1.63E-01
F58: Youth (11-15 years) | G58: 1.78E-01
B59: Case 6 | C59: Low | D59: Medium | E59: High | F59: Adult (≥21 years) | G59: 1.74E-01
F60: Youth (16-20 years) | G60: 1.63E-01
F61: Youth (11-15 years) | G61: 1.78E-01

Sheet Vandalism Remover Derm P
A1: Scenario:
A2: Vandalism Mark & Stain Remover
A3: Data Type:
A4: Estimated Dermal Doses Outputs - Permeability Method
A6: Scenario | B6: Case # | C6: Case Descriptors (Parameters Varied) | F6: Receptor | G6: Acute Dose Rate (mg/kg/day)
C7: Duration | D7: Weight Fraction | E7: Mass Used
A8: Vandalism Mark & Stain Remover | B8: Case 1 | C8: High | D8: Low | E8: Low | F8: Adult (≥21 years) | G8: 3.17E-01
F9: Youth (16-20 years) | G9: 2.96E-01
F10: Youth (11-15 years) | G10: 3.24E-01
B11: Case 2 | C11: High | D11: Low | E11: Medium | F11: Adult (≥21 years) | G11: 3.17E-01
F12: Youth (16-20 years) | G12: 2.96E-01
F13: Youth (11-15 years) | G13: 3.24E-01
B14: Case 3 | C14: High | D14: Low | E14: High | F14: Adult (≥21 years) | G14: 3.17E-01
F15: Youth (16-20 years) | G15: 2.96E-01
F16: Youth (11-15 years) | G16: 3.24E-01
B17: Case 4 | C17: High | D17: Medium | E17: Low | F17: Adult (≥21 years) | G17: 6.33E-01
F18: Youth (16-20 years) | G18: 5.93E-01
F19: Youth (11-15 years) | G19: 6.48E-01
B20: Case 5 | C20: High | D20: Medium | E20: Medium | F20: Adult (≥21 years) | G20: 6.33E-01
F21: Youth (16-20 years) | G21: 5.93E-01
F22: Youth (11-15 years) | G22: 6.48E-01
B23: Case 6 | C23: High | D23: Medium | E23: High | F23: Adult (≥21 years) | G23: 6.33E-01
F24: Youth (16-20 years) | G24: 5.93E-01
F25: Youth (11-15 years) | G25: 6.48E-01
B26: Case 1 | C26: Medium | D26: Low | E26: Low | F26: Adult (≥21 years) | G26: 3.96E-02
F27: Youth (16-20 years) | G27: 3.70E-02
F28: Youth (11-15 years) | G28: 4.05E-02
B29: Case 2 | C29: Medium | D29: Low | E29: Medium | F29: Adult (≥21 years) | G29: 3.96E-02
F30: Youth (16-20 years) | G30: 3.70E-02
F31: Youth (11-15 years) | G31: 4.05E-02
B32: Case 3 | C32: Medium | D32: Low | E32: High | F32: Adult (≥21 years) | G32: 3.96E-02
F33: Youth (16-20 years) | G33: 3.70E-02
F34: Youth (11-15 years) | G34: 4.05E-02
B35: Case 4 | C35: Medium | D35: Medium | E35: Low | F35: Adult (≥21 years) | G35: 7.92E-02
F36: Youth (16-20 years) | G36: 7.41E-02
F37: Youth (11-15 years) | G37: 8.10E-02
B38: Case 5 | C38: Medium | D38: Medium | E38: Medium | F38: Adult (≥21 years) | G38: 7.92E-02
F39: Youth (16-20 years) | G39: 7.41E-02
F40: Youth (11-15 years) | G40: 8.10E-02
B41: Case 6 | C41: Medium | D41: Medium | E41: High | F41: Adult (≥21 years) | G41: 7.92E-02
F42: Youth (16-20 years) | G42: 7.41E-02
F43: Youth (11-15 years) | G43: 8.10E-02
B44: Case 1 | C44: Low | D44: Low | E44: Low | F44: Adult (≥21 years) | G44: 5.28E-03
F45: Youth (16-20 years) | G45: 4.94E-03
F46: Youth (11-15 years) | G46: 5.40E-03
B47: Case 2 | C47: Low | D47: Low | E47: Medium | F47: Adult (≥21 years) | G47: 5.28E-03
F48: Youth (16-20 years) | G48: 4.94E-03
F49: Youth (11-15 years) | G49: 5.40E-03
B50: Case 3 | C50: Low | D50: Low | E50: High | F50: Adult (≥21 years) | G50: 5.28E-03
F51: Youth (16-20 years) | G51: 4.94E-03
F52: Youth (11-15 years) | G52: 5.40E-03
B53: Case 4 | C53: Low | D53: Medium | E53: Low | F53: Adult (≥21 years) | G53: 1.06E-02
F54: Youth (16-20 years) | G54: 9.88E-03
F55: Youth (11-15 years) | G55: 1.08E-02
B56: Case 5 | C56: Low | D56: Medium | E56: Medium | F56: Adult (≥21 years) | G56: 1.06E-02
F57: Youth (16-20 years) | G57: 9.88E-03
F58: Youth (11-15 years) | G58: 1.08E-02
B59: Case 6 | C59: Low | D59: Medium | E59: High | F59: Adult (≥21 years) | G59: 1.06E-02
F60: Youth (16-20 years) | G60: 9.88E-03
F61: Youth (11-15 years) | G61: 1.08E-02

Sheet Liquid Marble Polish Inh
A1: Scenario:
A2: Marble Polish - Stone Cleaner (Liquid)
A3: Data Type:
A4: Estimated Inhalation Concentrations Outputs
A6: Scenario | B6: Case # | C6: Case Descriptors (Parameters Varied) | F6: Receptor | G6: Concentration (mg/m3) | K6: Concentration (ppm)
C7: Duration | D7: Weight Fraction | E7: Mass Used | G7: 1-hr TWA | H7: 3-hr TWA | I7: 8-hr TWA | J7: 24-hr TWA | K7: 1-hr TWA | L7: 3-hr TWA | M7: 8-hr TWA | N7: 24-hr TWA
A8: Marble Polish - Stone Cleaner (Liquid) | B8: Case 1 | C8: High | D8: Low | E8: Low | F8: User | G8: 1.69E+01 | H8: 1.09E+01 | I8: 4.51E+00 | J8: 1.52E+00 | K8: =(G8*24.45)/165.833 -> 2.49E+00 | L8: =(H8*24.45)/165.833 -> 1.61E+00 | M8: 6.66E-01 | N8: 2.24E-01
F9: Bystander | G9: 2.98E+00 | H9: 2.39E+00 | I9: 1.09E+00 | J9: 3.78E-01 | K9: =(G9*24.45)/165.833 -> 4.39E-01 | L9: 3.52E-01 | M9: 1.61E-01 | N9: 5.58E-02
B10: Case 2 | C10: High | D10: Low | E10: Medium | F10: User | G10: 9.81E+01 | H10: 6.33E+01 | I10: 2.62E+01 | J10: 8.82E+00 | K10: 1.45E+01 | L10: 9.33E+00 | M10: 3.86E+00 | N10: 1.30E+00
F11: Bystander | G11: 1.73E+01 | H11: 1.39E+01 | I11: 6.33E+00 | J11: 2.19E+00 | K11: 2.55E+00 | L11: 2.04E+00 | M11: 9.34E-01 | N11: 3.24E-01
B12: Case 3 | C12: High | D12: Low | E12: High | F12: User | G12: 9.66E+02 | H12: 6.23E+02 | I12: 2.58E+02 | J12: 8.68E+01 | K12: 1.42E+02 | L12: 9.19E+01 | M12: 3.80E+01 | N12: 1.28E+01
F13: Bystander | G13: 1.70E+02 | H13: 1.37E+02 | I13: 6.23E+01 | J13: 2.16E+01 | K13: 2.51E+01 | L13: 2.01E+01 | M13: 9.19E+00 | N13: 3.19E+00
B14: Case 4 | C14: High | D14: Medium | E14: Low | F14: User | G14: 1.44E+02 | H14: 9.27E+01 | I14: 3.84E+01 | J14: 1.29E+01 | K14: 2.12E+01 | L14: 1.37E+01 | M14: 5.66E+00 | N14: 1.90E+00
F15: Bystander | G15: 2.53E+01 | H15: 2.03E+01 | I15: 9.28E+00 | J15: 3.21E+00 | K15: 3.74E+00 | L15: 3.00E+00 | M15: 1.37E+00 | N15: 4.74E-01
B16: Case 5 | C16: High | D16: Medium | E16: Medium | F16: User | G16: 8.34E+02 | H16: 5.38E+02 | I16: 2.23E+02 | J16: 7.49E+01 | K16: 1.23E+02 | L16: =(H16*24.45)/165.833 -> 7.93E+01 | M16: 3.28E+01 | N16: 1.10E+01
F17: Bystander | G17: 1.47E+02 | H17: 1.18E+02 | I17: 5.38E+01 | J17: 1.87E+01 | K17: 2.17E+01 | L17: 1.74E+01 | M17: 7.94E+00 | N17: 2.75E+00
B18: Case 6 | C18: High | D18: Medium | E18: High | F18: User | G18: 8.21E+03 | H18: 5.30E+03 | I18: 2.19E+03 | J18: 7.38E+02 | K18: 1.21E+03 | L18: 7.81E+02 | M18: 3.23E+02 | N18: 1.09E+02
F19: Bystander | G19: 1.45E+03 | H19: 1.16E+03 | I19: 5.30E+02 | J19: 1.84E+02 | K19: 2.13E+02 | L19: 1.71E+02 | M19: 7.81E+01 | N19: 2.71E+01
B20: Case 7 | C20: High | D20: High | E20: Low | F20: User | G20: 1.69E+02 | H20: 1.09E+02 | I20: 4.51E+01 | J20: 1.52E+01 | K20: 2.49E+01 | L20: 1.61E+01 | M20: 6.66E+00 | N20: 2.24E+00
F21: Bystander | G21: 2.98E+01 | H21: 2.39E+01 | I21: 1.09E+01 | J21: 3.78E+00 | K21: 4.39E+00 | L21: 3.52E+00 | M21: 1.61E+00 | N21: 5.58E-01
B22: Case 8 | C22: High | D22: High | E22: Medium | F22: User | G22: 9.81E+02 | H22: 6.33E+02 | I22: 2.62E+02 | J22: 8.82E+01 | K22: 1.45E+02 | L22: 9.33E+01 | M22: 3.86E+01 | N22: 1.30E+01
F23: Bystander | G23: 1.73E+02 | H23: 1.39E+02 | I23: 6.33E+01 | J23: 2.19E+01 | K23: 2.55E+01 | L23: 2.04E+01 | M23: 9.34E+00 | N23: 3.24E+00
B24: Case 9 | C24: High | D24: High | E24: High | F24: User | G24: 9.66E+03 | H24: 6.23E+03 | I24: 2.58E+03 | J24: 8.68E+02 | K24: 1.42E+03 | L24: 9.19E+02 | M24: 3.80E+02 | N24: 1.28E+02
F25: Bystander | G25: 1.70E+03 | H25: 1.37E+03 | I25: 6.23E+02 | J25: 2.16E+02 | K25: 2.51E+02 | L25: 2.01E+02 | M25: 9.19E+01 | N25: 3.19E+01
B26: Case 1 | C26: Medium | D26: Low | E26: Low | F26: User | G26: 2.13E+01 | H26: 8.88E+00 | I26: 3.67E+00 | J26: 1.23E+00 | K26: 3.13E+00 | L26: 1.31E+00 | M26: 5.40E-01 | N26: 1.82E-01
F27: Bystander | G27: 3.18E+00 | H27: 2.31E+00 | I27: 1.02E+00 | J27: 3.51E-01 | K27: 4.68E-01 | L27: 3.41E-01 | M27: 1.50E-01 | N27: 5.18E-02
B28: Case 2 | C28: Medium | D28: Low | E28: Medium | F28: User | G28: 1.23E+02 | H28: 5.15E+01 | I28: 2.13E+01 | J28: 7.16E+00 | K28: 1.82E+01 | L28: 7.60E+00 | M28: 3.14E+00 | N28: 1.05E+00
F29: Bystander | G29: 1.84E+01 | H29: 1.34E+01 | I29: 5.92E+00 | J29: 2.04E+00 | K29: 2.72E+00 | L29: 1.98E+00 | M29: 8.73E-01 | N29: 3.01E-01
B30: Case 3 | C30: Medium | D30: Low | E30: High | F30: User | G30: 1.21E+03 | H30: 5.08E+02 | I30: 2.09E+02 | J30: 7.05E+01 | K30: 1.79E+02 | L30: 7.48E+01 | M30: 3.09E+01 | N30: 1.04E+01
F31: Bystander | G31: 1.81E+02 | H31: 1.32E+02 | I31: 5.83E+01 | J31: 2.01E+01 | K31: 2.68E+01 | L31: 1.95E+01 | M31: 8.59E+00 | N31: 2.96E+00
B32: Case 4 | C32: Medium | D32: Medium | E32: Low | F32: User | G32: 1.81E+02 | H32: 7.55E+01 | I32: 3.12E+01 | J32: 1.05E+01 | K32: 2.66E+01 | L32: 1.11E+01 | M32: 4.59E+00 | N32: 1.55E+00
F33: Bystander | G33: 2.70E+01 | H33: 1.96E+01 | I33: 8.67E+00 | J33: 2.99E+00 | K33: 3.98E+00 | L33: 2.90E+00 | M33: 1.28E+00 | N33: 4.40E-01
B34: Case 5 | C34: Medium | D34: Medium | E34: Medium | F34: User | G34: 1.05E+03 | H34: 4.38E+02 | I34: 1.81E+02 | J34: 6.08E+01 | K34: 1.55E+02 | L34: 6.46E+01 | M34: 2.67E+01 | N34: 8.97E+00
F35: Bystander | G35: 1.57E+02 | H35: 1.14E+02 | I35: 5.03E+01 | J35: 1.73E+01 | K35: 2.31E+01 | L35: 1.68E+01 | M35: 7.42E+00 | N35: 2.56E+00
B36: Case 6 | C36: Medium | D36: Medium | E36: High | F36: User | G36: 1.03E+04 | H36: 4.31E+03 | I36: 1.78E+03 | J36: 5.99E+02 | K36: 1.52E+03 | L36: 6.36E+02 | M36: 2.62E+02 | N36: 8.83E+01
F37: Bystander | G37: 1.54E+03 | H37: 1.12E+03 | I37: 4.95E+02 | J37: 1.71E+02 | K37: 2.27E+02 | L37: 1.65E+02 | M37: 7.30E+01 | N37: 2.52E+01
B38: Case 7 | C38: Medium | D38: High | E38: Low | F38: User | G38: 2.13E+02 | H38: 8.88E+01 | I38: 3.67E+01 | J38: 1.23E+01 | K38: 3.13E+01 | L38: 1.31E+01 | M38: 5.40E+00 | N38: 1.82E+00
F39: Bystander | G39: 3.18E+01 | H39: 2.31E+01 | I39: 1.02E+01 | J39: 3.51E+00 | K39: 4.68E+00 | L39: 3.41E+00 | M39: 1.50E+00 | N39: 5.18E-01
B40: Case 8 | C40: Medium | D40: High | E40: Medium | F40: User | G40: 1.23E+03 | H40: 5.15E+02 | I40: 2.13E+02 | J40: 7.16E+01 | K40: 1.82E+02 | L40: 7.60E+01 | M40: 3.14E+01 | N40: 1.05E+01
F41: Bystander | G41: 1.84E+02 | H41: 1.34E+02 | I41: 5.92E+01 | J41: 2.04E+01 | K41: 2.72E+01 | L41: 1.98E+01 | M41: 8.73E+00 | N41: 3.01E+00
B42: Case 9 | C42: Medium | D42: High | E42: High | F42: User | G42: 1.21E+04 | H42: 5.08E+03 | I42: 2.09E+03 | J42: 7.05E+02 | K42: 1.79E+03 | L42: 7.48E+02 | M42: 3.09E+02 | N42: 1.04E+02
F43: Bystander | G43: 1.81E+03 | H43: 1.32E+03 | I43: 5.83E+02 | J43: 2.01E+02 | K43: 2.68E+02 | L43: 1.95E+02 | M43: 8.59E+01 | N43: 2.96E+01
B44: Case 1 | C44: Low | D44: Low | E44: Low | F44: User | G44: 2.83E+01 | H44: 1.10E+01 | I44: 4.39E+00 | J44: 1.47E+00 | K44: 4.17E+00 | L44: 1.62E+00 | M44: 6.47E-01 | N44: 2.17E-01
F45: Bystander | G45: 2.86E+00 | H45: 1.95E+00 | I45: 8.54E-01 | J45: 2.94E-01 | K45: 4.22E-01 | L45: 2.88E-01 | M45: 1.26E-01 | N45: 4.33E-02
B46: Case 2 | C46: Low | D46: Low | E46: Medium | F46: User | G46: 1.64E+02 | H46: 6.38E+01 | I46: 2.55E+01 | J46: 8.54E+00 | K46: 2.42E+01 | L46: 9.40E+00 | M46: 3.75E+00 | N46: 1.26E+00
F47: Bystander | G47: 1.66E+01 | H47: 1.13E+01 | I47: 4.95E+00 | J47: 1.70E+00 | K47: 2.45E+00 | L47: 1.67E+00 | M47: 7.30E-01 | N47: 2.51E-01
B48: Case 3 | C48: Low | D48: Low | E48: High | F48: User | G48: 1.62E+03 | H48: 6.28E+02 | I48: 2.51E+02 | J48: 8.40E+01 | K48: 2.38E+02 | L48: 9.26E+01 | M48: 3.69E+01 | N48: 1.24E+01
F49: Bystander | G49: 1.64E+02 | H49: 1.12E+02 | I49: 4.88E+01 | J49: 1.68E+01 | K49: 2.41E+01 | L49: 1.65E+01 | M49: 7.19E+00 | N49: 2.47E+00
B50: Case 4 | C50: Low | D50: Medium | E50: Low | F50: Bystander | G50: 2.40E+02 | H50: 9.34E+01 | I50: 3.73E+01 | J50: 1.25E+01 | K50: 3.55E+01 | L50: 1.38E+01 | M50: 5.50E+00 | N50: 1.84E+00
F51: User | G51: 2.43E+01 | H51: 1.66E+01 | I51: 7.25E+00 | J51: 2.49E+00 | K51: 3.59E+00 | L51: 2.45E+00 | M51: 1.07E+00 | N51: 3.68E-01
B52: Case 5 | C52: Low | D52: Medium | E52: Medium | F52: Bystander | G52: 1.40E+03 | H52: 5.42E+02 | I52: 2.16E+02 | J52: 7.26E+01 | K52: 2.06E+02 | L52: 7.99E+01 | M52: 3.19E+01 | N52: 1.07E+01
F53: User | G53: 1.41E+02 | H53: 9.63E+01 | I53: 4.21E+01 | J53: 1.45E+01 | K53: 2.08E+01 | L53: 1.42E+01 | M53: 6.21E+00 | N53: 2.13E+00
B54: Case 6 | C54: Low | D54: Medium | E54: High | F54: Bystander | G54: 1.37E+04 | H54: 5.34E+03 | I54: 2.13E+03 | J54: 7.14E+02 | K54: 2.03E+03 | L54: 7.87E+02 | M54: 3.14E+02 | N54: 1.05E+02
F55: User | G55: 1.39E+03 | H55: 9.48E+02 | I55: 4.15E+02 | J55: 1.43E+02 | K55: 2.05E+02 | L55: 1.40E+02 | M55: 6.11E+01 | N55: 2.10E+01
B56: Case 7 | C56: Low | D56: High | E56: Low | F56: User | G56: 2.83E+02 | H56: 1.10E+02 | I56: 4.39E+01 | J56: 1.47E+01 | K56: 4.17E+01 | L56: 1.62E+01 | M56: 6.47E+00 | N56: 2.17E+00
F57: Bystander | G57: 2.86E+01 | H57: 1.95E+01 | I57: 8.54E+00 | J57: 2.94E+00 | K57: 4.22E+00 | L57: 2.88E+00 | M57: 1.26E+00 | N57: 4.33E-01
B58: Case 8 | C58: Low | D58: High | E58: Medium | F58: User | G58: 1.64E+03 | H58: 6.38E+02 | I58: 2.55E+02 | J58: 8.54E+01 | K58: 2.42E+02 | L58: 9.40E+01 | M58: 3.75E+01 | N58: 1.26E+01
F59: Bystander | G59: 1.66E+02 | H59: 1.13E+02 | I59: 4.95E+01 | J59: 1.70E+01 | K59: 2.45E+01 | L59: 1.67E+01 | M59: 7.30E+00 | N59: 2.51E+00
B60: Case 9 | C60: Low | D60: High | E60: High | F60: User | G60: 1.62E+04 | H60: 6.28E+03 | I60: 2.51E+03 | J60: 8.40E+02 | K60: 2.38E+03 | L60: 9.26E+02 | M60: 3.69E+02 | N60: 1.24E+02
F61: Bystander | G61: 1.64E+03 | H61: 1.12E+03 | I61: 4.88E+02 | J61: 1.68E+02 | K61: 2.41E+02 | L61: 1.65E+02 | M61: 7.19E+01 | N61: 2.47E+01

Sheet Liquid Marble Polish Derm AF
A1: Scenario:
A2: Marble Polish - Stone Cleaner (Liquid)
A3: Data Type:
A4: Estimated Dermal Doses Outputs - Absorption Fraction Method
A6: Scenario | B6: Case # | C6: Case Descriptors (Parameters Varied) | F6: Receptor | G6: Acute Dose Rate (mg/kg/day)
C7: Duration | D7: Weight Fraction | E7: Mass Used
A8: Marble Polish - Stone Cleaner (Liquid) | B8: Case 1 | C8: High | D8: Low | E8: Low | F8: Adult (≥21 years) | G8: 7.06E-01
F9: Youth (16-20 years) | G9: 6.61E-01
F10: Youth (11-15 years) | G10: 7.23E-01
B11: Case 2 | C11: High | D11: Low | E11: Medium | F11: Adult (≥21 years) | G11: 7.06E-01
F12: Youth (16-20 years) | G12: 6.61E-01
F13: Youth (11-15 years) | G13: 7.23E-01
B14: Case 3 | C14: High | D14: Low | E14: High | F14: Adult (≥21 years) | G14: 7.06E-01
F15: Youth (16-20 years) | G15: 6.61E-01
F16: Youth (11-15 years) | G16: 7.23E-01
B17: Case 4 | C17: High | D17: Medium | E17: Low | F17: Adult (≥21 years) | G17: 6.00E+00
F18: Youth (16-20 years) | G18: 5.62E+00
F19: Youth (11-15 years) | G19: 6.14E+00
B20: Case 5 | C20: High | D20: Medium | E20: Medium | F20: Adult (≥21 years) | G20: 6.00E+00
F21: Youth (16-20 years) | G21: 5.62E+00
F22: Youth (11-15 years) | G22: 6.14E+00
B23: Case 6 | C23: High | D23: Medium | E23: High | F23: Adult (≥21 years) | G23: 6.00E+00
F24: Youth (16-20 years) | G24: 5.62E+00
F25: Youth (11-15 years) | G25: 6.14E+00
B26: Case 7 | C26: High | D26: High | E26: Low | F26: Adult (≥21 years) | G26: 7.06E+00
F27: Youth (16-20 years) | G27: 6.61E+00
F28: Youth (11-15 years) | G28: 7.23E+00
B29: Case 8 | C29: High | D29: High | E29: Medium | F29: Adult (≥21 years) | G29: 7.06E+00
F30: Youth (16-20 years) | G30: 6.61E+00
F31: Youth (11-15 years) | G31: 7.23E+00
B32: Case 9 | C32: High | D32: High | E32: High | F32: Adult (≥21 years) | G32: 7.06E+00
F33: Youth (16-20 years) | G33: 6.61E+00
F34: Youth (11-15 years) | G34: 7.23E+00
B35: Case 1 | C35: Medium | D35: Low | E35: Low | F35: Adult (≥21 years) | G35: 3.00E-01
F36: Youth (16-20 years) | G36: 2.81E-01
F37: Youth (11-15 years) | G37: 3.07E-01
B38: Case 2 | C38: Medium | D38: Low | E38: Medium | F38: Adult (≥21 years) | G38: 3.00E-01
F39: Youth (16-20 years) | G39: 2.81E-01
F40: Youth (11-15 years) | G40: 3.07E-01
B41: Case 3 | C41: Medium | D41: Low | E41: High | F41: Adult (≥21 years) | G41: 3.00E-01
F42: Youth (16-20 years) | G42: 2.81E-01
F43: Youth (11-15 years) | G43: 3.07E-01
B44: Case 4 | C44: Medium | D44: Medium | E44: Low | F44: Adult (≥21 years) | G44: 2.55E+00
F45: Youth (16-20 years) | G45: 2.38E+00
F46: Youth (11-15 years) | G46: 2.61E+00
B47: Case 5 | C47: Medium | D47: Medium | E47: Medium | F47: Adult (≥21 years) | G47: 2.55E+00
F48: Youth (16-20 years) | G48: 2.38E+00
F49: Youth (11-15 years) | G49: 2.61E+00
B50: Case 6 | C50: Medium | D50: Medium | E50: High | F50: Adult (≥21 years) | G50: 2.55E+00
F51: Youth (16-20 years) | G51: 2.38E+00
F52: Youth (11-15 years) | G52: 2.61E+00
B53: Case 7 | C53: Medium | D53: High | E53: Low | F53: Adult (≥21 years) | G53: 3.00E+00
F54: Youth (16-20 years) | G54: 2.81E+00
F55: Youth (11-15 years) | G55: 3.07E+00
B56: Case 8 | C56: Medium | D56: High | E56: Medium | F56: Adult (≥21 years) | G56: 3.00E+00
F57: Youth (16-20 years) | G57: 2.81E+00
F58: Youth (11-15 years) | G58: 3.07E+00
B59: Case 9 | C59: Medium | D59: High | E59: High | F59: Adult (≥21 years) | G59: 3.00E+00
F60: Youth (16-20 years) | G60: 2.81E+00
F61: Youth (11-15 years) | G61: 3.07E+00
B62: Case 1 | C62: Low | D62: Low | E62: Low | F62: Adult (≥21 years) | G62: 5.00E-02
F63: Youth (16-20 years) | G63: 4.68E-02
F64: Youth (11-15 years) | G64: 5.11E-02
B65: Case 2 | C65: Low | D65: Low | E65: Medium | F65: Adult (≥21 years) | G65: 5.00E-02
F66: Youth (16-20 years) | G66: 4.68E-02
F67: Youth (11-15 years) | G67: 5.11E-02
B68: Case 3 | C68: Low | D68: Low | E68: High | F68: Adult (≥21 years) | G68: 5.00E-02
F69: Youth (16-20 years) | G69: 4.68E-02
F70: Youth (11-15 years) | G70: 5.11E-02
B71: Case 4 | C71: Low | D71: Medium | E71: Low | F71: Adult (≥21 years) | G71: 4.25E-01
F72: Youth (16-20 years) | G72: 3.98E-01
F73: Youth (11-15 years) | G73: 4.35E-01
B74: Case 5 | C74: Low | D74: Medium | E74: Medium | F74: Adult (≥21 years) | G74: 4.25E-01
F75: Youth (16-20 years) | G75: 3.98E-01
F76: Youth (11-15 years) | G76: 4.35E-01
B77: Case 6 | C77: Low | D77: Medium | E77: High | F77: Adult (≥21 years) | G77: 4.25E-01
F78: Youth (16-20 years) | G78: 3.98E-01
F79: Youth (11-15 years) | G79: 4.35E-01
B80: Case 7 | C80: Low | D80: High | E80: Low | F80: Adult (≥21 years) | G80: 5.00E-01
F81: Youth (16-20 years) | G81: 4.68E-01
F82: Youth (11-15 years) | G82: 5.11E-01
B83: Case 8 | C83: Low | D83: High | E83: Medium | F83: Adult (≥21 years) | G83: 5.00E-01
F84: Youth (16-20 years) | G84: 4.68E-01
F85: Youth (11-15 years) | G85: 5.11E-01
B86: Case 9 | C86: Low | D86: High | E86: High | F86: Adult (≥21 years) | G86: 5.00E-01
F87: Youth (16-20 years) | G87: 4.68E-01
F88: Youth (11-15 years) | G88: 5.11E-01

Sheet Liquid Marble Polish Derm P
A1: Scenario:
A2: Marble Polish - Stone Cleaner (Liquid)
A3: Data Type:
A4: Estimated Dermal Doses Outputs - Permeability Method
A6: Scenario | B6: Case # | C6: Case Descriptors (Parameters Varied) | F6: Receptor | G6: Acute Dose Rate (mg/kg/day)
C7: Duration | D7: Weight Fraction | E7: Mass Used
A8: Marble Polish - Stone Cleaner (Liquid) | B8: Case 1 | C8: High | D8: Low | E8: Low | F8: Adult (≥21 years) | G8: 8.49E-01
F9: Youth (16-20 years) | G9: 7.94E-01
F10: Youth (11-15 years) | G10: 8.69E-01
B11: Case 2 | C11: High | D11: Low | E11: Medium | F11: Adult (≥21 years) | G11: 8.49E-01
F12: Youth (16-20 years) | G12: 7.94E-01
F13: Youth (11-15 years) | G13: 8.69E-01
B14: Case 3 | C14: High | D14: Low | E14: High | F14: Adult (≥21 years) | G14: 8.49E-01
F15: Youth (16-20 years) | G15: 7.94E-01
F16: Youth (11-15 years) | G16: 8.69E-01
B17: Case 4 | C17: High | D17: Medium | E17: Low | F17: Adult (≥21 years) | G17: 7.22E+00
F18: Youth (16-20 years) | G18: 6.75E+00
F19: Youth (11-15 years) | G19: 7.38E+00
B20: Case 5 | C20: High | D20: Medium | E20: Medium | F20: Adult (≥21 years) | G20: 7.22E+00
F21: Youth (16-20 years) | G21: 6.75E+00
F22: Youth (11-15 years) | G22: 7.38E+00
B23: Case 6 | C23: High | D23: Medium | E23: High | F23: Adult (≥21 years) | G23: 7.22E+00
F24: Youth (16-20 years) | G24: 6.75E+00
F25: Youth (11-15 years) | G25: 7.38E+00
B26: Case 7 | C26: High | D26: High | E26: Low | F26: Adult (≥21 years) | G26: 8.49E+00
F27: Youth (16-20 years) | G27: 7.94E+00
F28: Youth (11-15 years) | G28: 8.69E+00
B29: Case 8 | C29: High | D29: High | E29: Medium | F29: Adult (≥21 years) | G29: 8.49E+00
F30: Youth (16-20 years) | G30: 7.94E+00
F31: Youth (11-15 years) | G31: 8.69E+00
B32: Case 9 | C32: High | D32: High | E32: High | F32: Adult (≥21 years) | G32: 8.49E+00
F33: Youth (16-20 years) | G33: 7.94E+00
F34: Youth (11-15 years) | G34: 8.69E+00
B35: Case 1 | C35: Medium | D35: Low | E35: Low | F35: Adult (≥21 years) | G35: 1.06E-01
F36: Youth (16-20 years) | G36: 9.93E-02
F37: Youth (11-15 years) | G37: 1.09E-01
B38: Case 2 | C38: Medium | D38: Low | E38: Medium | F38: Adult (≥21 years) | G38: 1.06E-01
F39: Youth (16-20 years) | G39: 9.93E-02
F40: Youth (11-15 years) | G40: 1.09E-01
B41: Case 3 | C41: Medium | D41: Low | E41: High | F41: Adult (≥21 years) | G41: 1.06E-01
F42: Youth (16-20 years) | G42: 9.93E-02
F43: Youth (11-15 years) | G43: 1.09E-01
B44: Case 4 | C44: Medium | D44: Medium | E44: Low | F44: Adult (≥21 years) | G44: 9.02E-01
F45: Youth (16-20 years) | G45: 8.44E-01
F46: Youth (11-15 years) | G46: 9.23E-01
B47: Case 5 | C47: Medium | D47: Medium | E47: Medium | F47: Adult (≥21 years) | G47: 9.02E-01
F48: Youth (16-20 years) | G48: 8.44E-01
F49: Youth (11-15 years) | G49: 9.23E-01
B50: Case 6 | C50: Medium | D50: Medium | E50: High | F50: Adult (≥21 years) | G50: 9.02E-01
F51: Youth (16-20 years) | G51: 8.44E-01
F52: Youth (11-15 years) | G52: 9.23E-01
B53: Case 7 | C53: Medium | D53: High | E53: Low | F53: Adult (≥21 years) | G53: 1.06E+00
F54: Youth (16-20 years) | G54: 9.93E-01
F55: Youth (11-15 years) | G55: 1.09E+00
B56: Case 8 | C56: Medium | D56: High | E56: Medium | F56: Adult (≥21 years) | G56: 1.06E+00
F57: Youth (16-20 years) | G57: 9.93E-01
F58: Youth (11-15 years) | G58: 1.09E+00
B59: Case 9 | C59: Medium | D59: High | E59: High | F59: Adult (≥21 years) | G59: 1.06E+00
F60: Youth (16-20 years) | G60: 9.93E-01
F61: Youth (11-15 years) | G61: 1.09E+00
B62: Case 1 | C62: Low | D62: Low | E62: Low | F62: Adult (≥21 years) | G62: 1.41E-02
F63: Youth (16-20 years) | G63: 1.32E-02
F64: Youth (11-15 years) | G64: 1.45E-02
B65: Case 2 | C65: Low | D65: Low | E65: Medium | F65: Adult (≥21 years) | G65: 1.41E-02
F66: Youth (16-20 years) | G66: 1.32E-02
F67: Youth (11-15 years) | G67: 1.45E-02
B68: Case 3 | C68: Low | D68: Low | E68: High | F68: Adult (≥21 years) | G68: 1.41E-02
F69: Youth (16-20 years) | G69: 1.32E-02
F70: Youth (11-15 years) | G70: 1.45E-02
B71: Case 4 | C71: Low | D71: Medium | E71: Low | F71: Adult (≥21 years) | G71: 1.20E-01
F72: Youth (16-20 years) | G72: 1.13E-01
F73: Youth (11-15 years) | G73: 1.23E-01
B74: Case 5 | C74: Low | D74: Medium | E74: Medium | F74: Adult (≥21 years) | G74: 1.20E-01
F75: Youth (16-20 years) | G75: 1.13E-01
F76: Youth (11-15 years) | G76: 1.23E-01
B77: Case 6 | C77: Low | D77: Medium | E77: High | F77: Adult (≥21 years) | G77: 1.20E-01
F78: Youth (16-20 years) | G78: 1.13E-01
F79: Youth (11-15 years) | G79: 1.23E-01
B80: Case 7 | C80: Low | D80: High | E80: Low | F80: Adult (≥21 years) | G80: 1.41E-01
F81: Youth (16-20 years) | G81: 1.32E-01
F82: Youth (11-15 years) | G82: 1.45E-01
B83: Case 8 | C83: Low | D83: High | E83: Medium | F83: Adult (≥21 years) | G83: 1.41E-01
F84: Youth (16-20 years) | G84: 1.32E-01
F85: Youth (11-15 years) | G85: 1.45E-01
B86: Case 9 | C86: Low | D86: High | E86: High | F86: Adult (≥21 years) | G86: 1.41E-01
F87: Youth (16-20 years) | G87: 1.32E-01
F88: Youth (11-15 years) | G88: 1.45E-01

Sheet Liquid Marble Polish Derm FE
A1: Scenario:
A2: Marble Polish - Stone Cleaner (Liquid)
A3: Data Type:
A4: Estimated Dermal Doses Outputs - Frasch Equation
A6: Scenario | B6: Case # | C6: Case Descriptors (Parameters Varied) | F6: Receptor | G6: Acute Dose Rate (mg/kg/day)
C7: Duration | D7: Weight Fraction | E7: Mass Used
A8: Marble Polish - Stone Cleaner (Liquid) | B8: Case 1 | C8: High | D8: Low | E8: Low | F8: Adult (≥21 years) | G8: 1.04E-01
F9: Youth (16-20 years) | G9: 9.70E-02
F10: Youth (11-15 years) | G10: 1.06E-01
B11: Case 2 | C11: High | D11: Low | E11: Medium | F11: Adult (≥21 years) | G11: 1.04E-01
F12: Youth (16-20 years) | G12: 9.70E-02
F13: Youth (11-15 years) | G13: 1.06E-01
B14: Case 3 | C14: High | D14: Low | E14: High | F14: Adult (≥21 years) | G14: 1.04E-01
F15: Youth (16-20 years) | G15: 9.70E-02
F16: Youth (11-15 years) | G16: 1.06E-01
B17: Case 4 | C17: High | D17: Medium | E17: Low | F17: Adult (≥21 years) | G17: 1.04E-01
F18: Youth (16-20 years) | G18: 9.70E-02
F19: Youth (11-15 years) | G19: 1.06E-01
B20: Case 5 | C20: High | D20: Medium | E20: Medium | F20: Adult (≥21 years) | G20: 1.04E-01
F21: Youth (16-20 years) | G21: 9.70E-02
F22: Youth (11-15 years) | G22: 1.06E-01
B23: Case 6 | C23: High | D23: Medium | E23: High | F23: Adult (≥21 years) | G23: 1.04E-01
F24: Youth (16-20 years) | G24: 9.70E-02
F25: Youth (11-15 years) | G25: 1.06E-01
B26: Case 7 | C26: High | D26: High | E26: Low | F26: Adult (≥21 years) | G26: 1.04E-01
F27: Youth (16-20 years) | G27: 9.70E-02
F28: Youth (11-15 years) | G28: 1.06E-01
B29: Case 8 | C29: High | D29: High | E29: Medium | F29: Adult (≥21 years) | G29: 1.04E-01
F30: Youth (16-20 years) | G30: 9.70E-02
F31: Youth (11-15 years) | G31: 1.06E-01
B32: Case 9 | C32: High | D32: High | E32: High | F32: Adult (≥21 years) | G32: 1.04E-01
F33: Youth (16-20 years) | G33: 9.70E-02
F34: Youth (11-15 years) | G34: 1.06E-01
B35: Case 1 | C35: Medium | D35: Low | E35: Low | F35: Adult (≥21 years) | G35: 1.30E-02
F36: Youth (16-20 years) | G36: 1.21E-02
F37: Youth (11-15 years) | G37: 1.33E-02
B38: Case 2 | C38: Medium | D38: Low | E38: Medium | F38: Adult (≥21 years) | G38: 1.30E-02
F39: Youth (16-20 years) | G39: 1.21E-02
F40: Youth (11-15 years) | G40: 1.33E-02
B41: Case 3 | C41: Medium | D41: Low | E41: High | F41: Adult (≥21 years) | G41: 1.30E-02
F42: Youth (16-20 years) | G42: 1.21E-02
F43: Youth (11-15 years) | G43: 1.33E-02
B44: Case 4 | C44: Medium | D44: Medium | E44: Low | F44: Adult (≥21 years) | G44: 1.30E-02
F45: Youth (16-20 years) | G45: 1.21E-02
F46: Youth (11-15 years) | G46: 1.33E-02
B47: Case 5 | C47: Medium | D47: Medium | E47: Medium | F47: Adult (≥21 years) | G47: 1.30E-02
F48: Youth (16-20 years) | G48: 1.21E-02
F49: Youth (11-15 years) | G49: 1.33E-02
B50: Case 6 | C50: Medium | D50: Medium | E50: High | F50: Adult (≥21 years) | G50: 1.30E-02
F51: Youth (16-20 years) | G51: 1.21E-02
F52: Youth (11-15 years) | G52: 1.33E-02
B53: Case 7 | C53: Medium | D53: High | E53: Low | F53: Adult (≥21 years) | G53: 1.30E-02
F54: Youth (16-20 years) | G54: 1.21E-02
F55: Youth (11-15 years) | G55: 1.33E-02
B56: Case 8 | C56: Medium | D56: High | E56: Medium | F56: Adult (≥21 years) | G56: 1.30E-02
F57: Youth (16-20 years) | G57: 1.21E-02
F58: Youth (11-15 years) | G58: 1.33E-02
B59: Case 9 | C59: Medium | D59: High | E59: High | F59: Adult (≥21 years) | G59: 1.30E-02
F60: Youth (16-20 years) | G60: 1.21E-02
F61: Youth (11-15 years) | G61: 1.33E-02
B62: Case 1 | C62: Low | D62: Low | E62: Low | F62: Adult (≥21 years) | G62: 1.73E-03
F63: Youth (16-20 years) | G63: 1.62E-03
F64: Youth (11-15 years) | G64: 1.77E-03
B65: Case 2 | C65: Low | D65: Low | E65: Medium | F65: Adult (≥21 years) | G65: 1.73E-03
F66: Youth (16-20 years) | G66: 1.62E-03
F67: Youth (11-15 years) | G67: 1.77E-03
B68: Case 3 | C68: Low | D68: Low | E68: High | F68: Adult (≥21 years) | G68: 1.73E-03
F69: Youth (16-20 years) | G69: 1.62E-03
F70: Youth (11-15 years) | G70: 1.77E-03
B71: Case 4 | C71: Low | D71: Medium | E71: Low | F71: Adult (≥21 years) | G71: 1.73E-03
F72: Youth (16-20 years) | G72: 1.62E-03
F73: Youth (11-15 years) | G73: 1.77E-03
B74: Case 5 | C74: Low | D74: Medium | E74: Medium | F74: Adult (≥21 years) | G74: 1.73E-03
F75: Youth (16-20 years) | G75: 1.62E-03
F76: Youth (11-15 years) | G76: 1.77E-03
B77: Case 6 | C77: Low | D77: Medium | E77: High | F77: Adult (≥21 years) | G77: 1.73E-03
F78: Youth (16-20 years) | G78: 1.62E-03
F79: Youth (11-15 years) | G79: 1.77E-03
B80: Case 7 | C80: Low | D80: High | E80: Low | F80: Adult (≥21 years) | G80: 1.73E-03
F81: Youth (16-20 years) | G81: 1.62E-03
F82: Youth (11-15 years) | G82: 1.77E-03
B83: Case 8 | C83: Low | D83: High | E83: Medium | F83: Adult (≥21 years) | G83: 1.73E-03
F84: Youth (16-20 years) | G84: 1.62E-03
F85: Youth (11-15 years) | G85: 1.77E-03
B86: Case 9 | C86: Low | D86: High | E86: High | F86: Adult (≥21 years) | G86: 1.73E-03
F87: Youth (16-20 years) | G87: 1.62E-03
F88: Youth (11-15 years) | G88: 1.77E-03

Sheet Cutting Fluid Inh
A1: Scenario:
A2: Cutting Fluid
A3: Data Type:
A4: Estimated Inhalation Concentrations Outputs
A6: Scenario | B6: Case # | C6: Case Descriptors (Parameters Varied) | F6: Receptor | G6: Concentration (mg/m3) | K6: Concentration (ppm)
C7: Duration | D7: Weight Fraction | E7: Mass Used | G7: 1-hr TWA | H7: 3-hr TWA | I7: 8-hr TWA | J7: 24-hr TWA | K7: 1-hr TWA | L7: 3-hr TWA | M7: 8-hr TWA | N7: 24-hr TWA
A8: Cutting Fluid | B8: Case 1 | C8: High | D8: Low | E8: Low | F8: User | G8: 3.05E+01 | H8: 1.19E+01 | I8: 4.75E+00 | J8: 1.59E+00 | K8: =(G8*24.45)/165.833 -> 4.49E+00 | L8: =(H8*24.45)/165.833 -> 1.75E+00 | M8: 7.01E-01 | N8: 2.35E-01
F9: Bystander | G9: 3.17E+00 | H9: 2.17E+00 | I9: 9.48E-01 | J9: 3.26E-01 | K9: =(G9*24.45)/165.833 -> 4.68E-01 | L9: 3.20E-01 | M9: 1.40E-01 | N9: 4.81E-02
B10: Case 2 | C10: High | D10: Low | E10: Medium | F10: User | G10: 1.77E+02 | H10: 6.90E+01 | I10: 2.76E+01 | J10: 9.25E+00 | K10: 2.61E+01 | L10: 1.02E+01 | M10: 4.07E+00 | N10: 1.36E+00
F11: Bystander | G11: 1.84E+01 | H11: 1.26E+01 | I11: 5.50E+00 | J11: 1.89E+00 | K11: 2.72E+00 | L11: 1.86E+00 | M11: 8.11E-01 | N11: 2.79E-01
B12: Case 3 | C12: High | D12: Low | E12: High | F12: User | G12: 1.74E+03 | H12: 6.79E+02 | I12: 2.72E+02 | J12: 9.11E+01 | K12: =(G12*24.45)/165.833 -> 2.57E+02 | L12: 1.00E+02 | M12: 4.00E+01 | N12: 1.34E+01
F13: Bystander | G13: 1.81E+02 | H13: 1.24E+02 | I13: 5.42E+01 | J13: 1.86E+01 | K13: 2.67E+01 | L13: 1.83E+01 | M13: 7.99E+00 | N13: 2.75E+00
B14: Case 1 | C14: Medium | D14: Low | E14: Low | F14: User | G14: 2.83E+01 | H14: 1.10E+01 | I14: 4.39E+00 | J14: 1.47E+00 | K14: 4.17E+00 | L14: 1.62E+00 | M14: 6.47E-01 | N14: 2.17E-01
F15: Bystander | G15: 2.86E+00 | H15: 1.95E+00 | I15: 8.54E-01 | J15: 2.94E-01 | K15: 4.22E-01 | L15: 2.88E-01 | M15: 1.26E-01 | N15: 4.33E-02
B16: Case 2 | C16: Medium | D16: Low | E16: Medium | F16: User | G16: 1.64E+02 | H16: 6.38E+01 | I16: 2.55E+01 | J16: 8.54E+00 | K16: 2.42E+01 | L16: 9.40E+00 | M16: 3.75E+00 | N16: 1.26E+00
F17: Bystander | G17: 1.66E+01 | H17: 1.13E+01 | I17: 4.95E+00 | J17: 1.70E+00 | K17: 2.45E+00 | L17: 1.67E+00 | M17: 7.30E-01 | N17: 2.51E-01
B18: Case 3 | C18: Medium | D18: Low | E18: High | F18: User | G18: 1.62E+03 | H18: 6.28E+02 | I18: 2.51E+02 | J18: 8.40E+01 | K18: 2.38E+02 | L18: 9.26E+01 | M18: 3.69E+01 | N18: 1.24E+01
F19: Bystander | G19: 1.64E+02 | H19: 1.12E+02 | I19: 4.88E+01 | J19: 1.68E+01 | K19: 2.41E+01 | L19: 1.65E+01 | M19: 7.19E+00 | N19: 2.47E+00
B20: Case 1 | C20: Low | D20: Low | E20: Low | F20: User | G20: 2.67E+01 | H20: 1.05E+01 | I20: 4.19E+00 | J20: 1.40E+00 | K20: 3.94E+00 | L20: 1.54E+00 | M20: 6.17E-01 | N20: 2.07E-01
F21: Bystander | G21: 2.85E+00 | H21: 1.94E+00 | I21: 8.49E-01 | J21: 2.92E-01 | K21: 4.20E-01 | L21: 2.86E-01 | M21: 1.25E-01 | N21: 4.30E-02
B22: Case 2 | C22: Low | D22: Low | E22: Medium | F22: User | G22: 1.55E+02 | H22: 6.07E+01 | I22: 2.43E+01 | J22: 8.15E+00 | K22: 2.29E+01 | L22: 8.95E+00 | M22: 3.58E+00 | N22: 1.20E+00
F23: Bystander | G23: 1.65E+01 | H23: 1.13E+01 | I23: 4.93E+00 | J23: 1.69E+00 | K23: 2.44E+00 | L23: 1.66E+00 | M23: 7.26E-01 | N23: 2.50E-01
B24: Case 3 | C24: Low | D24: Low | E24: High | F24: User | G24: 1.53E+03 | H24: 5.97E+02 | I24: 2.39E+02 | J24: 8.02E+01 | K24: 2.25E+02 | L24: 8.81E+01 | M24: 3.53E+01 | N24: 1.18E+01
F25: Bystander | G25: 1.63E+02 | H25: 1.11E+02 | I25: 4.85E+01 | J25: 1.67E+01 | K25: 2.40E+01 | L25: 1.64E+01 | M25: 7.15E+00 | N25: 2.46E+00

Sheet Cutting Fluid Derm AF
A1: Scenario:
A2: Cutting Fluid
A3: Data Type:
A4: Estimated Dermal Doses Outputs - Absorption Fraction Method
A6: Scenario | B6: Case # | C6: Case Descriptors (Parameters Varied) | F6: Receptor | G6: Acute Dose Rate (mg/kg/day)
C7: Duration | D7: Weight Fraction | E7: Mass Used
A8: Cutting Fluid | B8: Case 1 | C8: High | D8: Low | E8: Low | F8: Adult (≥21 years) | G8: 8.67E-02
F9: Youth (16-20 years) | G9: 8.11E-02
F10: Youth (11-15 years) | G10: 8.87E-02
B11: Case 2 | C11: High | D11: Low | E11: Medium | F11: Adult (≥21 years) | G11: 8.67E-02
F12: Youth (16-20 years) | G12: 8.11E-02
F13: Youth (11-15 years) | G13: 8.87E-02
B14: Case 3 | C14: High | D14: Low | E14: High | F14: Adult (≥21 years) | G14: 8.67E-02
F15: Youth (16-20 years) | G15: 8.11E-02
F16: Youth (11-15 years) | G16: 8.87E-02
B17: Case 1 | C17: Medium | D17: Low | E17: Low | F17: Adult (≥21 years) | G17: 9.14E-03
F18: Youth (16-20 years) | G18: 8.55E-03
F19: Youth (11-15 years) | G19: 9.35E-03
B20: Case 2 | C20: Medium | D20: Low | E20: Medium | F20: Adult (≥21 years) | G20: 9.14E-03
F21: Youth (16-20 years) | G21: 8.55E-03
F22: Youth (11-15 years) | G22: 9.35E-03
B23: Case 3 | C23: Medium | D23: Low | E23: High | F23: Adult (≥21 years) | G23: 9.14E-03
F24: Youth (16-20 years) | G24: 8.55E-03
F25: Youth (11-15 years) | G25: 9.35E-03
B26: Case 1 | C26: Low | D26: Low | E26: Low | F26: Adult (≥21 years) | G26: 2.35E-03
F27: Youth (16-20 years) | G27: 2.20E-03
F28: Youth (11-15 years) | G28: 2.40E-03
B29: Case 2 | C29: Low | D29: Low | E29: Medium | F29: Adult (≥21 years) | G29: 2.35E-03
F30: Youth (16-20 years) | G30: 2.20E-03
F31: Youth (11-15 years) | G31: 2.40E-03
B32: Case 3 | C32: Low | D32: Low | E32: High | F32: Adult (≥21 years) | G32: 2.35E-03
F33: Youth (16-20 years) | G33: 2.20E-03
F34: Youth (11-15 years) | G34: 2.40E-03

Sheet Cutting Fluid Derm P
A1: Scenario:
A2: Cutting Fluid
A3: Data Type:
A4: Estimated Dermal Doses Outputs - Permeability Method
A6: Scenario | B6: Case # | C6: Case Descriptors (Parameters Varied) | F6: Receptor | G6: Acute Dose Rate (mg/kg/day)
C7: Duration | D7: Weight Fraction | E7: Mass Used
A8: Cutting Fluid | B8: Case 1 | C8: High | D8: Low | E8: Low | F8: Adult (≥21 years) | G8: 1.01E+00
F9: Youth (16-20 years) | G9: 9.46E-01
F10: Youth (11-15 years) | G10: 1.03E+00
B11: Case 2 | C11: High | D11: Low | E11: Medium | F11: Adult (≥21 years) | G11: 1.01E+00
F12: Youth (16-20 years) | G12: 9.46E-01
F13: Youth (11-15 years) | G13: 1.03E+00
B14: Case 3 | C14: High | D14: Low | E14: High | F14: Adult (≥21 years) | G14: 1.01E+00
F15: Youth (16-20 years) | G15: 9.46E-01
F16: Youth (11-15 years) | G16: 1.03E+00
B17: Case 1 | C17: Medium | D17: Low | E17: Low | F17: Adult (≥21 years) | G17: 6.74E-02
F18: Youth (16-20 years) | G18: 6.31E-02
F19: Youth (11-15 years) | G19: 6.90E-02
B20: Case 2 | C20: Medium | D20: Low | E20: Medium | F20: Adult (≥21 years) | G20: 6.74E-02
F21: Youth (16-20 years) | G21: 6.31E-02
F22: Youth (11-15 years) | G22: 6.90E-02
B23: Case 3 | C23: Medium | D23: Low | E23: High | F23: Adult (≥21 years) | G23: 6.74E-02
F24: Youth (16-20 years) | G24: 6.31E-02
F25: Youth (11-15 years) | G25: 6.90E-02
B26: Case 1 | C26: Low | D26: Low | E26: Low | F26: Adult (≥21 years) | G26: 1.69E-02
F27: Youth (16-20 years) | G27: 1.58E-02
F28: Youth (11-15 years) | G28: 1.72E-02
B29: Case 2 | C29: Low | D29: Low | E29: Medium | F29: Adult (≥21 years) | G29: 1.69E-02
F30: Youth (16-20 years) | G30: 1.58E-02
F31: Youth (11-15 years) | G31: 1.72E-02
B32: Case 3 | C32: Low | D32: Low | E32: High | F32: Adult (≥21 years) | G32: 1.69E-02
F33: Youth (16-20 years) | G33: 1.58E-02
F34: Youth (11-15 years) | G34: 1.72E-02

Sheet Aerosol Lubricant Inh
A1: Scenario:
A2: Spray Lubricant, Penetrating Oil
A3: Data Type:
A4: Estimated Inhalation Concentrations Outputs
A6: Scenario | B6: Case # | C6: Case Descriptors (Parameters Varied) | F6: Receptor | G6: Concentration (mg/m3) | K6: Concentration (ppm)
C7: Duration | D7: Weight Fraction | E7: Mass Used | G7: 1-hr TWA | H7: 3-hr TWA | I7: 8-hr TWA | J7: 24-hr TWA | K7: 1-hr TWA | L7: 3-hr TWA | M7: 8-hr TWA | N7: 24-hr TWA
A8: Spray Lubricant | B8: Case 1 | C8: High | D8: Low | E8: Low | F8: User | G8: 2.72E+00 | H8: 1.06E+00 | I8: 4.25E-01 | J8: 1.42E-01 | K8: =(G8*24.45)/165.833 -> 4.01E-01 | L8: =(H8*24.45)/165.833 -> 1.57E-01 | M8: 6.26E-02 | N8: 2.10E-02
F9: Bystander | G9: 2.83E-01 | H9: 1.93E-01 | I9: 8.46E-02 | J9: 2.91E-02 | K9: =(G9*24.45)/165.833 -> 4.17E-02 | L9: 2.85E-02 | M9: 1.25E-02 | N9: 4.29E-03
B10: Case 2 | C10: High | D10: Low | E10: Medium | F10: User | G10: 1.50E+01 | H10: 5.84E+00 | I10: 2.34E+00 | J10: 7.83E-01 | K10: 2.21E+00 | L10: 8.61E-01 | M10: 3.44E-01 | N10: 1.15E-01
F11: Bystander | G11: 1.56E+00 | H11: 1.06E+00 | I11: 4.65E-01 | J11: 1.60E-01 | K11: 2.30E-01 | L11: 1.57E-01 | M11: 6.86E-02 | N11: 2.36E-02
B12: Case 3 | C12: High | D12: Low | E12: High | F12: User | G12: 1.36E+02 | H12: 5.31E+01 | I12: 2.12E+01 | J12: 7.12E+00 | K12: 2.01E+01 | L12: 7.83E+00 | M12: 3.13E+00 | N12: 1.05E+00
F13: Bystander | G13: 1.42E+01 | H13: 9.67E+00 | I13: 4.23E+00 | J13: 1.45E+00 | K13: 2.09E+00 | L13: 1.43E+00 | M13: 6.24E-01 | N13: 2.14E-01
B14: Case 4 | C14: High | D14: Medium | E14: Low | F14: User | G14: 2.94E+01 | H14: 1.15E+01 | I14: 4.58E+00 | J14: 1.54E+00 | K14: 4.34E+00 | L14: 1.69E+00 | M14: 6.76E-01 | N14: 2.27E-01
F15: Bystander | G15: 3.06E+00 | H15: 2.09E+00 | I15: 9.13E-01 | J15: 3.14E-01 | K15: 4.51E-01 | L15: 3.08E-01 | M15: 1.35E-01 | N15: 4.63E-02
B16: Case 5 | C16: High | D16: Medium | E16: Medium | F16: User | G16: 1.62E+02 | H16: 6.31E+01 | I16: 2.52E+01 | J16: 8.46E+00 | K16: 2.39E+01 | L16: 9.30E+00 | M16: 3.72E+00 | N16: 1.25E+00
F17: Bystander | G17: 1.68E+01 | H17: 1.15E+01 | I17: 5.02E+00 | J17: 1.73E+00 | K17: 2.48E+00 | L17: 1.69E+00 | M17: 7.41E-01 | N17: 2.55E-01
B18: Case 6 | C18: High | D18: Medium | E18: High | F18: User | G18: 1.47E+03 | H18: 5.73E+02 | I18: 2.29E+02 | J18: 7.69E+01 | K18: 2.17E+02 | L18: 8.45E+01 | M18: 3.38E+01 | N18: 1.13E+01
F19: Bystander | G19: 1.53E+02 | H19: 1.04E+02 | I19: 4.57E+01 | J19: 1.57E+01 | K19: 2.25E+01 | L19: 1.54E+01 | M19: 6.73E+00 | N19: 2.32E+00
B20: Case 7 | C20: High | D20: High | E20: Low | F20: User | G20: 5.45E+01 | H20: 2.12E+01 | I20: 8.49E+00 | J20: 2.85E+00 | K20: 8.03E+00 | L20: 3.13E+00 | M20: 1.25E+00 | N20: 4.20E-01
F21: Bystander | G21: 5.66E+00 | H21: 3.87E+00 | I21: 1.69E+00 | J21: 5.82E-01 | K21: 8.35E-01 | L21: 5.71E-01 | M21: 2.49E-01 | N21: 8.58E-02
B22: Case 8 | C22: High | D22: High | E22: Medium | F22: User | G22: 3.00E+02 | H22: 1.17E+02 | I22: 4.67E+01 | J22: 1.57E+01 | K22: 4.42E+01 | L22: 1.72E+01 | M22: 6.89E+00 | N22: 2.31E+00
F23: Bystander | G23: 3.12E+01 | H23: 2.13E+01 | I23: 9.31E+00 | J23: 3.20E+00 | K23: 4.59E+00 | L23: 3.14E+00 | M23: 1.37E+00 | N23: 4.72E-01
B24: Case 9 | C24: High | D24: High | E24: High | F24: User | G24: 2.72E+03 | H24: 1.06E+03 | I24: 4.25E+02 | J24: 1.42E+02 | K24: 4.02E+02 | L24: =(H24*24.45)/165.833 -> 1.57E+02 | M24: =(I24*24.45)/165.833 -> 6.26E+01 | N24: =(J24*24.45)/165.833 -> 2.10E+01
F25: Bystander | G25: 2.83E+02 | H25: 1.93E+02 | I25: 8.46E+01 | J25: 2.91E+01 | K25: 4.17E+01 | L25: 2.85E+01 | M25: 1.25E+01 | N25: 4.29E+00
B26: Case 1 | C26: Medium | D26: Low | E26: Low | F26: User | G26: 2.54E+00 | H26: 9.87E-01 | I26: 3.94E-01 | J26: 1.32E-01 | K26: 3.75E-01 | L26: 1.46E-01 | M26: 5.81E-02 | N26: 1.95E-02
F27: Bystander | G27: 2.56E-01 | H27: 1.74E-01 | I27: 7.61E-02 | J27: 2.62E-02 | K27: 3.77E-02 | L27: 2.57E-02 | M27: 1.12E-02 | N27: 3.86E-03
B28: Case 2 | C28: Medium | D28: Low | E28: Medium | F28: User | G28: 1.40E+01 | H28: 5.43E+00 | I28: 2.17E+00 | J28: 7.27E-01 | K28: 2.06E+00 | L28: 8.01E-01 | M28: 3.19E-01 | N28: 1.07E-01
F29: Bystander | G29: 1.41E+00 | H29: 9.58E-01 | I29: 4.19E-01 | J29: 1.44E-01 | K29: 2.07E-01 | L29: 1.41E-01 | M29: 6.17E-02 | N29: 2.12E-02
B30: Case 3 | C30: Medium | D30: Low | E30: High | F30: User | G30: 1.27E+02 | H30: 4.94E+01 | I30: 1.97E+01 | J30: 6.61E+00 | K30: 1.88E+01 | L30: 7.28E+00 | M30: 2.90E+00 | N30: 9.74E-01
F31: Bystander | G31: 1.28E+01 | H31: 8.71E+00 | I31: 3.81E+00 | J31: 1.31E+00 | K31: 1.88E+00 | L31: 1.28E+00 | M31: 5.61E-01 | N31: 1.93E-01
B32: Case 4 | C32: Medium | D32: Medium | E32: Low | F32: User | G32: 2.75E+01 | H32: 1.07E+01 | I32: 4.25E+00 | J32: 1.43E+00 | K32: 4.05E+00 | L32: 1.57E+00 | M32: 6.27E-01 | N32: 2.10E-01
F33: Bystander | G33: 2.76E+00 | H33: 1.88E+00 | I33: 8.22E-01 | J33: 2.83E-01 | K33: 4.07E-01 | L33: 2.77E-01 | M33: 1.21E-01 | N33: 4.17E-02
B34: Case 5 | C34: Medium | D34: Medium | E34: Medium | F34: User | G34: 1.51E+02 | H34: 5.87E+01 | I34: 2.34E+01 | J34: 7.85E+00 | K34: 2.23E+01 | L34: 8.65E+00 | M34: 3.45E+00 | N34: 1.16E+00
F35: Bystander | G35: 1.52E+01 | H35: 1.03E+01 | I35: 4.52E+00 | J35: 1.56E+00 | K35: 2.24E+00 | L35: 1.53E+00 | M35: 6.67E-01 | N35: 2.29E-01
B36: Case 6 | C36: Medium | D36: Medium | E36: High | F36: User | G36: 1.37E+03 | H36: 5.33E+02 | I36: 2.13E+02 | J36: 7.13E+01 | K36: 2.03E+02 | L36: 7.86E+01 | M36: 3.14E+01 | N36: 1.05E+01
F37: Bystander | G37: 1.38E+02 | H37: 9.41E+01 | I37: 4.11E+01 | J37: 1.41E+01 | K37: 2.03E+01 | L37: 1.39E+01 | M37: 6.06E+00 | N37: 2.08E+00
B38: Case 7 | C38: Medium | D38: High | E38: Low | F38: User | G38: 5.09E+01 | H38: 1.97E+01 | I38: 7.88E+00 | J38: 2.64E+00 | K38: 7.50E+00 | L38: 2.91E+00 | M38: 1.16E+00 | N38: 3.90E-01
F39: Bystander | G39: 5.11E+00 | H39: 3.48E+00 | I39: 1.52E+00 | J39: 5.24E-01 | K39: 7.53E-01 | L39: 5.14E-01 | M39: 2.24E-01 | N39: 7.72E-02
B40: Case 8 | C40: Medium | D40: High | E40: Medium | F40: User | G40: 2.80E+02 | H40: 1.09E+02 | I40: 4.33E+01 | J40: 1.45E+01 | K40: 4.13E+01 | L40: 1.60E+01 | M40: 6.39E+00 | N40: 2.14E+00
F41: Bystander | G41: 2.81E+01 | H41: 1.92E+01 | I41: 8.38E+00 | J41: 2.88E+00 | K41: 4.14E+00 | L41: 2.83E+00 | M41: 1.23E+00 | N41: 4.25E-01
B42: Case 9 | C42: Medium | D42: High | E42: High | F42: User | G42: 2.55E+03 | H42: 9.87E+02 | I42: 3.94E+02 | J42: 1.32E+02 | K42: 3.75E+02 | L42: 1.46E+02 | M42: 5.81E+01 | N42: 1.95E+01
F43: Bystander | G43: 2.56E+02 | H43: 1.74E+02 | I43: 7.61E+01 | J43: 2.62E+01 | K43: 3.77E+01 | L43: 2.57E+01 | M43: 1.12E+01 | N43: 3.86E+00
B44: Case 1 | C44: Low | D44: Low | E44: Low | F44: User | G44: 2.41E+00 | H44: 9.43E-01 | I44: 3.77E-01 | J44: 1.26E-01 | K44: 3.56E-01 | L44: 1.39E-01 | M44: 5.56E-02 | N44: 1.86E-02
F45: Bystander | G45: 2.54E-01 | H45: 1.73E-01 | I45: 7.57E-02 | J45: 2.60E-02 | K45: 3.75E-02 | L45: 2.55E-02 | M45: 1.12E-02 | N45: 3.84E-03
B46: Case 2 | C46: Low | D46: Low | E46: Medium | F46: User | G46: 1.33E+01 | H46: 5.18E+00 | I46: 2.07E+00 | J46: 6.96E-01 | K46: 1.96E+00 | L46: 7.64E-01 | M46: 3.06E-01 | N46: 1.03E-01
F47: Bystander | G47: 1.40E+00 | H47: 9.53E-01 | I47: 4.16E-01 | J47: 1.43E-01 | K47: 2.06E-01 | L47: 1.41E-01 | M47: 6.14E-02 | N47: 2.11E-02
B48: Case 3 | C48: Low | D48: Low | E48: High | F48: User | G48: 1.21E+02 | H48: 4.71E+01 | I48: 1.89E+01 | J48: 6.32E+00 | K48: 1.78E+01 | L48: 6.95E+00 | M48: 2.78E+00 | N48: 9.32E-01
F49: Bystander | G49: 1.27E+01 | H49: 8.66E+00 | I49: 3.79E+00 | J49: 1.30E+00 | K49: 1.87E+00 | L49: 1.28E+00 | M49: 5.58E-01 | N49: 1.92E-01
B50: Case 4 | C50: Low | D50: Medium | E50: Low | F50: Bystander | G50: 2.61E+01 | H50: 1.02E+01 | I50: 4.07E+00 | J50: 1.37E+00 | K50: 3.84E+00 | L50: 1.50E+00 | M50: 6.00E-01 | N50: 2.01E-01
F51: User | G51: 2.74E+00 | H51: 1.87E+00 | I51: 8.18E-01 | J51: 2.81E-01 | K51: 4.05E-01 | L51: 2.76E-01 | M51: 1.21E-01 | N51: 4.15E-02
B52: Case 5 | C52: Low | D52: Medium | E52: Medium | F52: Bystander | G52: 1.43E+02 | H52: 5.60E+01 | I52: 2.24E+01 | J52: 7.51E+00 | K52: 2.11E+01 | L52: 8.26E+00 | M52: 3.30E+00 | N52: 1.11E+00
F53: User | G53: 1.51E+01 | H53: 1.03E+01 | I53: 4.50E+00 | J53: 1.55E+00 | K53: 2.23E+00 | L53: 1.52E+00 | M53: 6.63E-01 | N53: 2.28E-01
B54: Case 6 | C54: Low | D54: Medium | E54: High | F54: Bystander | G54: 1.30E+03 | H54: 5.09E+02 | I54: 2.04E+02 | J54: 6.83E+01 | K54: 1.92E+02 | L54: 7.50E+01 | M54: 3.00E+01 | N54: 1.01E+01
F55: User | G55: 1.37E+02 | H55: 9.36E+01 | I55: 4.09E+01 | J55: 1.41E+01 | K55: 2.02E+01 | L55: 1.38E+01 | M55: 6.03E+00 | N55: 2.07E+00
B56: Case 7 | C56: Low | D56: High | E56: Low | F56: User | G56: 4.83E+01 | H56: 1.89E+01 | I56: 7.54E+00 | J56: 2.53E+00 | K56: 7.11E+00 | L56: 2.78E+00 | M56: 1.11E+00 | N56: 3.73E-01
F57: Bystander | G57: 5.08E+00 | H57: 3.46E+00 | I57: 1.51E+00 | J57: 5.21E-01 | K57: 7.49E-01 | L57: 5.11E-01 | M57: 2.23E-01 | N57: 7.68E-02
B58: Case 8 | C58: Low | D58: High | E58: Medium | F58: User | G58: 2.65E+02 | H58: 1.04E+02 | I58: 4.15E+01 | J58: 1.39E+01 | K58: 3.91E+01 | L58: 1.53E+01 | M58: 6.12E+00 | N58: 2.05E+00
F59: Bystander | G59: 2.80E+01 | H59: 1.91E+01 | I59: 8.33E+00 | J59: 2.86E+00 | K59: 4.12E+00 | L59: 2.81E+00 | M59: 1.23E+00 | N59: 4.22E-01
B60: Case 9 | C60: Low | D60: High | E60: High | F60: User | G60: 2.41E+03 | H60: 9.43E+02 | I60: 3.77E+02 | J60: 1.26E+02 | K60: 3.56E+02 | L60: 1.39E+02 | M60: 5.56E+01 | N60: 1.86E+01
F61: Bystander | G61: 2.54E+02 | H61: 1.73E+02 | I61: 7.57E+01 | J61: 2.60E+01 | K61: =(G61*24.45)/165.833 -> 3.75E+01 | L61: 2.55E+01 | M61: 1.12E+01 | N61: 3.84E+00

Sheet Aerosol Lubricant Derm AF
A1: Scenario:
A2: Spray Lubricant, Penetrating Oil
A3: Data Type:
A4: Estimated Dermal Doses Outputs - Absorption Fraction Method
A6: Scenario | B6: Case # | C6: Case Descriptors (Parameters Varied) | F6: Receptor | G6: Acute Dose Rate (mg/kg/day)
C7: Duration | D7: Weight Fraction | E7: Mass Used
A8: Spray Lubricant | B8: Case 1 | C8: High | D8: Low | E8: Low | F8: Adult (≥21 years) | G8: 3.52E-01
F9: Youth (16-20 years) | G9: 3.30E-01
F10: Youth (11-15 years) | G10: 3.60E-01
B11: Case 2 | C11: High | D11: Low | E11: Medium | F11: Adult (≥21 years) | G11: 3.52E-01
F12: Youth (16-20 years) | G12: 3.30E-01
F13: Youth (11-15 years) | G13: 3.60E-01
B14: Case 3 | C14: High | D14: Low | E14: High | F14: Adult (≥21 years) | G14: 3.52E-01
F15: Youth (16-20 years) | G15: 3.30E-01
F16: Youth (11-15 years) | G16: 3.60E-01
B17: Case 4 | C17: High | D17: Medium | E17: Low | F17: Adult (≥21 years) | G17: 3.80E+00
F18: Youth (16-20 years) | G18: 3.56E+00
F19: Youth (11-15 years) | G19: 3.89E+00
B20: Case 5 | C20: High | D20: Medium | E20: Medium | F20: Adult (≥21 years) | G20: 3.80E+00
F21: Youth (16-20 years) | G21: 3.56E+00
F22: Youth (11-15 years) | G22: 3.89E+00
B23: Case 6 | C23: High | D23: Medium | E23: High | F23: Adult (≥21 years) | G23: 3.80E+00
F24: Youth (16-20 years) | G24: 3.56E+00
F25: Youth (11-15 years) | G25: 3.89E+00
B26: Case 7 | C26: High | D26: High | E26: Low | F26: Adult (≥21 years) | G26: 7.04E+00
F27: Youth (16-20 years) | G27: 6.59E+00
F28: Youth (11-15 years) | G28: 7.21E+00
B29: Case 8 | C29: High | D29: High | E29: Medium | F29: Adult (≥21 years) | G29: 7.04E+00
F30: Youth (16-20 years) | G30: 6.59E+00
F31: Youth (11-15 years) | G31: 7.21E+00
B32: Case 9 | C32: High | D32: High | E32: High | F32: Adult (≥21 years) | G32: 7.04E+00
F33: Youth (16-20 years) | G33: 6.59E+00
F34: Youth (11-15 years) | G34: 7.21E+00
B35: Case 1 | C35: Medium | D35: Low | E35: Low | F35: Adult (≥21 years) | G35: 3.71E-02
F36: Youth (16-20 years) | G36: 3.47E-02
F37: Youth (11-15 years) | G37: 3.80E-02
B38: Case 2 | C38: Medium | D38: Low | E38: Medium | F38: Adult (≥21 years) | G38: 3.71E-02
F39: Youth (16-20 years) | G39: 3.47E-02
F40: Youth (11-15 years) | G40: 3.80E-02
B41: Case 3 | C41: Medium | D41: Low | E41: High | F41: Adult (≥21 years) | G41: 3.71E-02
F42: Youth (16-20 years) | G42: 3.47E-02
F43: Youth (11-15 years) | G43: 3.80E-02
B44: Case 4 | C44: Medium | D44: Medium | E44: Low | F44: Adult (≥21 years) | G44: 4.01E-01
F45: Youth (16-20 years) | G45: 3.75E-01
F46: Youth (11-15 years) | G46: 4.10E-01
B47: Case 5 | C47: Medium | D47: Medium | E47: Medium | F47: Adult (≥21 years) | G47: 4.01E-01
F48: Youth (16-20 years) | G48: 3.75E-01
F49: Youth (11-15 years) | G49: 4.10E-01
B50: Case 6 | C50: Medium | D50: Medium | E50: High | F50: Adult (≥21 years) | G50: 4.01E-01
F51: Youth (16-20 years) | G51: 3.75E-01
F52: Youth (11-15 years) | G52: 4.10E-01
B53: Case 7 | C53: Medium | D53: High | E53: Low | F53: Adult (≥21 years) | G53: 7.43E-01
F54: Youth (16-20 years) | G54: 6.95E-01
F55: Youth (11-15 years) | G55: 7.60E-01
B56: Case 8 | C56: Medium | D56: High | E56: Medium | F56: Adult (≥21 years) | G56: 7.43E-01
F57: Youth (16-20 years) | G57: 6.95E-01
F58: Youth (11-15 years) | G58: 7.60E-01
B59: Case 9 | C59: Medium | D59: High | E59: High | F59: Adult (≥21 years) | G59: 7.43E-01
F60: Youth (16-20 years) | G60: 6.95E-01
F61: Youth (11-15 years) | G61: 7.60E-01
B62: Case 1 | C62: Low | D62: Low | E62: Low | F62: Adult (≥21 years) | G62: 9.54E-03
F63: Youth (16-20 years) | G63: 8.93E-03
F64: Youth (11-15 years) | G64: 9.76E-03
B65: Case 2 | C65: Low | D65: Low | E65: Medium | F65: Adult (≥21 years) | G65: 9.54E-03
F66: Youth (16-20 years) | G66: 8.93E-03
F67: Youth (11-15 years) | G67: 9.76E-03
B68: Case 3 | C68: Low | D68: Low | E68: High | F68: Adult (≥21 years) | G68: 9.54E-03
F69: Youth (16-20 years) | G69: 8.93E-03
F70: Youth (11-15 years) | G70: 9.76E-03
B71: Case 4 | C71: Low | D71: Medium | E71: Low | F71: Adult (≥21 years) | G71: 1.03E-01
F72: Youth (16-20 years) | G72: 9.64E-02
F73: Youth (11-15 years) | G73: 1.05E-01
B74: Case 5 | C74: Low | D74: Medium | E74: Medium | F74: Adult (≥21 years) | G74: 1.03E-01
F75: Youth (16-20 years) | G75: 9.64E-02
F76: Youth (11-15 years) | G76: 1.05E-01
B77: Case 6 | C77: Low | D77: Medium | E77: High | F77: Adult (≥21 years) | G77: 1.03E-01
F78: Youth (16-20 years) | G78: 9.64E-02
F79: Youth (11-15 years) | G79: 1.05E-01
B80: Case 7 | C80: Low | D80: High | E80: Low | F80: Adult (≥21 years) | G80: 1.91E-01
F81: Youth (16-20 years) | G81: 1.79E-01
F82: Youth (11-15 years) | G82: 1.95E-01
B83: Case 8 | C83: Low | D83: High | E83: Medium | F83: Adult (≥21 years) | G83: 1.91E-01
F84: Youth (16-20 years) | G84: 1.79E-01
F85: Youth (11-15 years) | G85: 1.95E-01
B86: Case 9 | C86: Low | D86: High | E86: High | F86: Adult (≥21 years) | G86: 1.91E-01
F87: Youth (16-20 years) | G87: 1.79E-01
F88: Youth (11-15 years) | G88: 1.95E-01

Sheet Aerosol Lubricant Derm P
A1: Scenario:
A2: Spray Lubricant, Penetrating Oil
A3: Data Type:
A4: Estimated Dermal Doses Outputs - Permeability Method
A6: Scenario | B6: Case # | C6: Case Descriptors (Parameters Varied) | F6: Receptor | G6: Acute Dose Rate (mg/kg/day)
C7: Duration | D7: Weight Fraction | E7: Mass Used
A8: Spray Lubricant | B8: Case 1 | C8: High | D8: Low | E8: Low | F8: Adult (≥21 years) | G8: 2.12E-02
F9: Youth (16-20 years) | G9: 1.99E-02
F10: Youth (11-15 years) | G10: 2.17E-02
B11: Case 2 | C11: High | D11: Low | E11: Medium | F11: Adult (≥21 years) | G11: 2.12E-02
F12: Youth (16-20 years) | G12: 1.99E-02
F13: Youth (11-15 years) | G13: 2.17E-02
B14: Case 3 | C14: High | D14: Low | E14: High | F14: Adult (≥21 years) | G14: 2.12E-02
F15: Youth (16-20 years) | G15: 1.99E-02
F16: Youth (11-15 years) | G16: 2.17E-02
B17: Case 4 | C17: High | D17: Medium | E17: Low | F17: Adult (≥21 years) | G17: 2.29E-01
F18: Youth (16-20 years) | G18: 2.14E-01
F19: Youth (11-15 years) | G19: 2.35E-01
B20: Case 5 | C20: High | D20: Medium | E20: Medium | F20: Adult (≥21 years) | G20: 2.29E-01
F21: Youth (16-20 years) | G21: 2.14E-01
F22: Youth (11-15 years) | G22: 2.35E-01
B23: Case 6 | C23: High | D23: Medium | E23: High | F23: Adult (≥21 years) | G23: 2.29E-01
F24: Youth (16-20 years) | G24: 2.14E-01
F25: Youth (11-15 years) | G25: 2.35E-01
B26: Case 7 | C26: High | D26: High | E26: Low | F26: Adult (≥21 years) | G26: 4.24E-01
F27: Youth (16-20 years) | G27: 3.97E-01
F28: Youth (11-15 years) | G28: 4.34E-01
B29: Case 8 | C29: High | D29: High | E29: Medium | F29: Adult (≥21 years) | G29: 4.24E-01
F30: Youth (16-20 years) | G30: 3.97E-01
F31: Youth (11-15 years) | G31: 4.34E-01
B32: Case 9 | C32: High | D32: High | E32: High | F32: Adult (≥21 years) | G32: 4.24E-01
F33: Youth (16-20 years) | G33: 3.97E-01
F34: Youth (11-15 years) | G34: 4.34E-01
B35: Case 1 | C35: Medium | D35: Low | E35: Low | F35: Adult (≥21 years) | G35: 1.41E-03
F36: Youth (16-20 years) | G36: 1.32E-03
F37: Youth (11-15 years) | G37: 1.45E-03
B38: Case 2 | C38: Medium | D38: Low | E38: Medium | F38: Adult (≥21 years) | G38: 1.41E-03
F39: Youth (16-20 years) | G39: 1.32E-03
F40: Youth (11-15 years) | G40: 1.45E-03
B41: Case 3 | C41: Medium | D41: Low | E41: High | F41: Adult (≥21 years) | G41: 1.41E-03
F42: Youth (16-20 years) | G42: 1.32E-03
F43: Youth (11-15 years) | G43: 1.45E-03
B44: Case 4 | C44: Medium | D44: Medium | E44: Low | F44: Adult (≥21 years) | G44: 1.53E-02
F45: Youth (16-20 years) | G45: 1.43E-02
F46: Youth (11-15 years) | G46: 1.56E-02
B47: Case 5 | C47: Medium | D47: Medium | E47: Medium | F47: Adult (≥21 years) | G47: 1.53E-02
F48: Youth (16-20 years) | G48: 1.43E-02
F49: Youth (11-15 years) | G49: 1.56E-02
B50: Case 6 | C50: Medium | D50: Medium | E50: High | F50: Adult (≥21 years) | G50: 1.53E-02
F51: Youth (16-20 years) | G51: 1.43E-02
F52: Youth (11-15 years) | G52: 1.56E-02
B53: Case 7 | C53: Medium | D53: High | E53: Low | F53: Adult (≥21 years) | G53: 2.83E-02
F54: Youth (16-20 years) | G54: 2.65E-02
F55: Youth (11-15 years) | G55: 2.90E-02
B56: Case 8 | C56: Medium | D56: High | E56: Medium | F56: Adult (≥21 years) | G56: 2.83E-02
F57: Youth (16-20 years) | G57: 2.65E-02
F58: Youth (11-15 years) | G58: 2.90E-02
B59: Case 9 | C59: Medium | D59: High | E59: High | F59: Adult (≥21 years) | G59: 2.83E-02
F60: Youth (16-20 years) | G60: 2.65E-02
F61: Youth (11-15 years) | G61: 2.90E-02
B62: Case 1 | C62: Low | D62: Low | E62: Low | F62: Adult (≥21 years) | G62: 3.54E-04
F63: Youth (16-20 years) | G63: 3.31E-04
F64: Youth (11-15 years) | G64: 3.62E-04
B65: Case 2 | C65: Low | D65: Low | E65: Medium | F65: Adult (≥21 years) | G65: 3.54E-04
F66: Youth (16-20 years) | G66: 3.31E-04
F67: Youth (11-15 years) | G67: 3.62E-04
B68: Case 3 | C68: Low | D68: Low | E68: High | F68: Adult (≥21 years) | G68: 3.54E-04
F69: Youth (16-20 years) | G69: 3.31E-04
F70: Youth (11-15 years) | G70: 3.62E-04
B71: Case 4 | C71: Low | D71: Medium | E71: Low | F71: Adult (≥21 years) | G71: 3.82E-03
F72: Youth (16-20 years) | G72: 3.57E-03
F73: Youth (11-15 years) | G73: 3.91E-03
B74: Case 5 | C74: Low | D74: Medium | E74: Medium | F74: Adult (≥21 years) | G74: 3.82E-03
F75: Youth (16-20 years) | G75: 3.57E-03
F76: Youth (11-15 years) | G76: 3.91E-03
B77: Case 6 | C77: Low | D77: Medium | E77: High | F77: Adult (≥21 years) | G77: 3.82E-03
F78: Youth (16-20 years) | G78: 3.57E-03
F79: Youth (11-15 years) | G79: 3.91E-03
B80: Case 7 | C80: Low | D80: High | E80: Low | F80: Adult (≥21 years) | G80: 7.07E-03
F81: Youth (16-20 years) | G81: 6.62E-03
F82: Youth (11-15 years) | G82: 7.24E-03
B83: Case 8 | C83: Low | D83: High | E83: Medium | F83: Adult (≥21 years) | G83: 7.07E-03
F84: Youth (16-20 years) | G84: 6.62E-03
F85: Youth (11-15 years) | G85: 7.24E-03
B86: Case 9 | C86: Low | D86: High | E86: High | F86: Adult (≥21 years) | G86: 7.07E-03
F87: Youth (16-20 years) | G87: 6.62E-03
F88: Youth (11-15 years) | G88: 7.24E-03

Sheet Adhesives Inh
A1: Scenario:
A2: Industrial adhesive; Adhesive; Arts and crafts adhesive; Gun ammunition sealant
A3: Data Type:
A4: Estimated Inhalation Concentrations Outputs
A6: Scenario | B6: Case # | C6: Case Descriptors (Parameters Varied) | F6: Receptor | G6: Concentration (mg/m3) | K6: Concentration (ppm)
C7: Duration | D7: Weight Fraction | E7: Mass Used | G7: 1-hr TWA | H7: 3-hr TWA | I7: 8-hr TWA | J7: 24-hr TWA | K7: 1-hr TWA | L7: 3-hr TWA | M7: 8-hr TWA | N7: 24-hr TWA
A8: Adhesives | B8: Case 1 | C8: High | D8: Low | E8: Low | F8: User | G8: 3.36E+00 | H8: 1.37E+00 | I8: 5.55E-01 | J8: 1.86E-01 | K8: =(G8*24.45)/165.833 -> 4.96E-01 | L8: =(H8*24.45)/165.833 -> 2.01E-01 | M8: 8.18E-02 | N8: 2.75E-02
F9: Bystander | G9: 4.42E-01 | H9: 3.10E-01 | I9: 1.36E-01 | J9: 4.67E-02 | K9: =(G9*24.45)/165.833 -> 6.51E-02 | L9: =(H9*24.45)/165.833 -> 4.56E-02 | M9: =(I9*24.45)/165.833 -> 2.00E-02 | N9: =(J9*24.45)/165.833 -> 6.89E-03
B10: Case 2 | C10: High | D10: Low | E10: Medium | F10: User | G10: 2.80E+01 | H10: 1.14E+01 | I10: 4.63E+00 | J10: 1.56E+00 | K10: 4.14E+00 | L10: 1.68E+00 | M10: 6.83E-01 | N10: 2.29E-01
F11: Bystander | G11: 3.69E+00 | H11: 2.58E+00 | I11: 1.13E+00 | J11: 3.90E-01 | K11: 5.44E-01 | L11: 3.81E-01 | M11: 1.67E-01 | N11: 5.75E-02
B12: Case 3 | C12: High | D12: Low | E12: High | F12: User | G12: 4.85E+02 | H12: 1.97E+02 | I12: 8.01E+01 | J12: 2.69E+01 | K12: 7.15E+01 | L12: 2.90E+01 | M12: 1.18E+01 | N12: 3.97E+00
F13: Bystander | G13: 6.37E+01 | H13: 4.47E+01 | I13: 1.96E+01 | J13: 6.74E+00 | K13: 9.40E+00 | L13: 6.58E+00 | M13: 2.89E+00 | N13: 9.94E-01
B14: Case 4 | C14: High | D14: Medium | E14: Low | F14: User | G14: 9.97E+00 | H14: 4.05E+00 | I14: 1.65E+00 | J14: 5.53E-01 | K14: 1.47E+00 | L14: 5.97E-01 | M14: 2.43E-01 | N14: 8.16E-02
F15: Bystander | G15: 1.31E+00 | H15: 9.18E-01 | I15: 4.03E-01 | J15: 1.39E-01 | K15: 1.93E-01 | L15: 1.35E-01 | M15: 5.94E-02 | N15: 2.04E-02
B16: Case 5 | C16: High | D16: Medium | E16: Medium | F16: User | G16: 8.32E+01 | H16: 3.38E+01 | I16: 1.37E+01 | J16: 4.62E+00 | K16: 1.23E+01 | L16: 4.98E+00 | M16: 2.03E+00 | N16: 6.81E-01
F17: Bystander | G17: 1.09E+01 | H17: 7.66E+00 | I17: 3.36E+00 | J17: 1.16E+00 | K17: 1.61E+00 | L17: 1.13E+00 | M17: 4.96E-01 | N17: 1.71E-01
B18: Case 6 | C18: High | D18: Medium | E18: High | F18: User | G18: 1.44E+03 | H18: 5.84E+02 | I18: 2.38E+02 | J18: 7.98E+01 | K18: 2.12E+02 | L18: 8.62E+01 | M18: 3.50E+01 | N18: 1.18E+01
F19: Bystander | G19: 1.89E+02 | H19: 1.32E+02 | I19: 5.81E+01 | J19: 2.00E+01 | K19: 2.79E+01 | L19: 1.95E+01 | M19: 8.57E+00 | N19: 2.95E+00
B20: Case 7 | C20: High | D20: High | E20: Low | F20: User | G20: 1.12E+01 | H20: 4.55E+00 | I20: 1.85E+00 | J20: 6.22E-01 | K20: 1.65E+00 | L20: 6.71E-01 | M20: 2.73E-01 | N20: 9.17E-02
F21: Bystander | G21: 1.47E+00 | H21: 1.03E+00 | I21: 4.53E-01 | J21: 1.56E-01 | K21: 2.17E-01 | L21: 1.52E-01 | M21: 6.67E-02 | N21: 2.30E-02
B22: Case 8 | C22: High | D22: High | E22: Medium | F22: User | G22: 9.35E+01 | H22: 3.80E+01 | I22: 1.54E+01 | J22: 5.19E+00 | K22: 1.38E+01 | L22: 5.60E+00 | M22: 2.28E+00 | N22: 7.65E-01
F23: Bystander | G23: 1.23E+01 | H23: 8.61E+00 | I23: 3.78E+00 | J23: 1.30E+00 | K23: 1.81E+00 | L23: 1.27E+00 | M23: 5.57E-01 | N23: 1.92E-01
B24: Case 9 | C24: High | D24: High | E24: High | F24: User | G24: 1.62E+03 | H24: 6.57E+02 | I24: 2.67E+02 | J24: 8.97E+01 | K24: 2.38E+02 | L24: 9.68E+01 | M24: 3.94E+01 | N24: 1.32E+01
F25: Bystander | G25: 2.12E+02 | H25: 1.49E+02 | I25: 6.53E+01 | J25: 2.25E+01 | K25: 3.13E+01 | L25: 2.19E+01 | M25: 9.63E+00 | N25: 3.31E+00
B26: Case 1 | C26: Medium | D26: Low | E26: Low | F26: User | G26: 3.79E+00 | H26: 1.47E+00 | I26: 5.85E-01 | J26: 1.96E-01 | K26: 5.58E-01 | L26: 2.16E-01 | M26: 8.62E-02 | N26: 2.89E-02
F27: Bystander | G27: 3.75E-01 | H27: 2.55E-01 | I27: 1.12E-01 | J27: 3.84E-02 | K27: 5.52E-02 | L27: 3.77E-02 | M27: 1.65E-02 | N27: 5.66E-03
B28: Case 2 | C28: Medium | D28: Low | E28: Medium | F28: User | G28: 3.16E+01 | H28: 1.22E+01 | I28: 4.88E+00 | J28: 1.64E+00 | K28: 4.66E+00 | L28: 1.80E+00 | M28: 7.19E-01 | N28: 2.41E-01
F29: Bystander | G29: 3.13E+00 | H29: 2.13E+00 | I29: 9.32E-01 | J29: 3.20E-01 | K29: 4.61E-01 | L29: 3.14E-01 | M29: 1.37E-01 | N29: 4.72E-02
B30: Case 3 | C30: Medium | D30: Low | E30: High | F30: User | G30: 5.46E+02 | H30: 2.12E+02 | I30: 8.43E+01 | J30: 2.83E+01 | K30: 8.06E+01 | L30: 3.12E+01 | M30: 1.24E+01 | N30: 4.17E+00
F31: Bystander | G31: 5.41E+01 | H31: 3.69E+01 | I31: 1.61E+01 | J31: 5.54E+00 | K31: 7.97E+00 | L31: 5.43E+00 | M31: 2.37E+00 | N31: 8.17E-01
B32: Case 4 | C32: Medium | D32: Medium | E32: Low | F32: User | G32: 1.12E+01 | H32: 4.35E+00 | I32: 1.73E+00 | J32: 5.82E-01 | K32: 1.66E+00 | L32: 6.41E-01 | M32: 2.56E-01 | N32: 8.58E-02
F33: Bystander | G33: 1.11E+00 | H33: 7.58E-01 | I33: 3.31E-01 | J33: 1.14E-01 | K33: 1.64E-01 | L33: 1.12E-01 | M33: 4.88E-02 | N33: 1.68E-02
B34: Case 5 | C34: Medium | D34: Medium | E34: Medium | F34: User | G34: 9.38E+01 | H34: 3.63E+01 | I34: 1.45E+01 | J34: 4.85E+00 | K34: 1.38E+01 | L34: 5.35E+00 | M34: 2.13E+00 | N34: 7.16E-01
F35: Bystander | G35: 9.28E+00 | H35: 6.32E+00 | I35: 2.76E+00 | J35: 9.50E-01 | K35: 1.37E+00 | L35: 9.32E-01 | M35: 4.07E-01 | N35: 1.40E-01
B36: Case 6 | C36: Medium | D36: Medium | E36: High | F36: User | G36: 1.62E+03 | H36: 6.28E+02 | I36: 2.50E+02 | J36: 8.39E+01 | K36: 2.39E+02 | L36: 9.25E+01 | M36: 3.69E+01 | N36: 1.24E+01
F37: Bystander | G37: 1.60E+02 | H37: 1.09E+02 | I37: 4.78E+01 | J37: 1.64E+01 | K37: 2.36E+01 | L37: 1.61E+01 | M37: 7.04E+00 | N37: 2.42E+00
B38: Case 7 | C38: Medium | D38: High | E38: Low | F38: User | G38: 1.26E+01 | H38: 4.89E+00 | I38: 1.95E+00 | J38: 6.54E-01 | K38: 1.86E+00 | L38: 7.21E-01 | M38: 2.87E-01 | N38: 9.64E-02
F39: Bystander | G39: 1.25E+00 | H39: 8.52E-01 | I39: 3.72E-01 | J39: 1.28E-01 | K39: 1.84E-01 | L39: 1.26E-01 | M39: 5.49E-02 | N39: 1.89E-02
B40: Case 8 | C40: Medium | D40: High | E40: Medium | F40: User | G40: 1.05E+02 | H40: 4.08E+01 | I40: 1.63E+01 | J40: 5.45E+00 | K40: 1.55E+01 | L40: 6.01E+00 | M40: 2.40E+00 | N40: 8.04E-01
F41: Bystander | G41: 1.04E+01 | H41: 7.11E+00 | I41: 3.11E+00 | J41: 1.07E+00 | K41: 1.54E+00 | L41: 1.05E+00 | M41: 4.58E-01 | N41: 1.57E-01
B42: Case 9 | C42: Medium | D42: High | E42: High | F42: User | G42: 1.82E+03 | H42: 7.05E+02 | I42: 2.81E+02 | J42: 9.43E+01 | K42: 2.69E+02 | L42: 1.04E+02 | M42: 4.15E+01 | N42: 1.39E+01
F43: Bystander | G43: 1.80E+02 | H43: 1.23E+02 | I43: 5.37E+01 | J43: 1.85E+01 | K43: 2.66E+01 | L43: 1.81E+01 | M43: 7.92E+00 | N43: 2.72E+00
B44: Case 1 | C44: Low | D44: Low | E44: Low | F44: User | G44: 3.47E+00 | H44: 1.36E+00 | I44: 5.43E-01 | J44: 1.82E-01 | K44: 5.11E-01 | L44: 2.00E-01 | M44: 8.00E-02 | N44: 2.69E-02
F45: Bystander | G45: 3.70E-01 | H45: 2.52E-01 | I45: 1.10E-01 | J45: 3.79E-02 | K45: 5.45E-02 | L45: 3.71E-02 | M45: 1.62E-02 | N45: 5.58E-03
B46: Case 2 | C46: Low | D46: Low | E46: Medium | F46: User | G46: 2.89E+01 | H46: 1.13E+01 | I46: 4.53E+00 | J46: 1.52E+00 | K46: 4.26E+00 | L46: 1.67E+00 | M46: 6.68E-01 | N46: 2.24E-01
F47: Bystander | G47: 3.08E+00 | H47: 2.10E+00 | I47: 9.19E-01 | J47: 3.16E-01 | K47: 4.55E-01 | L47: 3.10E-01 | M47: 1.35E-01 | N47: 4.66E-02
B48: Case 3 | C48: Low | D48: Low | E48: High | F48: User | G48: 5.00E+02 | H48: 1.96E+02 | I48: 7.83E+01 | J48: 2.63E+01 | K48: 7.37E+01 | L48: 2.88E+01 | M48: 1.15E+01 | N48: 3.87E+00
F49: Bystander | G49: 5.33E+01 | H49: 3.63E+01 | I49: 1.59E+01 | J49: 5.46E+00 | K49: 7.86E+00 | L49: 5.36E+00 | M49: 2.34E+00 | N49: 8.05E-01
B50: Case 4 | C50: Low | D50: Medium | E50: Low | F50: User | G50: 1.03E+01 | H50: 4.02E+00 | I50: 1.61E+00 | J50: 5.40E-01 | K50: 1.52E+00 | L50: 5.93E-01 | M50: 2.37E-01 | N50: 7.97E-02
F51: Bystander | G51: 1.10E+00 | H51: 7.47E-01 | I51: 3.27E-01 | J51: 1.12E-01 | K51: 1.62E-01 | L51: 1.10E-01 | M51: 4.82E-02 | N51: 1.66E-02
B52: Case 5 | C52: Low | D52: Medium | E52: Medium | F52: User | G52: 8.58E+01 | H52: 3.36E+01 | I52: 1.34E+01 | J52: 4.51E+00 | K52: 1.27E+01 | L52: 4.95E+00 | M52: 1.98E+00 | N52: 6.65E-01
F53: Bystander | G53: 9.15E+00 | H53: 6.24E+00 | I53: 2.73E+00 | J53: 9.37E-01 | K53: 1.35E+00 | L53: 9.19E-01 | M53: 4.02E-01 | N53: 1.38E-01
B54: Case 6 | C54: Low | D54: Medium | E54: High | F54: User | G54: 1.48E+03 | H54: 5.80E+02 | I54: 2.32E+02 | J54: 7.79E+01 | K54: 2.19E+02 | L54: 8.56E+01 | M54: 3.43E+01 | N54: 1.15E+01
F55: Bystander | G55: 1.58E+02 | H55: 1.08E+02 | I55: 4.71E+01 | J55: 1.62E+01 | K55: 2.33E+01 | L55: 1.59E+01 | M55: 6.95E+00 | N55: 2.39E+00
B56: Case 7 | C56: Low | D56: High | E56: Low | F56: User | G56: 1.16E+01 | H56: 4.52E+00 | I56: 1.81E+00 | J56: 6.07E-01 | K56: 1.70E+00 | L56: 6.67E-01 | M56: 2.67E-01 | N56: 8.95E-02
F57: Bystander | G57: 1.23E+00 | H57: 8.40E-01 | I57: 3.67E-01 | J57: 1.26E-01 | K57: 1.82E-01 | L57: 1.24E-01 | M57: 5.41E-02 | N57: 1.86E-02
B58: Case 8 | C58: Low | D58: High | E58: Medium | F58: User | G58: 9.64E+01 | H58: 3.77E+01 | I58: 1.51E+01 | J58: 5.07E+00 | K58: 1.42E+01 | L58: 5.56E+00 | M58: 2.23E+00 | N58: 7.47E-01
F59: Bystander | G59: 1.03E+01 | H59: 7.01E+00 | I59: 3.06E+00 | J59: 1.05E+00 | K59: 1.52E+00 | L59: 1.03E+00 | M59: 4.51E-01 | N59: 1.55E-01
B60: Case 9 | C60: Low | D60: High | E60: High | F60: User | G60: 1.67E+03 | H60: 6.52E+02 | I60: 2.61E+02 | J60: 8.76E+01 | K60: 2.46E+02 | L60: 9.62E+01 | M60: 3.85E+01 | N60: 1.29E+01
F61: Bystander | G61: 1.78E+02 | H61: 1.21E+02 | I61: 5.29E+01 | J61: 1.82E+01 | K61: 2.62E+01 | L61: 1.79E+01 | M61: 7.80E+00 | N61: 2.68E+00

Sheet Adhesives Derm AF
A1: Scenario:
A2: Industrial adhesive; Adhesive; Arts and crafts adhesive; Gun ammunition sealant
A3: Data Type:
A4: Estimated Dermal Doses Outputs - Absorption Fraction Method
A6: Scenario | B6: Case # | C6: Case Descriptors (Parameters Varied) | F6: Receptor | G6: Acute Dose Rate (mg/kg/day)
C7: Duration | D7: Weight Fraction | E7: Mass Used
A8: Adhesives | B8: Case 1 | C8: High | D8: Low | E8: Low | F8: Adult (≥21 years) | G8: 1.79E+00
F9: Youth (16-20 years) | G9: 1.68E+00
F10: Youth (11-15 years) | G10: 1.84E+00
B11: Case 2 | C11: High | D11: Low | E11: Medium | F11: Adult (≥21 years) | G11: 1.79E+00
F12: Youth (16-20 years) | G12: 1.68E+00
F13: Youth (11-15 years) | G13: 1.84E+00
B14: Case 3 | C14: High | D14: Low | E14: High | F14: Adult (≥21 years) | G14: 1.79E+00
F15: Youth (16-20 years) | G15: 1.68E+00
F16: Youth (11-15 years) | G16: 1.84E+00
B17: Case 4 | C17: High | D17: Medium | E17: Low | F17: Adult (≥21 years) | G17: 5.32E+00
F18: Youth (16-20 years) | G18: 4.98E+00
F19: Youth (11-15 years) | G19: 5.44E+00
B20: Case 5 | C20: High | D20: Medium | E20: Medium | F20: Adult (≥21 years) | G20: 5.32E+00
F21: Youth (16-20 years) | G21: 4.98E+00
F22: Youth (11-15 years) | G22: 5.44E+00
B23: Case 6 | C23: High | D23: Medium | E23: High | F23: Adult (≥21 years) | G23: 5.32E+00
F24: Youth (16-20 years) | G24: 4.98E+00
F25: Youth (11-15 years) | G25: 5.44E+00
B26: Case 7 | C26: High | D26: High | E26: Low | F26: Adult (≥21 years) | G26: 5.98E+00
F27: Youth (16-20 years) | G27: 5.59E+00
F28: Youth (11-15 years) | G28: 6.12E+00
B29: Case 8 | C29: High | D29: High | E29: Medium | F29: Adult (≥21 years) | G29: 5.98E+00
F30: Youth (16-20 years) | G30: 5.59E+00
F31: Youth (11-15 years) | G31: 6.12E+00
B32: Case 9 | C32: High | D32: High | E32: High | F32: Adult (≥21 years) | G32: 5.98E+00
F33: Youth (16-20 years) | G33: 5.59E+00
F34: Youth (11-15 years) | G34: 6.12E+00
B35: Case 1 | C35: Medium | D35: Low | E35: Low | F35: Adult (≥21 years) | G35: 2.89E-01
F36: Youth (16-20 years) | G36: 2.70E-01
F37: Youth (11-15 years) | G37: 2.95E-01
B38: Case 2 | C38: Medium | D38: Low | E38: Medium | F38: Adult (≥21 years) | G38: 2.89E-01
F39: Youth (16-20 years) | G39: 2.70E-01
F40: Youth (11-15 years) | G40: 2.95E-01
B41: Case 3 | C41: Medium | D41: Low | E41: High | F41: Adult (≥21 years) | G41: 2.89E-01
F42: Youth (16-20 years) | G42: 2.70E-01
F43: Youth (11-15 years) | G43: 2.95E-01
B44: Case 4 | C44: Medium | D44: Medium | E44: Low | F44: Adult (≥21 years) | G44: 8.56E-01
F45: Youth (16-20 years) | G45: 8.01E-01
F46: Youth (11-15 years) | G46: 8.76E-01
B47: Case 5 | C47: Medium | D47: Medium | E47: Medium | F47: Adult (≥21 years) | G47: 8.56E-01
F48: Youth (16-20 years) | G48: 8.01E-01
F49: Youth (11-15 years) | G49: 8.76E-01
B50: Case 6 | C50: Medium | D50: Medium | E50: High | F50: Adult (≥21 years) | G50: 8.56E-01
F51: Youth (16-20 years) | G51: 8.01E-01
F52: Youth (11-15 years) | G52: 8.76E-01
B53: Case 7 | C53: Medium | D53: High | E53: Low | F53: Adult (≥21 years) | G53: 9.62E-01
F54: Youth (16-20 years) | G54: 9.00E-01
F55: Youth (11-15 years) | G55: 9.84E-01
B56: Case 8 | C56: Medium | D56: High | E56: Medium | F56: Adult (≥21 years) | G56: 9.62E-01
F57: Youth (16-20 years) | G57: 9.00E-01
F58: Youth (11-15 years) | G58: 9.84E-01
B59: Case 9 | C59: Medium | D59: High | E59: High | F59: Adult (≥21 years) | G59: 9.62E-01
F60: Youth (16-20 years) | G60: 9.00E-01
F61: Youth (11-15 years) | G61: 9.84E-01
B62: Case 1 | C62: Low | D62: Low | E62: Low | F62: Adult (≥21 years) | G62: 3.63E-02
F63: Youth (16-20 years) | G63: 3.40E-02
F64: Youth (11-15 years) | G64: 3.72E-02
B65: Case 2 | C65: Low | D65: Low | E65: Medium | F65: Adult (≥21 years) | G65: 3.63E-02
F66: Youth (16-20 years) | G66: 3.40E-02
F67: Youth (11-15 years) | G67: 3.72E-02
B68: Case 3 | C68: Low | D68: Low | E68: High | F68: Adult (≥21 years) | G68: 3.63E-02
F69: Youth (16-20 years) | G69: 3.40E-02
F70: Youth (11-15 years) | G70: 3.72E-02
B71: Case 4 | C71: Low | D71: Medium | E71: Low | F71: Adult (≥21 years) | G71: 1.08E-01
F72: Youth (16-20 years) | G72: 1.01E-01
F73: Youth (11-15 years) | G73: 1.10E-01
B74: Case 5 | C74: Low | D74: Medium | E74: Medium | F74: Adult (≥21 years) | G74: 1.08E-01
F75: Youth (16-20 years) | G75: 1.01E-01
F76: Youth (11-15 years) | G76: 1.10E-01
B77: Case 6 | C77: Low | D77: Medium | E77: High | F77: Adult (≥21 years) | G77: 1.08E-01
F78: Youth (16-20 years) | G78: 1.01E-01
F79: Youth (11-15 years) | G79: 1.10E-01
B80: Case 7 | C80: Low | D80: High | E80: Low | F80: Adult (≥21 years) | G80: 1.21E-01
F81: Youth (16-20 years) | G81: 1.13E-01
F82: Youth (11-15 years) | G82: 1.24E-01
B83: Case 8 | C83: Low | D83: High | E83: Medium | F83: Adult (≥21 years) | G83: 1.21E-01
F84: Youth (16-20 years) | G84: 1.13E-01
F85: Youth (11-15 years) | G85: 1.24E-01
B86: Case 9 | C86: Low | D86: High | E86: High | F86: Adult (≥21 years) | G86: 1.21E-01
F87: Youth (16-20 years) | G87: 1.13E-01
F88: Youth (11-15 years) | G88: 1.24E-01

Sheet Adhesives Derm P
A1: Scenario:
A2: Industrial adhesive; Adhesive; Arts and crafts adhesive; Gun ammunition sealant
A3: Data Type:
A4: Estimated Dermal Doses Outputs - Permeability Method
A6: Scenario | B6: Case # | C6: Case Descriptors (Parameters Varied) | F6: Receptor | G6: Acute Dose Rate (mg/kg/day)
C7: Duration | D7: Weight Fraction | E7: Mass Used
A8: Adhesives | B8: Case 1 | C8: High | D8: Low | E8: Low | F8: Adult (≥21 years) | G8: 5.15E-01
F9: Youth (16-20 years) | G9: 4.82E-01
F10: Youth (11-15 years) | G10: 5.27E-01
B11: Case 2 | C11: High | D11: Low | E11: Medium | F11: Adult (≥21 years) | G11: 5.15E-01
F12: Youth (16-20 years) | G12: 4.82E-01
F13: Youth (11-15 years) | G13: 5.27E-01
B14: Case 3 | C14: High | D14: Low | E14: High | F14: Adult (≥21 years) | G14: 5.15E-01
F15: Youth (16-20 years) | G15: 4.82E-01
F16: Youth (11-15 years) | G16: 5.27E-01
B17: Case 4 | C17: High | D17: Medium | E17: Low | F17: Adult (≥21 years) | G17: 1.53E+00
F18: Youth (16-20 years) | G18: 1.43E+00
F19: Youth (11-15 years) | G19: 1.56E+00
B20: Case 5 | C20: High | D20: Medium | E20: Medium | F20: Adult (≥21 years) | G20: 1.53E+00
F21: Youth (16-20 years) | G21: 1.43E+00
F22: Youth (11-15 years) | G22: 1.56E+00
B23: Case 6 | C23: High | D23: Medium | E23: High | F23: Adult (≥21 years) | G23: 1.53E+00
F24: Youth (16-20 years) | G24: 1.43E+00
F25: Youth (11-15 years) | G25: 1.56E+00
B26: Case 7 | C26: High | D26: High | E26: Low | F26: Adult (≥21 years) | G26: 1.72E+00
F27: Youth (16-20 years) | G27: 1.61E+00
F28: Youth (11-15 years) | G28: 1.76E+00
B29: Case 8 | C29: High | D29: High | E29: Medium | F29: Adult (≥21 years) | G29: 1.72E+00
F30: Youth (16-20 years) | G30: 1.61E+00
F31: Youth (11-15 years) | G31: 1.76E+00
B32: Case 9 | C32: High | D32: High | E32: High | F32: Adult (≥21 years) | G32: 1.72E+00
F33: Youth (16-20 years) | G33: 1.61E+00
F34: Youth (11-15 years) | G34: 1.76E+00
B35: Case 1 | C35: Medium | D35: Low | E35: Low | F35: Adult (≥21 years) | G35: 3.65E-02
F36: Youth (16-20 years) | G36: 3.41E-02
F37: Youth (11-15 years) | G37: 3.73E-02
B38: Case 2 | C38: Medium | D38: Low | E38: Medium | F38: Adult (≥21 years) | G38: 3.65E-02
F39: Youth (16-20 years) | G39: 3.41E-02
F40: Youth (11-15 years) | G40: 3.73E-02
B41: Case 3 | C41: Medium | D41: Low | E41: High | F41: Adult (≥21 years) | G41: 3.65E-02
F42: Youth (16-20 years) | G42: 3.41E-02
F43: Youth (11-15 years) | G43: 3.73E-02
B44: Case 4 | C44: Medium | D44: Medium | E44: Low | F44: Adult (≥21 years) | G44: 1.08E-01
F45: Youth (16-20 years) | G45: 1.01E-01
F46: Youth (11-15 years) | G46: 1.11E-01
B47: Case 5 | C47: Medium | D47: Medium | E47: Medium | F47: Adult (≥21 years) | G47: 1.08E-01
F48: Youth (16-20 years) | G48: 1.01E-01
F49: Youth (11-15 years) | G49: 1.11E-01
B50: Case 6 | C50: Medium | D50: Medium | E50: High | F50: Adult (≥21 years) | G50: 1.08E-01
F51: Youth (16-20 years) | G51: 1.01E-01
F52: Youth (11-15 years) | G52: 1.11E-01
B53: Case 7 | C53: Medium | D53: High | E53: Low | F53: Adult (≥21 years) | G53: 1.22E-01
F54: Youth (16-20 years) | G54: 1.14E-01
F55: Youth (11-15 years) | G55: 1.24E-01
B56: Case 8 | C56: Medium | D56: High | E56: Medium | F56: Adult (≥21 years) | G56: 1.22E-01
F57: Youth (16-20 years) | G57: 1.14E-01
F58: Youth (11-15 years) | G58: 1.24E-01
B59: Case 9 | C59: Medium | D59: High | E59: High | F59: Adult (≥21 years) | G59: 1.22E-01
F60: Youth (16-20 years) | G60: 1.14E-01
F61: Youth (11-15 years) | G61: 1.24E-01
B62: Case 1 | C62: Low | D62: Low | E62: Low | F62: Adult (≥21 years) | G62: 4.29E-03
F63: Youth (16-20 years) | G63: 4.01E-03
F64: Youth (11-15 years) | G64: 4.39E-03
B65: Case 2 | C65: Low | D65: Low | E65: Medium | F65: Adult (≥21 years) | G65: 4.29E-03
F66: Youth (16-20 years) | G66: 4.01E-03
F67: Youth (11-15 years) | G67: 4.39E-03
B68: Case 3 | C68: Low | D68: Low | E68: High | F68: Adult (≥21 years) | G68: 4.29E-03
F69: Youth (16-20 years) | G69: 4.01E-03
F70: Youth (11-15 years) | G70: 4.39E-03
B71: Case 4 | C71: Low | D71: Medium | E71: Low | F71: Adult (≥21 years) | G71: 1.27E-02
F72: Youth (16-20 years) | G72: 1.19E-02
F73: Youth (11-15 years) | G73: 1.30E-02
B74: Case 5 | C74: Low | D74: Medium | E74: Medium | F74: Adult (≥21 years) | G74: 1.27E-02
F75: Youth (16-20 years) | G75: 1.19E-02
F76: Youth (11-15 years) | G76: 1.30E-02
B77: Case 6 | C77: Low | D77: Medium | E77: High | F77: Adult (≥21 years) | G77: 1.27E-02
F78: Youth (16-20 years) | G78: 1.19E-02
F79: Youth (11-15 years) | G79: 1.30E-02
B80: Case 7 | C80: Low | D80: High | E80: Low | F80: Adult (≥21 years) | G80: 1.43E-02
F81: Youth (16-20 years) | G81: 1.34E-02
F82: Youth (11-15 years) | G82: 1.46E-02
B83: Case 8 | C83: Low | D83: High | E83: Medium | F83: Adult (≥21 years) | G83: 1.43E-02
F84: Youth (16-20 years) | G84: 1.34E-02
F85: Youth (11-15 years) | G85: 1.46E-02
B86: Case 9 | C86: Low | D86: High | E86: High | F86: Adult (≥21 years) | G86: 1.43E-02
F87: Youth (16-20 years) | G87: 1.34E-02
F88: Youth (11-15 years) | G88: 1.46E-02

Sheet Livestock Groom Adh Inh
A1: Scenario:
A2: Livestock Grooming Adhesive
A3: Data Type:
A4: Estimated Inhalation Concentrations Outputs
A6: Scenario | B6: Case # | C6: Case Descriptors (Parameters Varied) | F6: Receptor | G6: Concentration (mg/m3) | K6: Concentration (ppm)
C7: Duration | D7: Weight Fraction | E7: Mass Used | G7: 1-hr TWA | H7: 3-hr TWA | I7: 8-hr TWA | J7: 24-hr TWA | K7: 1-hr TWA | L7: 3-hr TWA | M7: 8-hr TWA | N7: 24-hr TWA
A8: Livestock Grooming Adhesive | B8: Case 1 | C8: High | D8: Low | E8: Low | F8: User | G8: 1.87E+00 | H8: 7.60E-01 | I8: 3.09E-01 | J8: 1.04E-01 | K8: =(G8*24.45)/165.833 -> 2.76E-01 | L8: =(H8*24.45)/165.833 -> 1.12E-01 | M8: 4.56E-02 | N8: 1.53E-02
F9: Bystander | G9: 2.46E-01 | H9: 1.72E-01 | I9: 7.55E-02 | J9: 2.60E-02 | K9: =(G9*24.45)/165.833 -> 3.62E-02 | L9: =(H9*24.45)/165.833 -> 2.54E-02 | M9: =(I9*24.45)/165.833 -> 1.11E-02 | N9: =(J9*24.45)/165.833 -> 3.83E-03
B10: Case 2 | C10: High | D10: Low | E10: Medium | F10: User | G10: 1.56E+01 | H10: 6.32E+00 | I10: 2.57E+00 | J10: 8.63E-01 | K10: 2.29E+00 | L10: 9.32E-01 | M10: 3.79E-01 | N10: 1.27E-01
F11: Bystander | G11: 2.04E+00 | H11: 1.43E+00 | I11: 6.27E-01 | J11: 2.16E-01 | K11: 3.01E-01 | L11: 2.11E-01 | M11: 9.24E-02 | N11: 3.18E-02
B12: Case 3 | C12: High | D12: Low | E12: High | F12: User | G12: 2.69E+02 | H12: 1.09E+02 | I12: 4.44E+01 | J12: 1.49E+01 | K12: 3.96E+01 | L12: 1.61E+01 | M12: 6.54E+00 | N12: 2.20E+00
F13: Bystander | G13: 3.53E+01 | H13: 2.47E+01 | I13: 1.08E+01 | J13: 3.73E+00 | K13: 5.20E+00 | L13: 3.64E+00 | M13: 1.60E+00 | N13: 5.50E-01
B14: Case 1 | C14: Medium | D14: Low | E14: Low | F14: User | G14: 2.12E+00 | H14: 8.19E-01 | I14: 3.26E-01 | J14: 1.09E-01 | K14: 3.12E-01 | L14: 1.21E-01 | M14: 4.81E-02 | N14: 1.61E-02
F15: Bystander | G15: 2.08E-01 | H15: 1.42E-01 | I15: 6.20E-02 | J15: 2.13E-02 | K15: 3.07E-02 | L15: 2.09E-02 | M15: 9.15E-03 | N15: 3.14E-03
B16: Case 2 | C16: Medium | D16: Low | E16: Medium | F16: User | G16: 1.76E+01 | H16: 6.80E+00 | I16: 2.71E+00 | J16: 9.09E-01 | K16: 2.59E+00 | L16: 1.00E+00 | M16: 4.00E-01 | N16: 1.34E-01
F17: Bystander | G17: 1.73E+00 | H17: 1.18E+00 | I17: 5.15E-01 | J17: 1.77E-01 | K17: 2.55E-01 | L17: 1.74E-01 | M17: 7.60E-02 | N17: 2.61E-02
B18: Case 3 | C18: Medium | D18: Low | E18: High | F18: User | G18: 3.04E+02 | H18: 1.18E+02 | I18: 4.69E+01 | J18: 1.57E+01 | K18: 4.48E+01 | L18: 1.73E+01 | M18: 6.91E+00 | N18: 2.32E+00
F19: Bystander | G19: 2.99E+01 | H19: 2.04E+01 | I19: 8.91E+00 | J19: 3.06E+00 | K19: 4.41E+00 | L19: 3.00E+00 | M19: 1.31E+00 | N19: 4.52E-01
B20: Case 1 | C20: Low | D20: Low | E20: Low | F20: User | G20: 1.95E+00 | H20: 7.61E-01 | I20: 3.05E-01 | J20: 1.02E-01 | K20: 2.87E-01 | L20: 1.12E-01 | M20: 4.49E-02 | N20: 1.51E-02
F21: Bystander | G21: 2.05E-01 | H21: 1.40E-01 | I21: 6.12E-02 | J21: 2.10E-02 | K21: 3.03E-02 | L21: 2.06E-02 | M21: 9.02E-03 | N21: 3.10E-03
B22: Case 2 | C22: Low | D22: Low | E22: Medium | F22: User | G22: 1.62E+01 | H22: 6.33E+00 | I22: 2.53E+00 | J22: 8.49E-01 | K22: 2.39E+00 | L22: 9.33E-01 | M22: 3.73E-01 | N22: 1.25E-01
F23: Bystander | G23: 1.71E+00 | H23: 1.16E+00 | I23: 5.08E-01 | J23: 1.75E-01 | K23: 2.52E-01 | L23: 1.71E-01 | M23: 7.49E-02 | N23: 2.58E-02
B24: Case 3 | C24: Low | D24: Low | E24: High | F24: User | G24: 2.80E+02 | H24: 1.09E+02 | I24: 4.37E+01 | J24: 1.47E+01 | K24: 4.13E+01 | L24: 1.61E+01 | M24: 6.45E+00 | N24: 2.16E+00
F25: Bystander | G25: 2.95E+01 | H25: 2.01E+01 | I25: 8.78E+00 | J25: 3.02E+00 | K25: 4.35E+00 | L25: 2.96E+00 | M25: 1.29E+00 | N25: 4.45E-01

Sheet Livestock Groom Adh Derm AF
A1: Scenario:
A2: Livestock Grooming Adhesive
A3: Data Type:
A4: Estimated Dermal Doses Outputs - Absorption Fraction Method
A6: Scenario | B6: Case # | C6: Case Descriptors (Parameters Varied) | F6: Receptor | G6: Acute Dose Rate (mg/kg/day)
C7: Duration | D7: Weight Fraction | E7: Mass Used
A8: Livestock Grooming Adhesive | B8: Case 1 | C8: High | D8: Low | E8: Low | F8: Adult (≥21 years) | G8: 7.96E-01
F9: Youth (16-20 years) | G9: 7.45E-01
F10: Youth (11-15 years) | G10: 8.14E-01
B11: Case 2 | C11: High | D11: Low | E11: Medium | F11: Adult (≥21 years) | G11: 7.96E-01
F12: Youth (16-20 years) | G12: 7.45E-01
F13: Youth (11-15 years) | G13: 8.14E-01
B14: Case 3 | C14: High | D14: Low | E14: High | F14: Adult (≥21 years) | G14: 7.96E-01
F15: Youth (16-20 years) | G15: 7.45E-01
F16: Youth (11-15 years) | G16: 8.14E-01
B17: Case 1 | C17: Medium | D17: Low | E17: Low | F17: Adult (≥21 years) | G17: 1.28E-01
F18: Youth (16-20 years) | G18: 1.20E-01
F19: Youth (11-15 years) | G19: 1.31E-01
B20: Case 2 | C20: Medium | D20: Low | E20: Medium | F20: Adult (≥21 years) | G20: 1.28E-01
F21: Youth (16-20 years) | G21: 1.20E-01
F22: Youth (11-15 years) | G22: 1.31E-01
B23: Case 3 | C23: Medium | D23: Low | E23: High | F23: Adult (≥21 years) | G23: 1.28E-01
F24: Youth (16-20 years) | G24: 1.20E-01
F25: Youth (11-15 years) | G25: 1.31E-01
B26: Case 1 | C26: Low | D26: Low | E26: Low | F26: Adult (≥21 years) | G26: 1.61E-02
F27: Youth (16-20 years) | G27: 1.51E-02
F28: Youth (11-15 years) | G28: 1.65E-02
B29: Case 2 | C29: Low | D29: Low | E29: Medium | F29: Adult (≥21 years) | G29: 1.61E-02
F30: Youth (16-20 years) | G30: 1.51E-02
F31: Youth (11-15 years) | G31: 1.65E-02
B32: Case 3 | C32: Low | D32: Low | E32: High | F32: Adult (≥21 years) | G32: 1.61E-02
F33: Youth (16-20 years) | G33: 1.51E-02
F34: Youth (11-15 years) | G34: 1.65E-02

Sheet Livestock Groom Adh Derm P
A1: Scenario:
A2: Livestock Grooming Adhesive
A3: Data Type:
A4: Estimated Dermal Doses Outputs - Permeability Method
A6: Scenario | B6: Case # | C6: Case Descriptors (Parameters Varied) | F6: Receptor | G6: Acute Dose Rate (mg/kg/day)
C7: Duration | D7: Weight Fraction | E7: Mass Used
A8: Livestock Grooming Adhesive | B8: Case 1 | C8: High | D8: Low | E8: Low | F8: Adult (≥21 years) | G8: 1.14E-01
F9: Youth (16-20 years) | G9: 1.07E-01
F10: Youth (11-15 years) | G10: 1.17E-01
B11: Case 2 | C11: High | D11: Low | E11: Medium | F11: Adult (≥21 years) | G11: 1.14E-01
F12: Youth (16-20 years) | G12: 1.07E-01
F13: Youth (11-15 years) | G13: 1.17E-01
B14: Case 3 | C14: High | D14: Low | E14: High | F14: Adult (≥21 years) | G14: 1.14E-01
F15: Youth (16-20 years) | G15: 1.07E-01
F16: Youth (11-15 years) | G16: 1.17E-01
B17: Case 1 | C17: Medium | D17: Low | E17: Low | F17: Adult (≥21 years) | G17: 8.07E-03
F18: Youth (16-20 years) | G18: 7.55E-03
F19: Youth (11-15 years) | G19: 8.26E-03
B20: Case 2 | C20: Medium | D20: Low | E20: Medium | F20: Adult (≥21 years) | G20: 8.07E-03
F21: Youth (16-20 years) | G21: 7.55E-03
F22: Youth (11-15 years) | G22: 8.26E-03
B23: Case 3 | C23: Medium | D23: Low | E23: High | F23: Adult (≥21 years) | G23: 8.07E-03
F24: Youth (16-20 years) | G24: 7.55E-03
F25: Youth (11-15 years) | G25: 8.26E-03
B26: Case 1 | C26: Low | D26: Low | E26: Low | F26: Adult (≥21 years) | G26: 9.50E-04
F27: Youth (16-20 years) | G27: 8.89E-04
F28: Youth (11-15 years) | G28: 9.72E-04
B29: Case 2 | C29: Low | D29: Low | E29: Medium | F29: Adult (≥21 years) | G29: 9.50E-04
F30: Youth (16-20 years) | G30: 8.89E-04
F31: Youth (11-15 years) | G31: 9.72E-04
B32: Case 3 | C32: Low | D32: Low | E32: High | F32: Adult (≥21 years) | G32: 9.50E-04
F33: Youth (16-20 years) | G33: 8.89E-04
F34: Youth (11-15 years) | G34: 9.72E-04

Sheet Caulk Sealant Inh
A1: Scenario:
A2: Column Adhesive; Caulk; Sealant
A3: Data Type:
A4: Estimated Inhalation Concentrations Outputs
A6: Scenario | B6: Case # | C6: Case Descriptors (Parameters Varied) | F6: Receptor | G6: Concentration (mg/m3) | K6: Concentration (ppm)
C7: Duration | D7: Weight Fraction | E7: Mass Used | G7: 1-hr TWA | H7: 3-hr TWA | I7: 8-hr TWA | J7: 24-hr TWA | K7: 1-hr TWA | L7: 3-hr TWA | M7: 8-hr TWA | N7: 24-hr TWA
A8: Column Adhesive | B8: Case 1 | C8: High | D8: Low | E8: Low | F8: User | G8: 2.36E-01 | H8: 2.36E-01 | I8: 1.76E-01 | J8: 5.88E-02 | K8: =(G8*24.45)/165.833 -> 3.49E-02 | L8: =(H8*24.45)/165.833 -> 3.49E-02 | M8: =(I8*24.45)/165.833 -> 2.60E-02 | N8: 8.66E-03
F9: Bystander | G9: 0.00E+00 | H9: 0.00E+00 | I9: 0.00E+00 | J9: 0.00E+00 | K9: =(G9*24.45)/165.833 -> 0.00E+00 | L9: =(H9*24.45)/165.833 -> 0.00E+00 | M9: =(I9*24.45)/165.833 -> 0.00E+00 | N9: =(J9*24.45)/165.833 -> 0.00E+00
B10: Case 2 | C10: High | D10: Low | E10: Medium | F10: User | G10: 2.02E+00 | H10: 2.02E+00 | I10: 1.50E+00 | J10: 5.01E-01 | K10: 2.97E-01 | L10: 2.97E-01 | M10: 2.22E-01 | N10: 7.39E-02
F11: Bystander | G11: 0.00E+00 | H11: 0.00E+00 | I11: 0.00E+00 | J11: 0.00E+00 | K11: 0.00E+00 | L11: 0.00E+00 | M11: 0.00E+00 | N11: 0.00E+00
B12: Case 3 | C12: High | D12: Low | E12: High | F12: User | G12: 4.23E+01 | H12: 4.23E+01 | I12: 3.15E+01 | J12: 1.05E+01 | K12: 6.24E+00 | L12: 6.24E+00 | M12: 4.65E+00 | N12: 1.55E+00
F13: Bystander | G13: 0.00E+00 | H13: 0.00E+00 | I13: 0.00E+00 | J13: 0.00E+00 | K13: 0.00E+00 | L13: 0.00E+00 | M13: 0.00E+00 | N13: 0.00E+00
B14: Case 4 | C14: High | D14: Medium | E14: Low | F14: User | G14: 2.27E+00 | H14: 2.27E+00 | I14: 1.69E+00 | J14: 5.64E-01 | K14: 3.35E-01 | L14: 3.35E-01 | M14: 2.49E-01 | N14: 8.32E-02
F15: Bystander | G15: 0.00E+00 | H15: 0.00E+00 | I15: 0.00E+00 | J15: 0.00E+00 | K15: 0.00E+00 | L15: 0.00E+00 | M15: 0.00E+00 | N15: 0.00E+00
B16: Case 5 | C16: High | D16: Medium | E16: Medium | F16: User | G16: 1.94E+01 | H16: 1.94E+01 | I16: 1.44E+01 | J16: 4.81E+00 | K16: 2.85E+00 | L16: 2.85E+00 | M16: 2.13E+00 | N16: 7.09E-01
F17: Bystander | G17: 0.00E+00 | H17: 0.00E+00 | I17: 0.00E+00 | J17: 0.00E+00 | K17: 0.00E+00 | L17: 0.00E+00 | M17: 0.00E+00 | N17: 0.00E+00
B18: Case 6 | C18: High | D18: Medium | E18: High | F18: User | G18: 4.06E+02 | H18: 4.06E+02 | I18: 3.03E+02 | J18: 1.01E+02 | K18: 5.99E+01 | L18: 5.99E+01 | M18: 4.46E+01 | N18: 1.49E+01
F19: Bystander | G19: 0.00E+00 | H19: 0.00E+00 | I19: 0.00E+00 | J19: 0.00E+00 | K19: 0.00E+00 | L19: 0.00E+00 | M19: 0.00E+00 | N19: 0.00E+00
B20: Case 7 | C20: High | D20: High | E20: Low | F20: User | G20: 3.55E+00 | H20: 3.55E+00 | I20: 2.64E+00 | J20: 8.81E-01 | K20: 5.23E-01 | L20: 5.23E-01 | M20: 3.90E-01 | N20: 1.30E-01
F21: Bystander | G21: 0.00E+00 | H21: 0.00E+00 | I21: 0.00E+00 | J21: 0.00E+00 | K21: 0.00E+00 | L21: 0.00E+00 | M21: 0.00E+00 | N21: 0.00E+00
B22: Case 8 | C22: High | D22: High | E22: Medium | F22: User | G22: 3.02E+01 | H22: 3.02E+01 | I22: 2.25E+01 | J22: 7.52E+00 | K22: 4.46E+00 | L22: 4.46E+00 | M22: 3.32E+00 | N22: 1.11E+00
F23: Bystander | G23: 0.00E+00 | H23: 0.00E+00 | I23: 0.00E+00 | J23: 0.00E+00 | K23: 0.00E+00 | L23: 0.00E+00 | M23: 0.00E+00 | N23: 0.00E+00
B24: Case 9 | C24: High | D24: High | E24: High | F24: User | G24: 6.34E+02 | H24: 6.34E+02 | I24: 4.73E+02 | J24: 1.58E+02 | K24: 9.35E+01 | L24: 9.35E+01 | M24: 6.97E+01 | N24: 2.32E+01
F25: Bystander | G25: 0.00E+00 | H25: 0.00E+00 | I25: 0.00E+00 | J25: 0.00E+00 | K25: 0.00E+00 | L25: 0.00E+00 | M25: 0.00E+00 | N25: 0.00E+00
B26: Case 1 | C26: Medium | D26: Low | E26: Low | F26: User | G26: 1.42E+00 | H26: 4.73E-01 | I26: 1.77E-01 | J26: 5.91E-02 | K26: 2.09E-01 | L26: 6.97E-02 | M26: 2.61E-02 | N26: 8.71E-03
F27: Bystander | G27: 0.00E+00 | H27: 0.00E+00 | I27: 0.00E+00 | J27: 0.00E+00 | K27: 0.00E+00 | L27: 0.00E+00 | M27: 0.00E+00 | N27: 0.00E+00
B28: Case 2 | C28: Medium | D28: Low | E28: Medium | F28: User | G28: 1.21E+01 | H28: 4.03E+00 | I28: 1.51E+00 | J28: 5.04E-01 | K28: 1.78E+00 | L28: 5.94E-01 | M28: 2.23E-01 | N28: 7.43E-02
F29: Bystander | G29: 0.00E+00 | H29: 0.00E+00 | I29: 0.00E+00 | J29: 0.00E+00 | K29: 0.00E+00 | L29: 0.00E+00 | M29: 0.00E+00 | N29: 0.00E+00
B30: Case 3 | C30: Medium | D30: Low | E30: High | F30: User | G30: 2.54E+02 | H30: 8.46E+01 | I30: 3.17E+01 | J30: 1.06E+01 | K30: 3.74E+01 | L30: 1.25E+01 | M30: 4.68E+00 | N30: 1.56E+00
F31: Bystander | G31: 0.00E+00 | H31: 0.00E+00 | I31: 0.00E+00 | J31: 0.00E+00 | K31: 0.00E+00 | L31: 0.00E+00 | M31: 0.00E+00 | N31: 0.00E+00
B32: Case 4 | C32: Medium | D32: Medium | E32: Low | F32: User | G32: 1.36E+01 | H32: 4.54E+00 | I32: 1.70E+00 | J32: 5.67E-01 | K32: 2.01E+00 | L32: 6.69E-01 | M32: 2.51E-01 | N32: 8.37E-02
F33: Bystander | G33: 0.00E+00 | H33: 0.00E+00 | I33: 0.00E+00 | J33: 0.00E+00 | K33: 0.00E+00 | L33: 0.00E+00 | M33: 0.00E+00 | N33: 0.00E+00
B34: Case 5 | C34: Medium | D34: Medium | E34: Medium | F34: User | G34: 1.16E+02 | H34: 3.87E+01 | I34: 1.45E+01 | J34: 4.84E+00 | K34: 1.71E+01 | L34: 5.71E+00 | M34: 2.14E+00 | N34: 7.13E-01
F35: Bystander | G35: 0.00E+00 | H35: 0.00E+00 | I35: 0.00E+00 | J35: 0.00E+00 | K35: 0.00E+00 | L35: 0.00E+00 | M35: 0.00E+00 | N35: 0.00E+00
B36: Case 6 | C36: Medium | D36: Medium | E36: High | F36: User | G36: 2.44E+03 | H36: 8.12E+02 | I36: 3.05E+02 | J36: 1.02E+02 | K36: 3.59E+02 | L36: 1.20E+02 | M36: 4.49E+01 | N36: 1.50E+01
F37: Bystander | G37: 0.00E+00 | H37: 0.00E+00 | I37: 0.00E+00 | J37: 0.00E+00 | K37: 0.00E+00 | L37: 0.00E+00 | M37: 0.00E+00 | N37: 0.00E+00
B38: Case 7 | C38: Medium | D38: High | E38: Low | F38: User | G38: 2.13E+01 | H38: 7.09E+00 | I38: 2.66E+00 | J38: 8.87E-01 | K38: 3.14E+00 | L38: 1.05E+00 | M38: 3.92E-01 | N38: 1.31E-01
F39: Bystander | G39: 0.00E+00 | H39: 0.00E+00 | I39: 0.00E+00 | J39: 0.00E+00 | K39: 0.00E+00 | L39: 0.00E+00 | M39: 0.00E+00 | N39: 0.00E+00
B40: Case 8 | C40: Medium | D40: High | E40: Medium | F40: User | G40: 1.81E+02 | H40: 6.05E+01 | I40: 2.27E+01 | J40: 7.56E+00 | K40: 2.68E+01 | L40: 8.92E+00 | M40: 3.34E+00 | N40: 1.11E+00
F41: Bystander | G41: 0.00E+00 | H41: 0.00E+00 | I41: 0.00E+00 | J41: 0.00E+00 | K41: 0.00E+00 | L41: 0.00E+00 | M41: 0.00E+00 | N41: 0.00E+00
B42: Case 9 | C42: Medium | D42: High | E42: High | F42: User | G42: 3.81E+03 | H42: 1.27E+03 | I42: 4.76E+02 | J42: 1.59E+02 | K42: 5.61E+02 | L42: 1.87E+02 | M42: 7.02E+01 | N42: 2.34E+01
F43: Bystander | G43: 0.00E+00 | H43: 0.00E+00 | I43: 0.00E+00 | J43: 0.00E+00 | K43: 0.00E+00 | L43: 0.00E+00 | M43: 0.00E+00 | N43: 0.00E+00
B44: Case 1 | C44: Low | D44: Low | E44: Low | F44: User | G44: 1.42E+00 | H44: 4.73E-01 | I44: 1.77E-01 | J44: 5.91E-02 | K44: 2.09E-01 | L44: 6.97E-02 | M44: 2.61E-02 | N44: 8.71E-03
F45: Bystander | G45: 0.00E+00 | H45: 0.00E+00 | I45: 0.00E+00 | J45: 0.00E+00 | K45: 0.00E+00 | L45: 0.00E+00 | M45: 0.00E+00 | N45: 0.00E+00
B46: Case 2 | C46: Low | D46: Low | E46: Medium | F46: User | G46: 1.21E+01 | H46: 4.03E+00 | I46: 1.51E+00 | J46: 5.04E-01 | K46: 1.78E+00 | L46: 5.94E-01 | M46: 2.23E-01 | N46: 7.43E-02
F47: Bystander | G47: 0.00E+00 | H47: 0.00E+00 | I47: 0.00E+00 | J47: 0.00E+00 | K47: 0.00E+00 | L47: 0.00E+00 | M47: 0.00E+00 | N47: 0.00E+00
B48: Case 3 | C48: Low | D48: Low | E48: High | F48: User | G48: 2.54E+02 | H48: 8.46E+01 | I48: 3.17E+01 | J48: 1.06E+01 | K48: 3.74E+01 | L48: 1.25E+01 | M48: 4.68E+00 | N48: 1.56E+00
F49: Bystander | G49: 0.00E+00 | H49: 0.00E+00 | I49: 0.00E+00 | J49: 0.00E+00 | K49: 0.00E+00 | L49: 0.00E+00 | M49: 0.00E+00 | N49: 0.00E+00
B50: Case 4 | C50: Low | D50: Medium | E50: Low | F50: Bystander | G50: 1.36E+01 | H50: 4.54E+00 | I50: 1.70E+00 | J50: 5.67E-01 | K50: 2.01E+00 | L50: 6.69E-01 | M50: 2.51E-01 | N50: 8.37E-02
F51: User | G51: 0.00E+00 | H51: 0.00E+00 | I51: 0.00E+00 | J51: 0.00E+00 | K51: 0.00E+00 | L51: 0.00E+00 | M51: 0.00E+00 | N51: 0.00E+00
B52: Case 5 | C52: Low | D52: Medium | E52: Medium | F52: Bystander | G52: 1.16E+02 | H52: 3.87E+01 | I52: 1.45E+01 | J52: 4.84E+00 | K52: 1.71E+01 | L52: 5.71E+00 | M52: 2.14E+00 | N52: 7.13E-01
F53: User | G53: 0.00E+00 | H53: 0.00E+00 | I53: 0.00E+00 | J53: 0.00E+00 | K53: 0.00E+00 | L53: 0.00E+00 | M53: 0.00E+00 | N53: 0.00E+00
B54: Case 6 | C54: Low | D54: Medium | E54: High | F54: Bystander | G54: 2.44E+03 | H54: 8.12E+02 | I54: 3.05E+02 | J54: 1.02E+02 | K54: 3.59E+02 | L54: 1.20E+02 | M54: 4.49E+01 | N54: 1.50E+01
F55: User | G55: 0.00E+00 | H55: 0.00E+00 | I55: 0.00E+00 | J55: 0.00E+00 | K55: 0.00E+00 | L55: 0.00E+00 | M55: 0.00E+00 | N55: 0.00E+00
B56: Case 7 | C56: Low | D56: High | E56: Low | F56: User | G56: 2.13E+01 | H56: 7.09E+00 | I56: 2.66E+00 | J56: 8.87E-01 | K56: 3.14E+00 | L56: 1.05E+00 | M56: 3.92E-01 | N56: 1.31E-01
F57: Bystander | G57: 0.00E+00 | H57: 0.00E+00 | I57: 0.00E+00 | J57: 0.00E+00 | K57: 0.00E+00 | L57: 0.00E+00 | M57: 0.00E+00 | N57: 0.00E+00
B58: Case 8 | C58: Low | D58: High | E58: Medium | F58: User | G58: 1.81E+02 | H58: 6.05E+01 | I58: 2.27E+01 | J58: 7.56E+00 | K58: 2.68E+01 | L58: 8.92E+00 | M58: 3.34E+00 | N58: 1.11E+00
F59: Bystander | G59: 0.00E+00 | H59: 0.00E+00 | I59: 0.00E+00 | J59: 0.00E+00 | K59: 0.00E+00 | L59: 0.00E+00 | M59: 0.00E+00 | N59: 0.00E+00
B60: Case 9 | C60: Low | D60: High | E60: High | F60: User | G60: 3.81E+03 | H60: 1.27E+03 | I60: 4.76E+02 | J60: 1.59E+02 | K60: 5.61E+02 | L60: 1.87E+02 | M60: 7.02E+01 | N60: 2.34E+01
F61: Bystander | G61: 0.00E+00 | H61: 0.00E+00 | I61: 0.00E+00 | J61: 0.00E+00 | K61: 0.00E+00 | L61: 0.00E+00 | M61: 0.00E+00 | N61: 0.00E+00

Sheet Caulk Sealant Derm A
A1: Scenario:
A2: Column Adhesive; Caulk; Sealant
A3: Data Type:
A4: Estimated Dermal Doses Outputs - Absorption Fraction Method
A6: Scenario | B6: Case # | C6: Case Descriptors (Parameters Varied) | F6: Receptor | G6: Acute Dose Rate (mg/kg/day)
C7: Duration | D7: Weight Fraction | E7: Mass Used
A8: Column Adhesive | B8: Case 1 | C8: High | D8: Low | E8: Low | F8: Adult (≥21 years) | G8: 6.14E-01
F9: Youth (16-20 years) | G9: 5.75E-01
F10: Youth (11-15 years) | G10: 6.29E-01
B11: Case 2 | C11: High | D11: Low | E11: Medium | F11: Adult (≥21 years) | G11: 6.14E-01
F12: Youth (16-20 years) | G12: 5.75E-01
F13: Youth (11-15 years) | G13: 6.29E-01
B14: Case 3 | C14: High | D14: Low | E14: High | F14: Adult (≥21 years) | G14: 6.14E-01
F15: Youth (16-20 years) | G15: 5.75E-01
F16: Youth (11-15 years) | G16: 6.29E-01
B17: Case 4 | C17: High | D17: Medium | E17: Low | F17: Adult (≥21 years) | G17: 5.90E+00
F18: Youth (16-20 years) | G18: 5.52E+00
F19: Youth (11-15 years) | G19: 6.03E+00
B20: Case 5 | C20: High | D20: Medium | E20: Medium | F20: Adult (≥21 years) | G20: 5.90E+00
F21: Youth (16-20 years) | G21: 5.52E+00
F22: Youth (11-15 years) | G22: 6.03E+00
B23: Case 6 | C23: High | D23: Medium | E23: High | F23: Adult (≥21 years) | G23: 5.90E+00
F24: Youth (16-20 years) | G24: 5.52E+00
F25: Youth (11-15 years) | G25: 6.03E+00
B26: Case 7 | C26: High | D26: High | E26: Low | F26: Adult (≥21 years) | G26: 9.21E+00
F27: Youth (16-20 years) | G27: 8.62E+00
F28: Youth (11-15 years) | G28: 9.43E+00
B29: Case 8 | C29: High | D29: High | E29: Medium | F29: Adult (≥21 years) | G29: 9.21E+00
F30: Youth (16-20 years) | G30: 8.62E+00
F31: Youth (11-15 years) | G31: 9.43E+00
B32: Case 9 | C32: High | D32: High | E32: High | F32: Adult (≥21 years) | G32: 9.21E+00
F33: Youth (16-20 years) | G33: 8.62E+00
F34: Youth (11-15 years) | G34: 9.43E+00
B35: Case 1 | C35: Medium | D35: Low | E35: Low | F35: Adult (≥21 years) | G35: 4.07E-01
F36: Youth (16-20 years) | G36: 3.81E-01
F37: Youth (11-15 years) | G37: 4.16E-01
B38: Case 2 | C38: Medium | D38: Low | E38: Medium | F38: Adult (≥21 years) | G38: 4.07E-01
F39: Youth (16-20 years) | G39: 3.81E-01
F40: Youth (11-15 years) | G40: 4.16E-01
B41: Case 3 | C41: Medium | D41: Low | E41: High | F41: Adult (≥21 years) | G41: 4.07E-01
F42: Youth (16-20 years) | G42: 3.81E-01
F43: Youth (11-15 years) | G43: 4.16E-01
B44: Case 4 | C44: Medium | D44: Medium | E44: Low | F44: Adult (≥21 years) | G44: 3.91E+00
F45: Youth (16-20 years) | G45: 3.65E+00
F46: Youth (11-15 years) | G46: 4.00E+00
B47: Case 5 | C47: Medium | D47: Medium | E47: Medium | F47: Adult (≥21 years) | G47: 3.91E+00
F48: Youth (16-20 years) | G48: 3.65E+00
F49: Youth (11-15 years) | G49: 4.00E+00
B50: Case 6 | C50: Medium | D50: Medium | E50: High | F50: Adult (≥21 years) | G50: 3.91E+00
F51: Youth (16-20 years) | G51: 3.65E+00
F52: Youth (11-15 years) | G52: 4.00E+00
B53: Case 7 | C53: Medium | D53: High | E53: Low | F53: Adult (≥21 years) | G53: 6.10E+00
F54: Youth (16-20 years) | G54: 5.71E+00
F55: Youth (11-15 years) | G55: 6.24E+00
B56: Case 8 | C56: Medium | D56: High | E56: Medium | F56: Adult (≥21 years) | G56: 6.10E+00
F57: Youth (16-20 years) | G57: 5.71E+00
F58: Youth (11-15 years) | G58: 6.24E+00
B59: Case 9 | C59: Medium | D59: High | E59: High | F59: Adult (≥21 years) | G59: 6.10E+00
F60: Youth (16-20 years) | G60: 5.71E+00
F61: Youth (11-15 years) | G61: 6.24E+00
B62: Case 1 | C62: Low | D62: Low | E62: Low | F62: Adult (≥21 years) | G62: 1.02E-01
F63: Youth (16-20 years) | G63: 9.51E-02
F64: Youth (11-15 years) | G64: 1.04E-01
B65: Case 2 | C65: Low | D65: Low | E65: Medium | F65: Adult (≥21 years) | G65: 1.02E-01
F66: Youth (16-20 years) | G66: 9.51E-02
F67: Youth (11-15 years) | G67: 1.04E-01
B68: Case 3 | C68: Low | D68: Low | E68: High | F68: Adult (≥21 years) | G68: 1.02E-01
F69: Youth (16-20 years) | G69: 9.51E-02
F70: Youth (11-15 years) | G70: 1.04E-01
B71: Case 4 | C71: Low | D71: Medium | E71: Low | F71: Adult (≥21 years) | G71: 9.76E-01
F72: Youth (16-20 years) | G72: 9.13E-01
F73: Youth (11-15 years) | G73: 9.99E-01
B74: Case 5 | C74: Low | D74: Medium | E74: Medium | F74: Adult (≥21 years) | G74: 9.76E-01
F75: Youth (16-20 years) | G75: 9.13E-01
F76: Youth (11-15 years) | G76: 9.99E-01
B77: Case 6 | C77: Low | D77: Medium | E77: High | F77: Adult (≥21 years) | G77: 9.76E-01
F78: Youth (16-20 years) | G78: 9.13E-01
F79: Youth (11-15 years) | G79: 9.99E-01
B80: Case 7 | C80: Low | D80: High | E80: Low | F80: Adult (≥21 years) | G80: 1.52E+00
F81: Youth (16-20 years) | G81: 1.43E+00
F82: Youth (11-15 years) | G82: 1.56E+00
B83: Case 8 | C83: Low | D83: High | E83: Medium | F83: Adult (≥21 years) | G83: 1.52E+00
F84: Youth (16-20 years) | G84: 1.43E+00
F85: Youth (11-15 years) | G85: 1.56E+00
B86: Case 9 | C86: Low | D86: High | E86: High | F86: Adult (≥21 years) | G86: 1.52E+00
F87: Youth (16-20 years) | G87: 1.43E+00
F88: Youth (11-15 years) | G88: 1.56E+00

Sheet Caulk Sealant Derm P
A1: Scenario:
A2: Column Adhesive; Caulk; Sealant
A3: Data Type:
A4: Estimated Dermal Doses Outputs - Permeability Method
A6: Scenario | B6: Case # | C6: Case Descriptors (Parameters Varied) | F6: Receptor | G6: Acute Dose Rate (mg/kg/day)
C7: Duration | D7: Weight Fraction | E7: Mass Used
A8: Column Adhesive | B8: Case 1 | C8: High | D8: Low | E8: Low | F8: Adult (≥21 years) | G8: 4.68E-01
F9: Youth (16-20 years) | G9: 4.38E-01
F10: Youth (11-15 years) | G10: 4.79E-01
B11: Case 2 | C11: High | D11: Low | E11: Medium | F11: Adult (≥21 years) | G11: 4.68E-01
F12: Youth (16-20 years) | G12: 4.38E-01
F13: Youth (11-15 years) | G13: 4.79E-01
B14: Case 3 | C14: High | D14: Low | E14: High | F14: Adult (≥21 years) | G14: 4.68E-01
F15: Youth (16-20 years) | G15: 4.38E-01
F16: Youth (11-15 years) | G16: 4.79E-01
B17: Case 4 | C17: High | D17: Medium | E17: Low | F17: Adult (≥21 years) | G17: 4.49E+00
F18: Youth (16-20 years) | G18: 4.20E+00
F19: Youth (11-15 years) | G19: 4.59E+00
B20: Case 5 | C20: High | D20: Medium | E20: Medium | F20: Adult (≥21 years) | G20: 4.49E+00
F21: Youth (16-20 years) | G21: 4.20E+00
F22: Youth (11-15 years) | G22: 4.59E+00
B23: Case 6 | C23: High | D23: Medium | E23: High | F23: Adult (≥21 years) | G23: 4.49E+00
F24: Youth (16-20 years) | G24: 4.20E+00
F25: Youth (11-15 years) | G25: 4.59E+00
B26: Case 7 | C26: High | D26: High | E26: Low | F26: Adult (≥21 years) | G26: 7.02E+00
F27: Youth (16-20 years) | G27: 6.56E+00
F28: Youth (11-15 years) | G28: 7.18E+00
B29: Case 8 | C29: High | D29: High | E29: Medium | F29: Adult (≥21 years) | G29: 7.02E+00
F30: Youth (16-20 years) | G30: 6.56E+00
F31: Youth (11-15 years) | G31: 7.18E+00
B32: Case 9 | C32: High | D32: High | E32: High | F32: Adult (≥21 years) | G32: 7.02E+00
F33: Youth (16-20 years) | G33: 6.56E+00
F34: Youth (11-15 years) | G34: 7.18E+00
B35: Case 1 | C35: Medium | D35: Low | E35: Low | F35: Adult (≥21 years) | G35: 3.90E-02
F36: Youth (16-20 years) | G36: 3.65E-02
F37: Youth (11-15 years) | G37: 3.99E-02
B38: Case 2 | C38: Medium | D38: Low | E38: Medium | F38: Adult (≥21 years) | G38: 3.90E-02
F39: Youth (16-20 years) | G39: 3.65E-02
F40: Youth (11-15 years) | G40: 3.99E-02
B41: Case 3 | C41: Medium | D41: Low | E41: High | F41: Adult (≥21 years) | G41: 3.90E-02
F42: Youth (16-20 years) | G42: 3.65E-02
F43: Youth (11-15 years) | G43: 3.99E-02
B44: Case 4 | C44: Medium | D44: Medium | E44: Low | F44: Adult (≥21 years) | G44: 3.74E-01
F45: Youth (16-20 years) | G45: 3.50E-01
F46: Youth (11-15 years) | G46: 3.83E-01
B47: Case 5 | C47: Medium | D47: Medium | E47: Medium | F47: Adult (≥21 years) | G47: 3.74E-01
F48: Youth (16-20 years) | G48: 3.50E-01
F49: Youth (11-15 years) | G49: 3.83E-01
B50: Case 6 | C50: Medium | D50: Medium | E50: High | F50: Adult (≥21 years) | G50: 3.74E-01
F51: Youth (16-20 years) | G51: 3.50E-01
F52: Youth (11-15 years) | G52: 3.83E-01
B53: Case 7 | C53: Medium | D53: High | E53: Low | F53: Adult (≥21 years) | G53: 5.85E-01
F54: Youth (16-20 years) | G54: 5.47E-01
F55: Youth (11-15 years) | G55: 5.98E-01
B56: Case 8 | C56: Medium | D56: High | E56: Medium | F56: Adult (≥21 years) | G56: 5.85E-01
F57: Youth (16-20 years) | G57: 5.47E-01
F58: Youth (11-15 years) | G58: 5.98E-01
B59: Case 9 | C59: Medium | D59: High | E59: High | F59: Adult (≥21 years) | G59: 5.85E-01
F60: Youth (16-20 years) | G60: 5.47E-01
F61: Youth (11-15 years) | G61: 5.98E-01
B62: Case 1 | C62: Low | D62: Low | E62: Low | F62: Adult (≥21 years) | G62: 6.50E-03
F63: Youth (16-20 years) | G63: 6.08E-03
F64: Youth (11-15 years) | G64: 6.65E-03
B65: Case 2 | C65: Low | D65: Low | E65: Medium | F65: Adult (≥21 years) | G65: 6.50E-03
F66: Youth (16-20 years) | G66: 6.08E-03
F67: Youth (11-15 years) | G67: 6.65E-03
B68: Case 3 | C68: Low | D68: Low | E68: High | F68: Adult (≥21 years) | G68: 6.50E-03
F69: Youth (16-20 years) | G69: 6.08E-03
F70: Youth (11-15 years) | G70: 6.65E-03
B71: Case 4 | C71: Low | D71: Medium | E71: Low | F71: Adult (≥21 years) | G71: 6.24E-02
F72: Youth (16-20 years) | G72: 5.84E-02
F73: Youth (11-15 years) | G73: 6.38E-02
B74: Case 5 | C74: Low | D74: Medium | E74: Medium | F74: Adult (≥21 years) | G74: 6.24E-02
F75: Youth (16-20 years) | G75: 5.84E-02
F76: Youth (11-15 years) | G76: 6.38E-02
B77: Case 6 | C77: Low | D77: Medium | E77: High | F77: Adult (≥21 years) | G77: 6.24E-02
F78: Youth (16-20 years) | G78: 5.84E-02
F79: Youth (11-15 years) | G79: 6.38E-02
B80: Case 7 | C80: Low | D80: High | E80: Low | F80: Adult (≥21 years) | G80: 9.74E-02
F81: Youth (16-20 years) | G81: 9.12E-02
F82: Youth (11-15 years) | G82: 9.97E-02
B83: Case 8 | C83: Low | D83: High | E83: Medium | F83: Adult (≥21 years) | G83: 9.74E-02
F84: Youth (16-20 years) | G84: 9.12E-02
F85: Youth (11-15 years) | G85: 9.97E-02
B86: Case 9 | C86: Low | D86: High | E86: High | F86: Adult (≥21 years) | G86: 9.74E-02
F87: Youth (16-20 years) | G87: 9.12E-02
F88: Youth (11-15 years) | G88: 9.97E-02

Sheet Outdoor Water Shield Inh
A1: Scenario:
A2: Sealant - Water Shield
A3: Data Type:
A4: Estimated Inhalation Concentrations Outputs
A6: Scenario | B6: Case # | C6: Case Descriptors (Parameters Varied) | F6: Receptor | G6: Concentration (mg/m3) | K6: Concentration (ppm)
C7: Duration | D7: Weight Fraction | E7: Mass Used | G7: 1-hr TWA | H7: 3-hr TWA | I7: 8-hr TWA | J7: 24-hr TWA | K7: 1-hr TWA | L7: 3-hr TWA | M7: 8-hr TWA | N7: 24-hr TWA
A8: Sealant - Water Shield | B8: Case 1 | C8: High | D8: Low | E8: Low | F8: User | G8: 4.33E-01 | H8: 4.31E-01 | I8: 2.68E-01 | J8: 8.93E-02 | K8: =(G8*24.45)/165.833 -> 6.38E-02 | L8: =(H8*24.45)/165.833 -> 6.36E-02 | M8: 3.95E-02 | N8: 1.32E-02
F9: Bystander | G9: 0.00E+00 | H9: 0.00E+00 | I9: 0.00E+00 | J9: 0.00E+00 | K9: =(G9*24.45)/165.833 -> 0.00E+00 | L9: 0.00E+00 | M9: 0.00E+00 | N9: 0.00E+00
B10: Case 2 | C10: High | D10: Low | E10: Medium | F10: User | G10: 3.46E+00 | H10: 3.45E+00 | I10: 2.14E+00 | J10: 7.14E-01 | K10: 5.10E-01 | L10: 5.09E-01 | M10: 3.16E-01 | N10: 1.05E-01
F11: Bystander | G11: 0.00E+00 | H11: 0.00E+00 | I11: 0.00E+00 | J11: 0.00E+00 | K11: 0.00E+00 | L11: 0.00E+00 | M11: 0.00E+00 | N11: 0.00E+00
B12: Case 3 | C12: High | D12: Low | E12: High | F12: User | G12: 3.46E+01 | H12: 3.45E+01 | I12: 2.14E+01 | J12: 7.14E+00 | K12: 5.10E+00 | L12: 5.09E+00 | M12: 3.16E+00 | N12: 1.05E+00
F13: Bystander | G13: 0.00E+00 | H13: 0.00E+00 | I13: 0.00E+00 | J13: 0.00E+00 | K13: 0.00E+00 | L13: 0.00E+00 | M13: 0.00E+00 | N13: 0.00E+00
B14: Case 1 | C14: Medium | D14: Low | E14: Low | F14: User | G14: 2.11E+00 | H14: 7.03E-01 | I14: 2.64E-01 | J14: 8.79E-02 | K14: 3.11E-01 | L14: 1.04E-01 | M14: 3.89E-02 | N14: 1.30E-02
F15: Bystander | G15: 0.00E+00 | H15: 0.00E+00 | I15: 0.00E+00 | J15: 0.00E+00 | K15: 0.00E+00 | L15: 0.00E+00 | M15: 0.00E+00 | N15: 0.00E+00
B16: Case 2 | C16: Medium | D16: Low | E16: Medium | F16: User | G16: 1.69E+01 | H16: 5.62E+00 | I16: 2.11E+00 | J16: 7.03E-01 | K16: 2.49E+00 | L16: 8.29E-01 | M16: 3.11E-01 | N16: 1.04E-01
F17: Bystander | G17: 0.00E+00 | H17: 0.00E+00 | I17: 0.00E+00 | J17: 0.00E+00 | K17: 0.00E+00 | L17: 0.00E+00 | M17: 0.00E+00 | N17: 0.00E+00
B18: Case 3 | C18: Medium | D18: Low | E18: High | F18: User | G18: 1.69E+02 | H18: 5.62E+01 | I18: 2.11E+01 | J18: 7.03E+00 | K18: 2.49E+01 | L18: 8.29E+00 | M18: 3.11E+00 | N18: 1.04E+00
F19: Bystander | G19: 0.00E+00 | H19: 0.00E+00 | I19: 0.00E+00 | J19: 0.00E+00 | K19: 0.00E+00 | L19: 0.00E+00 | M19: 0.00E+00 | N19: 0.00E+00
B20: Case 1 | C20: Low | D20: Low | E20: Low | F20: User | G20: 2.14E+00 | H20: 7.12E-01 | I20: 2.67E-01 | J20: 8.90E-02 | K20: 3.15E-01 | L20: 1.05E-01 | M20: 3.94E-02 | N20: 1.31E-02
F21: Bystander | G21: 0.00E+00 | H21: 0.00E+00 | I21: 0.00E+00 | J21: 0.00E+00 | K21: 0.00E+00 | L21: 0.00E+00 | M21: 0.00E+00 | N21: 0.00E+00
B22: Case 2 | C22: Low | D22: Low | E22: Medium | F22: User | G22: 1.71E+01 | H22: 5.70E+00 | I22: 2.14E+00 | J22: 7.12E-01 | K22: 2.52E+00 | L22: 8.40E-01 | M22: 3.15E-01 | N22: 1.05E-01
F23: Bystander | G23: 0.00E+00 | H23: 0.00E+00 | I23: 0.00E+00 | J23: 0.00E+00 | K23: 0.00E+00 | L23: 0.00E+00 | M23: 0.00E+00 | N23: 0.00E+00
B24: Case 3 | C24: Low | D24: Low | E24: High | F24: User | G24: 1.71E+02 | H24: 5.70E+01 | I24: 2.14E+01 | J24: 7.12E+00 | K24: 2.52E+01 | L24: =(H24*24.45)/165.833 -> 8.40E+00 | M24: =(I24*24.45)/165.833 -> 3.15E+00 | N24: =(J24*24.45)/165.833 -> 1.05E+00
F25: Bystander | G25: 0.00E+00 | H25: 0.00E+00 | I25: 0.00E+00 | J25: 0.00E+00 | K25: =(G25*24.45)/165.833 -> 0.00E+00 | L25: 0.00E+00 | M25: 0.00E+00 | N25: 0.00E+00

Sheet Outdoor Water Shield Derm AF
A1: Scenario:
A2: Sealant - Water Shield
A3: Data Type:
A4: Estimated Dermal Doses Outputs - Absorption Fraction Method
A6: Scenario | B6: Case # | C6: Case Descriptors (Parameters Varied) | F6: Receptor | G6: Acute Dose Rate (mg/kg/day)
C7: Duration | D7: Weight Fraction | E7: Mass Used
A8: Sealant - Water Shield | B8: Case 1 | C8: High | D8: Low | E8: Low | F8: Adult (≥21 years) | G8: 2.97E+01
F9: Youth (16-20 years) | G9: 2.81E+01
F10: Youth (11-15 years) | G10: 3.08E+01
B11: Case 2 | C11: High | D11: Low | E11: Medium | F11: Adult (≥21 years) | G11: 2.97E+01
F12: Youth (16-20 years) | G12: 2.81E+01
F13: Youth (11-15 years) | G13: 3.08E+01
B14: Case 3 | C14: High | D14: Low | E14: High | F14: Adult (≥21 years) | G14: 2.97E+01
F15: Youth (16-20 years) | G15: 2.81E+01
F16: Youth (11-15 years) | G16: 3.08E+01
B17: Case 1 | C17: Medium | D17: Low | E17: Low | F17: Adult (≥21 years) | G17: 2.63E+01
F18: Youth (16-20 years) | G18: 2.49E+01
F19: Youth (11-15 years) | G19: 2.73E+01
B20: Case 2 | C20: Medium | D20: Low | E20: Medium | F20: Adult (≥21 years) | G20: 2.63E+01
F21: Youth (16-20 years) | G21: 2.49E+01
F22: Youth (11-15 years) | G22: 2.73E+01
B23: Case 3 | C23: Medium | D23: Low | E23: High | F23: Adult (≥21 years) | G23: 2.63E+01
F24: Youth (16-20 years) | G24: 2.49E+01
F25: Youth (11-15 years) | G25: 2.73E+01
B26: Case 1 | C26: Low | D26: Low | E26: Low | F26: Adult (≥21 years) | G26: 1.24E+01
F27: Youth (16-20 years) | G27: 1.18E+01
F28: Youth (11-15 years) | G28: 1.29E+01
B29: Case 2 | C29: Low | D29: Low | E29: Medium | F29: Adult (≥21 years) | G29: 1.24E+01
F30: Youth (16-20 years) | G30: 1.18E+01
F31: Youth (11-15 years) | G31: 1.29E+01
B32: Case 3 | C32: Low | D32: Low | E32: High | F32: Adult (≥21 years) | G32: 1.24E+01
F33: Youth (16-20 years) | G33: 1.18E+01
F34: Youth (11-15 years) | G34: 1.29E+01

Sheet Outdoor Water Shield Derm P
A1: Scenario:
A2: Sealant - Water Shield
A3: Data Type:
A4: Estimated Dermal Doses Outputs - Permeability Method
A6: Scenario | B6: Case # | C6: Case Descriptors (Parameters Varied) | F6: Receptor | G6: Acute Dose Rate (mg/kg/day)
C7: Duration | D7: Weight Fraction | E7: Mass Used
A8: Sealant - Water Shield | B8: Case 1 | C8: High | D8: Low | E8: Low | F8: Adult (≥21 years) | G8: 1.92E+01
F9: Youth (16-20 years) | G9: 1.82E+01
F10: Youth (11-15 years) | G10: 1.99E+01
B11: Case 2 | C11: High | D11: Low | E11: Medium | F11: Adult (≥21 years) | G11: 1.92E+01
F12: Youth (16-20 years) | G12: 1.82E+01
F13: Youth (11-15 years) | G13: 1.99E+01
B14: Case 3 | C14: High | D14: Low | E14: High | F14: Adult (≥21 years) | G14: 1.92E+01
F15: Youth (16-20 years) | G15: 1.82E+01
F16: Youth (11-15 years) | G16: 1.99E+01
B17: Case 1 | C17: Medium | D17: Low | E17: Low | F17: Adult (≥21 years) | G17: 3.84E+00
F18: Youth (16-20 years) | G18: 3.63E+00
F19: Youth (11-15 years) | G19: 3.99E+00
B20: Case 2 | C20: Medium | D20: Low | E20: Medium | F20: Adult (≥21 years) | G20: 3.84E+00
F21: Youth (16-20 years) | G21: 3.63E+00
F22: Youth (11-15 years) | G22: 3.99E+00
B23: Case 3 | C23: Medium | D23: Low | E23: High | F23: Adult (≥21 years) | G23: 3.84E+00
F24: Youth (16-20 years) | G24: 3.63E+00
F25: Youth (11-15 years) | G25: 3.99E+00
B26: Case 1 | C26: Low | D26: Low | E26: Low | F26: Adult (≥21 years) | G26: 9.59E-01
F27: Youth (16-20 years) | G27: 9.08E-01
F28: Youth (11-15 years) | G28: 9.97E-01
B29: Case 2 | C29: Low | D29: Low | E29: Medium | F29: Adult (≥21 years) | G29: 9.59E-01
F30: Youth (16-20 years) | G30: 9.08E-01
F31: Youth (11-15 years) | G31: 9.97E-01
B32: Case 3 | C32: Low | D32: Low | E32: High | F32: Adult (≥21 years) | G32: 9.59E-01
F33: Youth (16-20 years) | G33: 9.08E-01
F34: Youth (11-15 years) | G34: 9.97E-01

Sheet Coatings and Primers Inh
A1: Scenario:
A2: Coatings and Primers
A3: Data Type:
A4: Estimated Inhalation Concentrations Outputs
A6: Scenario | B6: Case # | C6: Case Descriptors (Parameters Varied) | F6: Receptor | G6: Concentration (mg/m3) | K6: Concentration (ppm)
C7: Duration | D7: Weight Fraction | E7: Mass Used | G7: 1-hr TWA | H7: 3-hr TWA | I7: 8-hr TWA | J7: 24-hr TWA | K7: 1-hr TWA | L7: 3-hr TWA | M7: 8-hr TWA | N7: 24-hr TWA
A8: Coatings and Primers | B8: Case 1 | C8: High | D8: Low | E8: Low | F8: User | G8: 6.48E-01 | H8: 3.67E-01 | I8: 1.42E-01 | J8: 4.72E-02 | K8: =(G8*24.45)/165.833 -> 9.56E-02 | L8: =(H8*24.45)/165.833 -> 5.41E-02 | M8: =(I8*24.45)/165.833 -> 2.09E-02 | N8: 6.96E-03
F9: Bystander | G9: 3.22E-02 | H9: 1.07E-02 | I9: 4.02E-03 | J9: 1.34E-03 | K9: =(G9*24.45)/165.833 -> 4.74E-03 | L9: =(H9*24.45)/165.833 -> 1.58E-03 | M9: =(I9*24.45)/165.833 -> 5.93E-04 | N9: =(J9*24.45)/165.833 -> 1.98E-04
B10: Case 2 | C10: High | D10: Low | E10: Medium | F10: User | G10: 3.46E+00 | H10: 1.96E+00 | I10: 7.56E-01 | J10: 2.52E-01 | K10: 5.10E-01 | L10: 2.89E-01 | M10: 1.11E-01 | N10: 3.71E-02
F11: Bystander | G11: 1.72E-01 | H11: 5.72E-02 | I11: 2.14E-02 | J11: 7.15E-03 | K11: 2.53E-02 | L11: 8.43E-03 | M11: 3.16E-03 | N11: 1.05E-03
B12: Case 3 | C12: High | D12: Low | E12: High | F12: User | G12: 1.69E+01 | H12: 9.55E+00 | I12: 3.68E+00 | J12: 1.23E+00 | K12: 2.48E+00 | L12: 1.41E+00 | M12: 5.43E-01 | N12: 1.81E-01
F13: Bystander | G13: 8.37E-01 | H13: 2.79E-01 | I13: 1.05E-01 | J13: 3.49E-02 | K13: 1.23E-01 | L13: 4.11E-02 | M13: 1.54E-02 | N13: 5.14E-03
B14: Case 4 | C14: High | D14: Medium | E14: Low | F14: User | G14: 7.20E-01 | H14: 4.08E-01 | I14: 1.57E-01 | J14: 5.25E-02 | K14: 1.06E-01 | L14: 6.01E-02 | M14: 2.32E-02 | N14: 7.74E-03
F15: Bystander | G15: 3.57E-02 | H15: 1.19E-02 | I15: 4.47E-03 | J15: 1.49E-03 | K15: 5.27E-03 | L15: 1.76E-03 | M15: 6.59E-04 | N15: 2.20E-04
B16: Case 5 | C16: High | D16: Medium | E16: Medium | F16: User | G16: 3.84E+00 | H16: 2.18E+00 | I16: 8.40E-01 | J16: 2.80E-01 | K16: 5.66E-01 | L16: 3.21E-01 | M16: 1.24E-01 | N16: 4.13E-02
F17: Bystander | G17: 1.91E-01 | H17: 6.36E-02 | I17: 2.38E-02 | J17: 7.94E-03 | K17: 2.81E-02 | L17: 9.37E-03 | M17: 3.51E-03 | N17: 1.17E-03
B18: Case 6 | C18: High | D18: Medium | E18: High | F18: User | G18: 1.87E+01 | H18: 1.06E+01 | I18: 4.09E+00 | J18: 1.36E+00 | K18: 2.76E+00 | L18: 1.56E+00 | M18: 6.04E-01 | N18: 2.01E-01
F19: Bystander | G19: 9.29E-01 | H19: 3.10E-01 | I19: 1.16E-01 | J19: 3.87E-02 | K19: 1.37E-01 | L19: 4.57E-02 | M19: 1.71E-02 | N19: 5.71E-03
B20: Case 7 | C20: High | D20: High | E20: Low | F20: User | G20: 1.01E+00 | H20: 5.71E-01 | I20: 2.20E-01 | J20: 7.35E-02 | K20: 1.49E-01 | L20: 8.42E-02 | M20: 3.25E-02 | N20: 1.08E-02
F21: Bystander | G21: 5.00E-02 | H21: 1.67E-02 | I21: 6.26E-03 | J21: 2.09E-03 | K21: 7.38E-03 | L21: 2.46E-03 | M21: 9.22E-04 | N21: 3.07E-04
B22: Case 8 | C22: High | D22: High | E22: Medium | F22: User | G22: 5.38E+00 | H22: 3.05E+00 | I22: 1.18E+00 | J22: 3.92E-01 | K22: 7.93E-01 | L22: 4.49E-01 | M22: 1.73E-01 | N22: 5.78E-02
F23: Bystander | G23: 2.67E-01 | H23: 8.90E-02 | I23: 3.34E-02 | J23: 1.11E-02 | K23: 3.94E-02 | L23: 1.31E-02 | M23: 4.92E-03 | N23: 1.64E-03
B24: Case 9 | C24: High | D24: High | E24: High | F24: User | G24: 2.62E+01 | H24: 1.49E+01 | I24: 5.73E+00 | J24: 1.91E+00 | K24: 3.86E+00 | L24: 2.19E+00 | M24: 8.45E-01 | N24: 2.82E-01
F25: Bystander | G25: 1.30E+00 | H25: 4.34E-01 | I25: 1.63E-01 | J25: 5.42E-02 | K25: 1.92E-01 | L25: 6.40E-02 | M25: 2.40E-02 | N25: 7.99E-03
B26: Case 1 | C26: Medium | D26: Low | E26: Low | F26: User | G26: 7.14E-01 | H26: 2.38E-01 | I26: 9.19E-02 | J26: 3.06E-02 | K26: 1.05E-01 | L26: 3.51E-02 | M26: 1.36E-02 | N26: 4.52E-03
F27: Bystander | G27: 2.14E-02 | H27: 7.13E-03 | I27: 2.68E-03 | J27: 8.92E-04 | K27: 3.16E-03 | L27: 1.05E-03 | M27: 3.94E-04 | N27: 1.31E-04
B28: Case 2 | C28: Medium | D28: Low | E28: Medium | F28: User | G28: 3.81E+00 | H28: 1.27E+00 | I28: 4.90E-01 | J28: 1.63E-01 | K28: 5.62E-01 | L28: 1.87E-01 | M28: 7.23E-02 | N28: 2.41E-02
F29: Bystander | G29: 1.14E-01 | H29: 3.81E-02 | I29: 1.43E-02 | J29: 4.76E-03 | K29: 1.68E-02 | L29: 5.61E-03 | M29: 2.10E-03 | N29: 7.01E-04
B30: Case 3 | C30: Medium | D30: Low | E30: High | F30: User | G30: 1.86E+01 | H30: 6.19E+00 | I30: 2.39E+00 | J30: 7.97E-01 | K30: 2.74E+00 | L30: 9.13E-01 | M30: 3.52E-01 | N30: 1.17E-01
F31: Bystander | G31: 5.56E-01 | H31: 1.85E-01 | I31: 6.96E-02 | J31: 2.32E-02 | K31: 8.20E-02 | L31: 2.73E-02 | M31: 1.03E-02 | N31: 3.42E-03
B32: Case 4 | C32: Medium | D32: Medium | E32: Low | F32: User | G32: 7.94E-01 | H32: 2.65E-01 | I32: 1.02E-01 | J32: 3.41E-02 | K32: 1.17E-01 | L32: 3.90E-02 | M32: 1.51E-02 | N32: 5.02E-03
F33: Bystander | G33: 2.38E-02 | H33: 7.93E-03 | I33: 2.97E-03 | J33: 9.91E-04 | K33: 3.51E-03 | L33: 1.17E-03 | M33: 4.38E-04 | N33: 1.46E-04
B34: Case 5 | C34: Medium | D34: Medium | E34: Medium | F34: User | G34: 4.23E+00 | H34: 1.41E+00 | I34: 5.45E-01 | J34: 1.82E-01 | K34: 6.24E-01 | L34: 2.08E-01 | M34: 8.03E-02 | N34: 2.68E-02
F35: Bystander | G35: 1.27E-01 | H35: 4.23E-02 | I35: 1.59E-02 | J35: 5.28E-03 | K35: 1.87E-02 | L35: 6.23E-03 | M35: 2.34E-03 | N35: 7.79E-04
B36: Case 6 | C36: Medium | D36: Medium | E36: High | F36: User | G36: 2.06E+01 | H36: 6.88E+00 | I36: 2.66E+00 | J36: 8.85E-01 | K36: 3.04E+00 | L36: 1.01E+00 | M36: 3.92E-01 | N36: 1.31E-01
F37: Bystander | G37: 6.18E-01 | H37: 2.06E-01 | I37: 7.73E-02 | J37: 2.58E-02 | K37: 9.12E-02 | L37: 3.04E-02 | M37: 1.14E-02 | N37: 3.80E-03
B38: Case 7 | C38: Medium | D38: High | E38: Low | F38: User | G38: 1.11E+00 | H38: 3.70E-01 | I38: 1.43E-01 | J38: 4.77E-02 | K38: 1.64E-01 | L38: 5.46E-02 | M38: 2.11E-02 | N38: 7.03E-03
F39: Bystander | G39: 3.33E-02 | H39: 1.11E-02 | I39: 4.16E-03 | J39: 1.39E-03 | K39: 4.91E-03 | L39: 1.64E-03 | M39: 6.14E-04 | N39: 2.05E-04
B40: Case 8 | C40: Medium | D40: High | E40: Medium | F40: User | G40: 5.93E+00 | H40: 1.98E+00 | I40: 7.63E-01 | J40: 2.54E-01 | K40: 8.74E-01 | L40: 2.91E-01 | M40: 1.12E-01 | N40: 3.75E-02
F41: Bystander | G41: 1.78E-01 | H41: 5.92E-02 | I41: 2.22E-02 | J41: 7.40E-03 | K41: 2.62E-02 | L41: 8.73E-03 | M41: 3.27E-03 | N41: 1.09E-03
B42: Case 9 | C42: Medium | D42: High | E42: High | F42: User | G42: 2.89E+01 | H42: 9.63E+00 | I42: 3.72E+00 | J42: 1.24E+00 | K42: 4.26E+00 | L42: 1.42E+00 | M42: 5.48E-01 | N42: 1.83E-01
F43: Bystander | G43: 8.66E-01 | H43: 2.89E-01 | I43: 1.08E-01 | J43: 3.61E-02 | K43: 1.28E-01 | L43: 4.25E-02 | M43: 1.60E-02 | N43: 5.32E-03
B44: Case 1 | C44: Low | D44: Low | E44: Low | F44: User | G44: 5.00E-01 | H44: 1.67E-01 | I44: 6.50E-02 | J44: 2.17E-02 | K44: 7.37E-02 | L44: 2.46E-02 | M44: 9.59E-03 | N44: 3.20E-03
F45: Bystander | G45: 2.02E-02 | H45: 6.74E-03 | I45: 2.53E-03 | J45: 8.42E-04 | K45: 2.98E-03 | L45: 9.93E-04 | M45: 3.73E-04 | N45: 1.24E-04
B46: Case 2 | C46: Low | D46: Low | E46: Medium | F46: User | G46: 2.67E+00 | H46: 8.89E-01 | I46: 3.47E-01 | J46: 1.16E-01 | K46: 3.93E-01 | L46: 1.31E-01 | M46: 5.12E-02 | N46: 1.71E-02
F47: Bystander | G47: 1.08E-01 | H47: 3.59E-02 | I47: 1.35E-02 | J47: 4.49E-03 | K47: 1.59E-02 | L47: 5.30E-03 | M47: 1.99E-03 | N47: 6.62E-04
B48: Case 3 | C48: Low | D48: Low | E48: High | F48: User | G48: 1.30E+01 | H48: 4.34E+00 | I48: 1.69E+00 | J48: 5.64E-01 | K48: 1.92E+00 | L48: 6.39E-01 | M48: 2.49E-01 | N48: 8.31E-02
F49: Bystander | G49: 5.26E-01 | H49: 1.75E-01 | I49: 6.57E-02 | J49: 2.19E-02 | K49: 7.75E-02 | L49: 2.58E-02 | M49: 9.69E-03 | N49: 3.23E-03
B50: Case 4 | C50: Low | D50: Medium | E50: Low | F50: Bystander | G50: 5.56E-01 | H50: 1.85E-01 | I50: 7.23E-02 | J50: 2.41E-02 | K50: 8.19E-02 | L50: 2.73E-02 | M50: 1.07E-02 | N50: 3.55E-03
F51: User | G51: 2.25E-02 | H51: 7.49E-03 | I51: 2.81E-03 | J51: 9.36E-04 | K51: 3.31E-03 | L51: 1.10E-03 | M51: 4.14E-04 | N51: 1.38E-04
B52: Case 5 | C52: Low | D52: Medium | E52: Medium | F52: Bystander | G52: 2.96E+00 | H52: 9.88E-01 | I52: 3.86E-01 | J52: 1.29E-01 | K52: 4.37E-01 | L52: 1.46E-01 | M52: 5.68E-02 | N52: 1.89E-02
F53: User | G53: 1.20E-01 | H53: 3.99E-02 | I53: 1.50E-02 | J53: 4.99E-03 | K53: 1.77E-02 | L53: 5.89E-03 | M53: 2.21E-03 | N53: 7.36E-04
B54: Case 6 | C54: Low | D54: Medium | E54: High | F54: Bystander | G54: 1.45E+01 | H54: 4.82E+00 | I54: 1.88E+00 | J54: 6.26E-01 | K54: 2.13E+00 | L54: 7.10E-01 | M54: 2.77E-01 | N54: 9.24E-02
F55: User | G55: 5.84E-01 | H55: 1.95E-01 | I55: 7.30E-02 | J55: 2.43E-02 | K55: 8.61E-02 | L55: 2.87E-02 | M55: 1.08E-02 | N55: 3.59E-03
B56: Case 7 | C56: Low | D56: High | E56: Low | F56: User | G56: 7.78E-01 | H56: 2.59E-01 | I56: 1.01E-01 | J56: 3.37E-02 | K56: 1.15E-01 | L56: 3.82E-02 | M56: 1.49E-02 | N56: 4.97E-03
F57: Bystander | G57: 3.14E-02 | H57: 1.05E-02 | I57: 3.93E-03 | J57: 1.31E-03 | K57: 4.64E-03 | L57: 1.55E-03 | M57: 5.80E-04 | N57: 1.93E-04
B58: Case 8 | C58: Low | D58: High | E58: Medium | F58: User | G58: 4.15E+00 | H58: 1.38E+00 | I58: 5.40E-01 | J58: 1.80E-01 | K58: 6.12E-01 | L58: 2.04E-01 | M58: 7.96E-02 | N58: 2.65E-02
F59: Bystander | G59: 1.68E-01 | H59: 5.59E-02 | I59: 2.10E-02 | J59: 6.99E-03 | K59: 2.47E-02 | L59: 8.24E-03 | M59: 3.09E-03 | N59: 1.03E-03
B60: Case 9 | C60: Low | D60: High | E60: High | F60: User | G60: 2.02E+01 | H60: 6.74E+00 | I60: 2.63E+00 | J60: 8.77E-01 | K60: 2.98E+00 | L60: 9.94E-01 | M60: 3.88E-01 | N60: 1.29E-01
F61: Bystander | G61: 8.18E-01 | H61: 2.73E-01 | I61: 1.02E-01 | J61: 3.41E-02 | K61: 1.21E-01 | L61: 4.02E-02 | M61: 1.51E-02 | N61: 5.02E-03

Sheet Coatings and Primers Derm AF
A1: Scenario:
A2: Coating and Primers
A3: Data Type:
A4: Estimated Dermal Doses Outputs - Absorption Fraction Method
A6: Scenario | B6: Case # | C6: Case Descriptors (Parameters Varied) | F6: Receptor | G6: Acute Dose Rate (mg/kg/day)
C7: Duration | D7: Weight Fraction | E7: Mass Used
A8: Coatings and Primers | B8: Case 1 | C8: High | D8: Low | E8: Low | F8: Adult (≥21 years) | G8: 8.38E-01
F9: Youth (16-20 years) | G9: 7.84E-01
F10: Youth (11-15 years) | G10: 8.58E-01
B11: Case 2 | C11: High | D11: Low | E11: Medium | F11: Adult (≥21 years) | G11: 8.38E-01
F12: Youth (16-20 years) | G12: 7.84E-01
F13: Youth (11-15 years) | G13: 8.58E-01
B14: Case 3 | C14: High | D14: Low | E14: High | F14: Adult (≥21 years) | G14: 8.38E-01
F15: Youth (16-20 years) | G15: 7.84E-01
F16: Youth (11-15 years) | G16: 8.58E-01
B17: Case 4 | C17: High | D17: Medium | E17: Low | F17: Adult (≥21 years) | G17: 9.31E-01
F18: Youth (16-20 years) | G18: 8.71E-01
F19: Youth (11-15 years) | G19: 9.53E-01
B20: Case 5 | C20: High | D20: Medium | E20: Medium | F20: Adult (≥21 years) | G20: 9.31E-01
F21: Youth (16-20 years) | G21: 8.71E-01
F22: Youth (11-15 years) | G22: 9.53E-01
B23: Case 6 | C23: High | D23: Medium | E23: High | F23: Adult (≥21 years) | G23: 9.31E-01
F24: Youth (16-20 years) | G24: 8.71E-01
F25: Youth (11-15 years) | G25: 9.53E-01
B26: Case 7 | C26: High | D26: High | E26: Low | F26: Adult (≥21 years) | G26: 1.30E+00
F27: Youth (16-20 years) | G27: 1.22E+00
F28: Youth (11-15 years) | G28: 1.33E+00
B29: Case 8 | C29: High | D29: High | E29: Medium | F29: Adult (≥21 years) | G29: 1.30E+00
F30: Youth (16-20 years) | G30: 1.22E+00
F31: Youth (11-15 years) | G31: 1.33E+00
B32: Case 9 | C32: High | D32: High | E32: High | F32: Adult (≥21 years) | G32: 1.30E+00
F33: Youth (16-20 years) | G33: 1.22E+00
F34: Youth (11-15 years) | G34: 1.33E+00
B35: Case 1 | C35: Medium | D35: Low | E35: Low | F35: Adult (≥21 years) | G35: 4.37E-01
F36: Youth (16-20 years) | G36: 4.09E-01
F37: Youth (11-15 years) | G37: 4.47E-01
B38: Case 2 | C38: Medium | D38: Low | E38: Medium | F38: Adult (≥21 years) | G38: 4.37E-01
F39: Youth (16-20 years) | G39: 4.09E-01
F40: Youth (11-15 years) | G40: 4.47E-01
B41: Case 3 | C41: Medium | D41: Low | E41: High | F41: Adult (≥21 years) | G41: 4.37E-01
F42: Youth (16-20 years) | G42: 4.09E-01
F43: Youth (11-15 years) | G43: 4.47E-01
B44: Case 4 | C44: Medium | D44: Medium | E44: Low | F44: Adult (≥21 years) | G44: 4.86E-01
F45: Youth (16-20 years) | G45: 4.55E-01
F46: Youth (11-15 years) | G46: 4.97E-01
B47: Case 5 | C47: Medium | D47: Medium | E47: Medium | F47: Adult (≥21 years) | G47: 4.86E-01
F48: Youth (16-20 years) | G48: 4.55E-01
F49: Youth (11-15 years) | G49: 4.97E-01
B50: Case 6 | C50: Medium | D50: Medium | E50: High | F50: Adult (≥21 years) | G50: 4.86E-01
F51: Youth (16-20 years) | G51: 4.55E-01
F52: Youth (11-15 years) | G52: 4.97E-01
B53: Case 7 | C53: Medium | D53: High | E53: Low | F53: Adult (≥21 years) | G53: 6.80E-01
F54: Youth (16-20 years) | G54: 6.37E-01
F55: Youth (11-15 years) | G55: 6.96E-01
B56: Case 8 | C56: Medium | D56: High | E56: Medium | F56: Adult (≥21 years) | G56: 6.80E-01
F57: Youth (16-20 years) | G57: 6.37E-01
F58: Youth (11-15 years) | G58: 6.96E-01
B59: Case 9 | C59: Medium | D59: High | E59: High | F59: Adult (≥21 years) | G59: 6.80E-01
F60: Youth (16-20 years) | G60: 6.37E-01
F61: Youth (11-15 years) | G61: 6.96E-01
B62: Case 1 | C62: Low | D62: Low | E62: Low | F62: Adult (≥21 years) | G62: 1.41E-01
F63: Youth (16-20 years) | G63: 1.32E-01
F64: Youth (11-15 years) | G64: 1.44E-01
B65: Case 2 | C65: Low | D65: Low | E65: Medium | F65: Adult (≥21 years) | G65: 1.41E-01
F66: Youth (16-20 years) | G66: 1.32E-01
F67: Youth (11-15 years) | G67: 1.44E-01
B68: Case 3 | C68: Low | D68: Low | E68: High | F68: Adult (≥21 years) | G68: 1.41E-01
F69: Youth (16-20 years) | G69: 1.32E-01
F70: Youth (11-15 years) | G70: 1.44E-01
B71: Case 4 | C71: Low | D71: Medium | E71: Low | F71: Adult (≥21 years) | G71: 1.56E-01
F72: Youth (16-20 years) | G72: 1.46E-01
F73: Youth (11-15 years) | G73: 1.60E-01
B74: Case 5 | C74: Low | D74: Medium | E74: Medium | F74: Adult (≥21 years) | G74: 1.56E-01
F75: Youth (16-20 years) | G75: 1.46E-01
F76: Youth (11-15 years) | G76: 1.60E-01
B77: Case 6 | C77: Low | D77: Medium | E77: High | F77: Adult (≥21 years) | G77: 1.56E-01
F78: Youth (16-20 years) | G78: 1.46E-01
F79: Youth (11-15 years) | G79: 1.60E-01
B80: Case 7 | C80: Low | D80: High | E80: Low | F80: Adult (≥21 years) | G80: 2.19E-01
F81: Youth (16-20 years) | G81: 2.05E-01
F82: Youth (11-15 years) | G82: 2.24E-01
B83: Case 8 | C83: Low | D83: High | E83: Medium | F83: Adult (≥21 years) | G83: 2.19E-01
F84: Youth (16-20 years) | G84: 2.05E-01
F85: Youth (11-15 years) | G85: 2.24E-01
B86: Case 9 | C86: Low | D86: High | E86: High | F86: Adult (≥21 years) | G86: 2.19E-01
F87: Youth (16-20 years) | G87: 2.05E-01
F88: Youth (11-15 years) | G88: 2.24E-01

Sheet Coatings and Primers Derm P
A1: Scenario:
A2: Coatings and Primers
A3: Data Type:
A4: Estimated Dermal Doses Outputs - Permeability Method
A6: Scenario | B6: Case # | C6: Case Descriptors (Parameters Varied) | F6: Receptor | G6: Acute Dose Rate (mg/kg/day)
C7: Duration | D7: Weight Fraction | E7: Mass Used
A8: Coatings and Primers | B8: Case 1 | C8: High | D8: Low | E8: Low | F8: Adult (≥21 years) | G8: 3.29E-01
F9: Youth (16-20 years) | G9: 3.08E-01
F10: Youth (11-15 years) | G10: 3.37E-01
B11: Case 2 | C11: High | D11: Low | E11: Medium | F11: Adult (≥21 years) | G11: 3.29E-01
F12: Youth (16-20 years) | G12: 3.08E-01
F13: Youth (11-15 years) | G13: 3.37E-01
B14: Case 3 | C14: High | D14: Low | E14: High | F14: Adult (≥21 years) | G14: 3.29E-01
F15: Youth (16-20 years) | G15: 3.08E-01
F16: Youth (11-15 years) | G16: 3.37E-01
B17: Case 4 | C17: High | D17: Medium | E17: Low | F17: Adult (≥21 years) | G17: 3.66E-01
F18: Youth (16-20 years) | G18: 3.42E-01
F19: Youth (11-15 years) | G19: 3.74E-01
B20: Case 5 | C20: High | D20: Medium | E20: Medium | F20: Adult (≥21 years) | G20: 3.66E-01
F21: Youth (16-20 years) | G21: 3.42E-01
F22: Youth (11-15 years) | G22: 3.74E-01
B23: Case 6 | C23: High | D23: Medium | E23: High | F23: Adult (≥21 years) | G23: 3.66E-01
F24: Youth (16-20 years) | G24: 3.42E-01
F25: Youth (11-15 years) | G25: 3.74E-01
B26: Case 7 | C26: High | D26: High | E26: Low | F26: Adult (≥21 years) | G26: 5.12E-01
F27: Youth (16-20 years) | G27: 4.79E-01
F28: Youth (11-15 years) | G28: 5.24E-01
B29: Case 8 | C29: High | D29: High | E29: Medium | F29: Adult (≥21 years) | G29: 5.12E-01
F30: Youth (16-20 years) | G30: 4.79E-01
F31: Youth (11-15 years) | G31: 5.24E-01
B32: Case 9 | C32: High | D32: High | E32: High | F32: Adult (≥21 years) | G32: 5.12E-01
F33: Youth (16-20 years) | G33: 4.79E-01
F34: Youth (11-15 years) | G34: 5.24E-01
B35: Case 1 | C35: Medium | D35: Low | E35: Low | F35: Adult (≥21 years) | G35: 5.48E-02
F36: Youth (16-20 years) | G36: 5.13E-02
F37: Youth (11-15 years) | G37: 5.61E-02
B38: Case 2 | C38: Medium | D38: Low | E38: Medium | F38: Adult (≥21 years) | G38: 5.48E-02
F39: Youth (16-20 years) | G39: 5.13E-02
F40: Youth (11-15 years) | G40: 5.61E-02
B41: Case 3 | C41: Medium | D41: Low | E41: High | F41: Adult (≥21 years) | G41: 5.48E-02
F42: Youth (16-20 years) | G42: 5.13E-02
F43: Youth (11-15 years) | G43: 5.61E-02
B44: Case 4 | C44: Medium | D44: Medium | E44: Low | F44: Adult (≥21 years) | G44: 6.09E-02
F45: Youth (16-20 years) | G45: 5.70E-02
F46: Youth (11-15 years) | G46: 6.23E-02
B47: Case 5 | C47: Medium | D47: Medium | E47: Medium | F47: Adult (≥21 years) | G47: 6.09E-02
F48: Youth (16-20 years) | G48: 5.70E-02
F49: Youth (11-15 years) | G49: 6.23E-02
B50: Case 6 | C50: Medium | D50: Medium | E50: High | F50: Adult (≥21 years) | G50: 6.09E-02
F51: Youth (16-20 years) | G51: 5.70E-02
F52: Youth (11-15 years) | G52: 6.23E-02
B53: Case 7 | C53: Medium | D53: High | E53: Low | F53: Adult (≥21 years) | G53: 8.53E-02
F54: Youth (16-20 years) | G54: 7.98E-02
F55: Youth (11-15 years) | G55: 8.73E-02
B56: Case 8 | C56: Medium | D56: High | E56: Medium | F56: Adult (≥21 years) | G56: 8.53E-02
F57: Youth (16-20 years) | G57: 7.98E-02
F58: Youth (11-15 years) | G58: 8.73E-02
B59: Case 9 | C59: Medium | D59: High | E59: High | F59: Adult (≥21 years) | G59: 8.53E-02
F60: Youth (16-20 years) | G60: 7.98E-02
F61: Youth (11-15 years) | G61: 8.73E-02
B62: Case 1 | C62: Low | D62: Low | E62: Low | F62: Adult (≥21 years) | G62: 1.37E-02
F63: Youth (16-20 years) | G63: 1.28E-02
F64: Youth (11-15 years) | G64: 1.40E-02
B65: Case 2 | C65: Low | D65: Low | E65: Medium | F65: Adult (≥21 years) | G65: 1.37E-02
F66: Youth (16-20 years) | G66: 1.28E-02
F67: Youth (11-15 years) | G67: 1.40E-02
B68: Case 3 | C68: Low | D68: Low | E68: High | F68: Adult (≥21 years) | G68: 1.37E-02
F69: Youth (16-20 years) | G69: 1.28E-02
F70: Youth (11-15 years) | G70: 1.40E-02
B71: Case 4 | C71: Low | D71: Medium | E71: Low | F71: Adult (≥21 years) | G71: 1.52E-02
F72: Youth (16-20 years) | G72: 1.43E-02
F73: Youth (11-15 years) | G73: 1.56E-02
B74: Case 5 | C74: Low | D74: Medium | E74: Medium | F74: Adult (≥21 years) | G74: 1.52E-02
F75: Youth (16-20 years) | G75: 1.43E-02
F76: Youth (11-15 years) | G76: 1.56E-02
B77: Case 6 | C77: Low | D77: Medium | E77: High | F77: Adult (≥21 years) | G77: 1.52E-02
F78: Youth (16-20 years) | G78: 1.43E-02
F79: Youth (11-15 years) | G79: 1.56E-02
B80: Case 7 | C80: Low | D80: High | E80: Low | F80: Adult (≥21 years) | G80: 2.13E-02
F81: Youth (16-20 years) | G81: 2.00E-02
F82: Youth (11-15 years) | G82: 2.18E-02
B83: Case 8 | C83: Low | D83: High | E83: Medium | F83: Adult (≥21 years) | G83: 2.13E-02
F84: Youth (16-20 years) | G84: 2.00E-02
F85: Youth (11-15 years) | G85: 2.18E-02
B86: Case 9 | C86: Low | D86: High | E86: High | F86: Adult (≥21 years) | G86: 2.13E-02
F87: Youth (16-20 years) | G87: 2.00E-02
F88: Youth (11-15 years) | G88: 2.18E-02

Sheet Rust Primer Inh
A1: Scenario:
A2: Rust Primer - Sealant
A3: Data Type:
A4: Estimated Inhalation Concentrations Outputs
A6: Scenario | B6: Case # | C6: Case Descriptors (Parameters Varied) | F6: Receptor | G6: Concentration (mg/m3) | K6: Concentration (ppm)
C7: Duration | D7: Weight Fraction | E7: Mass Used | G7: 1-hr TWA | H7: 3-hr TWA | I7: 8-hr TWA | J7: 24-hr TWA | K7: 1-hr TWA | L7: 3-hr TWA | M7: 8-hr TWA | N7: 24-hr TWA
A8: Rust Primer | B8: Case 1 | C8: High | D8: Low | E8: Low | F8: User | G8: 1.27E-02 | H8: 1.27E-02 | I8: 9.44E-03 | J8: 3.15E-03 | K8: =(G8*24.45)/165.833 -> 1.88E-03 | L8: =(H8*24.45)/165.833 -> 1.87E-03 | M8: 1.39E-03 | N8: 4.64E-04
F9: Bystander | G9: 0.00E+00 | H9: 0.00E+00 | I9: 0.00E+00 | J9: 0.00E+00 | K9: =(G9*24.45)/165.833 -> 0.00E+00 | L9: 0.00E+00 | M9: 0.00E+00 | N9: 0.00E+00
B10: Case 2 | C10: High | D10: Low | E10: Medium | F10: User | G10: 1.08E-01 | H10: 1.08E-01 | I10: 8.05E-02 | J10: 2.68E-02 | K10: 1.60E-02 | L10: 1.59E-02 | M10: 1.19E-02 | N10: 3.96E-03
F11: Bystander | G11: 0.00E+00 | H11: 0.00E+00 | I11: 0.00E+00 | J11: 0.00E+00 | K11: 0.00E+00 | L11: 0.00E+00 | M11: 0.00E+00 | N11: 0.00E+00
B12: Case 3 | C12: High | D12: Low | E12: High | F12: User | G12: 2.28E+00 | H12: 2.27E+00 | I12: 1.69E+00 | J12: 5.63E-01 | K12: 3.36E-01 | L12: 3.34E-01 | M12: 2.49E-01 | N12: 8.30E-02
F13: Bystander | G13: 0.00E+00 | H13: 0.00E+00 | I13: 0.00E+00 | J13: 0.00E+00 | K13: 0.00E+00 | L13: 0.00E+00 | M13: 0.00E+00 | N13: 0.00E+00
B14: Case 4 | C14: High | D14: Medium | E14: Low | F14: User | G14: 1.41E-02 | H14: 1.41E-02 | I14: 1.05E-02 | J14: 3.50E-03 | K14: 2.08E-03 | L14: 2.08E-03 | M14: 1.55E-03 | N14: 5.15E-04
F15: Bystander | G15: 0.00E+00 | H15: 0.00E+00 | I15: 0.00E+00 | J15: 0.00E+00 | K15: 0.00E+00 | L15: 0.00E+00 | M15: 0.00E+00 | N15: 0.00E+00
B16: Case 5 | C16: High | D16: Medium | E16: Medium | F16: User | G16: 1.21E-01 | H16: 1.20E-01 | I16: 8.94E-02 | J16: 2.98E-02 | K16: 1.78E-02 | L16: 1.77E-02 | M16: 1.32E-02 | N16: 4.40E-03
F17: Bystander | G17: 0.00E+00 | H17: 0.00E+00 | I17: 0.00E+00 | J17: 0.00E+00 | K17: 0.00E+00 | L17: 0.00E+00 | M17: 0.00E+00 | N17: 0.00E+00
B18: Case 6 | C18: High | D18: Medium | E18: High | F18: User | G18: 2.53E+00 | H18: 2.52E+00 | I18: 1.88E+00 | J18: 6.25E-01 | K18: 3.73E-01 | L18: 3.72E-01 | M18: 2.77E-01 | N18: 9.22E-02
F19: Bystander | G19: 0.00E+00 | H19: 0.00E+00 | I19: 0.00E+00 | J19: 0.00E+00 | K19: 0.00E+00 | L19: 0.00E+00 | M19: 0.00E+00 | N19: 0.00E+00
B20: Case 7 | C20: High | D20: High | E20: Low | F20: User | G20: 1.55E-02 | H20: 1.55E-02 | I20: 1.15E-02 | J20: 3.85E-03 | K20: 2.29E-03 | L20: 2.28E-03 | M20: 1.70E-03 | N20: 5.67E-04
F21: Bystander | G21: 0.00E+00 | H21: 0.00E+00 | I21: 0.00E+00 | J21: 0.00E+00 | K21: 0.00E+00 | L21: 0.00E+00 | M21: 0.00E+00 | N21: 0.00E+00
B22: Case 8 | C22: High | D22: High | E22: Medium | F22: User | G22: 1.33E-01 | H22: 1.32E-01 | I22: 9.84E-02 | J22: 3.28E-02 | K22: 1.95E-02 | L22: 1.95E-02 | M22: 1.45E-02 | N22: 4.83E-03
F23: Bystander | G23: 0.00E+00 | H23: 0.00E+00 | I23: 0.00E+00 | J23: 0.00E+00 | K23: 0.00E+00 | L23: 0.00E+00 | M23: 0.00E+00 | N23: 0.00E+00
B24: Case 9 | C24: High | D24: High | E24: High | F24: User | G24: 2.78E+00 | H24: 2.77E+00 | I24: 2.06E+00 | J24: 6.88E-01 | K24: 4.10E-01 | L24: =(H24*24.45)/165.833 -> 4.09E-01 | M24: =(I24*24.45)/165.833 -> 3.04E-01 | N24: =(J24*24.45)/165.833 -> 1.01E-01
F25: Bystander | G25: 0.00E+00 | H25: 0.00E+00 | I25: 0.00E+00 | J25: 0.00E+00 | K25: 0.00E+00 | L25: 0.00E+00 | M25: 0.00E+00 | N25: 0.00E+00
B26: Case 1 | C26: Medium | D26: Low | E26: Low | F26: User | G26: 7.50E-02 | H26: 2.50E-02 | I26: 9.38E-03 | J26: 3.13E-03 | K26: 1.11E-02 | L26: 3.69E-03 | M26: 1.38E-03 | N26: 4.61E-04
F27: Bystander | G27: 0.00E+00 | H27: 0.00E+00 | I27: 0.00E+00 | J27: 0.00E+00 | K27: 0.00E+00 | L27: 0.00E+00 | M27: 0.00E+00 | N27: 0.00E+00
B28: Case 2 | C28: Medium | D28: Low | E28: Medium | F28: User | G28: 6.40E-01 | H28: 2.13E-01 | I28: 8.00E-02 | J28: 2.67E-02 | K28: 9.43E-02 | L28: 3.14E-02 | M28: 1.18E-02 | N28: 3.93E-03
F29: Bystander | G29: 0.00E+00 | H29: 0.00E+00 | I29: 0.00E+00 | J29: 0.00E+00 | K29: 0.00E+00 | L29: 0.00E+00 | M29: 0.00E+00 | N29: 0.00E+00
B30: Case 3 | C30: Medium | D30: Low | E30: High | F30: User | G30: 1.34E+01 | H30: 4.48E+00 | I30: 1.68E+00 | J30: 5.59E-01 | K30: 1.98E+00 | L30: 6.60E-01 | M30: 2.47E-01 | N30: 8.25E-02
F31: Bystander | G31: 0.00E+00 | H31: 0.00E+00 | I31: 0.00E+00 | J31: 0.00E+00 | K31: 0.00E+00 | L31: 0.00E+00 | M31: 0.00E+00 | N31: 0.00E+00
B32: Case 4 | C32: Medium | D32: Medium | E32: Low | F32: User | G32: 8.34E-02 | H32: 2.78E-02 | I32: 1.04E-02 | J32: 3.47E-03 | K32: 1.23E-02 | L32: 4.10E-03 | M32: 1.54E-03 | N32: 5.12E-04
F33: Bystander | G33: 0.00E+00 | H33: 0.00E+00 | I33: 0.00E+00 | J33: 0.00E+00 | K33: 0.00E+00 | L33: 0.00E+00 | M33: 0.00E+00 | N33: 0.00E+00
B34: Case 5 | C34: Medium | D34: Medium | E34: Medium | F34: User | G34: 7.11E-01 | H34: 2.37E-01 | I34: 8.89E-02 | J34: 2.96E-02 | K34: 1.05E-01 | L34: 3.49E-02 | M34: 1.31E-02 | N34: 4.37E-03
F35: Bystander | G35: 0.00E+00 | H35: 0.00E+00 | I35: 0.00E+00 | J35: 0.00E+00 | K35: 0.00E+00 | L35: 0.00E+00 | M35: 0.00E+00 | N35: 0.00E+00
B36: Case 6 | C36: Medium | D36: Medium | E36: High | F36: User | G36: 1.49E+01 | H36: 4.97E+00 | I36: 1.86E+00 | J36: 6.22E-01 | K36: 2.20E+00 | L36: 7.33E-01 | M36: 2.75E-01 | N36: 9.16E-02
F37: Bystander | G37: 0.00E+00 | H37: 0.00E+00 | I37: 0.00E+00 | J37: 0.00E+00 | K37: 0.00E+00 | L37: 0.00E+00 | M37: 0.00E+00 | N37: 0.00E+00
B38: Case 7 | C38: Medium | D38: High | E38: Low | F38: User | G38: 9.17E-02 | H38: 3.06E-02 | I38: 1.15E-02 | J38: 3.82E-03 | K38: 1.35E-02 | L38: 4.51E-03 | M38: 1.69E-03 | N38: 5.63E-04
F39: Bystander | G39: 0.00E+00 | H39: 0.00E+00 | I39: 0.00E+00 | J39: 0.00E+00 | K39: 0.00E+00 | L39: 0.00E+00 | M39: 0.00E+00 | N39: 0.00E+00
B40: Case 8 | C40: Medium | D40: High | E40: Medium | F40: User | G40: 7.82E-01 | H40: 2.61E-01 | I40: 9.78E-02 | J40: 3.26E-02 | K40: 1.15E-01 | L40: 3.84E-02 | M40: 1.44E-02 | N40: 4.80E-03
F41: Bystander | G41: 0.00E+00 | H41: 0.00E+00 | I41: 0.00E+00 | J41: 0.00E+00 | K41: 0.00E+00 | L41: 0.00E+00 | M41: 0.00E+00 | N41: 0.00E+00
B42: Case 9 | C42: Medium | D42: High | E42: High | F42: User | G42: 1.64E+01 | H42: 5.47E+00 | I42: 2.05E+00 | J42: 6.84E-01 | K42: 2.42E+00 | L42: 8.06E-01 | M42: 3.02E-01 | N42: 1.01E-01
F43: Bystander | G43: 0.00E+00 | H43: 0.00E+00 | I43: 0.00E+00 | J43: 0.00E+00 | K43: 0.00E+00 | L43: 0.00E+00 | M43: 0.00E+00 | N43: 0.00E+00
B44: Case 1 | C44: Low | D44: Low | E44: Low | F44: User | G44: 7.51E-02 | H44: 2.50E-02 | I44: 9.39E-03 | J44: 3.13E-03 | K44: 1.11E-02 | L44: 3.69E-03 | M44: 1.38E-03 | N44: 4.61E-04
F45: Bystander | G45: 0.00E+00 | H45: 0.00E+00 | I45: 0.00E+00 | J45: 0.00E+00 | K45: 0.00E+00 | L45: 0.00E+00 | M45: 0.00E+00 | N45: 0.00E+00
B46: Case 2 | C46: Low | D46: Low | E46: Medium | F46: User | G46: 6.40E-01 | H46: 2.13E-01 | I46: 8.00E-02 | J46: 2.67E-02 | K46: 9.44E-02 | L46: 3.15E-02 | M46: 1.18E-02 | N46: 3.93E-03
F47: Bystander | G47: 0.00E+00 | H47: 0.00E+00 | I47: 0.00E+00 | J47: 0.00E+00 | K47: 0.00E+00 | L47: 0.00E+00 | M47: 0.00E+00 | N47: 0.00E+00
B48: Case 3 | C48: Low | D48: Low | E48: High | F48: User | G48: 1.34E+01 | H48: 4.48E+00 | I48: 1.68E+00 | J48: 5.60E-01 | K48: 1.98E+00 | L48: 6.60E-01 | M48: 2.48E-01 | N48: 8.25E-02
F49: Bystander | G49: 0.00E+00 | H49: 0.00E+00 | I49: 0.00E+00 | J49: 0.00E+00 | K49: 0.00E+00 | L49: 0.00E+00 | M49: 0.00E+00 | N49: 0.00E+00
B50: Case 4 | C50: Low | D50: Medium | E50: Low | F50: Bystander | G50: 8.34E-02 | H50: 2.78E-02 | I50: 1.04E-02 | J50: 3.48E-03 | K50: 1.23E-02 | L50: 4.10E-03 | M50: 1.54E-03 | N50: 5.13E-04
F51: User | G51: 0.00E+00 | H51: 0.00E+00 | I51: 0.00E+00 | J51: 0.00E+00 | K51: 0.00E+00 | L51: 0.00E+00 | M51: 0.00E+00 | N51: 0.00E+00
B52: Case 5 | C52: Low | D52: Medium | E52: Medium | F52: Bystander | G52: 7.12E-01 | H52: 2.37E-01 | I52: 8.89E-02 | J52: 2.96E-02 | K52: 1.05E-01 | L52: 3.50E-02 | M52: 1.31E-02 | N52: 4.37E-03
F53: User | G53: 0.00E+00 | H53: 0.00E+00 | I53: 0.00E+00 | J53: 0.00E+00 | K53: 0.00E+00 | L53: 0.00E+00 | M53: 0.00E+00 | N53: 0.00E+00
B54: Case 6 | C54: Low | D54: Medium | E54: High | F54: Bystander | G54: 1.49E+01 | H54: 4.98E+00 | I54: 1.87E+00 | J54: 6.22E-01 | K54: 2.20E+00 | L54: 7.34E-01 | M54: 2.75E-01 | N54: 9.17E-02
F55: User | G55: 0.00E+00 | H55: 0.00E+00 | I55: 0.00E+00 | J55: 0.00E+00 | K55: 0.00E+00 | L55: 0.00E+00 | M55: 0.00E+00 | N55: 0.00E+00
B56: Case 7 | C56: Low | D56: High | E56: Low | F56: User | G56: 9.18E-02 | H56: 3.06E-02 | I56: 1.15E-02 | J56: 3.82E-03 | K56: 1.35E-02 | L56: 4.51E-03 | M56: 1.69E-03 | N56: 5.64E-04
F57: Bystander | G57: 0.00E+00 | H57: 0.00E+00 | I57: 0.00E+00 | J57: 0.00E+00 | K57: 0.00E+00 | L57: 0.00E+00 | M57: 0.00E+00 | N57: 0.00E+00
B58: Case 8 | C58: Low | D58: High | E58: Medium | F58: User | G58: 7.83E-01 | H58: 2.61E-01 | I58: 9.78E-02 | J58: 3.26E-02 | K58: 1.15E-01 | L58: 3.85E-02 | M58: 1.44E-02 | N58: 4.81E-03
F59: Bystander | G59: 0.00E+00 | H59: 0.00E+00 | I59: 0.00E+00 | J59: 0.00E+00 | K59: 0.00E+00 | L59: 0.00E+00 | M59: 0.00E+00 | N59: 0.00E+00
B60: Case 9 | C60: Low | D60: High | E60: High | F60: User | G60: 1.64E+01 | H60: 5.47E+00 | I60: 2.05E+00 | J60: 6.84E-01 | K60: 2.42E+00 | L60: 8.07E-01 | M60: 3.03E-01 | N60: 1.01E-01
F61: Bystander | G61: 0.00E+00 | H61: 0.00E+00 | I61: 0.00E+00 | J61: 0.00E+00 | K61: 0.00E+00 | L61: 0.00E+00 | M61: 0.00E+00 | N61: 0.00E+00

Sheet Rust Primer Derm AF
A1: Scenario:
A2: Rust Primer - Sealant
A3: Data Type:
A4: Estimated Dermal Doses Outputs - Absorption Fraction Method
A6: Scenario | B6: Case # | C6: Case Descriptors (Parameters Varied) | F6: Receptor | G6: Acute Dose Rate (mg/kg/day)
C7: Duration | D7: Weight Fraction | E7: Mass Used
A8: Rust Primer | B8: Case 1 | C8: High | D8: Low | E8: Low | F8: Adult (≥21 years) | G8: 6.47E+00
F9: Youth (16-20 years) | G9: 6.12E+00
F10: Youth (11-15 years) | G10: 6.72E+00
B11: Case 2 | C11: High | D11: Low | E11: Medium | F11: Adult (≥21 years) | G11: 6.47E+00
F12: Youth (16-20 years) | G12: 6.12E+00
F13: Youth (11-15 years) | G13: 6.72E+00
B14: Case 3 | C14: High | D14: Low | E14: High | F14: Adult (≥21 years) | G14: 6.47E+00
F15: Youth (16-20 years) | G15: 6.12E+00
F16: Youth (11-15 years) | G16: 6.72E+00
B17: Case 4 | C17: High | D17: Medium | E17: Low | F17: Adult (≥21 years) | G17: 7.19E+00
F18: Youth (16-20 years) | G18: 6.80E+00
F19: Youth (11-15 years) | G19: 7.47E+00
B20: Case 5 | C20: High | D20: Medium | E20: Medium | F20: Adult (≥21 years) | G20: 7.19E+00
F21: Youth (16-20 years) | G21: 6.80E+00
F22: Youth (11-15 years) | G22: 7.47E+00
B23: Case 6 | C23: High | D23: Medium | E23: High | F23: Adult (≥21 years) | G23: 7.19E+00
F24: Youth (16-20 years) | G24: 6.80E+00
F25: Youth (11-15 years) | G25: 7.47E+00
B26: Case 7 | C26: High | D26: High | E26: Low | F26: Adult (≥21 years) | G26: 7.90E+00
F27: Youth (16-20 years) | G27: 7.48E+00
F28: Youth (11-15 years) | G28: 8.22E+00
B29: Case 8 | C29: High | D29: High | E29: Medium | F29: Adult (≥21 years) | G29: 7.90E+00
F30: Youth (16-20 years) | G30: 7.48E+00
F31: Youth (11-15 years) | G31: 8.22E+00
B32: Case 9 | C32: High | D32: High | E32: High | F32: Adult (≥21 years) | G32: 7.90E+00
F33: Youth (16-20 years) | G33: 7.48E+00
F34: Youth (11-15 years) | G34: 8.22E+00
B35: Case 1 | C35: Medium | D35: Low | E35: Low | F35: Adult (≥21 years) | G35: 4.28E+00
F36: Youth (16-20 years) | G36: 4.05E+00
F37: Youth (11-15 years) | G37: 4.45E+00
B38: Case 2 | C38: Medium | D38: Low | E38: Medium | F38: Adult (≥21 years) | G38: 4.28E+00
F39: Youth (16-20 years) | G39: 4.05E+00
F40: Youth (11-15 years) | G40: 4.45E+00
B41: Case 3 | C41: Medium | D41: Low | E41: High | F41: Adult (≥21 years) | G41: 4.28E+00
F42: Youth (16-20 years) | G42: 4.05E+00
F43: Youth (11-15 years) | G43: 4.45E+00
B44: Case 4 | C44: Medium | D44: Medium | E44: Low | F44: Adult (≥21 years) | G44: 4.76E+00
F45: Youth (16-20 years) | G45: 4.51E+00
F46: Youth (11-15 years) | G46: 4.95E+00
B47: Case 5 | C47: Medium | D47: Medium | E47: Medium | F47: Adult (≥21 years) | G47: 4.76E+00
F48: Youth (16-20 years) | G48: 4.51E+00
F49: Youth (11-15 years) | G49: 4.95E+00
B50: Case 6 | C50: Medium | D50: Medium | E50: High | F50: Adult (≥21 years) | G50: 4.76E+00
F51: Youth (16-20 years) | G51: 4.51E+00
F52: Youth (11-15 years) | G52: 4.95E+00
B53: Case 7 | C53: Medium | D53: High | E53: Low | F53: Adult (≥21 years) | G53: 5.23E+00
F54: Youth (16-20 years) | G54: 4.96E+00
F55: Youth (11-15 years) | G55: 5.44E+00
B56: Case 8 | C56: Medium | D56: High | E56: Medium | F56: Adult (≥21 years) | G56: 5.23E+00
F57: Youth (16-20 years) | G57: 4.96E+00
F58: Youth (11-15 years) | G58: 5.44E+00
B59: Case 9 | C59: Medium | D59: High | E59: High | F59: Adult (≥21 years) | G59: 5.23E+00
F60: Youth (16-20 years) | G60: 4.96E+00
F61: Youth (11-15 years) | G61: 5.44E+00
B62: Case 1 | C62: Low | D62: Low | E62: Low | F62: Adult (≥21 years) | G62: 1.07E+00
F63: Youth (16-20 years) | G63: 1.01E+00
F64: Youth (11-15 years) | G64: 1.11E+00
B65: Case 2 | C65: Low | D65: Low | E65: Medium | F65: Adult (≥21 years) | G65: 1.07E+00
F66: Youth (16-20 years) | G66: 1.01E+00
F67: Youth (11-15 years) | G67: 1.11E+00
B68: Case 3 | C68: Low | D68: Low | E68: High | F68: Adult (≥21 years) | G68: 1.07E+00
F69: Youth (16-20 years) | G69: 1.01E+00
F70: Youth (11-15 years) | G70: 1.11E+00
B71: Case 4 | C71: Low | D71: Medium | E71: Low | F71: Adult (≥21 years) | G71: 1.19E+00
F72: Youth (16-20 years) | G72: 1.13E+00
F73: Youth (11-15 years) | G73: 1.24E+00
B74: Case 5 | C74: Low | D74: Medium | E74: Medium | F74: Adult (≥21 years) | G74: 1.19E+00
F75: Youth (16-20 years) | G75: 1.13E+00
F76: Youth (11-15 years) | G76: 1.24E+00
B77: Case 6 | C77: Low | D77: Medium | E77: High | F77: Adult (≥21 years) | G77: 1.19E+00
F78: Youth (16-20 years) | G78: 1.13E+00
F79: Youth (11-15 years) | G79: 1.24E+00
B80: Case 7 | C80: Low | D80: High | E80: Low | F80: Adult (≥21 years) | G80: 1.31E+00
F81: Youth (16-20 years) | G81: 1.24E+00
F82: Youth (11-15 years) | G82: 1.36E+00
B83: Case 8 | C83: Low | D83: High | E83: Medium | F83: Adult (≥21 years) | G83: 1.31E+00
F84: Youth (16-20 years) | G84: 1.24E+00
F85: Youth (11-15 years) | G85: 1.36E+00
B86: Case 9 | C86: Low | D86: High | E86: High | F86: Adult (≥21 years) | G86: 1.31E+00
F87: Youth (16-20 years) | G87: 1.24E+00
F88: Youth (11-15 years) | G88: 1.36E+00

Sheet Rust Primer Derm P
A1: Scenario:
A2: Rust Primer - Sealant
A3: Data Type:
A4: Estimated Dermal Doses Outputs - Permeability Method
A6: Scenario | B6: Case # | C6: Case Descriptors (Parameters Varied) | F6: Receptor | G6: Acute Dose Rate (mg/kg/day)
C7: Duration | D7: Weight Fraction | E7: Mass Used
A8: Rust Primer | B8: Case 1 | C8: High | D8: Low | E8: Low | F8: Adult (≥21 years) | G8: 5.02E+00
F9: Youth (16-20 years) | G9: 4.75E+00
F10: Youth (11-15 years) | G10: 5.22E+00
B11: Case 2 | C11: High | D11: Low | E11: Medium | F11: Adult (≥21 years) | G11: 5.02E+00
F12: Youth (16-20 years) | G12: 4.75E+00
F13: Youth (11-15 years) | G13: 5.22E+00
B14: Case 3 | C14: High | D14: Low | E14: High | F14: Adult (≥21 years) | G14: 5.02E+00
F15: Youth (16-20 years) | G15: 4.75E+00
F16: Youth (11-15 years) | G16: 5.22E+00
B17: Case 4 | C17: High | D17: Medium | E17: Low | F17: Adult (≥21 years) | G17: 5.58E+00
F18: Youth (16-20 years) | G18: 5.28E+00
F19: Youth (11-15 years) | G19: 5.80E+00
B20: Case 5 | C20: High | D20: Medium | E20: Medium | F20: Adult (≥21 years) | G20: 5.58E+00
F21: Youth (16-20 years) | G21: 5.28E+00
F22: Youth (11-15 years) | G22: 5.80E+00
B23: Case 6 | C23: High | D23: Medium | E23: High | F23: Adult (≥21 years) | G23: 5.58E+00
F24: Youth (16-20 years) | G24: 5.28E+00
F25: Youth (11-15 years) | G25: 5.80E+00
B26: Case 7 | C26: High | D26: High | E26: Low | F26: Adult (≥21 years) | G26: 6.13E+00
F27: Youth (16-20 years) | G27: 5.81E+00
F28: Youth (11-15 years) | G28: 6.38E+00
B29: Case 8 | C29: High | D29: High | E29: Medium | F29: Adult (≥21 years) | G29: 6.13E+00
F30: Youth (16-20 years) | G30: 5.81E+00
F31: Youth (11-15 years) | G31: 6.38E+00
B32: Case 9 | C32: High | D32: High | E32: High | F32: Adult (≥21 years) | G32: 6.13E+00
F33: Youth (16-20 years) | G33: 5.81E+00
F34: Youth (11-15 years) | G34: 6.38E+00
B35: Case 1 | C35: Medium | D35: Low | E35: Low | F35: Adult (≥21 years) | G35: 4.18E-01
F36: Youth (16-20 years) | G36: 3.96E-01
F37: Youth (11-15 years) | G37: 4.35E-01
B38: Case 2 | C38: Medium | D38: Low | E38: Medium | F38: Adult (≥21 years) | G38: 4.18E-01
F39: Youth (16-20 years) | G39: 3.96E-01
F40: Youth (11-15 years) | G40: 4.35E-01
B41: Case 3 | C41: Medium | D41: Low | E41: High | F41: Adult (≥21 years) | G41: 4.18E-01
F42: Youth (16-20 years) | G42: 3.96E-01
F43: Youth (11-15 years) | G43: 4.35E-01
B44: Case 4 | C44: Medium | D44: Medium | E44: Low | F44: Adult (≥21 years) | G44: 4.65E-01
F45: Youth (16-20 years) | G45: 4.40E-01
F46: Youth (11-15 years) | G46: 4.83E-01
B47: Case 5 | C47: Medium | D47: Medium | E47: Medium | F47: Adult (≥21 years) | G47: 4.65E-01
F48: Youth (16-20 years) | G48: 4.40E-01
F49: Youth (11-15 years) | G49: 4.83E-01
B50: Case 6 | C50: Medium | D50: Medium | E50: High | F50: Adult (≥21 years) | G50: 4.65E-01
F51: Youth (16-20 years) | G51: 4.40E-01
F52: Youth (11-15 years) | G52: 4.83E-01
B53: Case 7 | C53: Medium | D53: High | E53: Low | F53: Adult (≥21 years) | G53: 5.11E-01
F54: Youth (16-20 years) | G54: 4.84E-01
F55: Youth (11-15 years) | G55: 5.31E-01
B56: Case 8 | C56: Medium | D56: High | E56: Medium | F56: Adult (≥21 years) | G56: 5.11E-01
F57: Youth (16-20 years) | G57: 4.84E-01
F58: Youth (11-15 years) | G58: 5.31E-01
B59: Case 9 | C59: Medium | D59: High | E59: High | F59: Adult (≥21 years) | G59: 5.11E-01
F60: Youth (16-20 years) | G60: 4.84E-01
F61: Youth (11-15 years) | G61: 5.31E-01
B62: Case 1 | C62: Low | D62: Low | E62: Low | F62: Adult (≥21 years) | G62: 6.97E-02
F63: Youth (16-20 years) | G63: 6.60E-02
F64: Youth (11-15 years) | G64: 7.25E-02
B65: Case 2 | C65: Low | D65: Low | E65: Medium | F65: Adult (≥21 years) | G65: 6.97E-02
F66: Youth (16-20 years) | G66: 6.60E-02
F67: Youth (11-15 years) | G67: 7.25E-02
B68: Case 3 | C68: Low | D68: Low | E68: High | F68: Adult (≥21 years) | G68: 6.97E-02
F69: Youth (16-20 years) | G69: 6.60E-02
F70: Youth (11-15 years) | G70: 7.25E-02
B71: Case 4 | C71: Low | D71: Medium | E71: Low | F71: Adult (≥21 years) | G71: 7.75E-02
F72: Youth (16-20 years) | G72: 7.33E-02
F73: Youth (11-15 years) | G73: 8.05E-02
B74: Case 5 | C74: Low | D74: Medium | E74: Medium | F74: Adult (≥21 years) | G74: 7.75E-02
F75: Youth (16-20 years) | G75: 7.33E-02
F76: Youth (11-15 years) | G76: 8.05E-02
B77: Case 6 | C77: Low | D77: Medium | E77: High | F77: Adult (≥21 years) | G77: 7.75E-02
F78: Youth (16-20 years) | G78: 7.33E-02
F79: Youth (11-15 years) | G79: 8.05E-02
B80: Case 7 | C80: Low | D80: High | E80: Low | F80: Adult (≥21 years) | G80: 8.52E-02
F81: Youth (16-20 years) | G81: 8.07E-02
F82: Youth (11-15 years) | G82: 8.86E-02
B83: Case 8 | C83: Low | D83: High | E83: Medium | F83: Adult (≥21 years) | G83: 8.52E-02
F84: Youth (16-20 years) | G84: 8.07E-02
F85: Youth (11-15 years) | G85: 8.86E-02
B86: Case 9 | C86: Low | D86: High | E86: High | F86: Adult (≥21 years) | G86: 8.52E-02
F87: Youth (16-20 years) | G87: 8.07E-02
F88: Youth (11-15 years) | G88: 8.86E-02

Sheet Metallic Overglaze Inh
A1: Scenario:
A2: Metallic Overglaze (for ceramics)
A3: Data Type:
A4: Estimated Inhalation Concentrations Outputs
A6: Scenario | B6: Case # | C6: Case Descriptors (Parameters Varied) | F6: Receptor | G6: Concentration (mg/m3) | K6: Concentration (ppm)
C7: Duration | D7: Weight Fraction | E7: Mass Used | G7: 1-hr TWA | H7: 3-hr TWA | I7: 8-hr TWA | J7: 24-hr TWA | K7: 1-hr TWA | L7: 3-hr TWA | M7: 8-hr TWA | N7: 24-hr TWA
A8: Metallic Overglaze | B8: Case 1 | C8: High | D8: Low | E8: Low | F8: User | G8: 4.43E-02 | H8: 1.79E-02 | I8: 7.31E-03 | J8: 2.49E-03 | K8: =(G8*24.45)/165.833 -> 6.53E-03 | L8: =(H8*24.45)/165.833 -> 2.64E-03 | M8: 1.08E-03 | N8: 3.68E-04
F9: Bystander | G9: 5.65E-03 | H9: 3.96E-03 | I9: 1.78E-03 | J9: 6.49E-04 | K9: =(G9*24.45)/165.833 -> 8.33E-04 | L9: 5.85E-04 | M9: 2.62E-04 | N9: 9.58E-05
B10: Case 2 | C10: High | D10: Low | E10: Medium | F10: User | G10: 3.68E-01 | H10: 1.49E-01 | I10: 6.07E-02 | J10: 2.07E-02 | K10: 5.42E-02 | L10: 2.19E-02 | M10: 8.94E-03 | N10: 3.05E-03
F11: Bystander | G11: 4.69E-02 | H11: 3.29E-02 | I11: 1.47E-02 | J11: 5.39E-03 | K11: 6.92E-03 | L11: 4.85E-03 | M11: 2.17E-03 | N11: 7.95E-04
B12: Case 3 | C12: High | D12: Low | E12: High | F12: User | G12: 6.36E+00 | H12: 2.57E+00 | I12: 1.05E+00 | J12: 3.58E-01 | K12: 9.37E-01 | L12: 3.79E-01 | M12: 1.55E-01 | N12: 5.28E-02
F13: Bystander | G13: 8.11E-01 | H13: 5.69E-01 | I13: 2.55E-01 | J13: 9.32E-02 | K13: 1.20E-01 | L13: 8.39E-02 | M13: 3.76E-02 | N13: 1.37E-02
B14: Case 4 | C14: High | D14: Medium | E14: Low | F14: User | G14: 6.64E-02 | H14: 2.69E-02 | I14: 1.10E-02 | J14: 3.74E-03 | K14: 9.80E-03 | L14: 3.96E-03 | M14: 1.62E-03 | N14: 5.51E-04
F15: Bystander | G15: 8.48E-03 | H15: 5.95E-03 | I15: 2.66E-03 | J15: 9.74E-04 | K15: 1.25E-03 | L15: 8.77E-04 | M15: 3.93E-04 | N15: 1.44E-04
B16: Case 5 | C16: High | D16: Medium | E16: Medium | F16: User | G16: 5.52E-01 | H16: 2.23E-01 | I16: 9.10E-02 | J16: 3.11E-02 | K16: 8.13E-02 | L16: 3.29E-02 | M16: 1.34E-02 | N16: 4.58E-03
F17: Bystander | G17: 7.04E-02 | H17: 4.94E-02 | I17: 2.21E-02 | J17: 8.09E-03 | K17: 1.04E-02 | L17: 7.28E-03 | M17: 3.26E-03 | N17: 1.19E-03
B18: Case 6 | C18: High | D18: Medium | E18: High | F18: User | G18: 9.54E+00 | H18: 3.85E+00 | I18: 1.57E+00 | J18: 5.37E-01 | K18: 1.41E+00 | L18: 5.68E-01 | M18: 2.32E-01 | N18: 7.91E-02
F19: Bystander | G19: 1.22E+00 | H19: 8.54E-01 | I19: 3.82E-01 | J19: 1.40E-01 | K19: 1.79E-01 | L19: 1.26E-01 | M19: 5.64E-02 | N19: 2.06E-02
B20: Case 1 | C20: Medium | D20: Low | E20: Low | F20: User | G20: 5.19E-02 | H20: 1.99E-02 | I20: 7.94E-03 | J20: 2.70E-03 | K20: 7.65E-03 | L20: 2.93E-03 | M20: 1.17E-03 | N20: 3.98E-04
F21: Bystander | G21: 4.77E-03 | H21: 3.27E-03 | I21: 1.47E-03 | J21: 5.43E-04 | K21: 7.03E-04 | L21: 4.83E-04 | M21: 2.16E-04 | N21: 8.01E-05
B22: Case 2 | C22: Medium | D22: Low | E22: Medium | F22: User | G22: 4.31E-01 | H22: 1.65E-01 | I22: 6.60E-02 | J22: 2.24E-02 | K22: 6.35E-02 | L22: 2.43E-02 | M22: 9.72E-03 | N22: 3.31E-03
F23: Bystander | G23: 3.96E-02 | H23: 2.72E-02 | I23: 1.22E-02 | J23: 4.51E-03 | K23: 5.84E-03 | L23: 4.01E-03 | M23: 1.80E-03 | N23: 6.65E-04
B24: Case 3 | C24: Medium | D24: Low | E24: High | F24: User | G24: 7.44E+00 | H24: 2.85E+00 | I24: 1.14E+00 | J24: 3.88E-01 | K24: 1.10E+00 | L24: =(H24*24.45)/165.833 -> 4.21E-01 | M24: =(I24*24.45)/165.833 -> 1.68E-01 | N24: =(J24*24.45)/165.833 -> 5.72E-02
F25: Bystander | G25: 6.85E-01 | H25: 4.70E-01 | I25: 2.11E-01 | J25: 7.80E-02 | K25: 1.01E-01 | L25: 6.93E-02 | M25: 3.11E-02 | N25: 1.15E-02
B26: Case 4 | C26: Medium | D26: Medium | E26: Low | F26: User | G26: 7.78E-02 | H26: 2.98E-02 | I26: 1.19E-02 | J26: 4.05E-03 | K26: 1.15E-02 | L26: 4.40E-03 | M26: 1.76E-03 | N26: 5.98E-04
F27: Bystander | G27: 7.15E-03 | H27: 4.91E-03 | I27: 2.20E-03 | J27: 8.15E-04 | K27: 1.05E-03 | L27: 7.24E-04 | M27: 3.25E-04 | N27: 1.20E-04
B28: Case 5 | C28: Medium | D28: Medium | E28: Medium | F28: User | G28: 6.46E-01 | H28: 2.48E-01 | I28: 9.89E-02 | J28: 3.37E-02 | K28: 9.52E-02 | L28: 3.65E-02 | M28: 1.46E-02 | N28: 4.96E-03
F29: Bystander | G29: 5.94E-02 | H29: 4.08E-02 | I29: 1.83E-02 | J29: 6.77E-03 | K29: 8.76E-03 | L29: 6.01E-03 | M29: 2.70E-03 | N29: 9.98E-04
B30: Case 6 | C30: Medium | D30: Medium | E30: High | F30: User | G30: 1.12E+01 | H30: 4.28E+00 | I30: 1.71E+00 | J30: 5.82E-01 | K30: 1.65E+00 | L30: 6.31E-01 | M30: 2.52E-01 | N30: 8.58E-02
F31: Bystander | G31: 1.03E+00 | H31: 7.05E-01 | I31: 3.16E-01 | J31: 1.17E-01 | K31: 1.51E-01 | L31: 1.04E-01 | M31: 4.66E-02 | N31: 1.72E-02
B32: Case 1 | C32: Low | D32: Low | E32: Low | F32: User | G32: 4.93E-02 | H32: 1.90E-02 | I32: 7.61E-03 | J32: 2.59E-03 | K32: 7.27E-03 | L32: 2.80E-03 | M32: 1.12E-03 | N32: 3.82E-04
F33: Bystander | G33: 4.70E-03 | H33: 3.23E-03 | I33: 1.45E-03 | J33: 5.37E-04 | K33: 6.94E-04 | L33: 4.76E-04 | M33: 2.14E-04 | N33: 7.91E-05
B34: Case 2 | C34: Low | D34: Low | E34: Medium | F34: User | G34: 4.10E-01 | H34: 1.58E-01 | I34: 6.32E-02 | J34: 2.15E-02 | K34: 6.04E-02 | L34: 2.33E-02 | M34: 9.32E-03 | N34: 3.17E-03
F35: Bystander | G35: 3.91E-02 | H35: 2.68E-02 | I35: 1.20E-02 | J35: 4.46E-03 | K35: 5.76E-03 | L35: 3.95E-03 | M35: 1.77E-03 | N35: 6.57E-04
B36: Case 3 | C36: Low | D36: Low | E36: High | F36: User | G36: 7.08E+00 | H36: 2.73E+00 | I36: 1.09E+00 | J36: 3.72E-01 | K36: 1.04E+00 | L36: 4.02E-01 | M36: 1.61E-01 | N36: 5.48E-02
F37: Bystander | G37: 6.75E-01 | H37: 4.63E-01 | I37: 2.08E-01 | J37: 7.70E-02 | K37: 9.96E-02 | L37: 6.83E-02 | M37: 3.07E-02 | N37: 1.14E-02
B38: Case 4 | C38: Low | D38: Medium | E38: Low | F38: Bystander | G38: 7.40E-02 | H38: 2.85E-02 | I38: 1.14E-02 | J38: 3.89E-03 | K38: 1.09E-02 | L38: 4.21E-03 | M38: 1.68E-03 | N38: 5.73E-04
F39: User | G39: 7.06E-03 | H39: 4.84E-03 | I39: 2.17E-03 | J39: 8.05E-04 | K39: 1.04E-03 | L39: 7.14E-04 | M39: 3.20E-04 | N39: 1.19E-04
B40: Case 5 | C40: Low | D40: Medium | E40: Medium | F40: Bystander | G40: 6.15E-01 | H40: 2.37E-01 | I40: 9.48E-02 | J40: 3.23E-02 | K40: 9.06E-02 | L40: 3.49E-02 | M40: 1.40E-02 | N40: 4.76E-03
F41: User | G41: 5.86E-02 | H41: 4.02E-02 | I41: 1.80E-02 | J41: 6.68E-03 | K41: 8.64E-03 | L41: 5.93E-03 | M41: 2.66E-03 | N41: 9.85E-04
B42: Case 6 | C42: Low | D42: Medium | E42: High | F42: Bystander | G42: 1.06E+01 | H42: 4.09E+00 | I42: 1.64E+00 | J42: 5.58E-01 | K42: 1.57E+00 | L42: 6.04E-01 | M42: 2.42E-01 | N42: 8.22E-02
F43: User | G43: 1.01E+00 | H43: 6.95E-01 | I43: 3.12E-01 | J43: 1.16E-01 | K43: 1.49E-01 | L43: 1.02E-01 | M43: 4.60E-02 | N43: 1.70E-02

Sheet Metallic Overglaze Derm AF
A1: Scenario:
A2: Metallic Overglaze (for ceramics)
A3: Data Type:
A4: Estimated Dermal Doses Outputs - Absorption Fraction Method
A6: Scenario | B6: Case # | C6: Case Descriptors (Parameters Varied) | F6: Receptor | G6: Acute Dose Rate (mg/kg/day)
C7: Duration | D7: Weight Fraction | E7: Mass Used
A8: Metallic Overglaze | B8: Case 1 | C8: High | D8: Low | E8: Low | F8: Adult (≥21 years) | G8: 1.83E+00
F9: Youth (16-20 years) | G9: 1.71E+00
F10: Youth (11-15 years) | G10: 1.87E+00
B11: Case 2 | C11: High | D11: Low | E11: Medium | F11: Adult (≥21 years) | G11: 1.83E+00
F12: Youth (16-20 years) | G12: 1.71E+00
F13: Youth (11-15 years) | G13: 1.87E+00
B14: Case 3 | C14: High | D14: Low | E14: High | F14: Adult (≥21 years) | G14: 1.83E+00
F15: Youth (16-20 years) | G15: 1.71E+00
F16: Youth (11-15 years) | G16: 1.87E+00
B17: Case 4 | C17: High | D17: Medium | E17: Low | F17: Adult (≥21 years) | G17: 2.74E+00
F18: Youth (16-20 years) | G18: 2.57E+00
F19: Youth (11-15 years) | G19: 2.81E+00
B20: Case 5 | C20: High | D20: Medium | E20: Medium | F20: Adult (≥21 years) | G20: 2.74E+00
F21: Youth (16-20 years) | G21: 2.57E+00
F22: Youth (11-15 years) | G22: 2.81E+00
B23: Case 6 | C23: High | D23: Medium | E23: High | F23: Adult (≥21 years) | G23: 2.74E+00
F24: Youth (16-20 years) | G24: 2.57E+00
F25: Youth (11-15 years) | G25: 2.81E+00
B26: Case 1 | C26: Medium | D26: Low | E26: Low | F26: Adult (≥21 years) | G26: 2.94E-01
F27: Youth (16-20 years) | G27: 2.75E-01
F28: Youth (11-15 years) | G28: 3.01E-01
B29: Case 2 | C29: Medium | D29: Low | E29: Medium | F29: Adult (≥21 years) | G29: 2.94E-01
F30: Youth (16-20 years) | G30: 2.75E-01
F31: Youth (11-15 years) | G31: 3.01E-01
B32: Case 3 | C32: Medium | D32: Low | E32: High | F32: Adult (≥21 years) | G32: 2.94E-01
F33: Youth (16-20 years) | G33: 2.75E-01
F34: Youth (11-15 years) | G34: 3.01E-01
B35: Case 4 | C35: Medium | D35: Medium | E35: Low | F35: Adult (≥21 years) | G35: 4.41E-01
F36: Youth (16-20 years) | G36: 4.13E-01
F37: Youth (11-15 years) | G37: 4.52E-01
B38: Case 5 | C38: Medium | D38: Medium | E38: Medium | F38: Adult (≥21 years) | G38: 4.41E-01
F39: Youth (16-20 years) | G39: 4.13E-01
F40: Youth (11-15 years) | G40: 4.52E-01
B41: Case 6 | C41: Medium | D41: Medium | E41: High | F41: Adult (≥21 years) | G41: 4.41E-01
F42: Youth (16-20 years) | G42: 4.13E-01
F43: Youth (11-15 years) | G43: 4.52E-01
B44: Case 1 | C44: Low | D44: Low | E44: Low | F44: Adult (≥21 years) | G44: 3.70E-02
F45: Youth (16-20 years) | G45: 3.47E-02
F46: Youth (11-15 years) | G46: 3.79E-02
B47: Case 2 | C47: Low | D47: Low | E47: Medium | F47: Adult (≥21 years) | G47: 3.70E-02
F48: Youth (16-20 years) | G48: 3.47E-02
F49: Youth (11-15 years) | G49: 3.79E-02
B50: Case 3 | C50: Low | D50: Low | E50: High | F50: Adult (≥21 years) | G50: 3.70E-02
F51: Youth (16-20 years) | G51: 3.47E-02
F52: Youth (11-15 years) | G52: 3.79E-02
B53: Case 4 | C53: Low | D53: Medium | E53: Low | F53: Adult (≥21 years) | G53: 5.55E-02
F54: Youth (16-20 years) | G54: 5.20E-02
F55: Youth (11-15 years) | G55: 5.68E-02
B56: Case 5 | C56: Low | D56: Medium | E56: Medium | F56: Adult (≥21 years) | G56: 5.55E-02
F57: Youth (16-20 years) | G57: 5.20E-02
F58: Youth (11-15 years) | G58: 5.68E-02
B59: Case 6 | C59: Low | D59: Medium | E59: High | F59: Adult (≥21 years) | G59: 5.55E-02
F60: Youth (16-20 years) | G60: 5.20E-02
F61: Youth (11-15 years) | G61: 5.68E-02

Sheet Metallic Overglaze Derm P
A1: Scenario:
A2: Metallic Overglaze (for ceramics)
A3: Data Type:
A4: Estimated Dermal Doses Outputs - Permeability Method
A6: Scenario | B6: Case # | C6: Case Descriptors (Parameters Varied) | F6: Receptor | G6: Acute Dose Rate (mg/kg/day)
C7: Duration | D7: Weight Fraction | E7: Mass Used
A8: Metallic Overglaze | B8: Case 1 | C8: High | D8: Low | E8: Low | F8: Adult (≥21 years) | G8: 2.62E-01
F9: Youth (16-20 years) | G9: 2.45E-01
F10: Youth (11-15 years) | G10: 2.68E-01
B11: Case 2 | C11: High | D11: Low | E11: Medium | F11: Adult (≥21 years) | G11: 2.62E-01
F12: Youth (16-20 years) | G12: 2.45E-01
F13: Youth (11-15 years) | G13: 2.68E-01
B14: Case 3 | C14: High | D14: Low | E14: High | F14: Adult (≥21 years) | G14: 2.62E-01
F15: Youth (16-20 years) | G15: 2.45E-01
F16: Youth (11-15 years) | G16: 2.68E-01
B17: Case 4 | C17: High | D17: Medium | E17: Low | F17: Adult (≥21 years) | G17: 3.93E-01
F18: Youth (16-20 years) | G18: 3.68E-01
F19: Youth (11-15 years) | G19: 4.02E-01
B20: Case 5 | C20: High | D20: Medium | E20: Medium | F20: Adult (≥21 years) | G20: 3.93E-01
F21: Youth (16-20 years) | G21: 3.68E-01
F22: Youth (11-15 years) | G22: 4.02E-01
B23: Case 6 | C23: High | D23: Medium | E23: High | F23: Adult (≥21 years) | G23: 3.93E-01
F24: Youth (16-20 years) | G24: 3.68E-01
F25: Youth (11-15 years) | G25: 4.02E-01
B26: Case 1 | C26: Medium | D26: Low | E26: Low | F26: Adult (≥21 years) | G26: 1.86E-02
F27: Youth (16-20 years) | G27: 1.74E-02
F28: Youth (11-15 years) | G28: 1.90E-02
B29: Case 2 | C29: Medium | D29: Low | E29: Medium | F29: Adult (≥21 years) | G29: 1.86E-02
F30: Youth (16-20 years) | G30: 1.74E-02
F31: Youth (11-15 years) | G31: 1.90E-02
B32: Case 3 | C32: Medium | D32: Low | E32: High | F32: Adult (≥21 years) | G32: 1.86E-02
F33: Youth (16-20 years) | G33: 1.74E-02
F34: Youth (11-15 years) | G34: 1.90E-02
B35: Case 4 | C35: Medium | D35: Medium | E35: Low | F35: Adult (≥21 years) | G35: 2.78E-02
F36: Youth (16-20 years) | G36: 2.60E-02
F37: Youth (11-15 years) | G37: 2.85E-02
B38: Case 5 | C38: Medium | D38: Medium | E38: Medium | F38: Adult (≥21 years) | G38: 2.78E-02
F39: Youth (16-20 years) | G39: 2.60E-02
F40: Youth (11-15 years) | G40: 2.85E-02
B41: Case 6 | C41: Medium | D41: Medium | E41: High | F41: Adult (≥21 years) | G41: 2.78E-02
F42: Youth (16-20 years) | G42: 2.60E-02
F43: Youth (11-15 years) | G43: 2.85E-02
B44: Case 1 | C44: Low | D44: Low | E44: Low | F44: Adult (≥21 years) | G44: 2.18E-03
F45: Youth (16-20 years) | G45: 2.04E-03
F46: Youth (11-15 years) | G46: 2.23E-03
B47: Case 2 | C47: Low | D47: Low | E47: Medium | F47: Adult (≥21 years) | G47: 2.18E-03
F48: Youth (16-20 years) | G48: 2.04E-03
F49: Youth (11-15 years) | G49: 2.23E-03
B50: Case 3 | C50: Low | D50: Low | E50: High | F50: Adult (≥21 years) | G50: 2.18E-03
F51: Youth (16-20 years) | G51: 2.04E-03
F52: Youth (11-15 years) | G52: 2.23E-03
B53: Case 4 | C53: Low | D53: Medium | E53: Low | F53: Adult (≥21 years) | G53: 3.28E-03
F54: Youth (16-20 years) | G54: 3.06E-03
F55: Youth (11-15 years) | G55: 3.35E-03
B56: Case 5 | C56: Low | D56: Medium | E56: Medium | F56: Adult (≥21 years) | G56: 3.28E-03
F57: Youth (16-20 years) | G57: 3.06E-03
F58: Youth (11-15 years) | G58: 3.35E-03
B59: Case 6 | C59: Low | D59: Medium | E59: High | F59: Adult (≥21 years) | G59: 3.28E-03
F60: Youth (16-20 years) | G60: 3.06E-03
F61: Youth (11-15 years) | G61: 3.35E-03

Sheet Wax Marble Polish Inh
A1: Scenario:
A2: Marble Polish - Stone Cleaner (Wax)
A3: Data Type:
A4: Estimated Inhalation Concentrations Outputs
A6: Scenario | B6: Case # | C6: Case Descriptors (Parameters Varied) | F6: Receptor | G6: Concentration (mg/m3) | K6: Concentration (ppm)
C7: Duration | D7: Weight Fraction | E7: Mass Used | G7: 1-hr TWA | H7: 3-hr TWA | I7: 8-hr TWA | J7: 24-hr TWA | K7: 1-hr TWA | L7: 3-hr TWA | M7: 8-hr TWA | N7: 24-hr TWA
A8: Marble Polish - Stone Cleaner (Wax) | B8: Case 1 | C8: High | D8: Low | E8: Low | F8: User | G8: 1.24E+02 | H8: 8.01E+01 | I8: 3.32E+01 | J8: 1.12E+01 | K8: =(G8*24.45)/165.833 -> 1.83E+01 | L8: =(H8*24.45)/165.833 -> 1.18E+01 | M8: 4.89E+00 | N8: 1.65E+00
F9: Bystander | G9: 2.19E+01 | H9: 1.76E+01 | I9: 8.01E+00 | J9: 2.78E+00 | K9: =(G9*24.45)/165.833 -> 3.23E+00 | L9: 2.59E+00 | M9: 1.18E+00 | N9: 4.10E-01
B10: Case 2 | C10: High | D10: Low | E10: Medium | F10: User | G10: 7.21E+02 | H10: 4.65E+02 | I10: 1.92E+02 | J10: 6.48E+01 | K10: 1.06E+02 | L10: 6.85E+01 | M10: 2.84E+01 | N10: 9.55E+00
F11: Bystander | G11: 1.27E+02 | H11: 1.02E+02 | I11: 4.65E+01 | J11: 1.61E+01 | K11: 1.87E+01 | L11: 1.50E+01 | M11: 6.86E+00 | N11: 2.38E+00
B12: Case 3 | C12: High | D12: Low | E12: High | F12: User | G12: 7.10E+03 | H12: 4.58E+03 | I12: 1.89E+03 | J12: 6.38E+02 | K12: 1.05E+03 | L12: 6.75E+02 | M12: 2.79E+02 | N12: 9.40E+01
F13: Bystander | G13: 1.25E+03 | H13: 1.00E+03 | I13: 4.58E+02 | J13: 1.59E+02 | K13: 1.84E+02 | L13: 1.48E+02 | M13: 6.75E+01 | N13: 2.34E+01
B14: Case 4 | C14: High | D14: Medium | E14: Low | F14: User | G14: 1.39E+02 | H14: 8.95E+01 | I14: 3.71E+01 | J14: 1.25E+01 | K14: 2.05E+01 | L14: 1.32E+01 | M14: 5.46E+00 | N14: 1.84E+00
F15: Bystander | G15: 2.45E+01 | H15: 1.96E+01 | I15: 8.96E+00 | J15: 3.10E+00 | K15: 3.61E+00 | L15: 2.89E+00 | M15: 1.32E+00 | N15: 4.58E-01
B16: Case 5 | C16: High | D16: Medium | E16: Medium | F16: User | G16: 8.06E+02 | H16: 5.20E+02 | I16: 2.15E+02 | J16: 7.24E+01 | K16: 1.19E+02 | L16: 7.66E+01 | M16: 3.17E+01 | N16: 1.07E+01
F17: Bystander | G17: 1.42E+02 | H17: 1.14E+02 | I17: 5.20E+01 | J17: 1.80E+01 | K17: 2.09E+01 | L17: 1.68E+01 | M17: 7.66E+00 | N17: 2.66E+00
B18: Case 6 | C18: High | D18: Medium | E18: High | F18: User | G18: 7.93E+03 | H18: 5.12E+03 | I18: 2.12E+03 | J18: 7.13E+02 | K18: 1.17E+03 | L18: 7.54E+02 | M18: 3.12E+02 | N18: 1.05E+02
F19: Bystander | G19: 1.40E+03 | H19: 1.12E+03 | I19: 5.12E+02 | J19: 1.77E+02 | K19: 2.06E+02 | L19: 1.65E+02 | M19: 7.55E+01 | N19: 2.62E+01
B20: Case 7 | C20: High | D20: High | E20: Low | F20: User | G20: 1.46E+02 | H20: 9.42E+01 | I20: 3.90E+01 | J20: 1.31E+01 | K20: 2.15E+01 | L20: 1.39E+01 | M20: 5.75E+00 | N20: 1.94E+00
F21: Bystander | G21: 2.58E+01 | H21: 2.06E+01 | I21: 9.43E+00 | J21: 3.27E+00 | K21: 3.80E+00 | L21: 3.04E+00 | M21: 1.39E+00 | N21: 4.82E-01
B22: Case 8 | C22: High | D22: High | E22: Medium | F22: User | G22: 8.48E+02 | H22: 5.47E+02 | I22: 2.26E+02 | J22: 7.62E+01 | K22: 1.25E+02 | L22: 8.06E+01 | M22: 3.34E+01 | N22: 1.12E+01
F23: Bystander | G23: 1.49E+02 | H23: 1.20E+02 | I23: 5.47E+01 | J23: 1.90E+01 | K23: 2.20E+01 | L23: 1.77E+01 | M23: 8.07E+00 | N23: 2.80E+00
B24: Case 9 | C24: High | D24: High | E24: High | F24: User | G24: 8.35E+03 | H24: 5.39E+03 | I24: 2.23E+03 | J24: 7.50E+02 | K24: 1.23E+03 | L24: 7.94E+02 | M24: 3.29E+02 | N24: 1.11E+02
F25: Bystander | G25: 1.47E+03 | H25: 1.18E+03 | I25: 5.39E+02 | J25: 1.87E+02 | K25: 2.17E+02 | L25: 1.74E+02 | M25: 7.94E+01 | N25: 2.75E+01
B26: Case 1 | C26: Medium | D26: Low | E26: Low | F26: User | G26: 2.26E+02 | H26: 8.74E+01 | I26: 3.48E+01 | J26: 1.17E+01 | K26: 3.33E+01 | L26: 1.29E+01 | M26: 5.13E+00 | N26: 1.72E+00
F27: Bystander | G27: 2.21E+01 | H27: 1.51E+01 | I27: 6.58E+00 | J27: 2.26E+00 | K27: 3.25E+00 | L27: 2.22E+00 | M27: 9.70E-01 | N27: 3.34E-01
B28: Case 2 | C28: Medium | D28: Low | E28: Medium | F28: User | G28: 1.31E+03 | H28: 5.07E+02 | I28: 2.02E+02 | J28: 6.78E+01 | K28: 1.94E+02 | L28: 7.48E+01 | M28: 2.98E+01 | N28: 9.99E+00
F29: Bystander | G29: 1.28E+02 | H29: 8.74E+01 | I29: 3.82E+01 | J29: 1.31E+01 | K29: 1.89E+01 | L29: 1.29E+01 | M29: 5.63E+00 | N29: 1.94E+00
B30: Case 3 | C30: Medium | D30: Low | E30: High | F30: User | G30: 1.29E+04 | H30: 5.00E+03 | I30: 1.99E+03 | J30: 6.67E+02 | K30: 1.91E+03 | L30: 7.37E+02 | M30: 2.93E+02 | N30: 9.84E+01
F31: Bystander | G31: 1.26E+03 | H31: 8.61E+02 | I31: 3.76E+02 | J31: 1.29E+02 | K31: 1.86E+02 | L31: 1.27E+02 | M31: 5.55E+01 | N31: 1.91E+01
B32: Case 4 | C32: Medium | D32: Medium | E32: Low | F32: User | G32: 2.53E+02 | H32: 9.77E+01 | I32: 3.89E+01 | J32: 1.31E+01 | K32: 3.73E+01 | L32: 1.44E+01 | M32: 5.74E+00 | N32: 1.92E+00
F33: Bystander | G33: 2.47E+01 | H33: 1.68E+01 | I33: 7.36E+00 | J33: 2.53E+00 | K33: 3.64E+00 | L33: 2.48E+00 | M33: 1.08E+00 | N33: 3.73E-01
B34: Case 5 | C34: Medium | D34: Medium | E34: Medium | F34: User | G34: 1.47E+03 | H34: 5.67E+02 | I34: 2.26E+02 | J34: 7.58E+01 | K34: 2.16E+02 | L34: 8.36E+01 | M34: 3.33E+01 | N34: 1.12E+01
F35: Bystander | G35: 1.43E+02 | H35: 9.77E+01 | I35: 4.27E+01 | J35: 1.47E+01 | K35: 2.11E+01 | L35: 1.44E+01 | M35: 6.29E+00 | N35: 2.16E+00
B36: Case 6 | C36: Medium | D36: Medium | E36: High | F36: User | G36: 1.44E+04 | H36: 5.58E+03 | I36: 2.22E+03 | J36: 7.46E+02 | K36: 2.13E+03 | L36: 8.23E+02 | M36: 3.28E+02 | N36: 1.10E+02
F37: Bystander | G37: 1.41E+03 | H37: 9.62E+02 | I37: 4.20E+02 | J37: 1.45E+02 | K37: 2.08E+02 | L37: 1.42E+02 | M37: 6.20E+01 | N37: 2.13E+01
B38: Case 7 | C38: Medium | D38: High | E38: Low | F38: User | G38: 2.66E+02 | H38: 1.03E+02 | I38: 4.10E+01 | J38: 1.37E+01 | K38: 3.92E+01 | L38: 1.52E+01 | M38: 6.04E+00 | N38: 2.03E+00
F39: Bystander | G39: 2.60E+01 | H39: 1.77E+01 | I39: 7.74E+00 | J39: 2.66E+00 | K39: 3.83E+00 | L39: 2.61E+00 | M39: 1.14E+00 | N39: 3.93E-01
B40: Case 8 | C40: Medium | D40: High | E40: Medium | F40: User | G40: 1.54E+03 | H40: 5.97E+02 | I40: 2.38E+02 | J40: 7.97E+01 | K40: 2.28E+02 | L40: 8.80E+01 | M40: 3.51E+01 | N40: 1.18E+01
F41: Bystander | G41: 1.51E+02 | H41: 1.03E+02 | I41: 4.49E+01 | J41: 1.55E+01 | K41: 2.22E+01 | L41: 1.52E+01 | M41: 6.63E+00 | N41: 2.28E+00
B42: Case 9 | C42: Medium | D42: High | E42: High | F42: User | G42: 1.52E+04 | H42: 5.88E+03 | I42: 2.34E+03 | J42: 7.85E+02 | K42: 2.24E+03 | L42: 8.66E+02 | M42: 3.45E+02 | N42: 1.16E+02
F43: Bystander | G43: 1.48E+03 | H43: 1.01E+03 | I43: 4.43E+02 | J43: 1.52E+02 | K43: 2.19E+02 | L43: 1.49E+02 | M43: 6.52E+01 | N43: 2.24E+01
B44: Case 1 | C44: Low | D44: Low | E44: Low | F44: User | G44: 2.08E+02 | H44: 8.07E+01 | I44: 3.22E+01 | J44: 1.08E+01 | K44: 3.06E+01 | L44: 1.19E+01 | M44: 4.75E+00 | N44: 1.59E+00
F45: Bystander | G45: 2.10E+01 | H45: 1.43E+01 | I45: 6.27E+00 | J45: 2.16E+00 | K45: 3.10E+00 | L45: 2.11E+00 | M45: 9.24E-01 | N45: 3.18E-01
B46: Case 2 | C46: Low | D46: Low | E46: Medium | F46: User | G46: 1.21E+03 | H46: 4.68E+02 | I46: 1.87E+02 | J46: 6.27E+01 | K46: 1.78E+02 | L46: 6.91E+01 | M46: 2.76E+01 | N46: 9.24E+00
F47: Bystander | G47: 1.22E+02 | H47: 8.32E+01 | I47: 3.64E+01 | J47: 1.25E+01 | K47: 1.80E+01 | L47: 1.23E+01 | M47: 5.36E+00 | N47: 1.84E+00
B48: Case 3 | C48: Low | D48: Low | E48: High | F48: User | G48: 1.19E+04 | H48: 4.61E+03 | I48: 1.84E+03 | J48: 6.17E+02 | K48: 1.75E+03 | L48: 6.80E+02 | M48: 2.71E+02 | N48: 9.10E+01
F49: Bystander | G49: 1.20E+03 | H49: 8.20E+02 | I49: 3.58E+02 | J49: 1.23E+02 | K49: 1.77E+02 | L49: 1.21E+02 | M49: 5.28E+01 | N49: 1.82E+01
B50: Case 4 | C50: Low | D50: Medium | E50: Low | F50: Bystander | G50: 2.32E+02 | H50: 9.02E+01 | I50: 3.60E+01 | J50: 1.21E+01 | K50: 3.42E+01 | L50: 1.33E+01 | M50: 5.31E+00 | N50: 1.78E+00
F51: User | G51: 2.35E+01 | H51: 1.60E+01 | I51: 7.01E+00 | J51: 2.41E+00 | K51: 3.47E+00 | L51: 2.36E+00 | M51: 1.03E+00 | N51: 3.55E-01
B52: Case 5 | C52: Low | D52: Medium | E52: Medium | F52: Bystander | G52: 1.35E+03 | H52: 5.23E+02 | I52: 2.09E+02 | J52: 7.01E+01 | K52: 1.99E+02 | L52: 7.72E+01 | M52: 3.08E+01 | N52: 1.03E+01
F53: User | G53: 1.36E+02 | H53: 9.30E+01 | I53: 4.07E+01 | J53: 1.40E+01 | K53: 2.01E+01 | L53: 1.37E+01 | M53: 5.99E+00 | N53: 2.06E+00
B54: Case 6 | C54: Low | D54: Medium | E54: High | F54: Bystander | G54: 1.33E+04 | H54: 5.15E+03 | I54: 2.06E+03 | J54: 6.90E+02 | K54: 1.96E+03 | L54: 7.60E+02 | M54: 3.03E+02 | N54: 1.02E+02
F55: User | G55: 1.34E+03 | H55: 9.16E+02 | I55: 4.00E+02 | J55: 1.38E+02 | K55: 1.98E+02 | L55: 1.35E+02 | M55: 5.90E+01 | N55: 2.03E+01
B56: Case 7 | C56: Low | D56: High | E56: Low | F56: User | G56: 2.44E+02 | H56: 9.49E+01 | I56: 3.79E+01 | J56: 1.27E+01 | K56: 3.60E+01 | L56: 1.40E+01 | M56: 5.59E+00 | N56: 1.87E+00
F57: Bystander | G57: 2.47E+01 | H57: 1.69E+01 | I57: 7.37E+00 | J57: 2.54E+00 | K57: 3.65E+00 | L57: 2.49E+00 | M57: 1.09E+00 | N57: 3.74E-01
B58: Case 8 | C58: Low | D58: High | E58: Medium | F58: User | G58: 1.42E+03 | H58: 5.51E+02 | I58: 2.20E+02 | J58: 7.38E+01 | K58: 2.09E+02 | L58: 8.12E+01 | M58: 3.24E+01 | N58: 1.09E+01
F59: Bystander | G59: 1.44E+02 | H59: 9.79E+01 | I59: 4.28E+01 | J59: 1.47E+01 | K59: 2.12E+01 | L59: 1.44E+01 | M59: 6.31E+00 | N59: 2.17E+00
B60: Case 9 | C60: Low | D60: High | E60: High | F60: User | G60: 1.40E+04 | H60: 5.43E+03 | I60: 2.17E+03 | J60: 7.26E+02 | K60: 2.06E+03 | L60: 8.00E+02 | M60: 3.19E+02 | N60: 1.07E+02
F61: Bystander | G61: 1.41E+03 | H61: 9.64E+02 | I61: 4.21E+02 | J61: 1.45E+02 | K61: 2.09E+02 | L61: 1.42E+02 | M61: 6.21E+01 | N61: 2.14E+01

Sheet Wax Marble Polish Derm AF
A1: Scenario:
A2: Marble Polish - Stone Cleaner (Wax)
A3: Data Type:
A4: Estimated Dermal Doses Outputs - Absorption Fraction Method
A6: Scenario | B6: Case # | C6: Case Descriptors (Parameters Varied) | F6: Receptor | G6: Acute Dose Rate (mg/kg/day)
C7: Duration | D7: Weight Fraction | E7: Mass Used
A8: Marble Polish - Stone Cleaner (Wax) | B8: Case 1 | C8: High | D8: Low | E8: Low | F8: Adult (≥21 years) | G8: 5.09E+00
F9: Youth (16-20 years) | G9: 4.77E+00
F10: Youth (11-15 years) | G10: 5.21E+00
B11: Case 2 | C11: High | D11: Low | E11: Medium | F11: Adult (≥21 years) | G11: 5.09E+00
F12: Youth (16-20 years) | G12: 4.77E+00
F13: Youth (11-15 years) | G13: 5.21E+00
B14: Case 3 | C14: High | D14: Low | E14: High | F14: Adult (≥21 years) | G14: 5.09E+00
F15: Youth (16-20 years) | G15: 4.77E+00
F16: Youth (11-15 years) | G16: 5.21E+00
B17: Case 4 | C17: High | D17: Medium | E17: Low | F17: Adult (≥21 years) | G17: 5.69E+00
F18: Youth (16-20 years) | G18: 5.33E+00
F19: Youth (11-15 years) | G19: 5.82E+00
B20: Case 5 | C20: High | D20: Medium | E20: Medium | F20: Adult (≥21 years) | G20: 5.69E+00
F21: Youth (16-20 years) | G21: 5.33E+00
F22: Youth (11-15 years) | G22: 5.82E+00
B23: Case 6 | C23: High | D23: Medium | E23: High | F23: Adult (≥21 years) | G23: 5.69E+00
F24: Youth (16-20 years) | G24: 5.33E+00
F25: Youth (11-15 years) | G25: 5.82E+00
B26: Case 7 | C26: High | D26: High | E26: Low | F26: Adult (≥21 years) | G26: 5.99E+00
F27: Youth (16-20 years) | G27: 5.61E+00
F28: Youth (11-15 years) | G28: 6.13E+00
B29: Case 8 | C29: High | D29: High | E29: Medium | F29: Adult (≥21 years) | G29: 5.99E+00
F30: Youth (16-20 years) | G30: 5.61E+00
F31: Youth (11-15 years) | G31: 6.13E+00
B32: Case 9 | C32: High | D32: High | E32: High | F32: Adult (≥21 years) | G32: 5.99E+00
F33: Youth (16-20 years) | G33: 5.61E+00
F34: Youth (11-15 years) | G34: 6.13E+00
B35: Case 1 | C35: Medium | D35: Low | E35: Low | F35: Adult (≥21 years) | G35: 2.16E+00
F36: Youth (16-20 years) | G36: 2.02E+00
F37: Youth (11-15 years) | G37: 2.21E+00
B38: Case 2 | C38: Medium | D38: Low | E38: Medium | F38: Adult (≥21 years) | G38: 2.16E+00
F39: Youth (16-20 years) | G39: 2.02E+00
F40: Youth (11-15 years) | G40: 2.21E+00
B41: Case 3 | C41: Medium | D41: Low | E41: High | F41: Adult (≥21 years) | G41: 2.16E+00
F42: Youth (16-20 years) | G42: 2.02E+00
F43: Youth (11-15 years) | G43: 2.21E+00
B44: Case 4 | C44: Medium | D44: Medium | E44: Low | F44: Adult (≥21 years) | G44: 2.42E+00
F45: Youth (16-20 years) | G45: 2.26E+00
F46: Youth (11-15 years) | G46: 2.47E+00
B47: Case 5 | C47: Medium | D47: Medium | E47: Medium | F47: Adult (≥21 years) | G47: 2.42E+00
F48: Youth (16-20 years) | G48: 2.26E+00
F49: Youth (11-15 years) | G49: 2.47E+00
B50: Case 6 | C50: Medium | D50: Medium | E50: High | F50: Adult (≥21 years) | G50: 2.42E+00
F51: Youth (16-20 years) | G51: 2.26E+00
F52: Youth (11-15 years) | G52: 2.47E+00
B53: Case 7 | C53: Medium | D53: High | E53: Low | F53: Adult (≥21 years) | G53: 2.54E+00
F54: Youth (16-20 years) | G54: 2.38E+00
F55: Youth (11-15 years) | G55: 2.60E+00
B56: Case 8 | C56: Medium | D56: High | E56: Medium | F56: Adult (≥21 years) | G56: 2.54E+00
F57: Youth (16-20 years) | G57: 2.38E+00
F58: Youth (11-15 years) | G58: 2.60E+00
B59: Case 9 | C59: Medium | D59: High | E59: High | F59: Adult (≥21 years) | G59: 2.54E+00
F60: Youth (16-20 years) | G60: 2.38E+00
F61: Youth (11-15 years) | G61: 2.60E+00
B62: Case 1 | C62: Low | D62: Low | E62: Low | F62: Adult (≥21 years) | G62: 3.60E-01
F63: Youth (16-20 years) | G63: 3.37E-01
F64: Youth (11-15 years) | G64: 3.69E-01
B65: Case 2 | C65: Low | D65: Low | E65: Medium | F65: Adult (≥21 years) | G65: 3.60E-01
F66: Youth (16-20 years) | G66: 3.37E-01
F67: Youth (11-15 years) | G67: 3.69E-01
B68: Case 3 | C68: Low | D68: Low | E68: High | F68: Adult (≥21 years) | G68: 3.60E-01
F69: Youth (16-20 years) | G69: 3.37E-01
F70: Youth (11-15 years) | G70: 3.69E-01
B71: Case 4 | C71: Low | D71: Medium | E71: Low | F71: Adult (≥21 years) | G71: 4.03E-01
F72: Youth (16-20 years) | G72: 3.77E-01
F73: Youth (11-15 years) | G73: 4.12E-01
B74: Case 5 | C74: Low | D74: Medium | E74: Medium | F74: Adult (≥21 years) | G74: 4.03E-01
F75: Youth (16-20 years) | G75: 3.77E-01
F76: Youth (11-15 years) | G76: 4.12E-01
B77: Case 6 | C77: Low | D77: Medium | E77: High | F77: Adult (≥21 years) | G77: 4.03E-01
F78: Youth (16-20 years) | G78: 3.77E-01
F79: Youth (11-15 years) | G79: 4.12E-01
B80: Case 7 | C80: Low | D80: High | E80: Low | F80: Adult (≥21 years) | G80: 4.24E-01
F81: Youth (16-20 years) | G81: 3.97E-01
F82: Youth (11-15 years) | G82: 4.34E-01
B83: Case 8 | C83: Low | D83: High | E83: Medium | F83: Adult (≥21 years) | G83: 4.24E-01
F84: Youth (16-20 years) | G84: 3.97E-01
F85: Youth (11-15 years) | G85: 4.34E-01
B86: Case 9 | C86: Low | D86: High | E86: High | F86: Adult (≥21 years) | G86: 4.24E-01
F87: Youth (16-20 years) | G87: 3.97E-01
F88: Youth (11-15 years) | G88: 4.34E-01

Sheet Wax Marble Polish Derm P
A1: Scenario:
A2: Marble Polish - Stone Cleaner (Wax)
A3: Data Type:
A4: Estimated Dermal Doses Outputs - Permeability Method
A6: Scenario | B6: Case # | C6: Case Descriptors (Parameters Varied) | F6: Receptor | G6: Acute Dose Rate (mg/kg/day)
C7: Duration | D7: Weight Fraction | E7: Mass Used
A8: Marble Polish - Stone Cleaner (Wax) | B8: Case 1 | C8: High | D8: Low | E8: Low | F8: Adult (≥21 years) | G8: 6.24E+00
F9: Youth (16-20 years) | G9: 5.84E+00
F10: Youth (11-15 years) | G10: 6.38E+00
B11: Case 2 | C11: High | D11: Low | E11: Medium | F11: Adult (≥21 years) | G11: 6.24E+00
F12: Youth (16-20 years) | G12: 5.84E+00
F13: Youth (11-15 years) | G13: 6.38E+00
B14: Case 3 | C14: High | D14: Low | E14: High | F14: Adult (≥21 years) | G14: 6.24E+00
F15: Youth (16-20 years) | G15: 5.84E+00
F16: Youth (11-15 years) | G16: 6.38E+00
B17: Case 4 | C17: High | D17: Medium | E17: Low | F17: Adult (≥21 years) | G17: 6.97E+00
F18: Youth (16-20 years) | G18: 6.52E+00
F19: Youth (11-15 years) | G19: 7.13E+00
B20: Case 5 | C20: High | D20: Medium | E20: Medium | F20: Adult (≥21 years) | G20: 6.97E+00
F21: Youth (16-20 years) | G21: 6.52E+00
F22: Youth (11-15 years) | G22: 7.13E+00
B23: Case 6 | C23: High | D23: Medium | E23: High | F23: Adult (≥21 years) | G23: 6.97E+00
F24: Youth (16-20 years) | G24: 6.52E+00
F25: Youth (11-15 years) | G25: 7.13E+00
B26: Case 7 | C26: High | D26: High | E26: Low | F26: Adult (≥21 years) | G26: 7.34E+00
F27: Youth (16-20 years) | G27: 6.86E+00
F28: Youth (11-15 years) | G28: 7.51E+00
B29: Case 8 | C29: High | D29: High | E29: Medium | F29: Adult (≥21 years) | G29: 7.34E+00
F30: Youth (16-20 years) | G30: 6.86E+00
F31: Youth (11-15 years) | G31: 7.51E+00
B32: Case 9 | C32: High | D32: High | E32: High | F32: Adult (≥21 years) | G32: 7.34E+00
F33: Youth (16-20 years) | G33: 6.86E+00
F34: Youth (11-15 years) | G34: 7.51E+00
B35: Case 1 | C35: Medium | D35: Low | E35: Low | F35: Adult (≥21 years) | G35: 7.79E-01
F36: Youth (16-20 years) | G36: 7.29E-01
F37: Youth (11-15 years) | G37: 7.98E-01
B38: Case 2 | C38: Medium | D38: Low | E38: Medium | F38: Adult (≥21 years) | G38: 7.79E-01
F39: Youth (16-20 years) | G39: 7.29E-01
F40: Youth (11-15 years) | G40: 7.98E-01
B41: Case 3 | C41: Medium | D41: Low | E41: High | F41: Adult (≥21 years) | G41: 7.79E-01
F42: Youth (16-20 years) | G42: 7.29E-01
F43: Youth (11-15 years) | G43: 7.98E-01
B44: Case 4 | C44: Medium | D44: Medium | E44: Low | F44: Adult (≥21 years) | G44: 8.71E-01
F45: Youth (16-20 years) | G45: 8.15E-01
F46: Youth (11-15 years) | G46: 8.91E-01
B47: Case 5 | C47: Medium | D47: Medium | E47: Medium | F47: Adult (≥21 years) | G47: 8.71E-01
F48: Youth (16-20 years) | G48: 8.15E-01
F49: Youth (11-15 years) | G49: 8.91E-01
B50: Case 6 | C50: Medium | D50: Medium | E50: High | F50: Adult (≥21 years) | G50: 8.71E-01
F51: Youth (16-20 years) | G51: 8.15E-01
F52: Youth (11-15 years) | G52: 8.91E-01
B53: Case 7 | C53: Medium | D53: High | E53: Low | F53: Adult (≥21 years) | G53: 9.17E-01
F54: Youth (16-20 years) | G54: 8.58E-01
F55: Youth (11-15 years) | G55: 9.38E-01
B56: Case 8 | C56: Medium | D56: High | E56: Medium | F56: Adult (≥21 years) | G56: 9.17E-01
F57: Youth (16-20 years) | G57: 8.58E-01
F58: Youth (11-15 years) | G58: 9.38E-01
B59: Case 9 | C59: Medium | D59: High | E59: High | F59: Adult (≥21 years) | G59: 9.17E-01
F60: Youth (16-20 years) | G60: 8.58E-01
F61: Youth (11-15 years) | G61: 9.38E-01
B62: Case 1 | C62: Low | D62: Low | E62: Low | F62: Adult (≥21 years) | G62: 1.04E-01
F63: Youth (16-20 years) | G63: 9.73E-02
F64: Youth (11-15 years) | G64: 1.06E-01
B65: Case 2 | C65: Low | D65: Low | E65: Medium | F65: Adult (≥21 years) | G65: 1.04E-01
F66: Youth (16-20 years) | G66: 9.73E-02
F67: Youth (11-15 years) | G67: 1.06E-01
B68: Case 3 | C68: Low | D68: Low | E68: High | F68: Adult (≥21 years) | G68: 1.04E-01
F69: Youth (16-20 years) | G69: 9.73E-02
F70: Youth (11-15 years) | G70: 1.06E-01
B71: Case 4 | C71: Low | D71: Medium | E71: Low | F71: Adult (≥21 years) | G71: 1.16E-01
F72: Youth (16-20 years) | G72: 1.09E-01
F73: Youth (11-15 years) | G73: 1.19E-01
B74: Case 5 | C74: Low | D74: Medium | E74: Medium | F74: Adult (≥21 years) | G74: 1.16E-01
F75: Youth (16-20 years) | G75: 1.09E-01
F76: Youth (11-15 years) | G76: 1.19E-01
B77: Case 6 | C77: Low | D77: Medium | E77: High | F77: Adult (≥21 years) | G77: 1.16E-01
F78: Youth (16-20 years) | G78: 1.09E-01
F79: Youth (11-15 years) | G79: 1.19E-01
B80: Case 7 | C80: Low | D80: High | E80: Low | F80: Adult (≥21 years) | G80: 1.22E-01
F81: Youth (16-20 years) | G81: 1.14E-01
F82: Youth (11-15 years) | G82: 1.25E-01
B83: Case 8 | C83: Low | D83: High | E83: Medium | F83: Adult (≥21 years) | G83: 1.22E-01
F84: Youth (16-20 years) | G84: 1.14E-01
F85: Youth (11-15 years) | G85: 1.25E-01
B86: Case 9 | C86: Low | D86: High | E86: High | F86: Adult (≥21 years) | G86: 1.22E-01
F87: Youth (16-20 years) | G87: 1.14E-01
F88: Youth (11-15 years) | G88: 1.25E-01

Sheet Wax Marble Polish Derm FE
A1: Scenario:
A2: Marble Polish - Stone Cleaner (Wax)
A3: Data Type:
A4: Estimated Dermal Doses Outputs - Frasch Equation
A6: Scenario | B6: Case # | C6: Case Descriptors (Parameters Varied) | F6: Receptor | G6: Acute Dose Rate (mg/kg/day)
C7: Duration | D7: Weight Fraction | E7: Mass Used
A8: Marble Polish - Stone Cleaner (Wax) | B8: Case 1 | C8: High | D8: Low | E8: Low | F8: Adult (≥21 years) | G8: 1.04E-01
F9: Youth (16-20 years) | G9: 9.70E-02
F10: Youth (11-15 years) | G10: 1.06E-01
B11: Case 2 | C11: High | D11: Low | E11: Medium | F11: Adult (≥21 years) | G11: 1.04E-01
F12: Youth (16-20 years) | G12: 9.70E-02
F13: Youth (11-15 years) | G13: 1.06E-01
B14: Case 3 | C14: High | D14: Low | E14: High | F14: Adult (≥21 years) | G14: 1.04E-01
F15: Youth (16-20 years) | G15: 9.70E-02
F16: Youth (11-15 years) | G16: 1.06E-01
B17: Case 4 | C17: High | D17: Medium | E17: Low | F17: Adult (≥21 years) | G17: 1.04E-01
F18: Youth (16-20 years) | G18: 9.70E-02
F19: Youth (11-15 years) | G19: 1.06E-01
B20: Case 5 | C20: High | D20: Medium | E20: Medium | F20: Adult (≥21 years) | G20: 1.04E-01
F21: Youth (16-20 years) | G21: 9.70E-02
F22: Youth (11-15 years) | G22: 1.06E-01
B23: Case 6 | C23: High | D23: Medium | E23: High | F23: Adult (≥21 years) | G23: 1.04E-01
F24: Youth (16-20 years) | G24: 9.70E-02
F25: Youth (11-15 years) | G25: 1.06E-01
B26: Case 7 | C26: High | D26: High | E26: Low | F26: Adult (≥21 years) | G26: 1.04E-01
F27: Youth (16-20 years) | G27: 9.70E-02
F28: Youth (11-15 years) | G28: 1.06E-01
B29: Case 8 | C29: High | D29: High | E29: Medium | F29: Adult (≥21 years) | G29: 1.04E-01
F30: Youth (16-20 years) | G30: 9.70E-02
F31: Youth (11-15 years) | G31: 1.06E-01
B32: Case 9 | C32: High | D32: High | E32: High | F32: Adult (≥21 years) | G32: 1.04E-01
F33: Youth (16-20 years) | G33: 9.70E-02
F34: Youth (11-15 years) | G34: 1.06E-01
B35: Case 1 | C35: Medium | D35: Low | E35: Low | F35: Adult (≥21 years) | G35: 1.30E-02
F36: Youth (16-20 years) | G36: 1.21E-02
F37: Youth (11-15 years) | G37: 1.33E-02
B38: Case 2 | C38: Medium | D38: Low | E38: Medium | F38: Adult (≥21 years) | G38: 1.30E-02
F39: Youth (16-20 years) | G39: 1.21E-02
F40: Youth (11-15 years) | G40: 1.33E-02
B41: Case 3 | C41: Medium | D41: Low | E41: High | F41: Adult (≥21 years) | G41: 1.30E-02
F42: Youth (16-20 years) | G42: 1.21E-02
F43: Youth (11-15 years) | G43: 1.33E-02
B44: Case 4 | C44: Medium | D44: Medium | E44: Low | F44: Adult (≥21 years) | G44: 1.30E-02
F45: Youth (16-20 years) | G45: 1.21E-02
F46: Youth (11-15 years) | G46: 1.33E-02
B47: Case 5 | C47: Medium | D47: Medium | E47: Medium | F47: Adult (≥21 years) | G47: 1.30E-02
F48: Youth (16-20 years) | G48: 1.21E-02
F49: Youth (11-15 years) | G49: 1.33E-02
B50: Case 6 | C50: Medium | D50: Medium | E50: High | F50: Adult (≥21 years) | G50: 1.30E-02
F51: Youth (16-20 years) | G51: 1.21E-02
F52: Youth (11-15 years) | G52: 1.33E-02
B53: Case 7 | C53: Medium | D53: High | E53: Low | F53: Adult (≥21 years) | G53: 1.30E-02
F54: Youth (16-20 years) | G54: 1.21E-02
F55: Youth (11-15 years) | G55: 1.33E-02
B56: Case 8 | C56: Medium | D56: High | E56: Medium | F56: Adult (≥21 years) | G56: 1.30E-02
F57: Youth (16-20 years) | G57: 1.21E-02
F58: Youth (11-15 years) | G58: 1.33E-02
B59: Case 9 | C59: Medium | D59: High | E59: High | F59: Adult (≥21 years) | G59: 1.30E-02
F60: Youth (16-20 years) | G60: 1.21E-02
F61: Youth (11-15 years) | G61: 1.33E-02
B62: Case 1 | C62: Low | D62: Low | E62: Low | F62: Adult (≥21 years) | G62: 1.73E-03
F63: Youth (16-20 years) | G63: 1.62E-03
F64: Youth (11-15 years) | G64: 1.77E-03
B65: Case 2 | C65: Low | D65: Low | E65: Medium | F65: Adult (≥21 years) | G65: 1.73E-03
F66: Youth (16-20 years) | G66: 1.62E-03
F67: Youth (11-15 years) | G67: 1.77E-03
B68: Case 3 | C68: Low | D68: Low | E68: High | F68: Adult (≥21 years) | G68: 1.73E-03
F69: Youth (16-20 years) | G69: 1.62E-03
F70: Youth (11-15 years) | G70: 1.77E-03
B71: Case 4 | C71: Low | D71: Medium | E71: Low | F71: Adult (≥21 years) | G71: 1.73E-03
F72: Youth (16-20 years) | G72: 1.62E-03
F73: Youth (11-15 years) | G73: 1.77E-03
B74: Case 5 | C74: Low | D74: Medium | E74: Medium | F74: Adult (≥21 years) | G74: 1.73E-03
F75: Youth (16-20 years) | G75: 1.62E-03
F76: Youth (11-15 years) | G76: 1.77E-03
B77: Case 6 | C77: Low | D77: Medium | E77: High | F77: Adult (≥21 years) | G77: 1.73E-03
F78: Youth (16-20 years) | G78: 1.62E-03
F79: Youth (11-15 years) | G79: 1.77E-03
B80: Case 7 | C80: Low | D80: High | E80: Low | F80: Adult (≥21 years) | G80: 1.73E-03
F81: Youth (16-20 years) | G81: 1.62E-03
F82: Youth (11-15 years) | G82: 1.77E-03
B83: Case 8 | C83: Low | D83: High | E83: Medium | F83: Adult (≥21 years) | G83: 1.73E-03
F84: Youth (16-20 years) | G84: 1.62E-03
F85: Youth (11-15 years) | G85: 1.77E-03
B86: Case 9 | C86: Low | D86: High | E86: High | F86: Adult (≥21 years) | G86: 1.73E-03
F87: Youth (16-20 years) | G87: 1.62E-03
F88: Youth (11-15 years) | G88: 1.77E-03

Sheet Dry Clean Articles Inh
A1: Scenario:
A2: Dry Cleaned Articles (inhalation)
A3: Data Type:
A4: Estimated Inhalation Concentrations Outputs
A6: Case 1: Adult User with Near Field (In Closet in AM and PM), Youth and Child Non-User | M6: TWA Summary
A7: Description | C7: Base | G7: Near Field Zone | H7: TRUE | J7: 1
A8: Saturation Concentration (Csat) | D8: 9.66E+05 | E8: mg/m3 | G8: Zone 1 FF | H8: ='[1]MCCEM Activity Pattern'!O2 -> Residence - Bedroom | J8: 2
A9: Max Nearfield Concentration | D9: =MAX('[1]MCCEM Data'!$C$2:$C$4298) -> 0.000 | E9: mg/m3 | G9: Zone 2 | H9: ROH | J9: 3 | M9: Maximum TWA (mg/m3)
A10: Max Farfield Concentration | D10: =MAX('[1]MCCEM Data'!$D$2:$D$4298) -> 0.967 | E10: mg/m3 | M10: =M20 -> Adult 1 hr | N10: Adult 3 hr | O10: Adult 8 hr | P10: Adult 24 hr | Q10: Youth 1 hr | R10: Youth 3 hr | S10: Youth 8 hr | T10: Youth 24 hr | U10: Child 1 hr | V10: Child 3 hr | W10: Child 8 hr | X10: Child 24 hr
A11: Saturation reached (Y/N) | D11: N
M12: =MAX(M22:M4341) -> 0.16647155 | N12: =MAX(N22:N4341) -> 0.11137793 | O12: 0.09226432 | P12: 0.07243470 | Q12: 0.02980295 | R12: 0.02975539 | S12: 0.02934570 | T12: 0.02326797 | U12: 0.02980295 | V12: 0.02975539 | W12: 0.02934570 | X12: 0.02326797
A13: Base Case | D13: Value | E13: Description
A14: Modeled Weight Fraction (fraction) | D14: 1 | E14: Base
A15: Modeled Product Mass Used (g/event) | D15: 1 | E15: Base
A16: Mass Chemical (g) | D16: =D14*D15 -> 1 | F16: User | G16: TRUE | H16: FALSE | I16: FALSE
A17: Mass Chemical at Saturation (g, Msat) | D17: =IF(D11="N",D8/IF(D10>D9,D10,D9)*D16) -> 999042.3819
A19: Time (min) | B19: Time (clock) | C19: =CONCATENATE(A6, ": Modeled WF: ",D14, , " (",E14, "); Modeled Product Mass: ", D15, " (",E15, ")") -> Case 1: Adult User with Near Field (In Closet in AM and PM), Youth and Child Non-User: Modeled WF: 1 (Base); Modeled Product Mass: 1 (Base) | M19: TWA Metrics
C20: ='[1]MCCEM Data'!D1 -> Near Field (Closet) | D20: ='[1]MCCEM Data'!E1 -> Far Field (Bedroom) | E20: ='[1]MCCEM Data'!F1 -> ROH | F20: Use | G20: Location Adult (User) | H20: Location Youth | I20: Location Child | J20: Adult @Person Conc | K20: Youth @Person Conc | L20: Child @Person Conc | M20: Adult 1 hr | N20: Adult 3 hr | O20: Adult 8 hr | P20: Adult 24 hr | Q20: Youth 1 hr | R20: Youth 3 hr | S20: Youth 8 hr | T20: Youth 24 hr | U20: Child 1 hr | V20: Child 3 hr | W20: Child 8 hr | X20: Child 24 hr
A21: ='[1]MCCEM Data'!A2 -> 0 | B21: 00:00:00 | C21: 0 | D21: 0 | E21: 0 | F21: =IF(AND(A21>='[1]MCCEM Activity Pattern'!$P$2, A21<'[1]MCCEM Activity Pattern'!$Q$2),"TRUE",FALSE) -> FALSE | G21: =IF(INDEX('[1]MCCEM Activity Pattern'!$C$2:$C$50,MATCH($A21,'[1]MCCEM Activity Pattern'!$A$2:$A$50,1))=$H$8, IF(AND(F21, $H$7,$G$16), 1,2), IF(MID(INDEX('[1]MCCEM Activity Pattern'!$C$2:$C$50,MATCH($A21,'[1]MCCEM Activity Pattern'!$A$2:$A$50,1)),1,3)="Res",IF(AND(F21, $G$16), IF($H$7,1,2),3),IF(AND(F21, $G$16),IF($H$7,1,2),0))) -> 2 | H21: =IF(INDEX('[1]MCCEM Activity Pattern'!$G$2:$G$50,MATCH($A21,'[1]MCCEM Activity Pattern'!$E$2:$E$50,1))=$H$8, IF(AND(F21, $H$7,$H$16), 1,2), IF(MID(INDEX('[1]MCCEM Activity Pattern'!$G$2:$G$50,MATCH($A21,'[1]MCCEM Activity Pattern'!$E$2:$E$50,1)),1,3)="Res",IF(AND(F21, $H$16), IF($H$7,1,2),3),IF(AND(F21, $H$16),IF($H$7,1,2),0))) -> 3 | I21: =IF(INDEX('[1]MCCEM Activity Pattern'!$K$2:$K$50,MATCH($A21,'[1]MCCEM Activity Pattern'!$I$2:$I$50,1))=$H$8, IF(AND(F21, $H$7,$I$16), 1,2), IF(MID(INDEX('[1]MCCEM Activity Pattern'!$K$2:$K$50,MATCH($A21,'[1]MCCEM Activity Pattern'!$I$2:$I$50,1)),1,3)="Res",IF(AND(F21, $I$16), IF($H$7,1,2),3),IF(AND(F21, $I$16),IF($H$7,1,2),0))) -> 3 | J21: =_xlfn.SWITCH(G21,0,0,1,$C21,2,$D21,3,$E21,0) -> 0 | K21: 0 | L21: 0 | M21: =AVERAGE(J21:J80) -> 0 | N21: =AVERAGE(J21:J200) -> 0 | O21: =AVERAGE(J21:J500) -> 0 | P21: =AVERAGE(J21:J1460) -> 0.02245247543 | Q21: =AVERAGE(K21:K80) -> 0 | R21: =AVERAGE(K21:K200) -> 0 | S21: =AVERAGE(K21:K500) -> 0 | T21: =AVERAGE(K21:K1460) -> 0.01189928015 | U21: =AVERAGE(L21:L80) -> 0 | V21: =AVERAGE(L21:L200) -> 0 | W21: =AVERAGE(L21:L500) -> 0 | X21: =AVERAGE(L21:L1460) -> 0.01189928015
A22: ='[1]MCCEM Data'!A3 -> 1 | B22: 00:01:00 | C22: 0 | D22: 0 | E22: 0 | F22: =IF(AND(A22>='[1]MCCEM Activity Pattern'!$P$2, A22<'[1]MCCEM Activity Pattern'!$Q$2),"TRUE",FALSE) -> FALSE | G22: =IF(INDEX('[1]MCCEM Activity Pattern'!$C$2:$C$50,MATCH($A22,'[1]MCCEM Activity Pattern'!$A$2:$A$50,1))=$H$8, IF(AND(F22, $H$7,$G$16), 1,2), IF(MID(INDEX('[1]MCCEM Activity Pattern'!$C$2:$C$50,MATCH($A22,'[1]MCCEM Activity Pattern'!$A$2:$A$50,1)),1,3)="Res",IF(AND(F22, $G$16), IF($H$7,1,2),3),IF(AND(F22, $G$16),IF($H$7,1,2),0))) -> 2 | H22: =IF(INDEX('[1]MCCEM Activity Pattern'!$G$2:$G$50,MATCH($A22,'[1]MCCEM Activity Pattern'!$E$2:$E$50,1))=$H$8, IF(AND(F22, $H$7,$H$16), 1,2), IF(MID(INDEX('[1]MCCEM Activity Pattern'!$G$2:$G$50,MATCH($A22,'[1]MCCEM Activity Pattern'!$E$2:$E$50,1)),1,3)="Res",IF(AND(F22, $H$16), IF($H$7,1,2),3),IF(AND(F22, $H$16),IF($H$7,1,2),0))) -> 3 | I22: =IF(INDEX('[1]MCCEM Activity Pattern'!$K$2:$K$50,MATCH($A22,'[1]MCCEM Activity Pattern'!$I$2:$I$50,1))=$H$8, IF(AND(F22, $H$7,$I$16), 1,2), IF(MID(INDEX('[1]MCCEM Activity Pattern'!$K$2:$K$50,MATCH($A22,'[1]MCCEM Activity Pattern'!$I$2:$I$50,1)),1,3)="Res",IF(AND(F22, $I$16), IF($H$7,1,2),3),IF(AND(F22, $I$16),IF($H$7,1,2),0))) -> 3 | J22: 0 | K22: 0 | L22: 0 | M22: =AVERAGE(J22:J81) -> 0 | N22: =AVERAGE(J22:J201) -> 0 | O22: =AVERAGE(J22:J501) -> 0 | P22: =AVERAGE(J22:J1461) -> 0.0225101024 | Q22: =AVERAGE(K22:K81) -> 0 | R22: =AVERAGE(K22:K201) -> 0 | S22: =AVERAGE(K22:K501) -> 0 | T22: =AVERAGE(K22:K1461) -> 0.01191941442 | U22: =AVERAGE(L22:L81) -> 0 | V22: =AVERAGE(L22:L201) -> 0 | W22: =AVERAGE(L22:L501) -> 0 | X22: =AVERAGE(L22:L1461) -> 0.01191941442
A23: ='[1]MCCEM Data'!A4 -> 2 | B23: 00:02:00 | C23: 0 | D23: 0 | E23: 0 | F23: =IF(AND(A23>='[1]MCCEM Activity Pattern'!$P$2, A23<'[1]MCCEM Activity Pattern'!$Q$2),"TRUE",FALSE) -> FALSE | G23: =IF(INDEX('[1]MCCEM Activity Pattern'!$C$2:$C$50,MATCH($A23,'[1]MCCEM Activity Pattern'!$A$2:$A$50,1))=$H$8, IF(AND(F23, $H$7,$G$16), 1,2), IF(MID(INDEX('[1]MCCEM Activity Pattern'!$C$2:$C$50,MATCH($A23,'[1]MCCEM Activity Pattern'!$A$2:$A$50,1)),1,3)="Res",IF(AND(F23, $G$16), IF($H$7,1,2),3),IF(AND(F23, $G$16),IF($H$7,1,2),0))) -> 2 | H23: =IF(INDEX('[1]MCCEM Activity Pattern'!$G$2:$G$50,MATCH($A23,'[1]MCCEM Activity Pattern'!$E$2:$E$50,1))=$H$8, IF(AND(F23, $H$7,$H$16), 1,2), IF(MID(INDEX('[1]MCCEM Activity Pattern'!$G$2:$G$50,MATCH($A23,'[1]MCCEM Activity Pattern'!$E$2:$E$50,1)),1,3)="Res",IF(AND(F23, $H$16), IF($H$7,1,2),3),IF(AND(F23, $H$16),IF($H$7,1,2),0))) -> 3 | I23: =IF(INDEX('[1]MCCEM Activity Pattern'!$K$2:$K$50,MATCH($A23,'[1]MCCEM Activity Pattern'!$I$2:$I$50,1))=$H$8, IF(AND(F23, $H$7,$I$16), 1,2), IF(MID(INDEX('[1]MCCEM Activity Pattern'!$K$2:$K$50,MATCH($A23,'[1]MCCEM Activity Pattern'!$I$2:$I$50,1)),1,3)="Res",IF(AND(F23, $I$16), IF($H$7,1,2),3),IF(AND(F23, $I$16),IF($H$7,1,2),0))) -> 3 | J23: 0 | K23: 0 | L23: 0 | M23: =AVERAGE(J23:J82) -> 0 | N23: 0 | O23: =AVERAGE(J23:J502) -> 0 | P23: =AVERAGE(J23:J1462) -> 0.02256771935 | Q23: 0 | R23: 0 | S23: 0 | T23: 0.01193954551 | U23: 0 | V23: 0 | W23: 0 | X23: 0.01193954551
A24: ='[1]MCCEM Data'!A5 -> 3 | B24: 00:03:00 | C24: 0 | D24: 0 | E24: 0 | F24: =IF(AND(A24>='[1]MCCEM Activity Pattern'!$P$2, A24<'[1]MCCEM Activity Pattern'!$Q$2),"TRUE",FALSE) -> FALSE | G24: =IF(INDEX('[1]MCCEM Activity Pattern'!$C$2:$C$50,MATCH($A24,'[1]MCCEM Activity Pattern'!$A$2:$A$50,1))=$H$8, IF(AND(F24, $H$7,$G$16), 1,2), IF(MID(INDEX('[1]MCCEM Activity Pattern'!$C$2:$C$50,MATCH($A24,'[1]MCCEM Activity Pattern'!$A$2:$A$50,1)),1,3)="Res",IF(AND(F24, $G$16), IF($H$7,1,2),3),IF(AND(F24, $G$16),IF($H$7,1,2),0))) -> 2 | H24: =IF(INDEX('[1]MCCEM Activity Pattern'!$G$2:$G$50,MATCH($A24,'[1]MCCEM Activity Pattern'!$E$2:$E$50,1))=$H$8, IF(AND(F24, $H$7,$H$16), 1,2), IF(MID(INDEX('[1]MCCEM Activity Pattern'!$G$2:$G$50,MATCH($A24,'[1]MCCEM Activity Pattern'!$E$2:$E$50,1)),1,3)="Res",IF(AND(F24, $H$16), IF($H$7,1,2),3),IF(AND(F24, $H$16),IF($H$7,1,2),0))) -> 3 | I24: =IF(INDEX('[1]MCCEM Activity Pattern'!$K$2:$K$50,MATCH($A24,'[1]MCCEM Activity Pattern'!$I$2:$I$50,1))=$H$8, IF(AND(F24, $H$7,$I$16), 1,2), IF(MID(INDEX('[1]MCCEM Activity Pattern'!$K$2:$K$50,MATCH($A24,'[1]MCCEM Activity Pattern'!$I$2:$I$50,1)),1,3)="Res",IF(AND(F24, $I$16), IF($H$7,1,2),3),IF(AND(F24, $I$16),IF($H$7,1,2),0))) -> 3 | J24: 0 | K24: 0 | L24: 0 | M24: 0 | N24: 0 | O24: 0 | P24: 0.02262532626 | Q24: 0 | R24: 0 | S24: 0 | T24: 0.01195967343 | U24: 0 | V24: 0 | W24: 0 | X24: 0.01195967343
A25: ='[1]MCCEM Data'!A6 -> 4 | B25: 00:04:00 | C25: 0 | D25: 0 | E25: 0 | F25: =IF(AND(A25>='[1]MCCEM Activity Pattern'!$P$2, A25<'[1]MCCEM Activity Pattern'!$Q$2),"TRUE",FALSE) -> FALSE | G25: =IF(INDEX('[1]MCCEM Activity Pattern'!$C$2:$C$50,MATCH($A25,'[1]MCCEM Activity Pattern'!$A$2:$A$50,1))=$H$8, IF(AND(F25, $H$7,$G$16), 1,2), IF(MID(INDEX('[1]MCCEM Activity Pattern'!$C$2:$C$50,MATCH($A25,'[1]MCCEM Activity Pattern'!$A$2:$A$50,1)),1,3)="Res",IF(AND(F25, $G$16), IF($H$7,1,2),3),IF(AND(F25, $G$16),IF($H$7,1,2),0))) -> 2 | H25: =IF(INDEX('[1]MCCEM Activity Pattern'!$G$2:$G$50,MATCH($A25,'[1]MCCEM Activity Pattern'!$E$2:$E$50,1))=$H$8, IF(AND(F25, $H$7,$H$16), 1,2), IF(MID(INDEX('[1]MCCEM Activity Pattern'!$G$2:$G$50,MATCH($A25,'[1]MCCEM Activity Pattern'!$E$2:$E$50,1)),1,3)="Res",IF(AND(F25, $H$16), IF($H$7,1,2),3),IF(AND(F25, $H$16),IF($H$7,1,2),0))) -> 3 | I25: =IF(INDEX('[1]MCCEM Activity Pattern'!$K$2:$K$50,MATCH($A25,'[1]MCCEM Activity Pattern'!$I$2:$I$50,1))=$H$8, IF(AND(F25, $H$7,$I$16), 1,2), IF(MID(INDEX('[1]MCCEM Activity Pattern'!$K$2:$K$50,MATCH($A25,'[1]MCCEM Activity Pattern'!$I$2:$I$50,1)),1,3)="Res",IF(AND(F25, $I$16), IF($H$7,1,2),3),IF(AND(F25, $I$16),IF($H$7,1,2),0))) -> 3 | J25: 0 | K25: 0 | L25: 0 | M25: 0 | N25: 0 | O25: 0 | P25: 0.02268292314 | Q25: 0 | R25: 0 | S25: 0 | T25: 0.01197979818 | U25: 0 | V25: 0 | W25: 0 | X25: 0.01197979818
A26: ='[1]MCCEM Data'!A7 -> 5 | B26: 00:05:00 | C26: 0 | D26: 0 | E26: 0 | F26: =IF(AND(A26>='[1]MCCEM Activity Pattern'!$P$2, A26<'[1]MCCEM Activity Pattern'!$Q$2),"TRUE",FALSE) -> FALSE | G26: =IF(INDEX('[1]MCCEM Activity Pattern'!$C$2:$C$50,MATCH($A26,'[1]MCCEM Activity Pattern'!$A$2:$A$50,1))=$H$8, IF(AND(F26, $H$7,$G$16), 1,2), IF(MID(INDEX('[1]MCCEM Activity Pattern'!$C$2:$C$50,MATCH($A26,'[1]MCCEM Activity Pattern'!$A$2:$A$50,1)),1,3)="Res",IF(AND(F26, $G$16), IF($H$7,1,2),3),IF(AND(F26, $G$16),IF($H$7,1,2),0))) -> 2 | H26: =IF(INDEX('[1]MCCEM Activity Pattern'!$G$2:$G$50,MATCH($A26,'[1]MCCEM Activity Pattern'!$E$2:$E$50,1))=$H$8, IF(AND(F26, $H$7,$H$16), 1,2), IF(MID(INDEX('[1]MCCEM Activity Pattern'!$G$2:$G$50,MATCH($A26,'[1]MCCEM Activity Pattern'!$E$2:$E$50,1)),1,3)="Res",IF(AND(F26, $H$16), IF($H$7,1,2),3),IF(AND(F26, $H$16),IF($H$7,1,2),0))) -> 3 | I26: =IF(INDEX('[1]MCCEM Activity Pattern'!$K$2:$K$50,MATCH($A26,'[1]MCCEM Activity Pattern'!$I$2:$I$50,1))=$H$8, IF(AND(F26, $H$7,$I$16), 1,2), IF(MID(INDEX('[1]MCCEM Activity Pattern'!$K$2:$K$50,MATCH($A26,'[1]MCCEM Activity Pattern'!$I$2:$I$50,1)),1,3)="Res",IF(AND(F26, $I$16), IF($H$7,1,2),3),IF(AND(F26, $I$16),IF($H$7,1,2),0))) -> 3 | J26: 0 | K26: 0 | L26: 0 | M26: 0 | N26: 0 | O26: 0 | P26: 0.02274050999 | Q26: 0 | R26: 0 | S26: 0 | T26: 0.01199991974 | U26: 0 | V26: 0 | W26: 0 | X26: 0.01199991974
A27: ='[1]MCCEM Data'!A8 -> 6 | B27: 00:06:00 | C27: 0 | D27: 0 | E27: 0 | F27: =IF(AND(A27>='[1]MCCEM Activity Pattern'!$P$2, A27<'[1]MCCEM Activity Pattern'!$Q$2),"TRUE",FALSE) -> FALSE | G27: =IF(INDEX('[1]MCCEM Activity Pattern'!$C$2:$C$50,MATCH($A27,'[1]MCCEM Activity Pattern'!$A$2:$A$50,1))=$H$8, IF(AND(F27, $H$7,$G$16), 1,2), IF(MID(INDEX('[1]MCCEM Activity Pattern'!$C$2:$C$50,MATCH($A27,'[1]MCCEM Activity Pattern'!$A$2:$A$50,1)),1,3)="Res",IF(AND(F27, $G$16), IF($H$7,1,2),3),IF(AND(F27, $G$16),IF($H$7,1,2),0))) -> 2 | H27: =IF(INDEX('[1]MCCEM Activity Pattern'!$G$2:$G$50,MATCH($A27,'[1]MCCEM Activity Pattern'!$E$2:$E$50,1))=$H$8, IF(AND(F27, $H$7,$H$16), 1,2), IF(MID(INDEX('[1]MCCEM Activity Pattern'!$G$2:$G$50,MATCH($A27,'[1]MCCEM Activity Pattern'!$E$2:$E$50,1)),1,3)="Res",IF(AND(F27, $H$16), IF($H$7,1,2),3),IF(AND(F27, $H$16),IF($H$7,1,2),0))) -> 3 | I27: =IF(INDEX('[1]MCCEM Activity Pattern'!$K$2:$K$50,MATCH($A27,'[1]MCCEM Activity Pattern'!$I$2:$I$50,1))=$H$8, IF(AND(F27, $H$7,$I$16), 1,2), IF(MID(INDEX('[1]MCCEM Activity Pattern'!$K$2:$K$50,MATCH($A27,'[1]MCCEM Activity Pattern'!$I$2:$I$50,1)),1,3)="Res",IF(AND(F27, $I$16), IF($H$7,1,2),3),IF(AND(F27, $I$16),IF($H$7,1,2),0))) -> 3 | J27: 0 | K27: 0 | L27: 0 | M27: 0 | N27: 0 | O27: 0 | P27: 0.0227980868 | Q27: 0 | R27: 0 | S27: 0 | T27: 0.01202003812 | U27: 0 | V27: 0 | W27: 0 | X27: 0.01202003812
A28: ='[1]MCCEM Data'!A9 -> 7 | B28: 00:07:00 | C28: 0 | D28: 0 | E28: 0 | F28: =IF(AND(A28>='[1]MCCEM Activity Pattern'!$P$2, A28<'[1]MCCEM Activity Pattern'!$Q$2),"TRUE",FALSE) -> FALSE | G28: =IF(INDEX('[1]MCCEM Activity Pattern'!$C$2:$C$50,MATCH($A28,'[1]MCCEM Activity Pattern'!$A$2:$A$50,1))=$H$8, IF(AND(F28, $H$7,$G$16), 1,2), IF(MID(INDEX('[1]MCCEM Activity Pattern'!$C$2:$C$50,MATCH($A28,'[1]MCCEM Activity Pattern'!$A$2:$A$50,1)),1,3)="Res",IF(AND(F28, $G$16), IF($H$7,1,2),3),IF(AND(F28, $G$16),IF($H$7,1,2),0))) -> 2 | H28: =IF(INDEX('[1]MCCEM Activity Pattern'!$G$2:$G$50,MATCH($A28,'[1]MCCEM Activity Pattern'!$E$2:$E$50,1))=$H$8, IF(AND(F28, $H$7,$H$16), 1,2), IF(MID(INDEX('[1]MCCEM Activity Pattern'!$G$2:$G$50,MATCH($A28,'[1]MCCEM Activity Pattern'!$E$2:$E$50,1)),1,3)="Res",IF(AND(F28, $H$16), IF($H$7,1,2),3),IF(AND(F28, $H$16),IF($H$7,1,2),0))) -> 3 | I28: =IF(INDEX('[1]MCCEM Activity Pattern'!$K$2:$K$50,MATCH($A28,'[1]MCCEM Activity Pattern'!$I$2:$I$50,1))=$H$8, IF(AND(F28, $H$7,$I$16), 1,2), IF(MID(INDEX('[1]MCCEM Activity Pattern'!$K$2:$K$50,MATCH($A28,'[1]MCCEM Activity Pattern'!$I$2:$I$50,1)),1,3)="Res",IF(AND(F28, $I$16), IF($H$7,1,2),3),IF(AND(F28, $I$16),IF($H$7,1,2),0))) -> 3 | J28: 0 | K28: 0 | L28: 0 | M28: 0 | N28: 0 | O28: 0 | P28: 0.02285565357 | Q28: 0 | R28: 0 | S28: 0 | T28: 0.0120401533 | U28: 0 | V28: 0 | W28: 0 | X28: 0.0120401533
A29: ='[1]MCCEM Data'!A10 -> 8 | B29: 00:08:00 | C29: 0 | D29: 0 | E29: 0 | F29: =IF(AND(A29>='[1]MCCEM Activity Pattern'!$P$2, A29<'[1]MCCEM Activity Pattern'!$Q$2),"TRUE",FALSE) -> FALSE | G29: =IF(INDEX('[1]MCCEM Activity Pattern'!$C$2:$C$50,MATCH($A29,'[1]MCCEM Activity Pattern'!$A$2:$A$50,1))=$H$8, IF(AND(F29, $H$7,$G$16), 1,2), IF(MID(INDEX('[1]MCCEM Activity Pattern'!$C$2:$C$50,MATCH($A29,'[1]MCCEM Activity Pattern'!$A$2:$A$50,1)),1,3)="Res",IF(AND(F29, $G$16), IF($H$7,1,2),3),IF(AND(F29, $G$16),IF($H$7,1,2),0))) -> 2 | H29: =IF(INDEX('[1]MCCEM Activity Pattern'!$G$2:$G$50,MATCH($A29,'[1]MCCEM Activity Pattern'!$E$2:$E$50,1))=$H$8, IF(AND(F29, $H$7,$H$16), 1,2), IF(MID(INDEX('[1]MCCEM Activity Pattern'!$G$2:$G$50,MATCH($A29,'[1]MCCEM Activity Pattern'!$E$2:$E$50,1)),1,3)="Res",IF(AND(F29, $H$16), IF($H$7,1,2),3),IF(AND(F29, $H$16),IF($H$7,1,2),0))) -> 3 | I29: =IF(INDEX('[1]MCCEM Activity Pattern'!$K$2:$K$50,MATCH($A29,'[1]MCCEM Activity Pattern'!$I$2:$I$50,1))=$H$8, IF(AND(F29, $H$7,$I$16), 1,2), IF(MID(INDEX('[1]MCCEM Activity Pattern'!$K$2:$K$50,MATCH($A29,'[1]MCCEM Activity Pattern'!$I$2:$I$50,1)),1,3)="Res",IF(AND(F29, $I$16), IF($H$7,1,2),3),IF(AND(F29, $I$16),IF($H$7,1,2),0))) -> 3 | J29: 0 | K29: 0 | L29: 0 | M29: 0 | N29: 0 | O29: 0 | P29: 0.0229132103 | Q29: 0 | R29: 0 | S29: 0 | T29: 0.0120602653 | U29: 0 | V29: 0 | W29: 0 | X29: 0.0120602653
A30: ='[1]MCCEM Data'!A11 -> 9 | B30: 00:09:00 | C30: 0 | D30: 0 | E30: 0 | F30: =IF(AND(A30>='[1]MCCEM Activity Pattern'!$P$2, A30<'[1]MCCEM Activity Pattern'!$Q$2),"TRUE",FALSE) -> FALSE | G30: =IF(INDEX('[1]MCCEM Activity Pattern'!$C$2:$C$50,MATCH($A30,'[1]MCCEM Activity Pattern'!$A$2:$A$50,1))=$H$8, IF(AND(F30, $H$7,$G$16), 1,2), IF(MID(INDEX('[1]MCCEM Activity Pattern'!$C$2:$C$50,MATCH($A30,'[1]MCCEM Activity Pattern'!$A$2:$A$50,1)),1,3)="Res",IF(AND(F30, $G$16), IF($H$7,1,2),3),IF(AND(F30, $G$16),IF($H$7,1,2),0))) -> 2 | H30: =IF(INDEX('[1]MCCEM Activity Pattern'!$G$2:$G$50,MATCH($A30,'[1]MCCEM Activity Pattern'!$E$2:$E$50,1))=$H$8, IF(AND(F30, $H$7,$H$16), 1,2), IF(MID(INDEX('[1]MCCEM Activity Pattern'!$G$2:$G$50,MATCH($A30,'[1]MCCEM Activity Pattern'!$E$2:$E$50,1)),1,3)="Res",IF(AND(F30, $H$16), IF($H$7,1,2),3),IF(AND(F30, $H$16),IF($H$7,1,2),0))) -> 3 | I30: =IF(INDEX('[1]MCCEM Activity Pattern'!$K$2:$K$50,MATCH($A30,'[1]MCCEM Activity Pattern'!$I$2:$I$50,1))=$H$8, IF(AND(F30, $H$7,$I$16), 1,2), IF(MID(INDEX('[1]MCCEM Activity Pattern'!$K$2:$K$50,MATCH($A30,'[1]MCCEM Activity Pattern'!$I$2:$I$50,1)),1,3)="Res",IF(AND(F30, $I$16), IF($H$7,1,2),3),IF(AND(F30, $I$16),IF($H$7,1,2),0))) -> 3 | J30: 0 | K30: 0 | L30: 0 | M30: 0 | N30: 0 | O30: 0 | P30: 0.02297075698 | Q30: 0 | R30: 0 | S30: 0 | T30: 0.01208037411 | U30: 0 | V30: 0 | W30: 0 | X30: 0.01208037411
A31: ='[1]MCCEM Data'!A12 -> 10 | B31: 00:10:00 | C31: 0 | D31: 0 | E31: 0 | F31: =IF(AND(A31>='[1]MCCEM Activity Pattern'!$P$2, A31<'[1]MCCEM Activity Pattern'!$Q$2),"TRUE",FALSE) -> FALSE | G31: =IF(INDEX('[1]MCCEM Activity Pattern'!$C$2:$C$50,MATCH($A31,'[1]MCCEM Activity Pattern'!$A$2:$A$50,1))=$H$8, IF(AND(F31, $H$7,$G$16), 1,2), IF(MID(INDEX('[1]MCCEM Activity Pattern'!$C$2:$C$50,MATCH($A31,'[1]MCCEM Activity Pattern'!$A$2:$A$50,1)),1,3)="Res",IF(AND(F31, $G$16), IF($H$7,1,2),3),IF(AND(F31, $G$16),IF($H$7,1,2),0))) -> 2 | H31: =IF(INDEX('[1]MCCEM Activity Pattern'!$G$2:$G$50,MATCH($A31,'[1]MCCEM Activity Pattern'!$E$2:$E$50,1))=$H$8, IF(AND(F31, $H$7,$H$16), 1,2), IF(MID(INDEX('[1]MCCEM Activity Pattern'!$G$2:$G$50,MATCH($A31,'[1]MCCEM Activity Pattern'!$E$2:$E$50,1)),1,3)="Res",IF(AND(F31, $H$16), IF($H$7,1,2),3),IF(AND(F31, $H$16),IF($H$7,1,2),0))) -> 3 | I31: =IF(INDEX('[1]MCCEM Activity Pattern'!$K$2:$K$50,MATCH($A31,'[1]MCCEM Activity Pattern'!$I$2:$I$50,1))=$H$8, IF(AND(F31, $H$7,$I$16), 1,2), IF(MID(INDEX('[1]MCCEM Activity Pattern'!$K$2:$K$50,MATCH($A31,'[1]MCCEM Activity Pattern'!$I$2:$I$50,1)),1,3)="Res",IF(AND(F31, $I$16), IF($H$7,1,2),3),IF(AND(F31, $I$16),IF($H$7,1,2),0))) -> 3 | J31: 0 | K31: 0 | L31: 0 | M31: 0 | N31: 0 | O31: 0 | P31: 0.02302829362 | Q31: 0 | R31: 0 | S31: 0 | T31: 0.01210047972 | U31: 0 | V31: 0 | W31: 0 | X31: 0.01210047972
A32: ='[1]MCCEM Data'!A13 -> 11 | B32: 00:11:00 | C32: 0 | D32: 0 | E32: 0 | F32: =IF(AND(A32>='[1]MCCEM Activity Pattern'!$P$2, A32<'[1]MCCEM Activity Pattern'!$Q$2),"TRUE",FALSE) -> FALSE | G32: =IF(INDEX('[1]MCCEM Activity Pattern'!$C$2:$C$50,MATCH($A32,'[1]MCCEM Activity Pattern'!$A$2:$A$50,1))=$H$8, IF(AND(F32, $H$7,$G$16), 1,2), IF(MID(INDEX('[1]MCCEM Activity Pattern'!$C$2:$C$50,MATCH($A32,'[1]MCCEM Activity Pattern'!$A$2:$A$50,1)),1,3)="Res",IF(AND(F32, $G$16), IF($H$7,1,2),3),IF(AND(F32, $G$16),IF($H$7,1,2),0))) -> 2 | H32: =IF(INDEX('[1]MCCEM Activity Pattern'!$G$2:$G$50,MATCH($A32,'[1]MCCEM Activity Pattern'!$E$2:$E$50,1))=$H$8, IF(AND(F32, $H$7,$H$16), 1,2), IF(MID(INDEX('[1]MCCEM Activity Pattern'!$G$2:$G$50,MATCH($A32,'[1]MCCEM Activity Pattern'!$E$2:$E$50,1)),1,3)="Res",IF(AND(F32, $H$16), IF($H$7,1,2),3),IF(AND(F32, $H$16),IF($H$7,1,2),0))) -> 3 | I32: =IF(INDEX('[1]MCCEM Activity Pattern'!$K$2:$K$50,MATCH($A32,'[1]MCCEM Activity Pattern'!$I$2:$I$50,1))=$H$8, IF(AND(F32, $H$7,$I$16), 1,2), IF(MID(INDEX('[1]MCCEM Activity Pattern'!$K$2:$K$50,MATCH($A32,'[1]MCCEM Activity Pattern'!$I$2:$I$50,1)),1,3)="Res",IF(AND(F32, $I$16), IF($H$7,1,2),3),IF(AND(F32, $I$16),IF($H$7,1,2),0))) -> 3 | J32: 0 | K32: 0 | L32: 0 | M32: 0 | N32: 0 | O32: 0 | P32: 0.02308582022 | Q32: 0 | R32: 0 | S32: 0 | T32: 0.01212058213 | U32: 0 | V32: 0 | W32: 0 | X32: 0.01212058213
